Workbook

Sheet 1) Summary
C3: ='2) Order Form'!D4 -> ORDER FORM WINTER 22/23
C4: ='2) Order Form'!D5 -> Updated March 21st 2023
C6: CUSTOMER INFO: | F6: SHIP TO: (IF DIFFERENT!) | I6: DELIVERY WEEK *
B7: NAME: *
B8: ADDRESS: * | I8: PAYMENT TERM *
B9: ZIP/CITY/COUNTRY: *
B10: PHONE: * | I10: CUSTOMER #
B11: E-MAIL: *
B12: INVOICE E-MAIL:
B13: ORG/VAT NR: *
B14: CONTACT PERSON: *
B15: *mandatory information
C16: NOTE / COMMENTS:
C24: ORDER SUMMARY | M24: *hide if not applicable
C25: Category | E25: PCS | F25: ="Order "&"("&'2) Order Form'!$P$3&")" -> Order (EUR) | G25: ="Discount "&"("&'2) Order Form'!$P$3&")" -> Discount (EUR) | H25: ="Discount %" -> Discount % | I25: ="Sum "&"("&'2) Order Form'!$P$3&")" -> Sum (EUR) | J25: Markup | M25: Last year purchase | N25: Change | O25: Change %
C26: Helmets & Helmet Acc. | E26: =SUMIF('2) Order Form'!$B$9:$B$1048576,'1) Summary'!$C26,'2) Order Form'!$I$9:$I$1048576) -> 0 | F26: =SUMIF('2) Order Form'!$B$9:$B$1048576,'1) Summary'!$C26,'2) Order Form'!$R$9:$R$1048576) -> 0.00 | G26: =IFERROR(SUMIF('2) Order Form'!$B$9:$B$1048576,'1) Summary'!$C26,'2) Order Form'!$S$9:$S$1048576),0) -> 0.00 | H26: =IFERROR(G26/F26,0) -> 0.0 % | I26: =F26-G26 -> 0.00 | J26: =IFERROR(SUMIF('2) Order Form'!$B$9:$B$1048576,'1) Summary'!$C26,'2) Order Form'!$Y$9:$Y$1048576)/I26,0) -> 0.0 | M26: 0.00 | N26: =I26-M26 -> 0.00 | O26: =IFERROR(N26/M26,"") -> 
C27: Protection | E27: =SUMIF('2) Order Form'!$B$9:$B$1048576,'1) Summary'!$C27,'2) Order Form'!$I$9:$I$1048576) -> 0 | F27: =SUMIF('2) Order Form'!$B$9:$B$1048576,'1) Summary'!$C27,'2) Order Form'!$R$9:$R$1048576) -> 0.00 | G27: =IFERROR(SUMIF('2) Order Form'!$B$9:$B$1048576,'1) Summary'!$C27,'2) Order Form'!$S$9:$S$1048576),0) -> 0.00 | H27: =IFERROR(G27/F27,0) -> 0.0 % | I27: =F27-G27 -> 0.00 | J27: =IFERROR(SUMIF('2) Order Form'!$B$9:$B$1048576,'1) Summary'!$C27,'2) Order Form'!$Y$9:$Y$1048576)/I27,0) -> 0.0 | M27: 0.00 | N27: =I27-M27 -> 0.00 | O27: =IFERROR(N27/M27,"") -> 
C28: Eyewear | E28: =SUMIF('2) Order Form'!$B$9:$B$1048576,'1) Summary'!$C28,'2) Order Form'!$I$9:$I$1048576) -> 0 | F28: =SUMIF('2) Order Form'!$B$9:$B$1048576,'1) Summary'!$C28,'2) Order Form'!$R$9:$R$1048576) -> 0.00 | G28: =IFERROR(SUMIF('2) Order Form'!$B$9:$B$1048576,'1) Summary'!$C28,'2) Order Form'!$S$9:$S$1048576),0) -> 0.00 | H28: =IFERROR(G28/F28,0) -> 0.0 % | I28: =F28-G28 -> 0.00 | J28: =IFERROR(SUMIF('2) Order Form'!$B$9:$B$1048576,'1) Summary'!$C28,'2) Order Form'!$Y$9:$Y$1048576)/I28,0) -> 0.0 | M28: 0.00 | N28: =I28-M28 -> 0.00 | O28: =IFERROR(N28/M28,"") -> 
C29: Technical Apparel | E29: =SUMIF('2) Order Form'!$B$9:$B$1048576,'1) Summary'!$C29,'2) Order Form'!$I$9:$I$1048576) -> 0 | F29: =SUMIF('2) Order Form'!$B$9:$B$1048576,'1) Summary'!$C29,'2) Order Form'!$R$9:$R$1048576) -> 0.00 | G29: =IFERROR(SUMIF('2) Order Form'!$B$9:$B$1048576,'1) Summary'!$C29,'2) Order Form'!$S$9:$S$1048576),0) -> 0.00 | H29: =IFERROR(G29/F29,0) -> 0.0 % | I29: =F29-G29 -> 0.00 | J29: =IFERROR(SUMIF('2) Order Form'!$B$9:$B$1048576,'1) Summary'!$C29,'2) Order Form'!$Y$9:$Y$1048576)/I29,0) -> 0.0 | M29: 0.00 | N29: =I29-M29 -> 0.00 | O29: =IFERROR(N29/M29,"") -> 
C30: Apparel & Headwear | E30: =SUMIF('2) Order Form'!$B$9:$B$1048576,'1) Summary'!$C30,'2) Order Form'!$I$9:$I$1048576) -> 0 | F30: =SUMIF('2) Order Form'!$B$9:$B$1048576,'1) Summary'!$C30,'2) Order Form'!$R$9:$R$1048576) -> 0.00 | G30: =IFERROR(SUMIF('2) Order Form'!$B$9:$B$1048576,'1) Summary'!$C30,'2) Order Form'!$S$9:$S$1048576),0) -> 0.00 | H30: =IFERROR(G30/F30,0) -> 0.0 % | I30: =F30-G30 -> 0.00 | J30: =IFERROR(SUMIF('2) Order Form'!$B$9:$B$1048576,'1) Summary'!$C30,'2) Order Form'!$Y$9:$Y$1048576)/I30,0) -> 0.0 | M30: 0.00 | N30: =I30-M30 -> 0.00 | O30: =IFERROR(N30/M30,"") -> 
C32: TOTALS | E32: =SUM(E26:E30) -> 0 | F32: =SUM(F26:F30) -> 0.00 | G32: =SUM(G26:G30) -> 0.00 | H32: =IFERROR(G32/F32,0) -> 0.0 % | I32: =SUM(I26:I30) -> 0.00 | J32: =IFERROR(SUM('2) Order Form'!Y9:Y1048576)/I32,0) -> 0.0 | M32: =SUM(M26:M30) -> 0.00 | N32: =I32-M32 -> 0.00 | O32: =IFERROR(N32/M32,"") -> 
C34: ="ORDER TOTALS "&"("&'2) Order Form'!$P$3&")" -> ORDER TOTALS (EUR)
C36: Total after discount | D36: ='2) Order Form'!S6 -> 0.00
C37: Markup | D37: =J32 -> 0.0 | E37: Enter VAT %
C38: Customer margin % | D38: =IFERROR((SUM('2) Order Form'!$Y$9:$Y$1048576)/(1+E38)-D36)/(SUM('2) Order Form'!$Y$9:$Y$1048576)/(1+E38)),0) -> 0.0 % | E38: 20% | F38: < < <

Sheet 2) Order Form
P2: CHOOSE CURRENCY: | R2: Total PCS | S2: =SUM(I9:I927) -> 0
O3: > > > | P3: EUR | R3: Markup: | S3: =IFERROR(SUMPRODUCT(Q9:Q927,I9:I927)/SUM(T9:T927),0) -> 0.00
D4: ORDER FORM WINTER 22/23 | P4: MAIN DISCOUNT: | R4: Total before %: | S4: =SUM(R9:R927) -> 0.00
D5: Updated March 21st 2023 | O5: > > > | P5: 0% | R5: Discount: | S5: =SUM(S9:S927) -> 0.00 | U5: =IFERROR(S5/S4,0) -> 0.0 %
R6: Net total: | S6: =SUM(S4-S5) -> 0.00
A8: CAT.NR | B8: CATEGORY | C8: STYLENR. | D8: PRODUCT NAME | E8: Variant | F8: COLOR [Eyewear: Lens/Frame/Strap] | G8: SIZE | H8: PCS per Pack | I8: ORDER QTY | J8: ATS W40 | K8: ="ATS"&" "&"W"&(ATS!U4-202300) -> ATS W12 | L8: ATS W49 | M8: ="ATS"&" "&"W"&(ATS!V4-202200) -> ATS W121 | N8: Discount Specific | O8: Discount FINAL | P8: ="WHS"&$P$3 -> WHSEUR | Q8: ="RETAIL"&$P$3 -> RETAILEUR | R8: Order | S8: Discount | T8: Net Total | U8: Size split | W8: EAN-code | Y8: Retail value | Z8: Category | AA8: Style II | AB8: Style | AC8: Color | AD8: CCTN1 | AE8: CCTN2 | AF8: Rekkefølge | AG8: Kategori | AH8: STATUS
A9: 1 | B9: =VLOOKUP(A9,Classification!$H$2:$I$11,2,FALSE) -> Helmets & Helmet Acc. | C9: =INDEX(ATS!$A:$U,MATCH('2) Order Form'!$W9,ATS!$T:$T,0),1) -> 840102 | D9: =INDEX(ATS!$A:$U,MATCH('2) Order Form'!$W9,ATS!$T:$T,0),2) -> Igniter 2Vi MIPS Helmet | E9: =INDEX(ATS!$A:$U,MATCH('2) Order Form'!$W9,ATS!$T:$T,0),4) -> DPUMC-SM | F9: =INDEX(ATS!$A:$U,MATCH('2) Order Form'!$W9,ATS!$T:$T,0),5) -> Deep Purple Metallic | G9: =INDEX(ATS!$A:$U,MATCH('2) Order Form'!$W9,ATS!$T:$T,0),6) -> SM | H9: =INDEX(Packs!$A:$V,MATCH('2) Order Form'!$W9,Packs!$W:$W,0),22) -> 1 | I9: 0 | J9: =IFERROR(VLOOKUP(W9,ATS!$T:$U,2,FALSE),0) -> 0 | K9: =IF(J9=99999,"OPEN",IF(J9>50,"50+",IF(J9<=0,"0",J9))) -> 0 | L9: =IFERROR(VLOOKUP(W9,ATS!$T:$V,3,FALSE),0) -> 0 | M9: =IF(L9=99999,"OPEN",IF(L9>50,"50+",IF(L9<=0,"0",L9))) -> 0 | N9: 0% | O9: =IF(N9<>0,N9,$P$5) -> 0% | P9: =VLOOKUP($C9,Prices!$A$3:$T$1996,MATCH('2) Order Form'!P$8,Prices!$A$2:$T$2,0),FALSE) -> 115.00 | Q9: =VLOOKUP($C9,Prices!$A$3:$T$1996,MATCH('2) Order Form'!Q$8,Prices!$A$2:$T$2,0),FALSE) -> 229.95 | R9: =I9*P9 -> 0 | S9: =R9*O9 -> 0 | T9: =R9-S9 -> 0 | U9: =IFERROR(I9/SUMIF($AD$9:$AD$888,AD9,$I$9:$I$888),0) -> 0% | W9: 7048652832375 | Y9: =I9*Q9 -> 0 | Z9: =IF(A9=OFFSET(A9,-1,0),0,1) -> 1 | AA9: 0 | AB9: =IF(C9=OFFSET(C9,-1,0),0,1) -> 1 | AC9: =IF(F9=OFFSET(F9,-1,0),0,1) -> 1 | AD9: =CONCATENATE(C9,F9) -> 840102Deep Purple Metallic | AE9: =IFERROR(IF(B9="EYEWEAR",CONCATENATE(C9,"-",G9),C9),C9) -> 840102 | AF9: =VLOOKUP($C9,Classification!$A:$F,5,FALSE) ->  | AG9: =VLOOKUP($C9,Classification!$A:$F,6,FALSE) ->  | AH9: =INDEX(ATS!$A:$U,MATCH('2) Order Form'!$W9,ATS!$T:$T,0),7) -> Stock
A10: 1 | B10: =VLOOKUP(A10,Classification!$H$2:$I$11,2,FALSE) -> Helmets & Helmet Acc. | C10: =INDEX(ATS!$A:$U,MATCH('2) Order Form'!$W10,ATS!$T:$T,0),1) -> 840102 | D10: =INDEX(ATS!$A:$U,MATCH('2) Order Form'!$W10,ATS!$T:$T,0),2) -> Igniter 2Vi MIPS Helmet | E10: =INDEX(ATS!$A:$U,MATCH('2) Order Form'!$W10,ATS!$T:$T,0),4) -> DPUMC-ML | F10: =INDEX(ATS!$A:$U,MATCH('2) Order Form'!$W10,ATS!$T:$T,0),5) -> Deep Purple Metallic | G10: =INDEX(ATS!$A:$U,MATCH('2) Order Form'!$W10,ATS!$T:$T,0),6) -> ML | H10: =INDEX(Packs!$A:$V,MATCH('2) Order Form'!$W10,Packs!$W:$W,0),22) -> 1 | I10: 0 | J10: =IFERROR(VLOOKUP(W10,ATS!$T:$U,2,FALSE),0) -> 0 | K10: =IF(J10=99999,"OPEN",IF(J10>50,"50+",IF(J10<=0,"0",J10))) -> 0 | L10: =IFERROR(VLOOKUP(W10,ATS!$T:$V,3,FALSE),0) -> 0 | M10: =IF(L10=99999,"OPEN",IF(L10>50,"50+",IF(L10<=0,"0",L10))) -> 0 | N10: 0% | O10: 0% | P10: =VLOOKUP($C10,Prices!$A$3:$T$1996,MATCH('2) Order Form'!P$8,Prices!$A$2:$T$2,0),FALSE) -> 115.00 | Q10: =VLOOKUP($C10,Prices!$A$3:$T$1996,MATCH('2) Order Form'!Q$8,Prices!$A$2:$T$2,0),FALSE) -> 229.95 | R10: =I10*P10 -> 0 | S10: =R10*O10 -> 0 | T10: =R10-S10 -> 0 | U10: 0% | W10: 7048652832368 | Y10: =I10*Q10 -> 0 | Z10: 0 | AA10: =IF(C10=OFFSET(C10,-1,0),OFFSET(AA10,-1,0),OFFSET(AA10,-1,0)+1) -> 0 | AB10: 0 | AC10: 0 | AD10: 840102Deep Purple Metallic | AE10: 840102 | AF10: =VLOOKUP($C10,Classification!$A:$F,5,FALSE) ->  | AG10: =VLOOKUP($C10,Classification!$A:$F,6,FALSE) ->  | AH10: =INDEX(ATS!$A:$U,MATCH('2) Order Form'!$W10,ATS!$T:$T,0),7) -> Stock
A11: 1 | B11: =VLOOKUP(A11,Classification!$H$2:$I$11,2,FALSE) -> Helmets & Helmet Acc. | C11: =INDEX(ATS!$A:$U,MATCH('2) Order Form'!$W11,ATS!$T:$T,0),1) -> 840102 | D11: =INDEX(ATS!$A:$U,MATCH('2) Order Form'!$W11,ATS!$T:$T,0),2) -> Igniter 2Vi MIPS Helmet | E11: =INDEX(ATS!$A:$U,MATCH('2) Order Form'!$W11,ATS!$T:$T,0),4) -> DPUMC-LXL | F11: =INDEX(ATS!$A:$U,MATCH('2) Order Form'!$W11,ATS!$T:$T,0),5) -> Deep Purple Metallic | G11: =INDEX(ATS!$A:$U,MATCH('2) Order Form'!$W11,ATS!$T:$T,0),6) -> LXL | H11: =INDEX(Packs!$A:$V,MATCH('2) Order Form'!$W11,Packs!$W:$W,0),22) -> 1 | I11: 0 | J11: =IFERROR(VLOOKUP(W11,ATS!$T:$U,2,FALSE),0) -> 0 | K11: 0 | L11: =IFERROR(VLOOKUP(W11,ATS!$T:$V,3,FALSE),0) -> 0 | M11: 0 | N11: 0% | O11: 0% | P11: =VLOOKUP($C11,Prices!$A$3:$T$1996,MATCH('2) Order Form'!P$8,Prices!$A$2:$T$2,0),FALSE) -> 115.00 | Q11: =VLOOKUP($C11,Prices!$A$3:$T$1996,MATCH('2) Order Form'!Q$8,Prices!$A$2:$T$2,0),FALSE) -> 229.95 | R11: 0 | S11: 0 | T11: 0 | U11: 0% | W11: 7048652832351 | Y11: 0 | Z11: 0 | AA11: 0 | AB11: 0 | AC11: 0 | AD11: 840102Deep Purple Metallic | AE11: 840102 | AF11: =VLOOKUP($C11,Classification!$A:$F,5,FALSE) ->  | AG11: =VLOOKUP($C11,Classification!$A:$F,6,FALSE) ->  | AH11: =INDEX(ATS!$A:$U,MATCH('2) Order Form'!$W11,ATS!$T:$T,0),7) -> Stock
A12: 1 | B12: =VLOOKUP(A12,Classification!$H$2:$I$11,2,FALSE) -> Helmets & Helmet Acc. | C12: =INDEX(ATS!$A:$U,MATCH('2) Order Form'!$W12,ATS!$T:$T,0),1) -> 840102 | D12: =INDEX(ATS!$A:$U,MATCH('2) Order Form'!$W12,ATS!$T:$T,0),2) -> Igniter 2Vi MIPS Helmet | E12: =INDEX(ATS!$A:$U,MATCH('2) Order Form'!$W12,ATS!$T:$T,0),4) -> DTBLK-SM | F12: =INDEX(ATS!$A:$U,MATCH('2) Order Form'!$W12,ATS!$T:$T,0),5) -> Dirt Black | G12: =INDEX(ATS!$A:$U,MATCH('2) Order Form'!$W12,ATS!$T:$T,0),6) -> SM | H12: =INDEX(Packs!$A:$V,MATCH('2) Order Form'!$W12,Packs!$W:$W,0),22) -> 1 | I12: 0 | J12: =IFERROR(VLOOKUP(W12,ATS!$T:$U,2,FALSE),0) -> 329 | K12: 50+ | L12: =IFERROR(VLOOKUP(W12,ATS!$T:$V,3,FALSE),0) -> 329 | M12: 50+ | N12: 0% | O12: 0% | P12: =VLOOKUP($C12,Prices!$A$3:$T$1996,MATCH('2) Order Form'!P$8,Prices!$A$2:$T$2,0),FALSE) -> 115.00 | Q12: =VLOOKUP($C12,Prices!$A$3:$T$1996,MATCH('2) Order Form'!Q$8,Prices!$A$2:$T$2,0),FALSE) -> 229.95 | R12: 0 | S12: 0 | T12: 0 | U12: 0% | W12: 7048652832405 | Y12: 0 | Z12: 0 | AA12: =IF(C12=OFFSET(C12,-1,0),OFFSET(AA12,-1,0),OFFSET(AA12,-1,0)+1) -> 0 | AB12: 0 | AC12: 1 | AD12: 840102Dirt Black | AE12: 840102 | AF12: =VLOOKUP($C12,Classification!$A:$F,5,FALSE) ->  | AG12: =VLOOKUP($C12,Classification!$A:$F,6,FALSE) ->  | AH12: =INDEX(ATS!$A:$U,MATCH('2) Order Form'!$W12,ATS!$T:$T,0),7) -> Active
A13: 1 | B13: =VLOOKUP(A13,Classification!$H$2:$I$11,2,FALSE) -> Helmets & Helmet Acc. | C13: =INDEX(ATS!$A:$U,MATCH('2) Order Form'!$W13,ATS!$T:$T,0),1) -> 840102 | D13: =INDEX(ATS!$A:$U,MATCH('2) Order Form'!$W13,ATS!$T:$T,0),2) -> Igniter 2Vi MIPS Helmet | E13: =INDEX(ATS!$A:$U,MATCH('2) Order Form'!$W13,ATS!$T:$T,0),4) -> DTBLK-ML | F13: =INDEX(ATS!$A:$U,MATCH('2) Order Form'!$W13,ATS!$T:$T,0),5) -> Dirt Black | G13: =INDEX(ATS!$A:$U,MATCH('2) Order Form'!$W13,ATS!$T:$T,0),6) -> ML | H13: =INDEX(Packs!$A:$V,MATCH('2) Order Form'!$W13,Packs!$W:$W,0),22) -> 1 | I13: 0 | J13: =IFERROR(VLOOKUP(W13,ATS!$T:$U,2,FALSE),0) -> 538 | K13: 50+ | L13: =IFERROR(VLOOKUP(W13,ATS!$T:$V,3,FALSE),0) -> 538 | M13: 50+ | N13: 0% | O13: 0% | P13: =VLOOKUP($C13,Prices!$A$3:$T$1996,MATCH('2) Order Form'!P$8,Prices!$A$2:$T$2,0),FALSE) -> 115.00 | Q13: =VLOOKUP($C13,Prices!$A$3:$T$1996,MATCH('2) Order Form'!Q$8,Prices!$A$2:$T$2,0),FALSE) -> 229.95 | R13: 0 | S13: 0 | T13: 0 | U13: 0% | W13: 7048652832399 | Y13: 0 | Z13: 0 | AA13: 0 | AB13: 0 | AC13: 0 | AD13: 840102Dirt Black | AE13: 840102 | AF13: =VLOOKUP($C13,Classification!$A:$F,5,FALSE) ->  | AG13: =VLOOKUP($C13,Classification!$A:$F,6,FALSE) ->  | AH13: =INDEX(ATS!$A:$U,MATCH('2) Order Form'!$W13,ATS!$T:$T,0),7) -> Active
A14: 1 | B14: =VLOOKUP(A14,Classification!$H$2:$I$11,2,FALSE) -> Helmets & Helmet Acc. | C14: =INDEX(ATS!$A:$U,MATCH('2) Order Form'!$W14,ATS!$T:$T,0),1) -> 840102 | D14: =INDEX(ATS!$A:$U,MATCH('2) Order Form'!$W14,ATS!$T:$T,0),2) -> Igniter 2Vi MIPS Helmet | E14: =INDEX(ATS!$A:$U,MATCH('2) Order Form'!$W14,ATS!$T:$T,0),4) -> DTBLK-LXL | F14: =INDEX(ATS!$A:$U,MATCH('2) Order Form'!$W14,ATS!$T:$T,0),5) -> Dirt Black | G14: =INDEX(ATS!$A:$U,MATCH('2) Order Form'!$W14,ATS!$T:$T,0),6) -> LXL | H14: =INDEX(Packs!$A:$V,MATCH('2) Order Form'!$W14,Packs!$W:$W,0),22) -> 1 | I14: 0 | J14: =IFERROR(VLOOKUP(W14,ATS!$T:$U,2,FALSE),0) -> 489 | K14: 50+ | L14: =IFERROR(VLOOKUP(W14,ATS!$T:$V,3,FALSE),0) -> 489 | M14: 50+ | N14: 0% | O14: 0% | P14: =VLOOKUP($C14,Prices!$A$3:$T$1996,MATCH('2) Order Form'!P$8,Prices!$A$2:$T$2,0),FALSE) -> 115.00 | Q14: =VLOOKUP($C14,Prices!$A$3:$T$1996,MATCH('2) Order Form'!Q$8,Prices!$A$2:$T$2,0),FALSE) -> 229.95 | R14: 0 | S14: 0 | T14: 0 | U14: 0% | W14: 7048652832382 | Y14: 0 | Z14: 0 | AA14: 0 | AB14: 0 | AC14: 0 | AD14: 840102Dirt Black | AE14: 840102 | AF14: =VLOOKUP($C14,Classification!$A:$F,5,FALSE) ->  | AG14: =VLOOKUP($C14,Classification!$A:$F,6,FALSE) ->  | AH14: =INDEX(ATS!$A:$U,MATCH('2) Order Form'!$W14,ATS!$T:$T,0),7) -> Active
A15: 1 | B15: =VLOOKUP(A15,Classification!$H$2:$I$11,2,FALSE) -> Helmets & Helmet Acc. | C15: =INDEX(ATS!$A:$U,MATCH('2) Order Form'!$W15,ATS!$T:$T,0),1) -> 840102 | D15: =INDEX(ATS!$A:$U,MATCH('2) Order Form'!$W15,ATS!$T:$T,0),2) -> Igniter 2Vi MIPS Helmet | E15: =INDEX(ATS!$A:$U,MATCH('2) Order Form'!$W15,ATS!$T:$T,0),4) -> GSWHT-SM | F15: =INDEX(ATS!$A:$U,MATCH('2) Order Form'!$W15,ATS!$T:$T,0),5) -> Gloss White | G15: =INDEX(ATS!$A:$U,MATCH('2) Order Form'!$W15,ATS!$T:$T,0),6) -> SM | H15: =INDEX(Packs!$A:$V,MATCH('2) Order Form'!$W15,Packs!$W:$W,0),22) -> 1 | I15: 0 | J15: =IFERROR(VLOOKUP(W15,ATS!$T:$U,2,FALSE),0) -> 257 | K15: 50+ | L15: =IFERROR(VLOOKUP(W15,ATS!$T:$V,3,FALSE),0) -> 257 | M15: 50+ | N15: 0% | O15: 0% | P15: =VLOOKUP($C15,Prices!$A$3:$T$1996,MATCH('2) Order Form'!P$8,Prices!$A$2:$T$2,0),FALSE) -> 115.00 | Q15: =VLOOKUP($C15,Prices!$A$3:$T$1996,MATCH('2) Order Form'!Q$8,Prices!$A$2:$T$2,0),FALSE) -> 229.95 | R15: 0 | S15: 0 | T15: 0 | U15: 0% | W15: 7048652832436 | Y15: 0 | Z15: 0 | AA15: 0 | AB15: 0 | AC15: 1 | AD15: 840102Gloss White | AE15: 840102 | AF15: =VLOOKUP($C15,Classification!$A:$F,5,FALSE) ->  | AG15: =VLOOKUP($C15,Classification!$A:$F,6,FALSE) ->  | AH15: =INDEX(ATS!$A:$U,MATCH('2) Order Form'!$W15,ATS!$T:$T,0),7) -> Active
A16: 1 | B16: =VLOOKUP(A16,Classification!$H$2:$I$11,2,FALSE) -> Helmets & Helmet Acc. | C16: =INDEX(ATS!$A:$U,MATCH('2) Order Form'!$W16,ATS!$T:$T,0),1) -> 840102 | D16: =INDEX(ATS!$A:$U,MATCH('2) Order Form'!$W16,ATS!$T:$T,0),2) -> Igniter 2Vi MIPS Helmet | E16: =INDEX(ATS!$A:$U,MATCH('2) Order Form'!$W16,ATS!$T:$T,0),4) -> GSWHT-ML | F16: =INDEX(ATS!$A:$U,MATCH('2) Order Form'!$W16,ATS!$T:$T,0),5) -> Gloss White | G16: =INDEX(ATS!$A:$U,MATCH('2) Order Form'!$W16,ATS!$T:$T,0),6) -> ML | H16: =INDEX(Packs!$A:$V,MATCH('2) Order Form'!$W16,Packs!$W:$W,0),22) -> 1 | I16: 0 | J16: =IFERROR(VLOOKUP(W16,ATS!$T:$U,2,FALSE),0) -> 436 | K16: 50+ | L16: =IFERROR(VLOOKUP(W16,ATS!$T:$V,3,FALSE),0) -> 436 | M16: 50+ | N16: 0% | O16: 0% | P16: =VLOOKUP($C16,Prices!$A$3:$T$1996,MATCH('2) Order Form'!P$8,Prices!$A$2:$T$2,0),FALSE) -> 115.00 | Q16: =VLOOKUP($C16,Prices!$A$3:$T$1996,MATCH('2) Order Form'!Q$8,Prices!$A$2:$T$2,0),FALSE) -> 229.95 | R16: 0 | S16: 0 | T16: 0 | U16: 0% | W16: 7048652832429 | Y16: 0 | Z16: 0 | AA16: 0 | AB16: 0 | AC16: 0 | AD16: 840102Gloss White | AE16: 840102 | AF16: =VLOOKUP($C16,Classification!$A:$F,5,FALSE) ->  | AG16: =VLOOKUP($C16,Classification!$A:$F,6,FALSE) ->  | AH16: =INDEX(ATS!$A:$U,MATCH('2) Order Form'!$W16,ATS!$T:$T,0),7) -> Active
A17: 1 | B17: =VLOOKUP(A17,Classification!$H$2:$I$11,2,FALSE) -> Helmets & Helmet Acc. | C17: =INDEX(ATS!$A:$U,MATCH('2) Order Form'!$W17,ATS!$T:$T,0),1) -> 840102 | D17: =INDEX(ATS!$A:$U,MATCH('2) Order Form'!$W17,ATS!$T:$T,0),2) -> Igniter 2Vi MIPS Helmet | E17: =INDEX(ATS!$A:$U,MATCH('2) Order Form'!$W17,ATS!$T:$T,0),4) -> GSWHT-LXL | F17: =INDEX(ATS!$A:$U,MATCH('2) Order Form'!$W17,ATS!$T:$T,0),5) -> Gloss White | G17: =INDEX(ATS!$A:$U,MATCH('2) Order Form'!$W17,ATS!$T:$T,0),6) -> LXL | H17: =INDEX(Packs!$A:$V,MATCH('2) Order Form'!$W17,Packs!$W:$W,0),22) -> 1 | I17: 0 | J17: =IFERROR(VLOOKUP(W17,ATS!$T:$U,2,FALSE),0) -> 270 | K17: 50+ | L17: =IFERROR(VLOOKUP(W17,ATS!$T:$V,3,FALSE),0) -> 270 | M17: 50+ | N17: 0% | O17: 0% | P17: =VLOOKUP($C17,Prices!$A$3:$T$1996,MATCH('2) Order Form'!P$8,Prices!$A$2:$T$2,0),FALSE) -> 115.00 | Q17: =VLOOKUP($C17,Prices!$A$3:$T$1996,MATCH('2) Order Form'!Q$8,Prices!$A$2:$T$2,0),FALSE) -> 229.95 | R17: 0 | S17: 0 | T17: 0 | U17: 0% | W17: 7048652832412 | Y17: 0 | Z17: 0 | AA17: 0 | AB17: 0 | AC17: 0 | AD17: 840102Gloss White | AE17: 840102 | AF17: =VLOOKUP($C17,Classification!$A:$F,5,FALSE) ->  | AG17: =VLOOKUP($C17,Classification!$A:$F,6,FALSE) ->  | AH17: =INDEX(ATS!$A:$U,MATCH('2) Order Form'!$W17,ATS!$T:$T,0),7) -> Active
A18: 1 | B18: =VLOOKUP(A18,Classification!$H$2:$I$11,2,FALSE) -> Helmets & Helmet Acc. | C18: =INDEX(ATS!$A:$U,MATCH('2) Order Form'!$W18,ATS!$T:$T,0),1) -> 840102 | D18: =INDEX(ATS!$A:$U,MATCH('2) Order Form'!$W18,ATS!$T:$T,0),2) -> Igniter 2Vi MIPS Helmet | E18: =INDEX(ATS!$A:$U,MATCH('2) Order Form'!$W18,ATS!$T:$T,0),4) -> MASEM-SM | F18: =INDEX(ATS!$A:$U,MATCH('2) Order Form'!$W18,ATS!$T:$T,0),5) -> Matte Sea Metallic | G18: =INDEX(ATS!$A:$U,MATCH('2) Order Form'!$W18,ATS!$T:$T,0),6) -> SM | H18: =INDEX(Packs!$A:$V,MATCH('2) Order Form'!$W18,Packs!$W:$W,0),22) -> 1 | I18: 0 | J18: =IFERROR(VLOOKUP(W18,ATS!$T:$U,2,FALSE),0) -> 88 | K18: 50+ | L18: =IFERROR(VLOOKUP(W18,ATS!$T:$V,3,FALSE),0) -> 88 | M18: 50+ | N18: 0% | O18: 0% | P18: =VLOOKUP($C18,Prices!$A$3:$T$1996,MATCH('2) Order Form'!P$8,Prices!$A$2:$T$2,0),FALSE) -> 115.00 | Q18: =VLOOKUP($C18,Prices!$A$3:$T$1996,MATCH('2) Order Form'!Q$8,Prices!$A$2:$T$2,0),FALSE) -> 229.95 | R18: 0 | S18: 0 | T18: 0 | U18: 0% | W18: 7048652832467 | Y18: 0 | Z18: 0 | AA18: 0 | AB18: 0 | AC18: 1 | AD18: 840102Matte Sea Metallic | AE18: 840102 | AF18: =VLOOKUP($C18,Classification!$A:$F,5,FALSE) ->  | AG18: =VLOOKUP($C18,Classification!$A:$F,6,FALSE) ->  | AH18: =INDEX(ATS!$A:$U,MATCH('2) Order Form'!$W18,ATS!$T:$T,0),7) -> Active
A19: 1 | B19: =VLOOKUP(A19,Classification!$H$2:$I$11,2,FALSE) -> Helmets & Helmet Acc. | C19: =INDEX(ATS!$A:$U,MATCH('2) Order Form'!$W19,ATS!$T:$T,0),1) -> 840102 | D19: =INDEX(ATS!$A:$U,MATCH('2) Order Form'!$W19,ATS!$T:$T,0),2) -> Igniter 2Vi MIPS Helmet | E19: =INDEX(ATS!$A:$U,MATCH('2) Order Form'!$W19,ATS!$T:$T,0),4) -> MASEM-ML | F19: =INDEX(ATS!$A:$U,MATCH('2) Order Form'!$W19,ATS!$T:$T,0),5) -> Matte Sea Metallic | G19: =INDEX(ATS!$A:$U,MATCH('2) Order Form'!$W19,ATS!$T:$T,0),6) -> ML | H19: =INDEX(Packs!$A:$V,MATCH('2) Order Form'!$W19,Packs!$W:$W,0),22) -> 1 | I19: 0 | J19: =IFERROR(VLOOKUP(W19,ATS!$T:$U,2,FALSE),0) -> 122 | K19: 50+ | L19: =IFERROR(VLOOKUP(W19,ATS!$T:$V,3,FALSE),0) -> 122 | M19: 50+ | N19: 0% | O19: 0% | P19: =VLOOKUP($C19,Prices!$A$3:$T$1996,MATCH('2) Order Form'!P$8,Prices!$A$2:$T$2,0),FALSE) -> 115.00 | Q19: =VLOOKUP($C19,Prices!$A$3:$T$1996,MATCH('2) Order Form'!Q$8,Prices!$A$2:$T$2,0),FALSE) -> 229.95 | R19: 0 | S19: 0 | T19: 0 | U19: 0% | W19: 7048652832450 | Y19: 0 | Z19: 0 | AA19: 0 | AB19: 0 | AC19: 0 | AD19: 840102Matte Sea Metallic | AE19: 840102 | AF19: =VLOOKUP($C19,Classification!$A:$F,5,FALSE) ->  | AG19: =VLOOKUP($C19,Classification!$A:$F,6,FALSE) ->  | AH19: =INDEX(ATS!$A:$U,MATCH('2) Order Form'!$W19,ATS!$T:$T,0),7) -> Active
A20: 1 | B20: =VLOOKUP(A20,Classification!$H$2:$I$11,2,FALSE) -> Helmets & Helmet Acc. | C20: =INDEX(ATS!$A:$U,MATCH('2) Order Form'!$W20,ATS!$T:$T,0),1) -> 840102 | D20: =INDEX(ATS!$A:$U,MATCH('2) Order Form'!$W20,ATS!$T:$T,0),2) -> Igniter 2Vi MIPS Helmet | E20: =INDEX(ATS!$A:$U,MATCH('2) Order Form'!$W20,ATS!$T:$T,0),4) -> MASEM-LXL | F20: =INDEX(ATS!$A:$U,MATCH('2) Order Form'!$W20,ATS!$T:$T,0),5) -> Matte Sea Metallic | G20: =INDEX(ATS!$A:$U,MATCH('2) Order Form'!$W20,ATS!$T:$T,0),6) -> LXL | H20: =INDEX(Packs!$A:$V,MATCH('2) Order Form'!$W20,Packs!$W:$W,0),22) -> 1 | I20: 0 | J20: =IFERROR(VLOOKUP(W20,ATS!$T:$U,2,FALSE),0) -> 127 | K20: 50+ | L20: =IFERROR(VLOOKUP(W20,ATS!$T:$V,3,FALSE),0) -> 127 | M20: 50+ | N20: 0% | O20: 0% | P20: =VLOOKUP($C20,Prices!$A$3:$T$1996,MATCH('2) Order Form'!P$8,Prices!$A$2:$T$2,0),FALSE) -> 115.00 | Q20: =VLOOKUP($C20,Prices!$A$3:$T$1996,MATCH('2) Order Form'!Q$8,Prices!$A$2:$T$2,0),FALSE) -> 229.95 | R20: 0 | S20: 0 | T20: 0 | U20: 0% | W20: 7048652832443 | Y20: 0 | Z20: 0 | AA20: 0 | AB20: 0 | AC20: 0 | AD20: 840102Matte Sea Metallic | AE20: 840102 | AF20: =VLOOKUP($C20,Classification!$A:$F,5,FALSE) ->  | AG20: =VLOOKUP($C20,Classification!$A:$F,6,FALSE) ->  | AH20: =INDEX(ATS!$A:$U,MATCH('2) Order Form'!$W20,ATS!$T:$T,0),7) -> Active
A21: 1 | B21: =VLOOKUP(A21,Classification!$H$2:$I$11,2,FALSE) -> Helmets & Helmet Acc. | C21: =INDEX(ATS!$A:$U,MATCH('2) Order Form'!$W21,ATS!$T:$T,0),1) -> 840102 | D21: =INDEX(ATS!$A:$U,MATCH('2) Order Form'!$W21,ATS!$T:$T,0),2) -> Igniter 2Vi MIPS Helmet | E21: =INDEX(ATS!$A:$U,MATCH('2) Order Form'!$W21,ATS!$T:$T,0),4) -> MATHM-SM | F21: =INDEX(ATS!$A:$U,MATCH('2) Order Form'!$W21,ATS!$T:$T,0),5) -> Matte Thyme Metallic | G21: =INDEX(ATS!$A:$U,MATCH('2) Order Form'!$W21,ATS!$T:$T,0),6) -> SM | H21: =INDEX(Packs!$A:$V,MATCH('2) Order Form'!$W21,Packs!$W:$W,0),22) -> 1 | I21: 0 | J21: =IFERROR(VLOOKUP(W21,ATS!$T:$U,2,FALSE),0) -> 5 | K21: 5 | L21: =IFERROR(VLOOKUP(W21,ATS!$T:$V,3,FALSE),0) -> 5 | M21: 5 | N21: 0% | O21: 0% | P21: =VLOOKUP($C21,Prices!$A$3:$T$1996,MATCH('2) Order Form'!P$8,Prices!$A$2:$T$2,0),FALSE) -> 115.00 | Q21: =VLOOKUP($C21,Prices!$A$3:$T$1996,MATCH('2) Order Form'!Q$8,Prices!$A$2:$T$2,0),FALSE) -> 229.95 | R21: 0 | S21: 0 | T21: 0 | U21: 0% | W21: 7048652832498 | Y21: 0 | Z21: 0 | AA21: 0 | AB21: 0 | AC21: 1 | AD21: 840102Matte Thyme Metallic | AE21: 840102 | AF21: =VLOOKUP($C21,Classification!$A:$F,5,FALSE) ->  | AG21: =VLOOKUP($C21,Classification!$A:$F,6,FALSE) ->  | AH21: =INDEX(ATS!$A:$U,MATCH('2) Order Form'!$W21,ATS!$T:$T,0),7) -> Stock
A22: 1 | B22: =VLOOKUP(A22,Classification!$H$2:$I$11,2,FALSE) -> Helmets & Helmet Acc. | C22: =INDEX(ATS!$A:$U,MATCH('2) Order Form'!$W22,ATS!$T:$T,0),1) -> 840102 | D22: =INDEX(ATS!$A:$U,MATCH('2) Order Form'!$W22,ATS!$T:$T,0),2) -> Igniter 2Vi MIPS Helmet | E22: =INDEX(ATS!$A:$U,MATCH('2) Order Form'!$W22,ATS!$T:$T,0),4) -> MATHM-ML | F22: =INDEX(ATS!$A:$U,MATCH('2) Order Form'!$W22,ATS!$T:$T,0),5) -> Matte Thyme Metallic | G22: =INDEX(ATS!$A:$U,MATCH('2) Order Form'!$W22,ATS!$T:$T,0),6) -> ML | H22: =INDEX(Packs!$A:$V,MATCH('2) Order Form'!$W22,Packs!$W:$W,0),22) -> 1 | I22: 0 | J22: =IFERROR(VLOOKUP(W22,ATS!$T:$U,2,FALSE),0) -> 2 | K22: 2 | L22: =IFERROR(VLOOKUP(W22,ATS!$T:$V,3,FALSE),0) -> 2 | M22: 2 | N22: 0% | O22: 0% | P22: =VLOOKUP($C22,Prices!$A$3:$T$1996,MATCH('2) Order Form'!P$8,Prices!$A$2:$T$2,0),FALSE) -> 115.00 | Q22: =VLOOKUP($C22,Prices!$A$3:$T$1996,MATCH('2) Order Form'!Q$8,Prices!$A$2:$T$2,0),FALSE) -> 229.95 | R22: 0 | S22: 0 | T22: 0 | U22: 0% | W22: 7048652832481 | Y22: 0 | Z22: 0 | AA22: 0 | AB22: 0 | AC22: 0 | AD22: 840102Matte Thyme Metallic | AE22: 840102 | AF22: =VLOOKUP($C22,Classification!$A:$F,5,FALSE) ->  | AG22: =VLOOKUP($C22,Classification!$A:$F,6,FALSE) ->  | AH22: =INDEX(ATS!$A:$U,MATCH('2) Order Form'!$W22,ATS!$T:$T,0),7) -> Stock
A23: 1 | B23: =VLOOKUP(A23,Classification!$H$2:$I$11,2,FALSE) -> Helmets & Helmet Acc. | C23: =INDEX(ATS!$A:$U,MATCH('2) Order Form'!$W23,ATS!$T:$T,0),1) -> 840102 | D23: =INDEX(ATS!$A:$U,MATCH('2) Order Form'!$W23,ATS!$T:$T,0),2) -> Igniter 2Vi MIPS Helmet | E23: =INDEX(ATS!$A:$U,MATCH('2) Order Form'!$W23,ATS!$T:$T,0),4) -> MATHM-LXL | F23: =INDEX(ATS!$A:$U,MATCH('2) Order Form'!$W23,ATS!$T:$T,0),5) -> Matte Thyme Metallic | G23: =INDEX(ATS!$A:$U,MATCH('2) Order Form'!$W23,ATS!$T:$T,0),6) -> LXL | H23: =INDEX(Packs!$A:$V,MATCH('2) Order Form'!$W23,Packs!$W:$W,0),22) -> 1 | I23: 0 | J23: =IFERROR(VLOOKUP(W23,ATS!$T:$U,2,FALSE),0) -> 6 | K23: 6 | L23: =IFERROR(VLOOKUP(W23,ATS!$T:$V,3,FALSE),0) -> 6 | M23: 6 | N23: 0% | O23: 0% | P23: =VLOOKUP($C23,Prices!$A$3:$T$1996,MATCH('2) Order Form'!P$8,Prices!$A$2:$T$2,0),FALSE) -> 115.00 | Q23: =VLOOKUP($C23,Prices!$A$3:$T$1996,MATCH('2) Order Form'!Q$8,Prices!$A$2:$T$2,0),FALSE) -> 229.95 | R23: 0 | S23: 0 | T23: 0 | U23: 0% | W23: 7048652832474 | Y23: 0 | Z23: 0 | AA23: 0 | AB23: 0 | AC23: 0 | AD23: 840102Matte Thyme Metallic | AE23: 840102 | AF23: =VLOOKUP($C23,Classification!$A:$F,5,FALSE) ->  | AG23: =VLOOKUP($C23,Classification!$A:$F,6,FALSE) ->  | AH23: =INDEX(ATS!$A:$U,MATCH('2) Order Form'!$W23,ATS!$T:$T,0),7) -> Stock
A24: 1 | B24: =VLOOKUP(A24,Classification!$H$2:$I$11,2,FALSE) -> Helmets & Helmet Acc. | C24: =INDEX(ATS!$A:$U,MATCH('2) Order Form'!$W24,ATS!$T:$T,0),1) -> 840102 | D24: =INDEX(ATS!$A:$U,MATCH('2) Order Form'!$W24,ATS!$T:$T,0),2) -> Igniter 2Vi MIPS Helmet | E24: =INDEX(ATS!$A:$U,MATCH('2) Order Form'!$W24,ATS!$T:$T,0),4) -> MBRWH-SM | F24: =INDEX(ATS!$A:$U,MATCH('2) Order Form'!$W24,ATS!$T:$T,0),5) -> Matte Bronco White | G24: =INDEX(ATS!$A:$U,MATCH('2) Order Form'!$W24,ATS!$T:$T,0),6) -> SM | H24: =INDEX(Packs!$A:$V,MATCH('2) Order Form'!$W24,Packs!$W:$W,0),22) -> 1 | I24: 0 | J24: =IFERROR(VLOOKUP(W24,ATS!$T:$U,2,FALSE),0) -> 144 | K24: 50+ | L24: =IFERROR(VLOOKUP(W24,ATS!$T:$V,3,FALSE),0) -> 144 | M24: 50+ | N24: 0% | O24: 0% | P24: =VLOOKUP($C24,Prices!$A$3:$T$1996,MATCH('2) Order Form'!P$8,Prices!$A$2:$T$2,0),FALSE) -> 115.00 | Q24: =VLOOKUP($C24,Prices!$A$3:$T$1996,MATCH('2) Order Form'!Q$8,Prices!$A$2:$T$2,0),FALSE) -> 229.95 | R24: 0 | S24: 0 | T24: 0 | U24: 0% | W24: 7048652832528 | Y24: 0 | Z24: 0 | AA24: 0 | AB24: 0 | AC24: 1 | AD24: 840102Matte Bronco White | AE24: 840102 | AF24: =VLOOKUP($C24,Classification!$A:$F,5,FALSE) ->  | AG24: =VLOOKUP($C24,Classification!$A:$F,6,FALSE) ->  | AH24: =INDEX(ATS!$A:$U,MATCH('2) Order Form'!$W24,ATS!$T:$T,0),7) -> Active
A25: 1 | B25: =VLOOKUP(A25,Classification!$H$2:$I$11,2,FALSE) -> Helmets & Helmet Acc. | C25: =INDEX(ATS!$A:$U,MATCH('2) Order Form'!$W25,ATS!$T:$T,0),1) -> 840102 | D25: =INDEX(ATS!$A:$U,MATCH('2) Order Form'!$W25,ATS!$T:$T,0),2) -> Igniter 2Vi MIPS Helmet | E25: =INDEX(ATS!$A:$U,MATCH('2) Order Form'!$W25,ATS!$T:$T,0),4) -> MBRWH-ML | F25: =INDEX(ATS!$A:$U,MATCH('2) Order Form'!$W25,ATS!$T:$T,0),5) -> Matte Bronco White | G25: =INDEX(ATS!$A:$U,MATCH('2) Order Form'!$W25,ATS!$T:$T,0),6) -> ML | H25: =INDEX(Packs!$A:$V,MATCH('2) Order Form'!$W25,Packs!$W:$W,0),22) -> 1 | I25: 0 | J25: =IFERROR(VLOOKUP(W25,ATS!$T:$U,2,FALSE),0) -> 192 | K25: 50+ | L25: =IFERROR(VLOOKUP(W25,ATS!$T:$V,3,FALSE),0) -> 192 | M25: 50+ | N25: 0% | O25: 0% | P25: =VLOOKUP($C25,Prices!$A$3:$T$1996,MATCH('2) Order Form'!P$8,Prices!$A$2:$T$2,0),FALSE) -> 115.00 | Q25: =VLOOKUP($C25,Prices!$A$3:$T$1996,MATCH('2) Order Form'!Q$8,Prices!$A$2:$T$2,0),FALSE) -> 229.95 | R25: 0 | S25: 0 | T25: 0 | U25: 0% | W25: 7048652832511 | Y25: 0 | Z25: 0 | AA25: 0 | AB25: 0 | AC25: 0 | AD25: 840102Matte Bronco White | AE25: 840102 | AF25: =VLOOKUP($C25,Classification!$A:$F,5,FALSE) ->  | AG25: =VLOOKUP($C25,Classification!$A:$F,6,FALSE) ->  | AH25: =INDEX(ATS!$A:$U,MATCH('2) Order Form'!$W25,ATS!$T:$T,0),7) -> Active
A26: 1 | B26: =VLOOKUP(A26,Classification!$H$2:$I$11,2,FALSE) -> Helmets & Helmet Acc. | C26: =INDEX(ATS!$A:$U,MATCH('2) Order Form'!$W26,ATS!$T:$T,0),1) -> 840102 | D26: =INDEX(ATS!$A:$U,MATCH('2) Order Form'!$W26,ATS!$T:$T,0),2) -> Igniter 2Vi MIPS Helmet | E26: =INDEX(ATS!$A:$U,MATCH('2) Order Form'!$W26,ATS!$T:$T,0),4) -> MBRWH-LXL | F26: =INDEX(ATS!$A:$U,MATCH('2) Order Form'!$W26,ATS!$T:$T,0),5) -> Matte Bronco White | G26: =INDEX(ATS!$A:$U,MATCH('2) Order Form'!$W26,ATS!$T:$T,0),6) -> LXL | H26: =INDEX(Packs!$A:$V,MATCH('2) Order Form'!$W26,Packs!$W:$W,0),22) -> 1 | I26: 0 | J26: =IFERROR(VLOOKUP(W26,ATS!$T:$U,2,FALSE),0) -> 128 | K26: 50+ | L26: =IFERROR(VLOOKUP(W26,ATS!$T:$V,3,FALSE),0) -> 128 | M26: 50+ | N26: 0% | O26: 0% | P26: =VLOOKUP($C26,Prices!$A$3:$T$1996,MATCH('2) Order Form'!P$8,Prices!$A$2:$T$2,0),FALSE) -> 115.00 | Q26: =VLOOKUP($C26,Prices!$A$3:$T$1996,MATCH('2) Order Form'!Q$8,Prices!$A$2:$T$2,0),FALSE) -> 229.95 | R26: 0 | S26: 0 | T26: 0 | U26: 0% | W26: 7048652832504 | Y26: 0 | Z26: 0 | AA26: 0 | AB26: 0 | AC26: 0 | AD26: 840102Matte Bronco White | AE26: 840102 | AF26: =VLOOKUP($C26,Classification!$A:$F,5,FALSE) ->  | AG26: =VLOOKUP($C26,Classification!$A:$F,6,FALSE) ->  | AH26: =INDEX(ATS!$A:$U,MATCH('2) Order Form'!$W26,ATS!$T:$T,0),7) -> Active
A27: 1 | B27: =VLOOKUP(A27,Classification!$H$2:$I$11,2,FALSE) -> Helmets & Helmet Acc. | C27: =INDEX(ATS!$A:$U,MATCH('2) Order Form'!$W27,ATS!$T:$T,0),1) -> 840102 | D27: =INDEX(ATS!$A:$U,MATCH('2) Order Form'!$W27,ATS!$T:$T,0),2) -> Igniter 2Vi MIPS Helmet | E27: =INDEX(ATS!$A:$U,MATCH('2) Order Form'!$W27,ATS!$T:$T,0),4) -> MBUOE-SM | F27: =INDEX(ATS!$A:$U,MATCH('2) Order Form'!$W27,ATS!$T:$T,0),5) -> Matte Burning Orange | G27: =INDEX(ATS!$A:$U,MATCH('2) Order Form'!$W27,ATS!$T:$T,0),6) -> SM | H27: =INDEX(Packs!$A:$V,MATCH('2) Order Form'!$W27,Packs!$W:$W,0),22) -> 1 | I27: 0 | J27: =IFERROR(VLOOKUP(W27,ATS!$T:$U,2,FALSE),0) -> 54 | K27: 50+ | L27: =IFERROR(VLOOKUP(W27,ATS!$T:$V,3,FALSE),0) -> 54 | M27: 50+ | N27: 0% | O27: 0% | P27: =VLOOKUP($C27,Prices!$A$3:$T$1996,MATCH('2) Order Form'!P$8,Prices!$A$2:$T$2,0),FALSE) -> 115.00 | Q27: =VLOOKUP($C27,Prices!$A$3:$T$1996,MATCH('2) Order Form'!Q$8,Prices!$A$2:$T$2,0),FALSE) -> 229.95 | R27: 0 | S27: 0 | T27: 0 | U27: 0% | W27: 7048652832559 | Y27: 0 | Z27: 0 | AA27: 0 | AB27: 0 | AC27: 1 | AD27: 840102Matte Burning Orange | AE27: 840102 | AF27: =VLOOKUP($C27,Classification!$A:$F,5,FALSE) ->  | AG27: =VLOOKUP($C27,Classification!$A:$F,6,FALSE) ->  | AH27: =INDEX(ATS!$A:$U,MATCH('2) Order Form'!$W27,ATS!$T:$T,0),7) -> Active
A28: 1 | B28: =VLOOKUP(A28,Classification!$H$2:$I$11,2,FALSE) -> Helmets & Helmet Acc. | C28: =INDEX(ATS!$A:$U,MATCH('2) Order Form'!$W28,ATS!$T:$T,0),1) -> 840102 | D28: =INDEX(ATS!$A:$U,MATCH('2) Order Form'!$W28,ATS!$T:$T,0),2) -> Igniter 2Vi MIPS Helmet | E28: =INDEX(ATS!$A:$U,MATCH('2) Order Form'!$W28,ATS!$T:$T,0),4) -> MBUOE-ML | F28: =INDEX(ATS!$A:$U,MATCH('2) Order Form'!$W28,ATS!$T:$T,0),5) -> Matte Burning Orange | G28: =INDEX(ATS!$A:$U,MATCH('2) Order Form'!$W28,ATS!$T:$T,0),6) -> ML | H28: =INDEX(Packs!$A:$V,MATCH('2) Order Form'!$W28,Packs!$W:$W,0),22) -> 1 | I28: 0 | J28: =IFERROR(VLOOKUP(W28,ATS!$T:$U,2,FALSE),0) -> 109 | K28: 50+ | L28: =IFERROR(VLOOKUP(W28,ATS!$T:$V,3,FALSE),0) -> 109 | M28: 50+ | N28: 0% | O28: 0% | P28: =VLOOKUP($C28,Prices!$A$3:$T$1996,MATCH('2) Order Form'!P$8,Prices!$A$2:$T$2,0),FALSE) -> 115.00 | Q28: =VLOOKUP($C28,Prices!$A$3:$T$1996,MATCH('2) Order Form'!Q$8,Prices!$A$2:$T$2,0),FALSE) -> 229.95 | R28: 0 | S28: 0 | T28: 0 | U28: 0% | W28: 7048652832542 | Y28: 0 | Z28: 0 | AA28: 0 | AB28: 0 | AC28: 0 | AD28: 840102Matte Burning Orange | AE28: 840102 | AF28: =VLOOKUP($C28,Classification!$A:$F,5,FALSE) ->  | AG28: =VLOOKUP($C28,Classification!$A:$F,6,FALSE) ->  | AH28: =INDEX(ATS!$A:$U,MATCH('2) Order Form'!$W28,ATS!$T:$T,0),7) -> Active
A29: 1 | B29: =VLOOKUP(A29,Classification!$H$2:$I$11,2,FALSE) -> Helmets & Helmet Acc. | C29: =INDEX(ATS!$A:$U,MATCH('2) Order Form'!$W29,ATS!$T:$T,0),1) -> 840102 | D29: =INDEX(ATS!$A:$U,MATCH('2) Order Form'!$W29,ATS!$T:$T,0),2) -> Igniter 2Vi MIPS Helmet | E29: =INDEX(ATS!$A:$U,MATCH('2) Order Form'!$W29,ATS!$T:$T,0),4) -> MBUOE-LXL | F29: =INDEX(ATS!$A:$U,MATCH('2) Order Form'!$W29,ATS!$T:$T,0),5) -> Matte Burning Orange | G29: =INDEX(ATS!$A:$U,MATCH('2) Order Form'!$W29,ATS!$T:$T,0),6) -> LXL | H29: =INDEX(Packs!$A:$V,MATCH('2) Order Form'!$W29,Packs!$W:$W,0),22) -> 1 | I29: 0 | J29: =IFERROR(VLOOKUP(W29,ATS!$T:$U,2,FALSE),0) -> 95 | K29: 50+ | L29: =IFERROR(VLOOKUP(W29,ATS!$T:$V,3,FALSE),0) -> 95 | M29: 50+ | N29: 0% | O29: 0% | P29: =VLOOKUP($C29,Prices!$A$3:$T$1996,MATCH('2) Order Form'!P$8,Prices!$A$2:$T$2,0),FALSE) -> 115.00 | Q29: =VLOOKUP($C29,Prices!$A$3:$T$1996,MATCH('2) Order Form'!Q$8,Prices!$A$2:$T$2,0),FALSE) -> 229.95 | R29: 0 | S29: 0 | T29: 0 | U29: 0% | W29: 7048652832535 | Y29: 0 | Z29: 0 | AA29: 0 | AB29: 0 | AC29: 0 | AD29: 840102Matte Burning Orange | AE29: 840102 | AF29: =VLOOKUP($C29,Classification!$A:$F,5,FALSE) ->  | AG29: =VLOOKUP($C29,Classification!$A:$F,6,FALSE) ->  | AH29: =INDEX(ATS!$A:$U,MATCH('2) Order Form'!$W29,ATS!$T:$T,0),7) -> Active
A30: 1 | B30: =VLOOKUP(A30,Classification!$H$2:$I$11,2,FALSE) -> Helmets & Helmet Acc. | C30: =INDEX(ATS!$A:$U,MATCH('2) Order Form'!$W30,ATS!$T:$T,0),1) -> 840102 | D30: =INDEX(ATS!$A:$U,MATCH('2) Order Form'!$W30,ATS!$T:$T,0),2) -> Igniter 2Vi MIPS Helmet | E30: =INDEX(ATS!$A:$U,MATCH('2) Order Form'!$W30,ATS!$T:$T,0),4) -> MSHBL-SM | F30: =INDEX(ATS!$A:$U,MATCH('2) Order Form'!$W30,ATS!$T:$T,0),5) -> Matte Shadow Blue | G30: =INDEX(ATS!$A:$U,MATCH('2) Order Form'!$W30,ATS!$T:$T,0),6) -> SM | H30: =INDEX(Packs!$A:$V,MATCH('2) Order Form'!$W30,Packs!$W:$W,0),22) -> 1 | I30: 0 | J30: =IFERROR(VLOOKUP(W30,ATS!$T:$U,2,FALSE),0) -> 16 | K30: 16 | L30: =IFERROR(VLOOKUP(W30,ATS!$T:$V,3,FALSE),0) -> 16 | M30: 16 | N30: 0% | O30: 0% | P30: =VLOOKUP($C30,Prices!$A$3:$T$1996,MATCH('2) Order Form'!P$8,Prices!$A$2:$T$2,0),FALSE) -> 115.00 | Q30: =VLOOKUP($C30,Prices!$A$3:$T$1996,MATCH('2) Order Form'!Q$8,Prices!$A$2:$T$2,0),FALSE) -> 229.95 | R30: 0 | S30: 0 | T30: 0 | U30: 0% | W30: 7048652832580 | Y30: 0 | Z30: 0 | AA30: 0 | AB30: 0 | AC30: 1 | AD30: 840102Matte Shadow Blue | AE30: 840102 | AF30: =VLOOKUP($C30,Classification!$A:$F,5,FALSE) ->  | AG30: =VLOOKUP($C30,Classification!$A:$F,6,FALSE) ->  | AH30: =INDEX(ATS!$A:$U,MATCH('2) Order Form'!$W30,ATS!$T:$T,0),7) -> Stock
A31: 1 | B31: =VLOOKUP(A31,Classification!$H$2:$I$11,2,FALSE) -> Helmets & Helmet Acc. | C31: =INDEX(ATS!$A:$U,MATCH('2) Order Form'!$W31,ATS!$T:$T,0),1) -> 840102 | D31: =INDEX(ATS!$A:$U,MATCH('2) Order Form'!$W31,ATS!$T:$T,0),2) -> Igniter 2Vi MIPS Helmet | E31: =INDEX(ATS!$A:$U,MATCH('2) Order Form'!$W31,ATS!$T:$T,0),4) -> MSHBL-ML | F31: =INDEX(ATS!$A:$U,MATCH('2) Order Form'!$W31,ATS!$T:$T,0),5) -> Matte Shadow Blue | G31: =INDEX(ATS!$A:$U,MATCH('2) Order Form'!$W31,ATS!$T:$T,0),6) -> ML | H31: =INDEX(Packs!$A:$V,MATCH('2) Order Form'!$W31,Packs!$W:$W,0),22) -> 1 | I31: 0 | J31: =IFERROR(VLOOKUP(W31,ATS!$T:$U,2,FALSE),0) -> 10 | K31: 10 | L31: =IFERROR(VLOOKUP(W31,ATS!$T:$V,3,FALSE),0) -> 10 | M31: 10 | N31: 0% | O31: 0% | P31: =VLOOKUP($C31,Prices!$A$3:$T$1996,MATCH('2) Order Form'!P$8,Prices!$A$2:$T$2,0),FALSE) -> 115.00 | Q31: =VLOOKUP($C31,Prices!$A$3:$T$1996,MATCH('2) Order Form'!Q$8,Prices!$A$2:$T$2,0),FALSE) -> 229.95 | R31: 0 | S31: 0 | T31: 0 | U31: 0% | W31: 7048652832573 | Y31: 0 | Z31: 0 | AA31: 0 | AB31: 0 | AC31: 0 | AD31: 840102Matte Shadow Blue | AE31: 840102 | AF31: =VLOOKUP($C31,Classification!$A:$F,5,FALSE) ->  | AG31: =VLOOKUP($C31,Classification!$A:$F,6,FALSE) ->  | AH31: =INDEX(ATS!$A:$U,MATCH('2) Order Form'!$W31,ATS!$T:$T,0),7) -> Stock
A32: 1 | B32: =VLOOKUP(A32,Classification!$H$2:$I$11,2,FALSE) -> Helmets & Helmet Acc. | C32: =INDEX(ATS!$A:$U,MATCH('2) Order Form'!$W32,ATS!$T:$T,0),1) -> 840102 | D32: =INDEX(ATS!$A:$U,MATCH('2) Order Form'!$W32,ATS!$T:$T,0),2) -> Igniter 2Vi MIPS Helmet | E32: =INDEX(ATS!$A:$U,MATCH('2) Order Form'!$W32,ATS!$T:$T,0),4) -> MSHBL-LXL | F32: =INDEX(ATS!$A:$U,MATCH('2) Order Form'!$W32,ATS!$T:$T,0),5) -> Matte Shadow Blue | G32: =INDEX(ATS!$A:$U,MATCH('2) Order Form'!$W32,ATS!$T:$T,0),6) -> LXL | H32: =INDEX(Packs!$A:$V,MATCH('2) Order Form'!$W32,Packs!$W:$W,0),22) -> 1 | I32: 0 | J32: =IFERROR(VLOOKUP(W32,ATS!$T:$U,2,FALSE),0) -> 0 | K32: 0 | L32: =IFERROR(VLOOKUP(W32,ATS!$T:$V,3,FALSE),0) -> 0 | M32: 0 | N32: 0% | O32: 0% | P32: =VLOOKUP($C32,Prices!$A$3:$T$1996,MATCH('2) Order Form'!P$8,Prices!$A$2:$T$2,0),FALSE) -> 115.00 | Q32: =VLOOKUP($C32,Prices!$A$3:$T$1996,MATCH('2) Order Form'!Q$8,Prices!$A$2:$T$2,0),FALSE) -> 229.95 | R32: 0 | S32: 0 | T32: 0 | U32: 0% | W32: 7048652832566 | Y32: 0 | Z32: 0 | AA32: 0 | AB32: 0 | AC32: 0 | AD32: 840102Matte Shadow Blue | AE32: 840102 | AF32: =VLOOKUP($C32,Classification!$A:$F,5,FALSE) ->  | AG32: =VLOOKUP($C32,Classification!$A:$F,6,FALSE) ->  | AH32: =INDEX(ATS!$A:$U,MATCH('2) Order Form'!$W32,ATS!$T:$T,0),7) -> Stock
A33: 1 | B33: =VLOOKUP(A33,Classification!$H$2:$I$11,2,FALSE) -> Helmets & Helmet Acc. | C33: =INDEX(ATS!$A:$U,MATCH('2) Order Form'!$W33,ATS!$T:$T,0),1) -> 840094 | D33: =INDEX(ATS!$A:$U,MATCH('2) Order Form'!$W33,ATS!$T:$T,0),2) -> Trooper 2Vi Mips Helmet | E33: =INDEX(ATS!$A:$U,MATCH('2) Order Form'!$W33,ATS!$T:$T,0),4) -> DTBLK-SM | F33: =INDEX(ATS!$A:$U,MATCH('2) Order Form'!$W33,ATS!$T:$T,0),5) -> Dirt Black | G33: =INDEX(ATS!$A:$U,MATCH('2) Order Form'!$W33,ATS!$T:$T,0),6) -> SM | H33: =INDEX(Packs!$A:$V,MATCH('2) Order Form'!$W33,Packs!$W:$W,0),22) -> 1 | I33: 0 | J33: =IFERROR(VLOOKUP(W33,ATS!$T:$U,2,FALSE),0) -> 203 | K33: 50+ | L33: =IFERROR(VLOOKUP(W33,ATS!$T:$V,3,FALSE),0) -> 203 | M33: 50+ | N33: 0% | O33: =IF(N33<>0,N33,$P$5) -> 0% | P33: =VLOOKUP($C33,Prices!$A$3:$T$1996,MATCH('2) Order Form'!P$8,Prices!$A$2:$T$2,0),FALSE) -> 150.00 | Q33: =VLOOKUP($C33,Prices!$A$3:$T$1996,MATCH('2) Order Form'!Q$8,Prices!$A$2:$T$2,0),FALSE) -> 299.95 | R33: 0 | S33: 0 | T33: 0 | U33: 0% | W33: 7048652714077 | Y33: =I33*Q33 -> 0 | Z33: =IF(A33=OFFSET(A33,-1,0),0,1) -> 0 | AA33: 1 | AB33: =IF(C33=OFFSET(C33,-1,0),0,1) -> 1 | AC33: =IF(F33=OFFSET(F33,-1,0),0,1) -> 1 | AD33: =CONCATENATE(C33,F33) -> 840094Dirt Black | AE33: =IFERROR(IF(B33="EYEWEAR",CONCATENATE(C33,"-",G33),C33),C33) -> 840094 | AF33: =VLOOKUP($C33,Classification!$A:$F,5,FALSE) ->  | AG33: =VLOOKUP($C33,Classification!$A:$F,6,FALSE) ->  | AH33: =INDEX(ATS!$A:$U,MATCH('2) Order Form'!$W33,ATS!$T:$T,0),7) -> Active
A34: 1 | B34: =VLOOKUP(A34,Classification!$H$2:$I$11,2,FALSE) -> Helmets & Helmet Acc. | C34: =INDEX(ATS!$A:$U,MATCH('2) Order Form'!$W34,ATS!$T:$T,0),1) -> 840094 | D34: =INDEX(ATS!$A:$U,MATCH('2) Order Form'!$W34,ATS!$T:$T,0),2) -> Trooper 2Vi Mips Helmet | E34: =INDEX(ATS!$A:$U,MATCH('2) Order Form'!$W34,ATS!$T:$T,0),4) -> DTBLK-ML | F34: =INDEX(ATS!$A:$U,MATCH('2) Order Form'!$W34,ATS!$T:$T,0),5) -> Dirt Black | G34: =INDEX(ATS!$A:$U,MATCH('2) Order Form'!$W34,ATS!$T:$T,0),6) -> ML | H34: =INDEX(Packs!$A:$V,MATCH('2) Order Form'!$W34,Packs!$W:$W,0),22) -> 1 | I34: 0 | J34: =IFERROR(VLOOKUP(W34,ATS!$T:$U,2,FALSE),0) -> 482 | K34: 50+ | L34: =IFERROR(VLOOKUP(W34,ATS!$T:$V,3,FALSE),0) -> 482 | M34: 50+ | N34: 0% | O34: 0% | P34: =VLOOKUP($C34,Prices!$A$3:$T$1996,MATCH('2) Order Form'!P$8,Prices!$A$2:$T$2,0),FALSE) -> 150.00 | Q34: =VLOOKUP($C34,Prices!$A$3:$T$1996,MATCH('2) Order Form'!Q$8,Prices!$A$2:$T$2,0),FALSE) -> 299.95 | R34: 0 | S34: 0 | T34: 0 | U34: 0% | W34: 7048652714060 | Y34: 0 | Z34: 0 | AA34: 1 | AB34: 0 | AC34: 0 | AD34: 840094Dirt Black | AE34: 840094 | AF34: =VLOOKUP($C34,Classification!$A:$F,5,FALSE) ->  | AG34: =VLOOKUP($C34,Classification!$A:$F,6,FALSE) ->  | AH34: =INDEX(ATS!$A:$U,MATCH('2) Order Form'!$W34,ATS!$T:$T,0),7) -> Active
A35: 1 | B35: =VLOOKUP(A35,Classification!$H$2:$I$11,2,FALSE) -> Helmets & Helmet Acc. | C35: =INDEX(ATS!$A:$U,MATCH('2) Order Form'!$W35,ATS!$T:$T,0),1) -> 840094 | D35: =INDEX(ATS!$A:$U,MATCH('2) Order Form'!$W35,ATS!$T:$T,0),2) -> Trooper 2Vi Mips Helmet | E35: =INDEX(ATS!$A:$U,MATCH('2) Order Form'!$W35,ATS!$T:$T,0),4) -> DTBLK-LXL | F35: =INDEX(ATS!$A:$U,MATCH('2) Order Form'!$W35,ATS!$T:$T,0),5) -> Dirt Black | G35: =INDEX(ATS!$A:$U,MATCH('2) Order Form'!$W35,ATS!$T:$T,0),6) -> LXL | H35: =INDEX(Packs!$A:$V,MATCH('2) Order Form'!$W35,Packs!$W:$W,0),22) -> 1 | I35: 0 | J35: =IFERROR(VLOOKUP(W35,ATS!$T:$U,2,FALSE),0) -> 387 | K35: 50+ | L35: =IFERROR(VLOOKUP(W35,ATS!$T:$V,3,FALSE),0) -> 387 | M35: 50+ | N35: 0% | O35: 0% | P35: =VLOOKUP($C35,Prices!$A$3:$T$1996,MATCH('2) Order Form'!P$8,Prices!$A$2:$T$2,0),FALSE) -> 150.00 | Q35: =VLOOKUP($C35,Prices!$A$3:$T$1996,MATCH('2) Order Form'!Q$8,Prices!$A$2:$T$2,0),FALSE) -> 299.95 | R35: 0 | S35: 0 | T35: 0 | U35: 0% | W35: 7048652714053 | Y35: 0 | Z35: 0 | AA35: 1 | AB35: 0 | AC35: 0 | AD35: 840094Dirt Black | AE35: 840094 | AF35: =VLOOKUP($C35,Classification!$A:$F,5,FALSE) ->  | AG35: =VLOOKUP($C35,Classification!$A:$F,6,FALSE) ->  | AH35: =INDEX(ATS!$A:$U,MATCH('2) Order Form'!$W35,ATS!$T:$T,0),7) -> Active
A36: 1 | B36: =VLOOKUP(A36,Classification!$H$2:$I$11,2,FALSE) -> Helmets & Helmet Acc. | C36: =INDEX(ATS!$A:$U,MATCH('2) Order Form'!$W36,ATS!$T:$T,0),1) -> 840094 | D36: =INDEX(ATS!$A:$U,MATCH('2) Order Form'!$W36,ATS!$T:$T,0),2) -> Trooper 2Vi Mips Helmet | E36: =INDEX(ATS!$A:$U,MATCH('2) Order Form'!$W36,ATS!$T:$T,0),4) -> GSWHT-SM | F36: =INDEX(ATS!$A:$U,MATCH('2) Order Form'!$W36,ATS!$T:$T,0),5) -> Gloss White | G36: =INDEX(ATS!$A:$U,MATCH('2) Order Form'!$W36,ATS!$T:$T,0),6) -> SM | H36: =INDEX(Packs!$A:$V,MATCH('2) Order Form'!$W36,Packs!$W:$W,0),22) -> 1 | I36: 0 | J36: =IFERROR(VLOOKUP(W36,ATS!$T:$U,2,FALSE),0) -> 226 | K36: 50+ | L36: =IFERROR(VLOOKUP(W36,ATS!$T:$V,3,FALSE),0) -> 226 | M36: 50+ | N36: 0% | O36: 0% | P36: =VLOOKUP($C36,Prices!$A$3:$T$1996,MATCH('2) Order Form'!P$8,Prices!$A$2:$T$2,0),FALSE) -> 150.00 | Q36: =VLOOKUP($C36,Prices!$A$3:$T$1996,MATCH('2) Order Form'!Q$8,Prices!$A$2:$T$2,0),FALSE) -> 299.95 | R36: 0 | S36: 0 | T36: 0 | U36: 0% | W36: 7048652714107 | Y36: 0 | Z36: 0 | AA36: 1 | AB36: 0 | AC36: 1 | AD36: 840094Gloss White | AE36: 840094 | AF36: =VLOOKUP($C36,Classification!$A:$F,5,FALSE) ->  | AG36: =VLOOKUP($C36,Classification!$A:$F,6,FALSE) ->  | AH36: =INDEX(ATS!$A:$U,MATCH('2) Order Form'!$W36,ATS!$T:$T,0),7) -> Active
A37: 1 | B37: =VLOOKUP(A37,Classification!$H$2:$I$11,2,FALSE) -> Helmets & Helmet Acc. | C37: =INDEX(ATS!$A:$U,MATCH('2) Order Form'!$W37,ATS!$T:$T,0),1) -> 840094 | D37: =INDEX(ATS!$A:$U,MATCH('2) Order Form'!$W37,ATS!$T:$T,0),2) -> Trooper 2Vi Mips Helmet | E37: =INDEX(ATS!$A:$U,MATCH('2) Order Form'!$W37,ATS!$T:$T,0),4) -> GSWHT-ML | F37: =INDEX(ATS!$A:$U,MATCH('2) Order Form'!$W37,ATS!$T:$T,0),5) -> Gloss White | G37: =INDEX(ATS!$A:$U,MATCH('2) Order Form'!$W37,ATS!$T:$T,0),6) -> ML | H37: =INDEX(Packs!$A:$V,MATCH('2) Order Form'!$W37,Packs!$W:$W,0),22) -> 1 | I37: 0 | J37: =IFERROR(VLOOKUP(W37,ATS!$T:$U,2,FALSE),0) -> 264 | K37: 50+ | L37: =IFERROR(VLOOKUP(W37,ATS!$T:$V,3,FALSE),0) -> 264 | M37: 50+ | N37: 0% | O37: 0% | P37: =VLOOKUP($C37,Prices!$A$3:$T$1996,MATCH('2) Order Form'!P$8,Prices!$A$2:$T$2,0),FALSE) -> 150.00 | Q37: =VLOOKUP($C37,Prices!$A$3:$T$1996,MATCH('2) Order Form'!Q$8,Prices!$A$2:$T$2,0),FALSE) -> 299.95 | R37: 0 | S37: 0 | T37: 0 | U37: 0% | W37: 7048652714091 | Y37: 0 | Z37: 0 | AA37: 1 | AB37: 0 | AC37: 0 | AD37: 840094Gloss White | AE37: 840094 | AF37: =VLOOKUP($C37,Classification!$A:$F,5,FALSE) ->  | AG37: =VLOOKUP($C37,Classification!$A:$F,6,FALSE) ->  | AH37: =INDEX(ATS!$A:$U,MATCH('2) Order Form'!$W37,ATS!$T:$T,0),7) -> Active
A38: 1 | B38: =VLOOKUP(A38,Classification!$H$2:$I$11,2,FALSE) -> Helmets & Helmet Acc. | C38: =INDEX(ATS!$A:$U,MATCH('2) Order Form'!$W38,ATS!$T:$T,0),1) -> 840094 | D38: =INDEX(ATS!$A:$U,MATCH('2) Order Form'!$W38,ATS!$T:$T,0),2) -> Trooper 2Vi Mips Helmet | E38: =INDEX(ATS!$A:$U,MATCH('2) Order Form'!$W38,ATS!$T:$T,0),4) -> GSWHT-LXL | F38: =INDEX(ATS!$A:$U,MATCH('2) Order Form'!$W38,ATS!$T:$T,0),5) -> Gloss White | G38: =INDEX(ATS!$A:$U,MATCH('2) Order Form'!$W38,ATS!$T:$T,0),6) -> LXL | H38: =INDEX(Packs!$A:$V,MATCH('2) Order Form'!$W38,Packs!$W:$W,0),22) -> 1 | I38: 0 | J38: =IFERROR(VLOOKUP(W38,ATS!$T:$U,2,FALSE),0) -> 164 | K38: 50+ | L38: =IFERROR(VLOOKUP(W38,ATS!$T:$V,3,FALSE),0) -> 164 | M38: 50+ | N38: 0% | O38: 0% | P38: =VLOOKUP($C38,Prices!$A$3:$T$1996,MATCH('2) Order Form'!P$8,Prices!$A$2:$T$2,0),FALSE) -> 150.00 | Q38: =VLOOKUP($C38,Prices!$A$3:$T$1996,MATCH('2) Order Form'!Q$8,Prices!$A$2:$T$2,0),FALSE) -> 299.95 | R38: 0 | S38: 0 | T38: 0 | U38: 0% | W38: 7048652714084 | Y38: 0 | Z38: 0 | AA38: 1 | AB38: 0 | AC38: 0 | AD38: 840094Gloss White | AE38: 840094 | AF38: =VLOOKUP($C38,Classification!$A:$F,5,FALSE) ->  | AG38: =VLOOKUP($C38,Classification!$A:$F,6,FALSE) ->  | AH38: =INDEX(ATS!$A:$U,MATCH('2) Order Form'!$W38,ATS!$T:$T,0),7) -> Active
A39: 1 | B39: =VLOOKUP(A39,Classification!$H$2:$I$11,2,FALSE) -> Helmets & Helmet Acc. | C39: =INDEX(ATS!$A:$U,MATCH('2) Order Form'!$W39,ATS!$T:$T,0),1) -> 840094 | D39: =INDEX(ATS!$A:$U,MATCH('2) Order Form'!$W39,ATS!$T:$T,0),2) -> Trooper 2Vi Mips Helmet | E39: =INDEX(ATS!$A:$U,MATCH('2) Order Form'!$W39,ATS!$T:$T,0),4) -> MASEM-SM | F39: =INDEX(ATS!$A:$U,MATCH('2) Order Form'!$W39,ATS!$T:$T,0),5) -> Matte Sea Metallic | G39: =INDEX(ATS!$A:$U,MATCH('2) Order Form'!$W39,ATS!$T:$T,0),6) -> SM | H39: =INDEX(Packs!$A:$V,MATCH('2) Order Form'!$W39,Packs!$W:$W,0),22) -> 1 | I39: 0 | J39: =IFERROR(VLOOKUP(W39,ATS!$T:$U,2,FALSE),0) -> 49 | K39: 49 | L39: =IFERROR(VLOOKUP(W39,ATS!$T:$V,3,FALSE),0) -> 49 | M39: 49 | N39: 0% | O39: =IF(N39<>0,N39,$P$5) -> 0% | P39: =VLOOKUP($C39,Prices!$A$3:$T$1996,MATCH('2) Order Form'!P$8,Prices!$A$2:$T$2,0),FALSE) -> 150.00 | Q39: =VLOOKUP($C39,Prices!$A$3:$T$1996,MATCH('2) Order Form'!Q$8,Prices!$A$2:$T$2,0),FALSE) -> 299.95 | R39: 0 | S39: 0 | T39: 0 | U39: 0% | W39: 7048652823359 | Y39: =I39*Q39 -> 0 | Z39: =IF(A39=OFFSET(A39,-1,0),0,1) -> 0 | AA39: 1 | AB39: =IF(C39=OFFSET(C39,-1,0),0,1) -> 0 | AC39: =IF(F39=OFFSET(F39,-1,0),0,1) -> 1 | AD39: =CONCATENATE(C39,F39) -> 840094Matte Sea Metallic | AE39: =IFERROR(IF(B39="EYEWEAR",CONCATENATE(C39,"-",G39),C39),C39) -> 840094 | AF39: =VLOOKUP($C39,Classification!$A:$F,5,FALSE) ->  | AG39: =VLOOKUP($C39,Classification!$A:$F,6,FALSE) ->  | AH39: =INDEX(ATS!$A:$U,MATCH('2) Order Form'!$W39,ATS!$T:$T,0),7) -> Active
A40: 1 | B40: =VLOOKUP(A40,Classification!$H$2:$I$11,2,FALSE) -> Helmets & Helmet Acc. | C40: =INDEX(ATS!$A:$U,MATCH('2) Order Form'!$W40,ATS!$T:$T,0),1) -> 840094 | D40: =INDEX(ATS!$A:$U,MATCH('2) Order Form'!$W40,ATS!$T:$T,0),2) -> Trooper 2Vi Mips Helmet | E40: =INDEX(ATS!$A:$U,MATCH('2) Order Form'!$W40,ATS!$T:$T,0),4) -> MASEM-ML | F40: =INDEX(ATS!$A:$U,MATCH('2) Order Form'!$W40,ATS!$T:$T,0),5) -> Matte Sea Metallic | G40: =INDEX(ATS!$A:$U,MATCH('2) Order Form'!$W40,ATS!$T:$T,0),6) -> ML | H40: =INDEX(Packs!$A:$V,MATCH('2) Order Form'!$W40,Packs!$W:$W,0),22) -> 1 | I40: 0 | J40: =IFERROR(VLOOKUP(W40,ATS!$T:$U,2,FALSE),0) -> 112 | K40: 50+ | L40: =IFERROR(VLOOKUP(W40,ATS!$T:$V,3,FALSE),0) -> 112 | M40: 50+ | N40: 0% | O40: 0% | P40: =VLOOKUP($C40,Prices!$A$3:$T$1996,MATCH('2) Order Form'!P$8,Prices!$A$2:$T$2,0),FALSE) -> 150.00 | Q40: =VLOOKUP($C40,Prices!$A$3:$T$1996,MATCH('2) Order Form'!Q$8,Prices!$A$2:$T$2,0),FALSE) -> 299.95 | R40: 0 | S40: 0 | T40: 0 | U40: 0% | W40: 7048652823342 | Y40: 0 | Z40: 0 | AA40: 1 | AB40: 0 | AC40: 0 | AD40: 840094Matte Sea Metallic | AE40: 840094 | AF40: =VLOOKUP($C40,Classification!$A:$F,5,FALSE) ->  | AG40: =VLOOKUP($C40,Classification!$A:$F,6,FALSE) ->  | AH40: =INDEX(ATS!$A:$U,MATCH('2) Order Form'!$W40,ATS!$T:$T,0),7) -> Active
A41: 1 | B41: =VLOOKUP(A41,Classification!$H$2:$I$11,2,FALSE) -> Helmets & Helmet Acc. | C41: =INDEX(ATS!$A:$U,MATCH('2) Order Form'!$W41,ATS!$T:$T,0),1) -> 840094 | D41: =INDEX(ATS!$A:$U,MATCH('2) Order Form'!$W41,ATS!$T:$T,0),2) -> Trooper 2Vi Mips Helmet | E41: =INDEX(ATS!$A:$U,MATCH('2) Order Form'!$W41,ATS!$T:$T,0),4) -> MASEM-LXL | F41: =INDEX(ATS!$A:$U,MATCH('2) Order Form'!$W41,ATS!$T:$T,0),5) -> Matte Sea Metallic | G41: =INDEX(ATS!$A:$U,MATCH('2) Order Form'!$W41,ATS!$T:$T,0),6) -> LXL | H41: =INDEX(Packs!$A:$V,MATCH('2) Order Form'!$W41,Packs!$W:$W,0),22) -> 1 | I41: 0 | J41: =IFERROR(VLOOKUP(W41,ATS!$T:$U,2,FALSE),0) -> 40 | K41: 40 | L41: =IFERROR(VLOOKUP(W41,ATS!$T:$V,3,FALSE),0) -> 40 | M41: 40 | N41: 0% | O41: 0% | P41: =VLOOKUP($C41,Prices!$A$3:$T$1996,MATCH('2) Order Form'!P$8,Prices!$A$2:$T$2,0),FALSE) -> 150.00 | Q41: =VLOOKUP($C41,Prices!$A$3:$T$1996,MATCH('2) Order Form'!Q$8,Prices!$A$2:$T$2,0),FALSE) -> 299.95 | R41: 0 | S41: 0 | T41: 0 | U41: 0% | W41: 7048652823335 | Y41: 0 | Z41: 0 | AA41: 1 | AB41: 0 | AC41: 0 | AD41: 840094Matte Sea Metallic | AE41: 840094 | AF41: =VLOOKUP($C41,Classification!$A:$F,5,FALSE) ->  | AG41: =VLOOKUP($C41,Classification!$A:$F,6,FALSE) ->  | AH41: =INDEX(ATS!$A:$U,MATCH('2) Order Form'!$W41,ATS!$T:$T,0),7) -> Active
A42: 1 | B42: =VLOOKUP(A42,Classification!$H$2:$I$11,2,FALSE) -> Helmets & Helmet Acc. | C42: =INDEX(ATS!$A:$U,MATCH('2) Order Form'!$W42,ATS!$T:$T,0),1) -> 840094 | D42: =INDEX(ATS!$A:$U,MATCH('2) Order Form'!$W42,ATS!$T:$T,0),2) -> Trooper 2Vi Mips Helmet | E42: =INDEX(ATS!$A:$U,MATCH('2) Order Form'!$W42,ATS!$T:$T,0),4) -> MBRWH-SM | F42: =INDEX(ATS!$A:$U,MATCH('2) Order Form'!$W42,ATS!$T:$T,0),5) -> Matte Bronco White | G42: =INDEX(ATS!$A:$U,MATCH('2) Order Form'!$W42,ATS!$T:$T,0),6) -> SM | H42: =INDEX(Packs!$A:$V,MATCH('2) Order Form'!$W42,Packs!$W:$W,0),22) -> 1 | I42: 0 | J42: =IFERROR(VLOOKUP(W42,ATS!$T:$U,2,FALSE),0) -> 155 | K42: 50+ | L42: =IFERROR(VLOOKUP(W42,ATS!$T:$V,3,FALSE),0) -> 155 | M42: 50+ | N42: 0% | O42: 0% | P42: =VLOOKUP($C42,Prices!$A$3:$T$1996,MATCH('2) Order Form'!P$8,Prices!$A$2:$T$2,0),FALSE) -> 150.00 | Q42: =VLOOKUP($C42,Prices!$A$3:$T$1996,MATCH('2) Order Form'!Q$8,Prices!$A$2:$T$2,0),FALSE) -> 299.95 | R42: 0 | S42: 0 | T42: 0 | U42: 0% | W42: 7048652823380 | Y42: 0 | Z42: 0 | AA42: 1 | AB42: 0 | AC42: 1 | AD42: 840094Matte Bronco White | AE42: 840094 | AF42: =VLOOKUP($C42,Classification!$A:$F,5,FALSE) ->  | AG42: =VLOOKUP($C42,Classification!$A:$F,6,FALSE) ->  | AH42: =INDEX(ATS!$A:$U,MATCH('2) Order Form'!$W42,ATS!$T:$T,0),7) -> Active
A43: 1 | B43: =VLOOKUP(A43,Classification!$H$2:$I$11,2,FALSE) -> Helmets & Helmet Acc. | C43: =INDEX(ATS!$A:$U,MATCH('2) Order Form'!$W43,ATS!$T:$T,0),1) -> 840094 | D43: =INDEX(ATS!$A:$U,MATCH('2) Order Form'!$W43,ATS!$T:$T,0),2) -> Trooper 2Vi Mips Helmet | E43: =INDEX(ATS!$A:$U,MATCH('2) Order Form'!$W43,ATS!$T:$T,0),4) -> MBRWH-ML | F43: =INDEX(ATS!$A:$U,MATCH('2) Order Form'!$W43,ATS!$T:$T,0),5) -> Matte Bronco White | G43: =INDEX(ATS!$A:$U,MATCH('2) Order Form'!$W43,ATS!$T:$T,0),6) -> ML | H43: =INDEX(Packs!$A:$V,MATCH('2) Order Form'!$W43,Packs!$W:$W,0),22) -> 1 | I43: 0 | J43: =IFERROR(VLOOKUP(W43,ATS!$T:$U,2,FALSE),0) -> 269 | K43: 50+ | L43: =IFERROR(VLOOKUP(W43,ATS!$T:$V,3,FALSE),0) -> 269 | M43: 50+ | N43: 0% | O43: 0% | P43: =VLOOKUP($C43,Prices!$A$3:$T$1996,MATCH('2) Order Form'!P$8,Prices!$A$2:$T$2,0),FALSE) -> 150.00 | Q43: =VLOOKUP($C43,Prices!$A$3:$T$1996,MATCH('2) Order Form'!Q$8,Prices!$A$2:$T$2,0),FALSE) -> 299.95 | R43: 0 | S43: 0 | T43: 0 | U43: 0% | W43: 7048652823373 | Y43: 0 | Z43: 0 | AA43: 1 | AB43: 0 | AC43: 0 | AD43: 840094Matte Bronco White | AE43: 840094 | AF43: =VLOOKUP($C43,Classification!$A:$F,5,FALSE) ->  | AG43: =VLOOKUP($C43,Classification!$A:$F,6,FALSE) ->  | AH43: =INDEX(ATS!$A:$U,MATCH('2) Order Form'!$W43,ATS!$T:$T,0),7) -> Active
A44: 1 | B44: =VLOOKUP(A44,Classification!$H$2:$I$11,2,FALSE) -> Helmets & Helmet Acc. | C44: =INDEX(ATS!$A:$U,MATCH('2) Order Form'!$W44,ATS!$T:$T,0),1) -> 840094 | D44: =INDEX(ATS!$A:$U,MATCH('2) Order Form'!$W44,ATS!$T:$T,0),2) -> Trooper 2Vi Mips Helmet | E44: =INDEX(ATS!$A:$U,MATCH('2) Order Form'!$W44,ATS!$T:$T,0),4) -> MBRWH-LXL | F44: =INDEX(ATS!$A:$U,MATCH('2) Order Form'!$W44,ATS!$T:$T,0),5) -> Matte Bronco White | G44: =INDEX(ATS!$A:$U,MATCH('2) Order Form'!$W44,ATS!$T:$T,0),6) -> LXL | H44: =INDEX(Packs!$A:$V,MATCH('2) Order Form'!$W44,Packs!$W:$W,0),22) -> 1 | I44: 0 | J44: =IFERROR(VLOOKUP(W44,ATS!$T:$U,2,FALSE),0) -> 158 | K44: 50+ | L44: =IFERROR(VLOOKUP(W44,ATS!$T:$V,3,FALSE),0) -> 158 | M44: 50+ | N44: 0% | O44: 0% | P44: =VLOOKUP($C44,Prices!$A$3:$T$1996,MATCH('2) Order Form'!P$8,Prices!$A$2:$T$2,0),FALSE) -> 150.00 | Q44: =VLOOKUP($C44,Prices!$A$3:$T$1996,MATCH('2) Order Form'!Q$8,Prices!$A$2:$T$2,0),FALSE) -> 299.95 | R44: 0 | S44: 0 | T44: 0 | U44: 0% | W44: 7048652823366 | Y44: 0 | Z44: 0 | AA44: 1 | AB44: 0 | AC44: 0 | AD44: 840094Matte Bronco White | AE44: 840094 | AF44: =VLOOKUP($C44,Classification!$A:$F,5,FALSE) ->  | AG44: =VLOOKUP($C44,Classification!$A:$F,6,FALSE) ->  | AH44: =INDEX(ATS!$A:$U,MATCH('2) Order Form'!$W44,ATS!$T:$T,0),7) -> Active
A45: 1 | B45: =VLOOKUP(A45,Classification!$H$2:$I$11,2,FALSE) -> Helmets & Helmet Acc. | C45: =INDEX(ATS!$A:$U,MATCH('2) Order Form'!$W45,ATS!$T:$T,0),1) -> 840094 | D45: =INDEX(ATS!$A:$U,MATCH('2) Order Form'!$W45,ATS!$T:$T,0),2) -> Trooper 2Vi Mips Helmet | E45: =INDEX(ATS!$A:$U,MATCH('2) Order Form'!$W45,ATS!$T:$T,0),4) -> MBUOE-SM | F45: =INDEX(ATS!$A:$U,MATCH('2) Order Form'!$W45,ATS!$T:$T,0),5) -> Matte Burning Orange | G45: =INDEX(ATS!$A:$U,MATCH('2) Order Form'!$W45,ATS!$T:$T,0),6) -> SM | H45: =INDEX(Packs!$A:$V,MATCH('2) Order Form'!$W45,Packs!$W:$W,0),22) -> 1 | I45: 0 | J45: =IFERROR(VLOOKUP(W45,ATS!$T:$U,2,FALSE),0) -> 53 | K45: 50+ | L45: =IFERROR(VLOOKUP(W45,ATS!$T:$V,3,FALSE),0) -> 53 | M45: 50+ | N45: 0% | O45: 0% | P45: =VLOOKUP($C45,Prices!$A$3:$T$1996,MATCH('2) Order Form'!P$8,Prices!$A$2:$T$2,0),FALSE) -> 150.00 | Q45: =VLOOKUP($C45,Prices!$A$3:$T$1996,MATCH('2) Order Form'!Q$8,Prices!$A$2:$T$2,0),FALSE) -> 299.95 | R45: 0 | S45: 0 | T45: 0 | U45: 0% | W45: 7048652823410 | Y45: 0 | Z45: 0 | AA45: 1 | AB45: 0 | AC45: 1 | AD45: 840094Matte Burning Orange | AE45: 840094 | AF45: =VLOOKUP($C45,Classification!$A:$F,5,FALSE) ->  | AG45: =VLOOKUP($C45,Classification!$A:$F,6,FALSE) ->  | AH45: =INDEX(ATS!$A:$U,MATCH('2) Order Form'!$W45,ATS!$T:$T,0),7) -> Active
A46: 1 | B46: =VLOOKUP(A46,Classification!$H$2:$I$11,2,FALSE) -> Helmets & Helmet Acc. | C46: =INDEX(ATS!$A:$U,MATCH('2) Order Form'!$W46,ATS!$T:$T,0),1) -> 840094 | D46: =INDEX(ATS!$A:$U,MATCH('2) Order Form'!$W46,ATS!$T:$T,0),2) -> Trooper 2Vi Mips Helmet | E46: =INDEX(ATS!$A:$U,MATCH('2) Order Form'!$W46,ATS!$T:$T,0),4) -> MBUOE-ML | F46: =INDEX(ATS!$A:$U,MATCH('2) Order Form'!$W46,ATS!$T:$T,0),5) -> Matte Burning Orange | G46: =INDEX(ATS!$A:$U,MATCH('2) Order Form'!$W46,ATS!$T:$T,0),6) -> ML | H46: =INDEX(Packs!$A:$V,MATCH('2) Order Form'!$W46,Packs!$W:$W,0),22) -> 1 | I46: 0 | J46: =IFERROR(VLOOKUP(W46,ATS!$T:$U,2,FALSE),0) -> 82 | K46: 50+ | L46: =IFERROR(VLOOKUP(W46,ATS!$T:$V,3,FALSE),0) -> 82 | M46: 50+ | N46: 0% | O46: 0% | P46: =VLOOKUP($C46,Prices!$A$3:$T$1996,MATCH('2) Order Form'!P$8,Prices!$A$2:$T$2,0),FALSE) -> 150.00 | Q46: =VLOOKUP($C46,Prices!$A$3:$T$1996,MATCH('2) Order Form'!Q$8,Prices!$A$2:$T$2,0),FALSE) -> 299.95 | R46: 0 | S46: 0 | T46: 0 | U46: 0% | W46: 7048652823403 | Y46: 0 | Z46: 0 | AA46: 1 | AB46: 0 | AC46: 0 | AD46: 840094Matte Burning Orange | AE46: 840094 | AF46: =VLOOKUP($C46,Classification!$A:$F,5,FALSE) ->  | AG46: =VLOOKUP($C46,Classification!$A:$F,6,FALSE) ->  | AH46: =INDEX(ATS!$A:$U,MATCH('2) Order Form'!$W46,ATS!$T:$T,0),7) -> Active
A47: 1 | B47: =VLOOKUP(A47,Classification!$H$2:$I$11,2,FALSE) -> Helmets & Helmet Acc. | C47: =INDEX(ATS!$A:$U,MATCH('2) Order Form'!$W47,ATS!$T:$T,0),1) -> 840094 | D47: =INDEX(ATS!$A:$U,MATCH('2) Order Form'!$W47,ATS!$T:$T,0),2) -> Trooper 2Vi Mips Helmet | E47: =INDEX(ATS!$A:$U,MATCH('2) Order Form'!$W47,ATS!$T:$T,0),4) -> MBUOE-LXL | F47: =INDEX(ATS!$A:$U,MATCH('2) Order Form'!$W47,ATS!$T:$T,0),5) -> Matte Burning Orange | G47: =INDEX(ATS!$A:$U,MATCH('2) Order Form'!$W47,ATS!$T:$T,0),6) -> LXL | H47: =INDEX(Packs!$A:$V,MATCH('2) Order Form'!$W47,Packs!$W:$W,0),22) -> 1 | I47: 0 | J47: =IFERROR(VLOOKUP(W47,ATS!$T:$U,2,FALSE),0) -> 34 | K47: 34 | L47: =IFERROR(VLOOKUP(W47,ATS!$T:$V,3,FALSE),0) -> 34 | M47: 34 | N47: 0% | O47: 0% | P47: =VLOOKUP($C47,Prices!$A$3:$T$1996,MATCH('2) Order Form'!P$8,Prices!$A$2:$T$2,0),FALSE) -> 150.00 | Q47: =VLOOKUP($C47,Prices!$A$3:$T$1996,MATCH('2) Order Form'!Q$8,Prices!$A$2:$T$2,0),FALSE) -> 299.95 | R47: 0 | S47: 0 | T47: 0 | U47: 0% | W47: 7048652823397 | Y47: 0 | Z47: 0 | AA47: 1 | AB47: 0 | AC47: 0 | AD47: 840094Matte Burning Orange | AE47: 840094 | AF47: =VLOOKUP($C47,Classification!$A:$F,5,FALSE) ->  | AG47: =VLOOKUP($C47,Classification!$A:$F,6,FALSE) ->  | AH47: =INDEX(ATS!$A:$U,MATCH('2) Order Form'!$W47,ATS!$T:$T,0),7) -> Active
A48: 1 | B48: =VLOOKUP(A48,Classification!$H$2:$I$11,2,FALSE) -> Helmets & Helmet Acc. | C48: =INDEX(ATS!$A:$U,MATCH('2) Order Form'!$W48,ATS!$T:$T,0),1) -> 840094 | D48: =INDEX(ATS!$A:$U,MATCH('2) Order Form'!$W48,ATS!$T:$T,0),2) -> Trooper 2Vi Mips Helmet | E48: =INDEX(ATS!$A:$U,MATCH('2) Order Form'!$W48,ATS!$T:$T,0),4) -> MSHBL-SM | F48: =INDEX(ATS!$A:$U,MATCH('2) Order Form'!$W48,ATS!$T:$T,0),5) -> Matte Shadow Blue | G48: =INDEX(ATS!$A:$U,MATCH('2) Order Form'!$W48,ATS!$T:$T,0),6) -> SM | H48: =INDEX(Packs!$A:$V,MATCH('2) Order Form'!$W48,Packs!$W:$W,0),22) -> 1 | I48: 0 | J48: =IFERROR(VLOOKUP(W48,ATS!$T:$U,2,FALSE),0) -> 4 | K48: 4 | L48: =IFERROR(VLOOKUP(W48,ATS!$T:$V,3,FALSE),0) -> 4 | M48: 4 | N48: 0% | O48: 0% | P48: =VLOOKUP($C48,Prices!$A$3:$T$1996,MATCH('2) Order Form'!P$8,Prices!$A$2:$T$2,0),FALSE) -> 150.00 | Q48: =VLOOKUP($C48,Prices!$A$3:$T$1996,MATCH('2) Order Form'!Q$8,Prices!$A$2:$T$2,0),FALSE) -> 299.95 | R48: 0 | S48: 0 | T48: 0 | U48: 0% | W48: 7048652823441 | Y48: 0 | Z48: 0 | AA48: 1 | AB48: 0 | AC48: 1 | AD48: 840094Matte Shadow Blue | AE48: 840094 | AF48: =VLOOKUP($C48,Classification!$A:$F,5,FALSE) ->  | AG48: =VLOOKUP($C48,Classification!$A:$F,6,FALSE) ->  | AH48: =INDEX(ATS!$A:$U,MATCH('2) Order Form'!$W48,ATS!$T:$T,0),7) -> Stock
A49: 1 | B49: =VLOOKUP(A49,Classification!$H$2:$I$11,2,FALSE) -> Helmets & Helmet Acc. | C49: =INDEX(ATS!$A:$U,MATCH('2) Order Form'!$W49,ATS!$T:$T,0),1) -> 840094 | D49: =INDEX(ATS!$A:$U,MATCH('2) Order Form'!$W49,ATS!$T:$T,0),2) -> Trooper 2Vi Mips Helmet | E49: =INDEX(ATS!$A:$U,MATCH('2) Order Form'!$W49,ATS!$T:$T,0),4) -> MSHBL-ML | F49: =INDEX(ATS!$A:$U,MATCH('2) Order Form'!$W49,ATS!$T:$T,0),5) -> Matte Shadow Blue | G49: =INDEX(ATS!$A:$U,MATCH('2) Order Form'!$W49,ATS!$T:$T,0),6) -> ML | H49: =INDEX(Packs!$A:$V,MATCH('2) Order Form'!$W49,Packs!$W:$W,0),22) -> 1 | I49: 0 | J49: =IFERROR(VLOOKUP(W49,ATS!$T:$U,2,FALSE),0) -> 1 | K49: 1 | L49: =IFERROR(VLOOKUP(W49,ATS!$T:$V,3,FALSE),0) -> 1 | M49: 1 | N49: 0% | O49: 0% | P49: =VLOOKUP($C49,Prices!$A$3:$T$1996,MATCH('2) Order Form'!P$8,Prices!$A$2:$T$2,0),FALSE) -> 150.00 | Q49: =VLOOKUP($C49,Prices!$A$3:$T$1996,MATCH('2) Order Form'!Q$8,Prices!$A$2:$T$2,0),FALSE) -> 299.95 | R49: 0 | S49: 0 | T49: 0 | U49: 0% | W49: 7048652823434 | Y49: 0 | Z49: 0 | AA49: 1 | AB49: 0 | AC49: 0 | AD49: 840094Matte Shadow Blue | AE49: 840094 | AF49: =VLOOKUP($C49,Classification!$A:$F,5,FALSE) ->  | AG49: =VLOOKUP($C49,Classification!$A:$F,6,FALSE) ->  | AH49: =INDEX(ATS!$A:$U,MATCH('2) Order Form'!$W49,ATS!$T:$T,0),7) -> Stock
A50: 1 | B50: =VLOOKUP(A50,Classification!$H$2:$I$11,2,FALSE) -> Helmets & Helmet Acc. | C50: =INDEX(ATS!$A:$U,MATCH('2) Order Form'!$W50,ATS!$T:$T,0),1) -> 840094 | D50: =INDEX(ATS!$A:$U,MATCH('2) Order Form'!$W50,ATS!$T:$T,0),2) -> Trooper 2Vi Mips Helmet | E50: =INDEX(ATS!$A:$U,MATCH('2) Order Form'!$W50,ATS!$T:$T,0),4) -> MSHBL-LXL | F50: =INDEX(ATS!$A:$U,MATCH('2) Order Form'!$W50,ATS!$T:$T,0),5) -> Matte Shadow Blue | G50: =INDEX(ATS!$A:$U,MATCH('2) Order Form'!$W50,ATS!$T:$T,0),6) -> LXL | H50: =INDEX(Packs!$A:$V,MATCH('2) Order Form'!$W50,Packs!$W:$W,0),22) -> 1 | I50: 0 | J50: =IFERROR(VLOOKUP(W50,ATS!$T:$U,2,FALSE),0) -> 0 | K50: 0 | L50: =IFERROR(VLOOKUP(W50,ATS!$T:$V,3,FALSE),0) -> 0 | M50: 0 | N50: 0% | O50: 0% | P50: =VLOOKUP($C50,Prices!$A$3:$T$1996,MATCH('2) Order Form'!P$8,Prices!$A$2:$T$2,0),FALSE) -> 150.00 | Q50: =VLOOKUP($C50,Prices!$A$3:$T$1996,MATCH('2) Order Form'!Q$8,Prices!$A$2:$T$2,0),FALSE) -> 299.95 | R50: 0 | S50: 0 | T50: 0 | U50: 0% | W50: 7048652823427 | Y50: 0 | Z50: 0 | AA50: 1 | AB50: 0 | AC50: 0 | AD50: 840094Matte Shadow Blue | AE50: 840094 | AF50: =VLOOKUP($C50,Classification!$A:$F,5,FALSE) ->  | AG50: =VLOOKUP($C50,Classification!$A:$F,6,FALSE) ->  | AH50: =INDEX(ATS!$A:$U,MATCH('2) Order Form'!$W50,ATS!$T:$T,0),7) -> Stock
A51: 1 | B51: =VLOOKUP(A51,Classification!$H$2:$I$11,2,FALSE) -> Helmets & Helmet Acc. | C51: =INDEX(ATS!$A:$U,MATCH('2) Order Form'!$W51,ATS!$T:$T,0),1) -> 840094 | D51: =INDEX(ATS!$A:$U,MATCH('2) Order Form'!$W51,ATS!$T:$T,0),2) -> Trooper 2Vi Mips Helmet | E51: =INDEX(ATS!$A:$U,MATCH('2) Order Form'!$W51,ATS!$T:$T,0),4) -> RGLDM-SM | F51: =INDEX(ATS!$A:$U,MATCH('2) Order Form'!$W51,ATS!$T:$T,0),5) -> Rose Gold Metallic | G51: =INDEX(ATS!$A:$U,MATCH('2) Order Form'!$W51,ATS!$T:$T,0),6) -> SM | H51: =INDEX(Packs!$A:$V,MATCH('2) Order Form'!$W51,Packs!$W:$W,0),22) -> 1 | I51: 0 | J51: =IFERROR(VLOOKUP(W51,ATS!$T:$U,2,FALSE),0) -> 89 | K51: 50+ | L51: =IFERROR(VLOOKUP(W51,ATS!$T:$V,3,FALSE),0) -> 89 | M51: 50+ | N51: 0% | O51: 0% | P51: =VLOOKUP($C51,Prices!$A$3:$T$1996,MATCH('2) Order Form'!P$8,Prices!$A$2:$T$2,0),FALSE) -> 150.00 | Q51: =VLOOKUP($C51,Prices!$A$3:$T$1996,MATCH('2) Order Form'!Q$8,Prices!$A$2:$T$2,0),FALSE) -> 299.95 | R51: 0 | S51: 0 | T51: 0 | U51: 0% | W51: 7048652823472 | Y51: 0 | Z51: 0 | AA51: 1 | AB51: 0 | AC51: 1 | AD51: 840094Rose Gold Metallic | AE51: 840094 | AF51: =VLOOKUP($C51,Classification!$A:$F,5,FALSE) ->  | AG51: =VLOOKUP($C51,Classification!$A:$F,6,FALSE) ->  | AH51: =INDEX(ATS!$A:$U,MATCH('2) Order Form'!$W51,ATS!$T:$T,0),7) -> Stock
A52: 1 | B52: =VLOOKUP(A52,Classification!$H$2:$I$11,2,FALSE) -> Helmets & Helmet Acc. | C52: =INDEX(ATS!$A:$U,MATCH('2) Order Form'!$W52,ATS!$T:$T,0),1) -> 840094 | D52: =INDEX(ATS!$A:$U,MATCH('2) Order Form'!$W52,ATS!$T:$T,0),2) -> Trooper 2Vi Mips Helmet | E52: =INDEX(ATS!$A:$U,MATCH('2) Order Form'!$W52,ATS!$T:$T,0),4) -> RGLDM-ML | F52: =INDEX(ATS!$A:$U,MATCH('2) Order Form'!$W52,ATS!$T:$T,0),5) -> Rose Gold Metallic | G52: =INDEX(ATS!$A:$U,MATCH('2) Order Form'!$W52,ATS!$T:$T,0),6) -> ML | H52: =INDEX(Packs!$A:$V,MATCH('2) Order Form'!$W52,Packs!$W:$W,0),22) -> 1 | I52: 0 | J52: =IFERROR(VLOOKUP(W52,ATS!$T:$U,2,FALSE),0) -> 153 | K52: 50+ | L52: =IFERROR(VLOOKUP(W52,ATS!$T:$V,3,FALSE),0) -> 153 | M52: 50+ | N52: 0% | O52: 0% | P52: =VLOOKUP($C52,Prices!$A$3:$T$1996,MATCH('2) Order Form'!P$8,Prices!$A$2:$T$2,0),FALSE) -> 150.00 | Q52: =VLOOKUP($C52,Prices!$A$3:$T$1996,MATCH('2) Order Form'!Q$8,Prices!$A$2:$T$2,0),FALSE) -> 299.95 | R52: 0 | S52: 0 | T52: 0 | U52: 0% | W52: 7048652823465 | Y52: 0 | Z52: 0 | AA52: 1 | AB52: 0 | AC52: 0 | AD52: 840094Rose Gold Metallic | AE52: 840094 | AF52: =VLOOKUP($C52,Classification!$A:$F,5,FALSE) ->  | AG52: =VLOOKUP($C52,Classification!$A:$F,6,FALSE) ->  | AH52: =INDEX(ATS!$A:$U,MATCH('2) Order Form'!$W52,ATS!$T:$T,0),7) -> Stock
A53: 1 | B53: =VLOOKUP(A53,Classification!$H$2:$I$11,2,FALSE) -> Helmets & Helmet Acc. | C53: =INDEX(ATS!$A:$U,MATCH('2) Order Form'!$W53,ATS!$T:$T,0),1) -> 840094 | D53: =INDEX(ATS!$A:$U,MATCH('2) Order Form'!$W53,ATS!$T:$T,0),2) -> Trooper 2Vi Mips Helmet | E53: =INDEX(ATS!$A:$U,MATCH('2) Order Form'!$W53,ATS!$T:$T,0),4) -> RGLDM-LXL | F53: =INDEX(ATS!$A:$U,MATCH('2) Order Form'!$W53,ATS!$T:$T,0),5) -> Rose Gold Metallic | G53: =INDEX(ATS!$A:$U,MATCH('2) Order Form'!$W53,ATS!$T:$T,0),6) -> LXL | H53: =INDEX(Packs!$A:$V,MATCH('2) Order Form'!$W53,Packs!$W:$W,0),22) -> 1 | I53: 0 | J53: =IFERROR(VLOOKUP(W53,ATS!$T:$U,2,FALSE),0) -> 59 | K53: 50+ | L53: =IFERROR(VLOOKUP(W53,ATS!$T:$V,3,FALSE),0) -> 59 | M53: 50+ | N53: 0% | O53: 0% | P53: =VLOOKUP($C53,Prices!$A$3:$T$1996,MATCH('2) Order Form'!P$8,Prices!$A$2:$T$2,0),FALSE) -> 150.00 | Q53: =VLOOKUP($C53,Prices!$A$3:$T$1996,MATCH('2) Order Form'!Q$8,Prices!$A$2:$T$2,0),FALSE) -> 299.95 | R53: 0 | S53: 0 | T53: 0 | U53: 0% | W53: 7048652823458 | Y53: 0 | Z53: 0 | AA53: 1 | AB53: 0 | AC53: 0 | AD53: 840094Rose Gold Metallic | AE53: 840094 | AF53: =VLOOKUP($C53,Classification!$A:$F,5,FALSE) ->  | AG53: =VLOOKUP($C53,Classification!$A:$F,6,FALSE) ->  | AH53: =INDEX(ATS!$A:$U,MATCH('2) Order Form'!$W53,ATS!$T:$T,0),7) -> Stock
A54: 1 | B54: =VLOOKUP(A54,Classification!$H$2:$I$11,2,FALSE) -> Helmets & Helmet Acc. | C54: =INDEX(ATS!$A:$U,MATCH('2) Order Form'!$W54,ATS!$T:$T,0),1) -> 840097 | D54: =INDEX(ATS!$A:$U,MATCH('2) Order Form'!$W54,ATS!$T:$T,0),2) -> Grimnir 2Vi Mips Helmet | E54: =INDEX(ATS!$A:$U,MATCH('2) Order Form'!$W54,ATS!$T:$T,0),4) -> MNGRY-SM | F54: =INDEX(ATS!$A:$U,MATCH('2) Order Form'!$W54,ATS!$T:$T,0),5) -> Matte Nardo Gray | G54: =INDEX(ATS!$A:$U,MATCH('2) Order Form'!$W54,ATS!$T:$T,0),6) -> SM | H54: =INDEX(Packs!$A:$V,MATCH('2) Order Form'!$W54,Packs!$W:$W,0),22) -> 1 | I54: 0 | J54: =IFERROR(VLOOKUP(W54,ATS!$T:$U,2,FALSE),0) -> 34 | K54: 34 | L54: =IFERROR(VLOOKUP(W54,ATS!$T:$V,3,FALSE),0) -> 34 | M54: 34 | N54: 0% | O54: 0% | P54: =VLOOKUP($C54,Prices!$A$3:$T$1996,MATCH('2) Order Form'!P$8,Prices!$A$2:$T$2,0),FALSE) -> 200.00 | Q54: =VLOOKUP($C54,Prices!$A$3:$T$1996,MATCH('2) Order Form'!Q$8,Prices!$A$2:$T$2,0),FALSE) -> 399.95 | R54: 0 | S54: 0 | T54: 0 | U54: 0% | W54: 7048652715272 | Y54: 0 | Z54: 0 | AA54: 2 | AB54: 1 | AC54: 1 | AD54: 840097Matte Nardo Gray | AE54: 840097 | AF54: =VLOOKUP($C54,Classification!$A:$F,5,FALSE) ->  | AG54: =VLOOKUP($C54,Classification!$A:$F,6,FALSE) ->  | AH54: =INDEX(ATS!$A:$U,MATCH('2) Order Form'!$W54,ATS!$T:$T,0),7) -> Active
A55: 1 | B55: =VLOOKUP(A55,Classification!$H$2:$I$11,2,FALSE) -> Helmets & Helmet Acc. | C55: =INDEX(ATS!$A:$U,MATCH('2) Order Form'!$W55,ATS!$T:$T,0),1) -> 840097 | D55: =INDEX(ATS!$A:$U,MATCH('2) Order Form'!$W55,ATS!$T:$T,0),2) -> Grimnir 2Vi Mips Helmet | E55: =INDEX(ATS!$A:$U,MATCH('2) Order Form'!$W55,ATS!$T:$T,0),4) -> MNGRY-ML | F55: =INDEX(ATS!$A:$U,MATCH('2) Order Form'!$W55,ATS!$T:$T,0),5) -> Matte Nardo Gray | G55: =INDEX(ATS!$A:$U,MATCH('2) Order Form'!$W55,ATS!$T:$T,0),6) -> ML | H55: =INDEX(Packs!$A:$V,MATCH('2) Order Form'!$W55,Packs!$W:$W,0),22) -> 1 | I55: 0 | J55: =IFERROR(VLOOKUP(W55,ATS!$T:$U,2,FALSE),0) -> 56 | K55: 50+ | L55: =IFERROR(VLOOKUP(W55,ATS!$T:$V,3,FALSE),0) -> 56 | M55: 50+ | N55: 0% | O55: 0% | P55: =VLOOKUP($C55,Prices!$A$3:$T$1996,MATCH('2) Order Form'!P$8,Prices!$A$2:$T$2,0),FALSE) -> 200.00 | Q55: =VLOOKUP($C55,Prices!$A$3:$T$1996,MATCH('2) Order Form'!Q$8,Prices!$A$2:$T$2,0),FALSE) -> 399.95 | R55: 0 | S55: 0 | T55: 0 | U55: 0% | W55: 7048652715265 | Y55: 0 | Z55: 0 | AA55: 2 | AB55: 0 | AC55: 0 | AD55: 840097Matte Nardo Gray | AE55: 840097 | AF55: =VLOOKUP($C55,Classification!$A:$F,5,FALSE) ->  | AG55: =VLOOKUP($C55,Classification!$A:$F,6,FALSE) ->  | AH55: =INDEX(ATS!$A:$U,MATCH('2) Order Form'!$W55,ATS!$T:$T,0),7) -> Active
A56: 1 | B56: =VLOOKUP(A56,Classification!$H$2:$I$11,2,FALSE) -> Helmets & Helmet Acc. | C56: =INDEX(ATS!$A:$U,MATCH('2) Order Form'!$W56,ATS!$T:$T,0),1) -> 840097 | D56: =INDEX(ATS!$A:$U,MATCH('2) Order Form'!$W56,ATS!$T:$T,0),2) -> Grimnir 2Vi Mips Helmet | E56: =INDEX(ATS!$A:$U,MATCH('2) Order Form'!$W56,ATS!$T:$T,0),4) -> MNGRY-LXL | F56: =INDEX(ATS!$A:$U,MATCH('2) Order Form'!$W56,ATS!$T:$T,0),5) -> Matte Nardo Gray | G56: =INDEX(ATS!$A:$U,MATCH('2) Order Form'!$W56,ATS!$T:$T,0),6) -> LXL | H56: =INDEX(Packs!$A:$V,MATCH('2) Order Form'!$W56,Packs!$W:$W,0),22) -> 1 | I56: 0 | J56: =IFERROR(VLOOKUP(W56,ATS!$T:$U,2,FALSE),0) -> 43 | K56: 43 | L56: =IFERROR(VLOOKUP(W56,ATS!$T:$V,3,FALSE),0) -> 43 | M56: 43 | N56: 0% | O56: 0% | P56: =VLOOKUP($C56,Prices!$A$3:$T$1996,MATCH('2) Order Form'!P$8,Prices!$A$2:$T$2,0),FALSE) -> 200.00 | Q56: =VLOOKUP($C56,Prices!$A$3:$T$1996,MATCH('2) Order Form'!Q$8,Prices!$A$2:$T$2,0),FALSE) -> 399.95 | R56: 0 | S56: 0 | T56: 0 | U56: 0% | W56: 7048652715258 | Y56: 0 | Z56: 0 | AA56: 2 | AB56: 0 | AC56: 0 | AD56: 840097Matte Nardo Gray | AE56: 840097 | AF56: =VLOOKUP($C56,Classification!$A:$F,5,FALSE) ->  | AG56: =VLOOKUP($C56,Classification!$A:$F,6,FALSE) ->  | AH56: =INDEX(ATS!$A:$U,MATCH('2) Order Form'!$W56,ATS!$T:$T,0),7) -> Active
A57: 1 | B57: =VLOOKUP(A57,Classification!$H$2:$I$11,2,FALSE) -> Helmets & Helmet Acc. | C57: =INDEX(ATS!$A:$U,MATCH('2) Order Form'!$W57,ATS!$T:$T,0),1) -> 840097 | D57: =INDEX(ATS!$A:$U,MATCH('2) Order Form'!$W57,ATS!$T:$T,0),2) -> Grimnir 2Vi Mips Helmet | E57: =INDEX(ATS!$A:$U,MATCH('2) Order Form'!$W57,ATS!$T:$T,0),4) -> MOLME-SM | F57: =INDEX(ATS!$A:$U,MATCH('2) Order Form'!$W57,ATS!$T:$T,0),5) -> Matte Olive Metallic | G57: =INDEX(ATS!$A:$U,MATCH('2) Order Form'!$W57,ATS!$T:$T,0),6) -> SM | H57: =INDEX(Packs!$A:$V,MATCH('2) Order Form'!$W57,Packs!$W:$W,0),22) -> 1 | I57: 0 | J57: =IFERROR(VLOOKUP(W57,ATS!$T:$U,2,FALSE),0) -> 51 | K57: 50+ | L57: =IFERROR(VLOOKUP(W57,ATS!$T:$V,3,FALSE),0) -> 51 | M57: 50+ | N57: 0% | O57: 0% | P57: =VLOOKUP($C57,Prices!$A$3:$T$1996,MATCH('2) Order Form'!P$8,Prices!$A$2:$T$2,0),FALSE) -> 200.00 | Q57: =VLOOKUP($C57,Prices!$A$3:$T$1996,MATCH('2) Order Form'!Q$8,Prices!$A$2:$T$2,0),FALSE) -> 399.95 | R57: 0 | S57: 0 | T57: 0 | U57: 0% | W57: 7048652712592 | Y57: 0 | Z57: 0 | AA57: 2 | AB57: 0 | AC57: 1 | AD57: 840097Matte Olive Metallic | AE57: 840097 | AF57: =VLOOKUP($C57,Classification!$A:$F,5,FALSE) ->  | AG57: =VLOOKUP($C57,Classification!$A:$F,6,FALSE) ->  | AH57: =INDEX(ATS!$A:$U,MATCH('2) Order Form'!$W57,ATS!$T:$T,0),7) -> Stock
A58: 1 | B58: =VLOOKUP(A58,Classification!$H$2:$I$11,2,FALSE) -> Helmets & Helmet Acc. | C58: =INDEX(ATS!$A:$U,MATCH('2) Order Form'!$W58,ATS!$T:$T,0),1) -> 840097 | D58: =INDEX(ATS!$A:$U,MATCH('2) Order Form'!$W58,ATS!$T:$T,0),2) -> Grimnir 2Vi Mips Helmet | E58: =INDEX(ATS!$A:$U,MATCH('2) Order Form'!$W58,ATS!$T:$T,0),4) -> MOLME-ML | F58: =INDEX(ATS!$A:$U,MATCH('2) Order Form'!$W58,ATS!$T:$T,0),5) -> Matte Olive Metallic | G58: =INDEX(ATS!$A:$U,MATCH('2) Order Form'!$W58,ATS!$T:$T,0),6) -> ML | H58: =INDEX(Packs!$A:$V,MATCH('2) Order Form'!$W58,Packs!$W:$W,0),22) -> 1 | I58: 0 | J58: =IFERROR(VLOOKUP(W58,ATS!$T:$U,2,FALSE),0) -> 35 | K58: 35 | L58: =IFERROR(VLOOKUP(W58,ATS!$T:$V,3,FALSE),0) -> 35 | M58: 35 | N58: 0% | O58: 0% | P58: =VLOOKUP($C58,Prices!$A$3:$T$1996,MATCH('2) Order Form'!P$8,Prices!$A$2:$T$2,0),FALSE) -> 200.00 | Q58: =VLOOKUP($C58,Prices!$A$3:$T$1996,MATCH('2) Order Form'!Q$8,Prices!$A$2:$T$2,0),FALSE) -> 399.95 | R58: 0 | S58: 0 | T58: 0 | U58: 0% | W58: 7048652712585 | Y58: 0 | Z58: 0 | AA58: 2 | AB58: 0 | AC58: 0 | AD58: 840097Matte Olive Metallic | AE58: 840097 | AF58: =VLOOKUP($C58,Classification!$A:$F,5,FALSE) ->  | AG58: =VLOOKUP($C58,Classification!$A:$F,6,FALSE) ->  | AH58: =INDEX(ATS!$A:$U,MATCH('2) Order Form'!$W58,ATS!$T:$T,0),7) -> Stock
A59: 1 | B59: =VLOOKUP(A59,Classification!$H$2:$I$11,2,FALSE) -> Helmets & Helmet Acc. | C59: =INDEX(ATS!$A:$U,MATCH('2) Order Form'!$W59,ATS!$T:$T,0),1) -> 840097 | D59: =INDEX(ATS!$A:$U,MATCH('2) Order Form'!$W59,ATS!$T:$T,0),2) -> Grimnir 2Vi Mips Helmet | E59: =INDEX(ATS!$A:$U,MATCH('2) Order Form'!$W59,ATS!$T:$T,0),4) -> MOLME-LXL | F59: =INDEX(ATS!$A:$U,MATCH('2) Order Form'!$W59,ATS!$T:$T,0),5) -> Matte Olive Metallic | G59: =INDEX(ATS!$A:$U,MATCH('2) Order Form'!$W59,ATS!$T:$T,0),6) -> LXL | H59: =INDEX(Packs!$A:$V,MATCH('2) Order Form'!$W59,Packs!$W:$W,0),22) -> 1 | I59: 0 | J59: =IFERROR(VLOOKUP(W59,ATS!$T:$U,2,FALSE),0) -> 17 | K59: 17 | L59: =IFERROR(VLOOKUP(W59,ATS!$T:$V,3,FALSE),0) -> 17 | M59: 17 | N59: 0% | O59: 0% | P59: =VLOOKUP($C59,Prices!$A$3:$T$1996,MATCH('2) Order Form'!P$8,Prices!$A$2:$T$2,0),FALSE) -> 200.00 | Q59: =VLOOKUP($C59,Prices!$A$3:$T$1996,MATCH('2) Order Form'!Q$8,Prices!$A$2:$T$2,0),FALSE) -> 399.95 | R59: 0 | S59: 0 | T59: 0 | U59: 0% | W59: 7048652712578 | Y59: 0 | Z59: 0 | AA59: 2 | AB59: 0 | AC59: 0 | AD59: 840097Matte Olive Metallic | AE59: 840097 | AF59: =VLOOKUP($C59,Classification!$A:$F,5,FALSE) ->  | AG59: =VLOOKUP($C59,Classification!$A:$F,6,FALSE) ->  | AH59: =INDEX(ATS!$A:$U,MATCH('2) Order Form'!$W59,ATS!$T:$T,0),7) -> Stock
A60: 1 | B60: =VLOOKUP(A60,Classification!$H$2:$I$11,2,FALSE) -> Helmets & Helmet Acc. | C60: =INDEX(ATS!$A:$U,MATCH('2) Order Form'!$W60,ATS!$T:$T,0),1) -> 840097 | D60: =INDEX(ATS!$A:$U,MATCH('2) Order Form'!$W60,ATS!$T:$T,0),2) -> Grimnir 2Vi Mips Helmet | E60: =INDEX(ATS!$A:$U,MATCH('2) Order Form'!$W60,ATS!$T:$T,0),4) -> NACAR-SM | F60: =INDEX(ATS!$A:$U,MATCH('2) Order Form'!$W60,ATS!$T:$T,0),5) -> Natural Carbon | G60: =INDEX(ATS!$A:$U,MATCH('2) Order Form'!$W60,ATS!$T:$T,0),6) -> SM | H60: =INDEX(Packs!$A:$V,MATCH('2) Order Form'!$W60,Packs!$W:$W,0),22) -> 1 | I60: 0 | J60: =IFERROR(VLOOKUP(W60,ATS!$T:$U,2,FALSE),0) -> 91 | K60: 50+ | L60: =IFERROR(VLOOKUP(W60,ATS!$T:$V,3,FALSE),0) -> 91 | M60: 50+ | N60: 0% | O60: 0% | P60: =VLOOKUP($C60,Prices!$A$3:$T$1996,MATCH('2) Order Form'!P$8,Prices!$A$2:$T$2,0),FALSE) -> 200.00 | Q60: =VLOOKUP($C60,Prices!$A$3:$T$1996,MATCH('2) Order Form'!Q$8,Prices!$A$2:$T$2,0),FALSE) -> 399.95 | R60: 0 | S60: 0 | T60: 0 | U60: 0% | W60: 7048652712639 | Y60: 0 | Z60: 0 | AA60: 2 | AB60: 0 | AC60: 1 | AD60: 840097Natural Carbon | AE60: 840097 | AF60: =VLOOKUP($C60,Classification!$A:$F,5,FALSE) ->  | AG60: =VLOOKUP($C60,Classification!$A:$F,6,FALSE) ->  | AH60: =INDEX(ATS!$A:$U,MATCH('2) Order Form'!$W60,ATS!$T:$T,0),7) -> Active
A61: 1 | B61: =VLOOKUP(A61,Classification!$H$2:$I$11,2,FALSE) -> Helmets & Helmet Acc. | C61: =INDEX(ATS!$A:$U,MATCH('2) Order Form'!$W61,ATS!$T:$T,0),1) -> 840097 | D61: =INDEX(ATS!$A:$U,MATCH('2) Order Form'!$W61,ATS!$T:$T,0),2) -> Grimnir 2Vi Mips Helmet | E61: =INDEX(ATS!$A:$U,MATCH('2) Order Form'!$W61,ATS!$T:$T,0),4) -> NACAR-ML | F61: =INDEX(ATS!$A:$U,MATCH('2) Order Form'!$W61,ATS!$T:$T,0),5) -> Natural Carbon | G61: =INDEX(ATS!$A:$U,MATCH('2) Order Form'!$W61,ATS!$T:$T,0),6) -> ML | H61: =INDEX(Packs!$A:$V,MATCH('2) Order Form'!$W61,Packs!$W:$W,0),22) -> 1 | I61: 0 | J61: =IFERROR(VLOOKUP(W61,ATS!$T:$U,2,FALSE),0) -> 96 | K61: 50+ | L61: =IFERROR(VLOOKUP(W61,ATS!$T:$V,3,FALSE),0) -> 96 | M61: 50+ | N61: 0% | O61: 0% | P61: =VLOOKUP($C61,Prices!$A$3:$T$1996,MATCH('2) Order Form'!P$8,Prices!$A$2:$T$2,0),FALSE) -> 200.00 | Q61: =VLOOKUP($C61,Prices!$A$3:$T$1996,MATCH('2) Order Form'!Q$8,Prices!$A$2:$T$2,0),FALSE) -> 399.95 | R61: 0 | S61: 0 | T61: 0 | U61: 0% | W61: 7048652712622 | Y61: 0 | Z61: 0 | AA61: 2 | AB61: 0 | AC61: 0 | AD61: 840097Natural Carbon | AE61: 840097 | AF61: =VLOOKUP($C61,Classification!$A:$F,5,FALSE) ->  | AG61: =VLOOKUP($C61,Classification!$A:$F,6,FALSE) ->  | AH61: =INDEX(ATS!$A:$U,MATCH('2) Order Form'!$W61,ATS!$T:$T,0),7) -> Active
A62: 1 | B62: =VLOOKUP(A62,Classification!$H$2:$I$11,2,FALSE) -> Helmets & Helmet Acc. | C62: =INDEX(ATS!$A:$U,MATCH('2) Order Form'!$W62,ATS!$T:$T,0),1) -> 840097 | D62: =INDEX(ATS!$A:$U,MATCH('2) Order Form'!$W62,ATS!$T:$T,0),2) -> Grimnir 2Vi Mips Helmet | E62: =INDEX(ATS!$A:$U,MATCH('2) Order Form'!$W62,ATS!$T:$T,0),4) -> NACAR-LXL | F62: =INDEX(ATS!$A:$U,MATCH('2) Order Form'!$W62,ATS!$T:$T,0),5) -> Natural Carbon | G62: =INDEX(ATS!$A:$U,MATCH('2) Order Form'!$W62,ATS!$T:$T,0),6) -> LXL | H62: =INDEX(Packs!$A:$V,MATCH('2) Order Form'!$W62,Packs!$W:$W,0),22) -> 1 | I62: 0 | J62: =IFERROR(VLOOKUP(W62,ATS!$T:$U,2,FALSE),0) -> 65 | K62: 50+ | L62: =IFERROR(VLOOKUP(W62,ATS!$T:$V,3,FALSE),0) -> 65 | M62: 50+ | N62: 0% | O62: 0% | P62: =VLOOKUP($C62,Prices!$A$3:$T$1996,MATCH('2) Order Form'!P$8,Prices!$A$2:$T$2,0),FALSE) -> 200.00 | Q62: =VLOOKUP($C62,Prices!$A$3:$T$1996,MATCH('2) Order Form'!Q$8,Prices!$A$2:$T$2,0),FALSE) -> 399.95 | R62: 0 | S62: 0 | T62: 0 | U62: 0% | W62: 7048652712615 | Y62: 0 | Z62: 0 | AA62: 2 | AB62: 0 | AC62: 0 | AD62: 840097Natural Carbon | AE62: 840097 | AF62: =VLOOKUP($C62,Classification!$A:$F,5,FALSE) ->  | AG62: =VLOOKUP($C62,Classification!$A:$F,6,FALSE) ->  | AH62: =INDEX(ATS!$A:$U,MATCH('2) Order Form'!$W62,ATS!$T:$T,0),7) -> Active
A63: 1 | B63: =VLOOKUP(A63,Classification!$H$2:$I$11,2,FALSE) -> Helmets & Helmet Acc. | C63: =INDEX(ATS!$A:$U,MATCH('2) Order Form'!$W63,ATS!$T:$T,0),1) -> 840097 | D63: =INDEX(ATS!$A:$U,MATCH('2) Order Form'!$W63,ATS!$T:$T,0),2) -> Grimnir 2Vi Mips Helmet | E63: =INDEX(ATS!$A:$U,MATCH('2) Order Form'!$W63,ATS!$T:$T,0),4) -> MASEM-SM | F63: =INDEX(ATS!$A:$U,MATCH('2) Order Form'!$W63,ATS!$T:$T,0),5) -> Matte Sea Metallic | G63: =INDEX(ATS!$A:$U,MATCH('2) Order Form'!$W63,ATS!$T:$T,0),6) -> SM | H63: =INDEX(Packs!$A:$V,MATCH('2) Order Form'!$W63,Packs!$W:$W,0),22) -> 1 | I63: 0 | J63: =IFERROR(VLOOKUP(W63,ATS!$T:$U,2,FALSE),0) -> 44 | K63: 44 | L63: =IFERROR(VLOOKUP(W63,ATS!$T:$V,3,FALSE),0) -> 44 | M63: 44 | N63: 0% | O63: =IF(N63<>0,N63,$P$5) -> 0% | P63: =VLOOKUP($C63,Prices!$A$3:$T$1996,MATCH('2) Order Form'!P$8,Prices!$A$2:$T$2,0),FALSE) -> 200.00 | Q63: =VLOOKUP($C63,Prices!$A$3:$T$1996,MATCH('2) Order Form'!Q$8,Prices!$A$2:$T$2,0),FALSE) -> 399.95 | R63: 0 | S63: 0 | T63: 0 | U63: 0% | W63: 7048652823625 | Y63: =I63*Q63 -> 0 | Z63: =IF(A63=OFFSET(A63,-1,0),0,1) -> 0 | AA63: 2 | AB63: =IF(C63=OFFSET(C63,-1,0),0,1) -> 0 | AC63: =IF(F63=OFFSET(F63,-1,0),0,1) -> 1 | AD63: =CONCATENATE(C63,F63) -> 840097Matte Sea Metallic | AE63: =IFERROR(IF(B63="EYEWEAR",CONCATENATE(C63,"-",G63),C63),C63) -> 840097 | AF63: =VLOOKUP($C63,Classification!$A:$F,5,FALSE) ->  | AG63: =VLOOKUP($C63,Classification!$A:$F,6,FALSE) ->  | AH63: =INDEX(ATS!$A:$U,MATCH('2) Order Form'!$W63,ATS!$T:$T,0),7) -> Active
A64: 1 | B64: =VLOOKUP(A64,Classification!$H$2:$I$11,2,FALSE) -> Helmets & Helmet Acc. | C64: =INDEX(ATS!$A:$U,MATCH('2) Order Form'!$W64,ATS!$T:$T,0),1) -> 840097 | D64: =INDEX(ATS!$A:$U,MATCH('2) Order Form'!$W64,ATS!$T:$T,0),2) -> Grimnir 2Vi Mips Helmet | E64: =INDEX(ATS!$A:$U,MATCH('2) Order Form'!$W64,ATS!$T:$T,0),4) -> MASEM-ML | F64: =INDEX(ATS!$A:$U,MATCH('2) Order Form'!$W64,ATS!$T:$T,0),5) -> Matte Sea Metallic | G64: =INDEX(ATS!$A:$U,MATCH('2) Order Form'!$W64,ATS!$T:$T,0),6) -> ML | H64: =INDEX(Packs!$A:$V,MATCH('2) Order Form'!$W64,Packs!$W:$W,0),22) -> 1 | I64: 0 | J64: =IFERROR(VLOOKUP(W64,ATS!$T:$U,2,FALSE),0) -> 48 | K64: 48 | L64: =IFERROR(VLOOKUP(W64,ATS!$T:$V,3,FALSE),0) -> 48 | M64: 48 | N64: 0% | O64: 0% | P64: =VLOOKUP($C64,Prices!$A$3:$T$1996,MATCH('2) Order Form'!P$8,Prices!$A$2:$T$2,0),FALSE) -> 200.00 | Q64: =VLOOKUP($C64,Prices!$A$3:$T$1996,MATCH('2) Order Form'!Q$8,Prices!$A$2:$T$2,0),FALSE) -> 399.95 | R64: 0 | S64: 0 | T64: 0 | U64: 0% | W64: 7048652823618 | Y64: 0 | Z64: 0 | AA64: 2 | AB64: 0 | AC64: 0 | AD64: 840097Matte Sea Metallic | AE64: 840097 | AF64: =VLOOKUP($C64,Classification!$A:$F,5,FALSE) ->  | AG64: =VLOOKUP($C64,Classification!$A:$F,6,FALSE) ->  | AH64: =INDEX(ATS!$A:$U,MATCH('2) Order Form'!$W64,ATS!$T:$T,0),7) -> Active
A65: 1 | B65: =VLOOKUP(A65,Classification!$H$2:$I$11,2,FALSE) -> Helmets & Helmet Acc. | C65: =INDEX(ATS!$A:$U,MATCH('2) Order Form'!$W65,ATS!$T:$T,0),1) -> 840097 | D65: =INDEX(ATS!$A:$U,MATCH('2) Order Form'!$W65,ATS!$T:$T,0),2) -> Grimnir 2Vi Mips Helmet | E65: =INDEX(ATS!$A:$U,MATCH('2) Order Form'!$W65,ATS!$T:$T,0),4) -> MASEM-LXL | F65: =INDEX(ATS!$A:$U,MATCH('2) Order Form'!$W65,ATS!$T:$T,0),5) -> Matte Sea Metallic | G65: =INDEX(ATS!$A:$U,MATCH('2) Order Form'!$W65,ATS!$T:$T,0),6) -> LXL | H65: =INDEX(Packs!$A:$V,MATCH('2) Order Form'!$W65,Packs!$W:$W,0),22) -> 1 | I65: 0 | J65: =IFERROR(VLOOKUP(W65,ATS!$T:$U,2,FALSE),0) -> 39 | K65: 39 | L65: =IFERROR(VLOOKUP(W65,ATS!$T:$V,3,FALSE),0) -> 39 | M65: 39 | N65: 0% | O65: 0% | P65: =VLOOKUP($C65,Prices!$A$3:$T$1996,MATCH('2) Order Form'!P$8,Prices!$A$2:$T$2,0),FALSE) -> 200.00 | Q65: =VLOOKUP($C65,Prices!$A$3:$T$1996,MATCH('2) Order Form'!Q$8,Prices!$A$2:$T$2,0),FALSE) -> 399.95 | R65: 0 | S65: 0 | T65: 0 | U65: 0% | W65: 7048652823601 | Y65: 0 | Z65: 0 | AA65: 2 | AB65: 0 | AC65: 0 | AD65: 840097Matte Sea Metallic | AE65: 840097 | AF65: =VLOOKUP($C65,Classification!$A:$F,5,FALSE) ->  | AG65: =VLOOKUP($C65,Classification!$A:$F,6,FALSE) ->  | AH65: =INDEX(ATS!$A:$U,MATCH('2) Order Form'!$W65,ATS!$T:$T,0),7) -> Active
A66: 1 | B66: =VLOOKUP(A66,Classification!$H$2:$I$11,2,FALSE) -> Helmets & Helmet Acc. | C66: =INDEX(ATS!$A:$U,MATCH('2) Order Form'!$W66,ATS!$T:$T,0),1) -> 840053 | D66: =INDEX(ATS!$A:$U,MATCH('2) Order Form'!$W66,ATS!$T:$T,0),2) -> Switcher Mips Helmet | E66: =INDEX(ATS!$A:$U,MATCH('2) Order Form'!$W66,ATS!$T:$T,0),4) -> DTBLK-SM | F66: =INDEX(ATS!$A:$U,MATCH('2) Order Form'!$W66,ATS!$T:$T,0),5) -> Dirt Black | G66: =INDEX(ATS!$A:$U,MATCH('2) Order Form'!$W66,ATS!$T:$T,0),6) -> SM | H66: =INDEX(Packs!$A:$V,MATCH('2) Order Form'!$W66,Packs!$W:$W,0),22) -> 1 | I66: 0 | J66: =IFERROR(VLOOKUP(W66,ATS!$T:$U,2,FALSE),0) -> 152 | K66: 50+ | L66: =IFERROR(VLOOKUP(W66,ATS!$T:$V,3,FALSE),0) -> 152 | M66: 50+ | N66: 0% | O66: =IF(N66<>0,N66,$P$5) -> 0% | P66: =VLOOKUP($C66,Prices!$A$3:$T$1996,MATCH('2) Order Form'!P$8,Prices!$A$2:$T$2,0),FALSE) -> 125.00 | Q66: =VLOOKUP($C66,Prices!$A$3:$T$1996,MATCH('2) Order Form'!Q$8,Prices!$A$2:$T$2,0),FALSE) -> 249.95 | R66: 0 | S66: 0 | T66: 0 | U66: 0% | W66: 7048652463135 | Y66: 0 | Z66: 0 | AA66: 3 | AB66: 1 | AC66: 1 | AD66: 840053Dirt Black | AE66: 840053 | AF66: =VLOOKUP($C66,Classification!$A:$F,5,FALSE) -> 0.000 | AG66: =VLOOKUP($C66,Classification!$A:$F,6,FALSE) -> 1 | AH66: =INDEX(ATS!$A:$U,MATCH('2) Order Form'!$W66,ATS!$T:$T,0),7) -> Active
A67: 1 | B67: =VLOOKUP(A67,Classification!$H$2:$I$11,2,FALSE) -> Helmets & Helmet Acc. | C67: =INDEX(ATS!$A:$U,MATCH('2) Order Form'!$W67,ATS!$T:$T,0),1) -> 840053 | D67: =INDEX(ATS!$A:$U,MATCH('2) Order Form'!$W67,ATS!$T:$T,0),2) -> Switcher Mips Helmet | E67: =INDEX(ATS!$A:$U,MATCH('2) Order Form'!$W67,ATS!$T:$T,0),4) -> DTBLK-ML | F67: =INDEX(ATS!$A:$U,MATCH('2) Order Form'!$W67,ATS!$T:$T,0),5) -> Dirt Black | G67: =INDEX(ATS!$A:$U,MATCH('2) Order Form'!$W67,ATS!$T:$T,0),6) -> ML | H67: =INDEX(Packs!$A:$V,MATCH('2) Order Form'!$W67,Packs!$W:$W,0),22) -> 1 | I67: 0 | J67: =IFERROR(VLOOKUP(W67,ATS!$T:$U,2,FALSE),0) -> 413 | K67: 50+ | L67: =IFERROR(VLOOKUP(W67,ATS!$T:$V,3,FALSE),0) -> 413 | M67: 50+ | N67: 0% | O67: 0% | P67: =VLOOKUP($C67,Prices!$A$3:$T$1996,MATCH('2) Order Form'!P$8,Prices!$A$2:$T$2,0),FALSE) -> 125.00 | Q67: =VLOOKUP($C67,Prices!$A$3:$T$1996,MATCH('2) Order Form'!Q$8,Prices!$A$2:$T$2,0),FALSE) -> 249.95 | R67: 0 | S67: 0 | T67: 0 | U67: 0% | W67: 7048652463128 | Y67: 0 | Z67: 0 | AA67: 3 | AB67: 0 | AC67: 0 | AD67: 840053Dirt Black | AE67: 840053 | AF67: =VLOOKUP($C67,Classification!$A:$F,5,FALSE) -> 0.000 | AG67: =VLOOKUP($C67,Classification!$A:$F,6,FALSE) -> 1 | AH67: =INDEX(ATS!$A:$U,MATCH('2) Order Form'!$W67,ATS!$T:$T,0),7) -> Active
A68: 1 | B68: =VLOOKUP(A68,Classification!$H$2:$I$11,2,FALSE) -> Helmets & Helmet Acc. | C68: =INDEX(ATS!$A:$U,MATCH('2) Order Form'!$W68,ATS!$T:$T,0),1) -> 840053 | D68: =INDEX(ATS!$A:$U,MATCH('2) Order Form'!$W68,ATS!$T:$T,0),2) -> Switcher Mips Helmet | E68: =INDEX(ATS!$A:$U,MATCH('2) Order Form'!$W68,ATS!$T:$T,0),4) -> DTBLK-LXL | F68: =INDEX(ATS!$A:$U,MATCH('2) Order Form'!$W68,ATS!$T:$T,0),5) -> Dirt Black | G68: =INDEX(ATS!$A:$U,MATCH('2) Order Form'!$W68,ATS!$T:$T,0),6) -> LXL | H68: =INDEX(Packs!$A:$V,MATCH('2) Order Form'!$W68,Packs!$W:$W,0),22) -> 1 | I68: 0 | J68: =IFERROR(VLOOKUP(W68,ATS!$T:$U,2,FALSE),0) -> 457 | K68: 50+ | L68: =IFERROR(VLOOKUP(W68,ATS!$T:$V,3,FALSE),0) -> 457 | M68: 50+ | N68: 0% | O68: 0% | P68: =VLOOKUP($C68,Prices!$A$3:$T$1996,MATCH('2) Order Form'!P$8,Prices!$A$2:$T$2,0),FALSE) -> 125.00 | Q68: =VLOOKUP($C68,Prices!$A$3:$T$1996,MATCH('2) Order Form'!Q$8,Prices!$A$2:$T$2,0),FALSE) -> 249.95 | R68: 0 | S68: 0 | T68: 0 | U68: 0% | W68: 7048652463111 | Y68: 0 | Z68: 0 | AA68: 3 | AB68: 0 | AC68: 0 | AD68: 840053Dirt Black | AE68: 840053 | AF68: =VLOOKUP($C68,Classification!$A:$F,5,FALSE) -> 0.000 | AG68: =VLOOKUP($C68,Classification!$A:$F,6,FALSE) -> 1 | AH68: =INDEX(ATS!$A:$U,MATCH('2) Order Form'!$W68,ATS!$T:$T,0),7) -> Active
A69: 1 | B69: =VLOOKUP(A69,Classification!$H$2:$I$11,2,FALSE) -> Helmets & Helmet Acc. | C69: =INDEX(ATS!$A:$U,MATCH('2) Order Form'!$W69,ATS!$T:$T,0),1) -> 840053 | D69: =INDEX(ATS!$A:$U,MATCH('2) Order Form'!$W69,ATS!$T:$T,0),2) -> Switcher Mips Helmet | E69: =INDEX(ATS!$A:$U,MATCH('2) Order Form'!$W69,ATS!$T:$T,0),4) -> DTBLK-XXL | F69: =INDEX(ATS!$A:$U,MATCH('2) Order Form'!$W69,ATS!$T:$T,0),5) -> Dirt Black | G69: =INDEX(ATS!$A:$U,MATCH('2) Order Form'!$W69,ATS!$T:$T,0),6) -> XXL | H69: =INDEX(Packs!$A:$V,MATCH('2) Order Form'!$W69,Packs!$W:$W,0),22) -> 1 | I69: 0 | J69: =IFERROR(VLOOKUP(W69,ATS!$T:$U,2,FALSE),0) -> 96 | K69: 50+ | L69: =IFERROR(VLOOKUP(W69,ATS!$T:$V,3,FALSE),0) -> 96 | M69: 50+ | N69: 0% | O69: 0% | P69: =VLOOKUP($C69,Prices!$A$3:$T$1996,MATCH('2) Order Form'!P$8,Prices!$A$2:$T$2,0),FALSE) -> 125.00 | Q69: =VLOOKUP($C69,Prices!$A$3:$T$1996,MATCH('2) Order Form'!Q$8,Prices!$A$2:$T$2,0),FALSE) -> 249.95 | R69: 0 | S69: 0 | T69: 0 | U69: 0% | W69: 7048652607683 | Y69: 0 | Z69: 0 | AA69: 3 | AB69: 0 | AC69: 0 | AD69: 840053Dirt Black | AE69: 840053 | AF69: =VLOOKUP($C69,Classification!$A:$F,5,FALSE) -> 0.000 | AG69: =VLOOKUP($C69,Classification!$A:$F,6,FALSE) -> 1 | AH69: =INDEX(ATS!$A:$U,MATCH('2) Order Form'!$W69,ATS!$T:$T,0),7) -> Active
A70: 1 | B70: =VLOOKUP(A70,Classification!$H$2:$I$11,2,FALSE) -> Helmets & Helmet Acc. | C70: =INDEX(ATS!$A:$U,MATCH('2) Order Form'!$W70,ATS!$T:$T,0),1) -> 840053 | D70: =INDEX(ATS!$A:$U,MATCH('2) Order Form'!$W70,ATS!$T:$T,0),2) -> Switcher Mips Helmet | E70: =INDEX(ATS!$A:$U,MATCH('2) Order Form'!$W70,ATS!$T:$T,0),4) -> GSWHT-SM | F70: =INDEX(ATS!$A:$U,MATCH('2) Order Form'!$W70,ATS!$T:$T,0),5) -> Gloss White | G70: =INDEX(ATS!$A:$U,MATCH('2) Order Form'!$W70,ATS!$T:$T,0),6) -> SM | H70: =INDEX(Packs!$A:$V,MATCH('2) Order Form'!$W70,Packs!$W:$W,0),22) -> 1 | I70: 0 | J70: =IFERROR(VLOOKUP(W70,ATS!$T:$U,2,FALSE),0) -> 166 | K70: 50+ | L70: =IFERROR(VLOOKUP(W70,ATS!$T:$V,3,FALSE),0) -> 166 | M70: 50+ | N70: 0% | O70: 0% | P70: =VLOOKUP($C70,Prices!$A$3:$T$1996,MATCH('2) Order Form'!P$8,Prices!$A$2:$T$2,0),FALSE) -> 125.00 | Q70: =VLOOKUP($C70,Prices!$A$3:$T$1996,MATCH('2) Order Form'!Q$8,Prices!$A$2:$T$2,0),FALSE) -> 249.95 | R70: 0 | S70: 0 | T70: 0 | U70: 0% | W70: 7048652186300 | Y70: 0 | Z70: 0 | AA70: 3 | AB70: 0 | AC70: 1 | AD70: 840053Gloss White | AE70: 840053 | AF70: =VLOOKUP($C70,Classification!$A:$F,5,FALSE) -> 0.000 | AG70: =VLOOKUP($C70,Classification!$A:$F,6,FALSE) -> 1 | AH70: =INDEX(ATS!$A:$U,MATCH('2) Order Form'!$W70,ATS!$T:$T,0),7) -> Active
A71: 1 | B71: =VLOOKUP(A71,Classification!$H$2:$I$11,2,FALSE) -> Helmets & Helmet Acc. | C71: =INDEX(ATS!$A:$U,MATCH('2) Order Form'!$W71,ATS!$T:$T,0),1) -> 840053 | D71: =INDEX(ATS!$A:$U,MATCH('2) Order Form'!$W71,ATS!$T:$T,0),2) -> Switcher Mips Helmet | E71: =INDEX(ATS!$A:$U,MATCH('2) Order Form'!$W71,ATS!$T:$T,0),4) -> GSWHT-ML | F71: =INDEX(ATS!$A:$U,MATCH('2) Order Form'!$W71,ATS!$T:$T,0),5) -> Gloss White | G71: =INDEX(ATS!$A:$U,MATCH('2) Order Form'!$W71,ATS!$T:$T,0),6) -> ML | H71: =INDEX(Packs!$A:$V,MATCH('2) Order Form'!$W71,Packs!$W:$W,0),22) -> 1 | I71: 0 | J71: =IFERROR(VLOOKUP(W71,ATS!$T:$U,2,FALSE),0) -> 494 | K71: 50+ | L71: =IFERROR(VLOOKUP(W71,ATS!$T:$V,3,FALSE),0) -> 494 | M71: 50+ | N71: 0% | O71: 0% | P71: =VLOOKUP($C71,Prices!$A$3:$T$1996,MATCH('2) Order Form'!P$8,Prices!$A$2:$T$2,0),FALSE) -> 125.00 | Q71: =VLOOKUP($C71,Prices!$A$3:$T$1996,MATCH('2) Order Form'!Q$8,Prices!$A$2:$T$2,0),FALSE) -> 249.95 | R71: 0 | S71: 0 | T71: 0 | U71: 0% | W71: 7048652186294 | Y71: 0 | Z71: 0 | AA71: 3 | AB71: 0 | AC71: 0 | AD71: 840053Gloss White | AE71: 840053 | AF71: =VLOOKUP($C71,Classification!$A:$F,5,FALSE) -> 0.000 | AG71: =VLOOKUP($C71,Classification!$A:$F,6,FALSE) -> 1 | AH71: =INDEX(ATS!$A:$U,MATCH('2) Order Form'!$W71,ATS!$T:$T,0),7) -> Active
A72: 1 | B72: =VLOOKUP(A72,Classification!$H$2:$I$11,2,FALSE) -> Helmets & Helmet Acc. | C72: =INDEX(ATS!$A:$U,MATCH('2) Order Form'!$W72,ATS!$T:$T,0),1) -> 840053 | D72: =INDEX(ATS!$A:$U,MATCH('2) Order Form'!$W72,ATS!$T:$T,0),2) -> Switcher Mips Helmet | E72: =INDEX(ATS!$A:$U,MATCH('2) Order Form'!$W72,ATS!$T:$T,0),4) -> GSWHT-LXL | F72: =INDEX(ATS!$A:$U,MATCH('2) Order Form'!$W72,ATS!$T:$T,0),5) -> Gloss White | G72: =INDEX(ATS!$A:$U,MATCH('2) Order Form'!$W72,ATS!$T:$T,0),6) -> LXL | H72: =INDEX(Packs!$A:$V,MATCH('2) Order Form'!$W72,Packs!$W:$W,0),22) -> 1 | I72: 0 | J72: =IFERROR(VLOOKUP(W72,ATS!$T:$U,2,FALSE),0) -> 285 | K72: 50+ | L72: =IFERROR(VLOOKUP(W72,ATS!$T:$V,3,FALSE),0) -> 285 | M72: 50+ | N72: 0% | O72: 0% | P72: =VLOOKUP($C72,Prices!$A$3:$T$1996,MATCH('2) Order Form'!P$8,Prices!$A$2:$T$2,0),FALSE) -> 125.00 | Q72: =VLOOKUP($C72,Prices!$A$3:$T$1996,MATCH('2) Order Form'!Q$8,Prices!$A$2:$T$2,0),FALSE) -> 249.95 | R72: 0 | S72: 0 | T72: 0 | U72: 0% | W72: 7048652186287 | Y72: 0 | Z72: 0 | AA72: 3 | AB72: 0 | AC72: 0 | AD72: 840053Gloss White | AE72: 840053 | AF72: =VLOOKUP($C72,Classification!$A:$F,5,FALSE) -> 0.000 | AG72: =VLOOKUP($C72,Classification!$A:$F,6,FALSE) -> 1 | AH72: =INDEX(ATS!$A:$U,MATCH('2) Order Form'!$W72,ATS!$T:$T,0),7) -> Active
A73: 1 | B73: =VLOOKUP(A73,Classification!$H$2:$I$11,2,FALSE) -> Helmets & Helmet Acc. | C73: =INDEX(ATS!$A:$U,MATCH('2) Order Form'!$W73,ATS!$T:$T,0),1) -> 840053 | D73: =INDEX(ATS!$A:$U,MATCH('2) Order Form'!$W73,ATS!$T:$T,0),2) -> Switcher Mips Helmet | E73: =INDEX(ATS!$A:$U,MATCH('2) Order Form'!$W73,ATS!$T:$T,0),4) -> GSWHT-XXL | F73: =INDEX(ATS!$A:$U,MATCH('2) Order Form'!$W73,ATS!$T:$T,0),5) -> Gloss White | G73: =INDEX(ATS!$A:$U,MATCH('2) Order Form'!$W73,ATS!$T:$T,0),6) -> XXL | H73: =INDEX(Packs!$A:$V,MATCH('2) Order Form'!$W73,Packs!$W:$W,0),22) -> 1 | I73: 0 | J73: =IFERROR(VLOOKUP(W73,ATS!$T:$U,2,FALSE),0) -> 76 | K73: 50+ | L73: =IFERROR(VLOOKUP(W73,ATS!$T:$V,3,FALSE),0) -> 76 | M73: 50+ | N73: 0% | O73: 0% | P73: =VLOOKUP($C73,Prices!$A$3:$T$1996,MATCH('2) Order Form'!P$8,Prices!$A$2:$T$2,0),FALSE) -> 125.00 | Q73: =VLOOKUP($C73,Prices!$A$3:$T$1996,MATCH('2) Order Form'!Q$8,Prices!$A$2:$T$2,0),FALSE) -> 249.95 | R73: 0 | S73: 0 | T73: 0 | U73: =IFERROR(I73/SUMIF($AD$9:$AD$888,AD73,$I$9:$I$888),0) -> 0% | W73: 7048652607690 | Y73: 0 | Z73: 0 | AA73: 3 | AB73: 0 | AC73: 0 | AD73: 840053Gloss White | AE73: 840053 | AF73: =VLOOKUP($C73,Classification!$A:$F,5,FALSE) -> 0.000 | AG73: =VLOOKUP($C73,Classification!$A:$F,6,FALSE) -> 1 | AH73: =INDEX(ATS!$A:$U,MATCH('2) Order Form'!$W73,ATS!$T:$T,0),7) -> Active
A74: 1 | B74: =VLOOKUP(A74,Classification!$H$2:$I$11,2,FALSE) -> Helmets & Helmet Acc. | C74: =INDEX(ATS!$A:$U,MATCH('2) Order Form'!$W74,ATS!$T:$T,0),1) -> 840053 | D74: =INDEX(ATS!$A:$U,MATCH('2) Order Form'!$W74,ATS!$T:$T,0),2) -> Switcher Mips Helmet | E74: =INDEX(ATS!$A:$U,MATCH('2) Order Form'!$W74,ATS!$T:$T,0),4) -> DPUMC-SM | F74: =INDEX(ATS!$A:$U,MATCH('2) Order Form'!$W74,ATS!$T:$T,0),5) -> Deep Purple Metallic | G74: =INDEX(ATS!$A:$U,MATCH('2) Order Form'!$W74,ATS!$T:$T,0),6) -> SM | H74: =INDEX(Packs!$A:$V,MATCH('2) Order Form'!$W74,Packs!$W:$W,0),22) -> 1 | I74: 0 | J74: =IFERROR(VLOOKUP(W74,ATS!$T:$U,2,FALSE),0) -> 11 | K74: =IF(J74=99999,"OPEN",IF(J74>50,"50+",IF(J74<=0,"0",J74))) -> 11 | L74: =IFERROR(VLOOKUP(W74,ATS!$T:$V,3,FALSE),0) -> 11 | M74: =IF(L74=99999,"OPEN",IF(L74>50,"50+",IF(L74<=0,"0",L74))) -> 11 | N74: 0% | O74: 0% | P74: =VLOOKUP($C74,Prices!$A$3:$T$1996,MATCH('2) Order Form'!P$8,Prices!$A$2:$T$2,0),FALSE) -> 125.00 | Q74: =VLOOKUP($C74,Prices!$A$3:$T$1996,MATCH('2) Order Form'!Q$8,Prices!$A$2:$T$2,0),FALSE) -> 249.95 | R74: =I74*P74 -> 0 | S74: =R74*O74 -> 0 | T74: =R74-S74 -> 0 | U74: 0% | W74: 7048652822628 | Y74: 0 | Z74: 0 | AA74: 3 | AB74: 0 | AC74: 1 | AD74: 840053Deep Purple Metallic | AE74: 840053 | AF74: =VLOOKUP($C74,Classification!$A:$F,5,FALSE) -> 0.000 | AG74: =VLOOKUP($C74,Classification!$A:$F,6,FALSE) -> 1 | AH74: =INDEX(ATS!$A:$U,MATCH('2) Order Form'!$W74,ATS!$T:$T,0),7) -> Stock
A75: 1 | B75: =VLOOKUP(A75,Classification!$H$2:$I$11,2,FALSE) -> Helmets & Helmet Acc. | C75: =INDEX(ATS!$A:$U,MATCH('2) Order Form'!$W75,ATS!$T:$T,0),1) -> 840053 | D75: =INDEX(ATS!$A:$U,MATCH('2) Order Form'!$W75,ATS!$T:$T,0),2) -> Switcher Mips Helmet | E75: =INDEX(ATS!$A:$U,MATCH('2) Order Form'!$W75,ATS!$T:$T,0),4) -> DPUMC-ML | F75: =INDEX(ATS!$A:$U,MATCH('2) Order Form'!$W75,ATS!$T:$T,0),5) -> Deep Purple Metallic | G75: =INDEX(ATS!$A:$U,MATCH('2) Order Form'!$W75,ATS!$T:$T,0),6) -> ML | H75: =INDEX(Packs!$A:$V,MATCH('2) Order Form'!$W75,Packs!$W:$W,0),22) -> 1 | I75: 0 | J75: =IFERROR(VLOOKUP(W75,ATS!$T:$U,2,FALSE),0) -> 78 | K75: 50+ | L75: =IFERROR(VLOOKUP(W75,ATS!$T:$V,3,FALSE),0) -> 78 | M75: 50+ | N75: 0% | O75: =IF(N75<>0,N75,$P$5) -> 0% | P75: =VLOOKUP($C75,Prices!$A$3:$T$1996,MATCH('2) Order Form'!P$8,Prices!$A$2:$T$2,0),FALSE) -> 125.00 | Q75: =VLOOKUP($C75,Prices!$A$3:$T$1996,MATCH('2) Order Form'!Q$8,Prices!$A$2:$T$2,0),FALSE) -> 249.95 | R75: 0 | S75: 0 | T75: 0 | U75: 0% | W75: 7048652822611 | Y75: 0 | Z75: 0 | AA75: =IF(C75=OFFSET(C75,-1,0),OFFSET(AA75,-1,0),OFFSET(AA75,-1,0)+1) -> 3 | AB75: 0 | AC75: 0 | AD75: 840053Deep Purple Metallic | AE75: 840053 | AF75: =VLOOKUP($C75,Classification!$A:$F,5,FALSE) -> 0.000 | AG75: =VLOOKUP($C75,Classification!$A:$F,6,FALSE) -> 1 | AH75: =INDEX(ATS!$A:$U,MATCH('2) Order Form'!$W75,ATS!$T:$T,0),7) -> Stock
A76: 1 | B76: =VLOOKUP(A76,Classification!$H$2:$I$11,2,FALSE) -> Helmets & Helmet Acc. | C76: =INDEX(ATS!$A:$U,MATCH('2) Order Form'!$W76,ATS!$T:$T,0),1) -> 840053 | D76: =INDEX(ATS!$A:$U,MATCH('2) Order Form'!$W76,ATS!$T:$T,0),2) -> Switcher Mips Helmet | E76: =INDEX(ATS!$A:$U,MATCH('2) Order Form'!$W76,ATS!$T:$T,0),4) -> DPUMC-LXL | F76: =INDEX(ATS!$A:$U,MATCH('2) Order Form'!$W76,ATS!$T:$T,0),5) -> Deep Purple Metallic | G76: =INDEX(ATS!$A:$U,MATCH('2) Order Form'!$W76,ATS!$T:$T,0),6) -> LXL | H76: =INDEX(Packs!$A:$V,MATCH('2) Order Form'!$W76,Packs!$W:$W,0),22) -> 1 | I76: 0 | J76: =IFERROR(VLOOKUP(W76,ATS!$T:$U,2,FALSE),0) -> 97 | K76: 50+ | L76: =IFERROR(VLOOKUP(W76,ATS!$T:$V,3,FALSE),0) -> 97 | M76: 50+ | N76: 0% | O76: 0% | P76: =VLOOKUP($C76,Prices!$A$3:$T$1996,MATCH('2) Order Form'!P$8,Prices!$A$2:$T$2,0),FALSE) -> 125.00 | Q76: =VLOOKUP($C76,Prices!$A$3:$T$1996,MATCH('2) Order Form'!Q$8,Prices!$A$2:$T$2,0),FALSE) -> 249.95 | R76: 0 | S76: 0 | T76: 0 | U76: 0% | W76: 7048652822604 | Y76: 0 | Z76: 0 | AA76: 3 | AB76: 0 | AC76: 0 | AD76: 840053Deep Purple Metallic | AE76: 840053 | AF76: =VLOOKUP($C76,Classification!$A:$F,5,FALSE) -> 0.000 | AG76: =VLOOKUP($C76,Classification!$A:$F,6,FALSE) -> 1 | AH76: =INDEX(ATS!$A:$U,MATCH('2) Order Form'!$W76,ATS!$T:$T,0),7) -> Stock
A77: 1 | B77: =VLOOKUP(A77,Classification!$H$2:$I$11,2,FALSE) -> Helmets & Helmet Acc. | C77: =INDEX(ATS!$A:$U,MATCH('2) Order Form'!$W77,ATS!$T:$T,0),1) -> 840053 | D77: =INDEX(ATS!$A:$U,MATCH('2) Order Form'!$W77,ATS!$T:$T,0),2) -> Switcher Mips Helmet | E77: =INDEX(ATS!$A:$U,MATCH('2) Order Form'!$W77,ATS!$T:$T,0),4) -> DPUMC-XXL | F77: =INDEX(ATS!$A:$U,MATCH('2) Order Form'!$W77,ATS!$T:$T,0),5) -> Deep Purple Metallic | G77: =INDEX(ATS!$A:$U,MATCH('2) Order Form'!$W77,ATS!$T:$T,0),6) -> XXL | H77: =INDEX(Packs!$A:$V,MATCH('2) Order Form'!$W77,Packs!$W:$W,0),22) -> 1 | I77: 0 | J77: =IFERROR(VLOOKUP(W77,ATS!$T:$U,2,FALSE),0) -> 35 | K77: =IF(J77=99999,"OPEN",IF(J77>50,"50+",IF(J77<=0,"0",J77))) -> 35 | L77: =IFERROR(VLOOKUP(W77,ATS!$T:$V,3,FALSE),0) -> 35 | M77: =IF(L77=99999,"OPEN",IF(L77>50,"50+",IF(L77<=0,"0",L77))) -> 35 | N77: 0% | O77: =IF(N77<>0,N77,$P$5) -> 0% | P77: =VLOOKUP($C77,Prices!$A$3:$T$1996,MATCH('2) Order Form'!P$8,Prices!$A$2:$T$2,0),FALSE) -> 125.00 | Q77: =VLOOKUP($C77,Prices!$A$3:$T$1996,MATCH('2) Order Form'!Q$8,Prices!$A$2:$T$2,0),FALSE) -> 249.95 | R77: =I77*P77 -> 0 | S77: =R77*O77 -> 0 | T77: =R77-S77 -> 0 | U77: 0% | W77: 7048652822635 | Y77: =I77*Q77 -> 0 | Z77: =IF(A77=OFFSET(A77,-1,0),0,1) -> 0 | AA77: =IF(C77=OFFSET(C77,-1,0),OFFSET(AA77,-1,0),OFFSET(AA77,-1,0)+1) -> 3 | AB77: =IF(C77=OFFSET(C77,-1,0),0,1) -> 0 | AC77: =IF(F77=OFFSET(F77,-1,0),0,1) -> 0 | AD77: =CONCATENATE(C77,F77) -> 840053Deep Purple Metallic | AE77: =IFERROR(IF(B77="EYEWEAR",CONCATENATE(C77,"-",G77),C77),C77) -> 840053 | AF77: =VLOOKUP($C77,Classification!$A:$F,5,FALSE) -> 0.000 | AG77: =VLOOKUP($C77,Classification!$A:$F,6,FALSE) -> 1 | AH77: =INDEX(ATS!$A:$U,MATCH('2) Order Form'!$W77,ATS!$T:$T,0),7) -> Stock
A78: 1 | B78: =VLOOKUP(A78,Classification!$H$2:$I$11,2,FALSE) -> Helmets & Helmet Acc. | C78: =INDEX(ATS!$A:$U,MATCH('2) Order Form'!$W78,ATS!$T:$T,0),1) -> 840053 | D78: =INDEX(ATS!$A:$U,MATCH('2) Order Form'!$W78,ATS!$T:$T,0),2) -> Switcher Mips Helmet | E78: =INDEX(ATS!$A:$U,MATCH('2) Order Form'!$W78,ATS!$T:$T,0),4) -> MASEM-SM | F78: =INDEX(ATS!$A:$U,MATCH('2) Order Form'!$W78,ATS!$T:$T,0),5) -> Matte Sea Metallic | G78: =INDEX(ATS!$A:$U,MATCH('2) Order Form'!$W78,ATS!$T:$T,0),6) -> SM | H78: =INDEX(Packs!$A:$V,MATCH('2) Order Form'!$W78,Packs!$W:$W,0),22) -> 1 | I78: 0 | J78: =IFERROR(VLOOKUP(W78,ATS!$T:$U,2,FALSE),0) -> 168 | K78: 50+ | L78: =IFERROR(VLOOKUP(W78,ATS!$T:$V,3,FALSE),0) -> 168 | M78: 50+ | N78: 0% | O78: 0% | P78: =VLOOKUP($C78,Prices!$A$3:$T$1996,MATCH('2) Order Form'!P$8,Prices!$A$2:$T$2,0),FALSE) -> 125.00 | Q78: =VLOOKUP($C78,Prices!$A$3:$T$1996,MATCH('2) Order Form'!Q$8,Prices!$A$2:$T$2,0),FALSE) -> 249.95 | R78: 0 | S78: 0 | T78: 0 | U78: 0% | W78: 7048652822666 | Y78: =I78*Q78 -> 0 | Z78: =IF(A78=OFFSET(A78,-1,0),0,1) -> 0 | AA78: 3 | AB78: =IF(C78=OFFSET(C78,-1,0),0,1) -> 0 | AC78: =IF(F78=OFFSET(F78,-1,0),0,1) -> 1 | AD78: =CONCATENATE(C78,F78) -> 840053Matte Sea Metallic | AE78: =IFERROR(IF(B78="EYEWEAR",CONCATENATE(C78,"-",G78),C78),C78) -> 840053 | AF78: =VLOOKUP($C78,Classification!$A:$F,5,FALSE) -> 0.000 | AG78: =VLOOKUP($C78,Classification!$A:$F,6,FALSE) -> 1 | AH78: =INDEX(ATS!$A:$U,MATCH('2) Order Form'!$W78,ATS!$T:$T,0),7) -> Active
A79: 1 | B79: =VLOOKUP(A79,Classification!$H$2:$I$11,2,FALSE) -> Helmets & Helmet Acc. | C79: =INDEX(ATS!$A:$U,MATCH('2) Order Form'!$W79,ATS!$T:$T,0),1) -> 840053 | D79: =INDEX(ATS!$A:$U,MATCH('2) Order Form'!$W79,ATS!$T:$T,0),2) -> Switcher Mips Helmet | E79: =INDEX(ATS!$A:$U,MATCH('2) Order Form'!$W79,ATS!$T:$T,0),4) -> MASEM-ML | F79: =INDEX(ATS!$A:$U,MATCH('2) Order Form'!$W79,ATS!$T:$T,0),5) -> Matte Sea Metallic | G79: =INDEX(ATS!$A:$U,MATCH('2) Order Form'!$W79,ATS!$T:$T,0),6) -> ML | H79: =INDEX(Packs!$A:$V,MATCH('2) Order Form'!$W79,Packs!$W:$W,0),22) -> 1 | I79: 0 | J79: =IFERROR(VLOOKUP(W79,ATS!$T:$U,2,FALSE),0) -> 273 | K79: 50+ | L79: =IFERROR(VLOOKUP(W79,ATS!$T:$V,3,FALSE),0) -> 273 | M79: 50+ | N79: 0% | O79: 0% | P79: =VLOOKUP($C79,Prices!$A$3:$T$1996,MATCH('2) Order Form'!P$8,Prices!$A$2:$T$2,0),FALSE) -> 125.00 | Q79: =VLOOKUP($C79,Prices!$A$3:$T$1996,MATCH('2) Order Form'!Q$8,Prices!$A$2:$T$2,0),FALSE) -> 249.95 | R79: 0 | S79: 0 | T79: 0 | U79: 0% | W79: 7048652822659 | Y79: 0 | Z79: 0 | AA79: 3 | AB79: 0 | AC79: 0 | AD79: 840053Matte Sea Metallic | AE79: 840053 | AF79: =VLOOKUP($C79,Classification!$A:$F,5,FALSE) -> 0.000 | AG79: =VLOOKUP($C79,Classification!$A:$F,6,FALSE) -> 1 | AH79: =INDEX(ATS!$A:$U,MATCH('2) Order Form'!$W79,ATS!$T:$T,0),7) -> Active
A80: 1 | B80: =VLOOKUP(A80,Classification!$H$2:$I$11,2,FALSE) -> Helmets & Helmet Acc. | C80: =INDEX(ATS!$A:$U,MATCH('2) Order Form'!$W80,ATS!$T:$T,0),1) -> 840053 | D80: =INDEX(ATS!$A:$U,MATCH('2) Order Form'!$W80,ATS!$T:$T,0),2) -> Switcher Mips Helmet | E80: =INDEX(ATS!$A:$U,MATCH('2) Order Form'!$W80,ATS!$T:$T,0),4) -> MASEM-LXL | F80: =INDEX(ATS!$A:$U,MATCH('2) Order Form'!$W80,ATS!$T:$T,0),5) -> Matte Sea Metallic | G80: =INDEX(ATS!$A:$U,MATCH('2) Order Form'!$W80,ATS!$T:$T,0),6) -> LXL | H80: =INDEX(Packs!$A:$V,MATCH('2) Order Form'!$W80,Packs!$W:$W,0),22) -> 1 | I80: 0 | J80: =IFERROR(VLOOKUP(W80,ATS!$T:$U,2,FALSE),0) -> 176 | K80: 50+ | L80: =IFERROR(VLOOKUP(W80,ATS!$T:$V,3,FALSE),0) -> 176 | M80: 50+ | N80: 0% | O80: 0% | P80: =VLOOKUP($C80,Prices!$A$3:$T$1996,MATCH('2) Order Form'!P$8,Prices!$A$2:$T$2,0),FALSE) -> 125.00 | Q80: =VLOOKUP($C80,Prices!$A$3:$T$1996,MATCH('2) Order Form'!Q$8,Prices!$A$2:$T$2,0),FALSE) -> 249.95 | R80: 0 | S80: 0 | T80: 0 | U80: 0% | W80: 7048652822642 | Y80: 0 | Z80: 0 | AA80: 3 | AB80: 0 | AC80: 0 | AD80: 840053Matte Sea Metallic | AE80: 840053 | AF80: =VLOOKUP($C80,Classification!$A:$F,5,FALSE) -> 0.000 | AG80: =VLOOKUP($C80,Classification!$A:$F,6,FALSE) -> 1 | AH80: =INDEX(ATS!$A:$U,MATCH('2) Order Form'!$W80,ATS!$T:$T,0),7) -> Active
A81: 1 | B81: =VLOOKUP(A81,Classification!$H$2:$I$11,2,FALSE) -> Helmets & Helmet Acc. | C81: =INDEX(ATS!$A:$U,MATCH('2) Order Form'!$W81,ATS!$T:$T,0),1) -> 840053 | D81: =INDEX(ATS!$A:$U,MATCH('2) Order Form'!$W81,ATS!$T:$T,0),2) -> Switcher Mips Helmet | E81: =INDEX(ATS!$A:$U,MATCH('2) Order Form'!$W81,ATS!$T:$T,0),4) -> MASEM-XXL | F81: =INDEX(ATS!$A:$U,MATCH('2) Order Form'!$W81,ATS!$T:$T,0),5) -> Matte Sea Metallic | G81: =INDEX(ATS!$A:$U,MATCH('2) Order Form'!$W81,ATS!$T:$T,0),6) -> XXL | H81: =INDEX(Packs!$A:$V,MATCH('2) Order Form'!$W81,Packs!$W:$W,0),22) -> 1 | I81: 0 | J81: =IFERROR(VLOOKUP(W81,ATS!$T:$U,2,FALSE),0) -> 41 | K81: =IF(J81=99999,"OPEN",IF(J81>50,"50+",IF(J81<=0,"0",J81))) -> 41 | L81: =IFERROR(VLOOKUP(W81,ATS!$T:$V,3,FALSE),0) -> 41 | M81: =IF(L81=99999,"OPEN",IF(L81>50,"50+",IF(L81<=0,"0",L81))) -> 41 | N81: 0% | O81: =IF(N81<>0,N81,$P$5) -> 0% | P81: =VLOOKUP($C81,Prices!$A$3:$T$1996,MATCH('2) Order Form'!P$8,Prices!$A$2:$T$2,0),FALSE) -> 125.00 | Q81: =VLOOKUP($C81,Prices!$A$3:$T$1996,MATCH('2) Order Form'!Q$8,Prices!$A$2:$T$2,0),FALSE) -> 249.95 | R81: =I81*P81 -> 0 | S81: =R81*O81 -> 0 | T81: =R81-S81 -> 0 | U81: 0% | W81: 7048652822673 | Y81: =I81*Q81 -> 0 | Z81: =IF(A81=OFFSET(A81,-1,0),0,1) -> 0 | AA81: =IF(C81=OFFSET(C81,-1,0),OFFSET(AA81,-1,0),OFFSET(AA81,-1,0)+1) -> 3 | AB81: =IF(C81=OFFSET(C81,-1,0),0,1) -> 0 | AC81: =IF(F81=OFFSET(F81,-1,0),0,1) -> 0 | AD81: =CONCATENATE(C81,F81) -> 840053Matte Sea Metallic | AE81: =IFERROR(IF(B81="EYEWEAR",CONCATENATE(C81,"-",G81),C81),C81) -> 840053 | AF81: =VLOOKUP($C81,Classification!$A:$F,5,FALSE) -> 0.000 | AG81: =VLOOKUP($C81,Classification!$A:$F,6,FALSE) -> 1 | AH81: =INDEX(ATS!$A:$U,MATCH('2) Order Form'!$W81,ATS!$T:$T,0),7) -> Active
A82: 1 | B82: =VLOOKUP(A82,Classification!$H$2:$I$11,2,FALSE) -> Helmets & Helmet Acc. | C82: =INDEX(ATS!$A:$U,MATCH('2) Order Form'!$W82,ATS!$T:$T,0),1) -> 840053 | D82: =INDEX(ATS!$A:$U,MATCH('2) Order Form'!$W82,ATS!$T:$T,0),2) -> Switcher Mips Helmet | E82: =INDEX(ATS!$A:$U,MATCH('2) Order Form'!$W82,ATS!$T:$T,0),4) -> MATHM-SM | F82: =INDEX(ATS!$A:$U,MATCH('2) Order Form'!$W82,ATS!$T:$T,0),5) -> Matte Thyme Metallic | G82: =INDEX(ATS!$A:$U,MATCH('2) Order Form'!$W82,ATS!$T:$T,0),6) -> SM | H82: =INDEX(Packs!$A:$V,MATCH('2) Order Form'!$W82,Packs!$W:$W,0),22) -> 1 | I82: 0 | J82: =IFERROR(VLOOKUP(W82,ATS!$T:$U,2,FALSE),0) -> 52 | K82: 50+ | L82: =IFERROR(VLOOKUP(W82,ATS!$T:$V,3,FALSE),0) -> 52 | M82: 50+ | N82: 0% | O82: 0% | P82: =VLOOKUP($C82,Prices!$A$3:$T$1996,MATCH('2) Order Form'!P$8,Prices!$A$2:$T$2,0),FALSE) -> 125.00 | Q82: =VLOOKUP($C82,Prices!$A$3:$T$1996,MATCH('2) Order Form'!Q$8,Prices!$A$2:$T$2,0),FALSE) -> 249.95 | R82: 0 | S82: 0 | T82: 0 | U82: 0% | W82: 7048652822703 | Y82: 0 | Z82: 0 | AA82: 3 | AB82: 0 | AC82: 1 | AD82: 840053Matte Thyme Metallic | AE82: 840053 | AF82: =VLOOKUP($C82,Classification!$A:$F,5,FALSE) -> 0.000 | AG82: =VLOOKUP($C82,Classification!$A:$F,6,FALSE) -> 1 | AH82: =INDEX(ATS!$A:$U,MATCH('2) Order Form'!$W82,ATS!$T:$T,0),7) -> Stock
A83: 1 | B83: =VLOOKUP(A83,Classification!$H$2:$I$11,2,FALSE) -> Helmets & Helmet Acc. | C83: =INDEX(ATS!$A:$U,MATCH('2) Order Form'!$W83,ATS!$T:$T,0),1) -> 840053 | D83: =INDEX(ATS!$A:$U,MATCH('2) Order Form'!$W83,ATS!$T:$T,0),2) -> Switcher Mips Helmet | E83: =INDEX(ATS!$A:$U,MATCH('2) Order Form'!$W83,ATS!$T:$T,0),4) -> MATHM-ML | F83: =INDEX(ATS!$A:$U,MATCH('2) Order Form'!$W83,ATS!$T:$T,0),5) -> Matte Thyme Metallic | G83: =INDEX(ATS!$A:$U,MATCH('2) Order Form'!$W83,ATS!$T:$T,0),6) -> ML | H83: =INDEX(Packs!$A:$V,MATCH('2) Order Form'!$W83,Packs!$W:$W,0),22) -> 1 | I83: 0 | J83: =IFERROR(VLOOKUP(W83,ATS!$T:$U,2,FALSE),0) -> 33 | K83: 33 | L83: =IFERROR(VLOOKUP(W83,ATS!$T:$V,3,FALSE),0) -> 33 | M83: 33 | N83: 0% | O83: 0% | P83: =VLOOKUP($C83,Prices!$A$3:$T$1996,MATCH('2) Order Form'!P$8,Prices!$A$2:$T$2,0),FALSE) -> 125.00 | Q83: =VLOOKUP($C83,Prices!$A$3:$T$1996,MATCH('2) Order Form'!Q$8,Prices!$A$2:$T$2,0),FALSE) -> 249.95 | R83: 0 | S83: 0 | T83: 0 | U83: 0% | W83: 7048652822697 | Y83: 0 | Z83: 0 | AA83: 3 | AB83: 0 | AC83: 0 | AD83: 840053Matte Thyme Metallic | AE83: 840053 | AF83: =VLOOKUP($C83,Classification!$A:$F,5,FALSE) -> 0.000 | AG83: =VLOOKUP($C83,Classification!$A:$F,6,FALSE) -> 1 | AH83: =INDEX(ATS!$A:$U,MATCH('2) Order Form'!$W83,ATS!$T:$T,0),7) -> Stock
A84: 1 | B84: =VLOOKUP(A84,Classification!$H$2:$I$11,2,FALSE) -> Helmets & Helmet Acc. | C84: =INDEX(ATS!$A:$U,MATCH('2) Order Form'!$W84,ATS!$T:$T,0),1) -> 840053 | D84: =INDEX(ATS!$A:$U,MATCH('2) Order Form'!$W84,ATS!$T:$T,0),2) -> Switcher Mips Helmet | E84: =INDEX(ATS!$A:$U,MATCH('2) Order Form'!$W84,ATS!$T:$T,0),4) -> MATHM-LXL | F84: =INDEX(ATS!$A:$U,MATCH('2) Order Form'!$W84,ATS!$T:$T,0),5) -> Matte Thyme Metallic | G84: =INDEX(ATS!$A:$U,MATCH('2) Order Form'!$W84,ATS!$T:$T,0),6) -> LXL | H84: =INDEX(Packs!$A:$V,MATCH('2) Order Form'!$W84,Packs!$W:$W,0),22) -> 1 | I84: 0 | J84: =IFERROR(VLOOKUP(W84,ATS!$T:$U,2,FALSE),0) -> 90 | K84: 50+ | L84: =IFERROR(VLOOKUP(W84,ATS!$T:$V,3,FALSE),0) -> 90 | M84: 50+ | N84: 0% | O84: 0% | P84: =VLOOKUP($C84,Prices!$A$3:$T$1996,MATCH('2) Order Form'!P$8,Prices!$A$2:$T$2,0),FALSE) -> 125.00 | Q84: =VLOOKUP($C84,Prices!$A$3:$T$1996,MATCH('2) Order Form'!Q$8,Prices!$A$2:$T$2,0),FALSE) -> 249.95 | R84: 0 | S84: 0 | T84: 0 | U84: 0% | W84: 7048652822680 | Y84: 0 | Z84: 0 | AA84: 3 | AB84: 0 | AC84: 0 | AD84: 840053Matte Thyme Metallic | AE84: 840053 | AF84: =VLOOKUP($C84,Classification!$A:$F,5,FALSE) -> 0.000 | AG84: =VLOOKUP($C84,Classification!$A:$F,6,FALSE) -> 1 | AH84: =INDEX(ATS!$A:$U,MATCH('2) Order Form'!$W84,ATS!$T:$T,0),7) -> Stock
A85: 1 | B85: =VLOOKUP(A85,Classification!$H$2:$I$11,2,FALSE) -> Helmets & Helmet Acc. | C85: =INDEX(ATS!$A:$U,MATCH('2) Order Form'!$W85,ATS!$T:$T,0),1) -> 840053 | D85: =INDEX(ATS!$A:$U,MATCH('2) Order Form'!$W85,ATS!$T:$T,0),2) -> Switcher Mips Helmet | E85: =INDEX(ATS!$A:$U,MATCH('2) Order Form'!$W85,ATS!$T:$T,0),4) -> MATHM-XXL | F85: =INDEX(ATS!$A:$U,MATCH('2) Order Form'!$W85,ATS!$T:$T,0),5) -> Matte Thyme Metallic | G85: =INDEX(ATS!$A:$U,MATCH('2) Order Form'!$W85,ATS!$T:$T,0),6) -> XXL | H85: =INDEX(Packs!$A:$V,MATCH('2) Order Form'!$W85,Packs!$W:$W,0),22) -> 1 | I85: 0 | J85: =IFERROR(VLOOKUP(W85,ATS!$T:$U,2,FALSE),0) -> 13 | K85: =IF(J85=99999,"OPEN",IF(J85>50,"50+",IF(J85<=0,"0",J85))) -> 13 | L85: =IFERROR(VLOOKUP(W85,ATS!$T:$V,3,FALSE),0) -> 13 | M85: =IF(L85=99999,"OPEN",IF(L85>50,"50+",IF(L85<=0,"0",L85))) -> 13 | N85: 0% | O85: =IF(N85<>0,N85,$P$5) -> 0% | P85: =VLOOKUP($C85,Prices!$A$3:$T$1996,MATCH('2) Order Form'!P$8,Prices!$A$2:$T$2,0),FALSE) -> 125.00 | Q85: =VLOOKUP($C85,Prices!$A$3:$T$1996,MATCH('2) Order Form'!Q$8,Prices!$A$2:$T$2,0),FALSE) -> 249.95 | R85: =I85*P85 -> 0 | S85: =R85*O85 -> 0 | T85: =R85-S85 -> 0 | U85: 0% | W85: 7048652822710 | Y85: =I85*Q85 -> 0 | Z85: =IF(A85=OFFSET(A85,-1,0),0,1) -> 0 | AA85: =IF(C85=OFFSET(C85,-1,0),OFFSET(AA85,-1,0),OFFSET(AA85,-1,0)+1) -> 3 | AB85: =IF(C85=OFFSET(C85,-1,0),0,1) -> 0 | AC85: =IF(F85=OFFSET(F85,-1,0),0,1) -> 0 | AD85: =CONCATENATE(C85,F85) -> 840053Matte Thyme Metallic | AE85: =IFERROR(IF(B85="EYEWEAR",CONCATENATE(C85,"-",G85),C85),C85) -> 840053 | AF85: =VLOOKUP($C85,Classification!$A:$F,5,FALSE) -> 0.000 | AG85: =VLOOKUP($C85,Classification!$A:$F,6,FALSE) -> 1 | AH85: =INDEX(ATS!$A:$U,MATCH('2) Order Form'!$W85,ATS!$T:$T,0),7) -> Stock
A86: 1 | B86: =VLOOKUP(A86,Classification!$H$2:$I$11,2,FALSE) -> Helmets & Helmet Acc. | C86: =INDEX(ATS!$A:$U,MATCH('2) Order Form'!$W86,ATS!$T:$T,0),1) -> 840053 | D86: =INDEX(ATS!$A:$U,MATCH('2) Order Form'!$W86,ATS!$T:$T,0),2) -> Switcher Mips Helmet | E86: =INDEX(ATS!$A:$U,MATCH('2) Order Form'!$W86,ATS!$T:$T,0),4) -> MBUOE-SM | F86: =INDEX(ATS!$A:$U,MATCH('2) Order Form'!$W86,ATS!$T:$T,0),5) -> Matte Burning Orange | G86: =INDEX(ATS!$A:$U,MATCH('2) Order Form'!$W86,ATS!$T:$T,0),6) -> SM | H86: =INDEX(Packs!$A:$V,MATCH('2) Order Form'!$W86,Packs!$W:$W,0),22) -> 1 | I86: 0 | J86: =IFERROR(VLOOKUP(W86,ATS!$T:$U,2,FALSE),0) -> 36 | K86: 36 | L86: =IFERROR(VLOOKUP(W86,ATS!$T:$V,3,FALSE),0) -> 36 | M86: 36 | N86: 0% | O86: 0% | P86: =VLOOKUP($C86,Prices!$A$3:$T$1996,MATCH('2) Order Form'!P$8,Prices!$A$2:$T$2,0),FALSE) -> 125.00 | Q86: =VLOOKUP($C86,Prices!$A$3:$T$1996,MATCH('2) Order Form'!Q$8,Prices!$A$2:$T$2,0),FALSE) -> 249.95 | R86: 0 | S86: 0 | T86: 0 | U86: 0% | W86: 7048652822741 | Y86: 0 | Z86: 0 | AA86: 3 | AB86: 0 | AC86: 1 | AD86: 840053Matte Burning Orange | AE86: 840053 | AF86: =VLOOKUP($C86,Classification!$A:$F,5,FALSE) -> 0.000 | AG86: =VLOOKUP($C86,Classification!$A:$F,6,FALSE) -> 1 | AH86: =INDEX(ATS!$A:$U,MATCH('2) Order Form'!$W86,ATS!$T:$T,0),7) -> Active
A87: 1 | B87: =VLOOKUP(A87,Classification!$H$2:$I$11,2,FALSE) -> Helmets & Helmet Acc. | C87: =INDEX(ATS!$A:$U,MATCH('2) Order Form'!$W87,ATS!$T:$T,0),1) -> 840053 | D87: =INDEX(ATS!$A:$U,MATCH('2) Order Form'!$W87,ATS!$T:$T,0),2) -> Switcher Mips Helmet | E87: =INDEX(ATS!$A:$U,MATCH('2) Order Form'!$W87,ATS!$T:$T,0),4) -> MBUOE-ML | F87: =INDEX(ATS!$A:$U,MATCH('2) Order Form'!$W87,ATS!$T:$T,0),5) -> Matte Burning Orange | G87: =INDEX(ATS!$A:$U,MATCH('2) Order Form'!$W87,ATS!$T:$T,0),6) -> ML | H87: =INDEX(Packs!$A:$V,MATCH('2) Order Form'!$W87,Packs!$W:$W,0),22) -> 1 | I87: 0 | J87: =IFERROR(VLOOKUP(W87,ATS!$T:$U,2,FALSE),0) -> 45 | K87: 45 | L87: =IFERROR(VLOOKUP(W87,ATS!$T:$V,3,FALSE),0) -> 45 | M87: 45 | N87: 0% | O87: 0% | P87: =VLOOKUP($C87,Prices!$A$3:$T$1996,MATCH('2) Order Form'!P$8,Prices!$A$2:$T$2,0),FALSE) -> 125.00 | Q87: =VLOOKUP($C87,Prices!$A$3:$T$1996,MATCH('2) Order Form'!Q$8,Prices!$A$2:$T$2,0),FALSE) -> 249.95 | R87: 0 | S87: 0 | T87: 0 | U87: 0% | W87: 7048652822734 | Y87: 0 | Z87: 0 | AA87: 3 | AB87: 0 | AC87: 0 | AD87: 840053Matte Burning Orange | AE87: 840053 | AF87: =VLOOKUP($C87,Classification!$A:$F,5,FALSE) -> 0.000 | AG87: =VLOOKUP($C87,Classification!$A:$F,6,FALSE) -> 1 | AH87: =INDEX(ATS!$A:$U,MATCH('2) Order Form'!$W87,ATS!$T:$T,0),7) -> Active
A88: 1 | B88: =VLOOKUP(A88,Classification!$H$2:$I$11,2,FALSE) -> Helmets & Helmet Acc. | C88: =INDEX(ATS!$A:$U,MATCH('2) Order Form'!$W88,ATS!$T:$T,0),1) -> 840053 | D88: =INDEX(ATS!$A:$U,MATCH('2) Order Form'!$W88,ATS!$T:$T,0),2) -> Switcher Mips Helmet | E88: =INDEX(ATS!$A:$U,MATCH('2) Order Form'!$W88,ATS!$T:$T,0),4) -> MBUOE-LXL | F88: =INDEX(ATS!$A:$U,MATCH('2) Order Form'!$W88,ATS!$T:$T,0),5) -> Matte Burning Orange | G88: =INDEX(ATS!$A:$U,MATCH('2) Order Form'!$W88,ATS!$T:$T,0),6) -> LXL | H88: =INDEX(Packs!$A:$V,MATCH('2) Order Form'!$W88,Packs!$W:$W,0),22) -> 1 | I88: 0 | J88: =IFERROR(VLOOKUP(W88,ATS!$T:$U,2,FALSE),0) -> 59 | K88: 50+ | L88: =IFERROR(VLOOKUP(W88,ATS!$T:$V,3,FALSE),0) -> 59 | M88: 50+ | N88: 0% | O88: =IF(N88<>0,N88,$P$5) -> 0% | P88: =VLOOKUP($C88,Prices!$A$3:$T$1996,MATCH('2) Order Form'!P$8,Prices!$A$2:$T$2,0),FALSE) -> 125.00 | Q88: =VLOOKUP($C88,Prices!$A$3:$T$1996,MATCH('2) Order Form'!Q$8,Prices!$A$2:$T$2,0),FALSE) -> 249.95 | R88: 0 | S88: 0 | T88: 0 | U88: 0% | W88: 7048652822727 | Y88: =I88*Q88 -> 0 | Z88: =IF(A88=OFFSET(A88,-1,0),0,1) -> 0 | AA88: 3 | AB88: =IF(C88=OFFSET(C88,-1,0),0,1) -> 0 | AC88: =IF(F88=OFFSET(F88,-1,0),0,1) -> 0 | AD88: =CONCATENATE(C88,F88) -> 840053Matte Burning Orange | AE88: =IFERROR(IF(B88="EYEWEAR",CONCATENATE(C88,"-",G88),C88),C88) -> 840053 | AF88: =VLOOKUP($C88,Classification!$A:$F,5,FALSE) -> 0.000 | AG88: =VLOOKUP($C88,Classification!$A:$F,6,FALSE) -> 1 | AH88: =INDEX(ATS!$A:$U,MATCH('2) Order Form'!$W88,ATS!$T:$T,0),7) -> Active
A89: 1 | B89: =VLOOKUP(A89,Classification!$H$2:$I$11,2,FALSE) -> Helmets & Helmet Acc. | C89: =INDEX(ATS!$A:$U,MATCH('2) Order Form'!$W89,ATS!$T:$T,0),1) -> 840053 | D89: =INDEX(ATS!$A:$U,MATCH('2) Order Form'!$W89,ATS!$T:$T,0),2) -> Switcher Mips Helmet | E89: =INDEX(ATS!$A:$U,MATCH('2) Order Form'!$W89,ATS!$T:$T,0),4) -> MBUOE-XXL | F89: =INDEX(ATS!$A:$U,MATCH('2) Order Form'!$W89,ATS!$T:$T,0),5) -> Matte Burning Orange | G89: =INDEX(ATS!$A:$U,MATCH('2) Order Form'!$W89,ATS!$T:$T,0),6) -> XXL | H89: =INDEX(Packs!$A:$V,MATCH('2) Order Form'!$W89,Packs!$W:$W,0),22) -> 1 | I89: 0 | J89: =IFERROR(VLOOKUP(W89,ATS!$T:$U,2,FALSE),0) -> 17 | K89: =IF(J89=99999,"OPEN",IF(J89>50,"50+",IF(J89<=0,"0",J89))) -> 17 | L89: =IFERROR(VLOOKUP(W89,ATS!$T:$V,3,FALSE),0) -> 17 | M89: =IF(L89=99999,"OPEN",IF(L89>50,"50+",IF(L89<=0,"0",L89))) -> 17 | N89: 0% | O89: =IF(N89<>0,N89,$P$5) -> 0% | P89: =VLOOKUP($C89,Prices!$A$3:$T$1996,MATCH('2) Order Form'!P$8,Prices!$A$2:$T$2,0),FALSE) -> 125.00 | Q89: =VLOOKUP($C89,Prices!$A$3:$T$1996,MATCH('2) Order Form'!Q$8,Prices!$A$2:$T$2,0),FALSE) -> 249.95 | R89: =I89*P89 -> 0 | S89: =R89*O89 -> 0 | T89: =R89-S89 -> 0 | U89: 0% | W89: 7048652822758 | Y89: =I89*Q89 -> 0 | Z89: =IF(A89=OFFSET(A89,-1,0),0,1) -> 0 | AA89: =IF(C89=OFFSET(C89,-1,0),OFFSET(AA89,-1,0),OFFSET(AA89,-1,0)+1) -> 3 | AB89: =IF(C89=OFFSET(C89,-1,0),0,1) -> 0 | AC89: =IF(F89=OFFSET(F89,-1,0),0,1) -> 0 | AD89: =CONCATENATE(C89,F89) -> 840053Matte Burning Orange | AE89: =IFERROR(IF(B89="EYEWEAR",CONCATENATE(C89,"-",G89),C89),C89) -> 840053 | AF89: =VLOOKUP($C89,Classification!$A:$F,5,FALSE) -> 0.000 | AG89: =VLOOKUP($C89,Classification!$A:$F,6,FALSE) -> 1 | AH89: =INDEX(ATS!$A:$U,MATCH('2) Order Form'!$W89,ATS!$T:$T,0),7) -> Active
A90: 1 | B90: =VLOOKUP(A90,Classification!$H$2:$I$11,2,FALSE) -> Helmets & Helmet Acc. | C90: =INDEX(ATS!$A:$U,MATCH('2) Order Form'!$W90,ATS!$T:$T,0),1) -> 840053 | D90: =INDEX(ATS!$A:$U,MATCH('2) Order Form'!$W90,ATS!$T:$T,0),2) -> Switcher Mips Helmet | E90: =INDEX(ATS!$A:$U,MATCH('2) Order Form'!$W90,ATS!$T:$T,0),4) -> MSHBL-SM | F90: =INDEX(ATS!$A:$U,MATCH('2) Order Form'!$W90,ATS!$T:$T,0),5) -> Matte Shadow Blue | G90: =INDEX(ATS!$A:$U,MATCH('2) Order Form'!$W90,ATS!$T:$T,0),6) -> SM | H90: =INDEX(Packs!$A:$V,MATCH('2) Order Form'!$W90,Packs!$W:$W,0),22) -> 1 | I90: 0 | J90: =IFERROR(VLOOKUP(W90,ATS!$T:$U,2,FALSE),0) -> 12 | K90: 12 | L90: =IFERROR(VLOOKUP(W90,ATS!$T:$V,3,FALSE),0) -> 12 | M90: 12 | N90: 0% | O90: 0% | P90: =VLOOKUP($C90,Prices!$A$3:$T$1996,MATCH('2) Order Form'!P$8,Prices!$A$2:$T$2,0),FALSE) -> 125.00 | Q90: =VLOOKUP($C90,Prices!$A$3:$T$1996,MATCH('2) Order Form'!Q$8,Prices!$A$2:$T$2,0),FALSE) -> 249.95 | R90: 0 | S90: 0 | T90: 0 | U90: 0% | W90: 7048652822789 | Y90: 0 | Z90: 0 | AA90: 3 | AB90: 0 | AC90: 1 | AD90: 840053Matte Shadow Blue | AE90: 840053 | AF90: =VLOOKUP($C90,Classification!$A:$F,5,FALSE) -> 0.000 | AG90: =VLOOKUP($C90,Classification!$A:$F,6,FALSE) -> 1 | AH90: =INDEX(ATS!$A:$U,MATCH('2) Order Form'!$W90,ATS!$T:$T,0),7) -> Stock
A91: 1 | B91: =VLOOKUP(A91,Classification!$H$2:$I$11,2,FALSE) -> Helmets & Helmet Acc. | C91: =INDEX(ATS!$A:$U,MATCH('2) Order Form'!$W91,ATS!$T:$T,0),1) -> 840053 | D91: =INDEX(ATS!$A:$U,MATCH('2) Order Form'!$W91,ATS!$T:$T,0),2) -> Switcher Mips Helmet | E91: =INDEX(ATS!$A:$U,MATCH('2) Order Form'!$W91,ATS!$T:$T,0),4) -> MSHBL-ML | F91: =INDEX(ATS!$A:$U,MATCH('2) Order Form'!$W91,ATS!$T:$T,0),5) -> Matte Shadow Blue | G91: =INDEX(ATS!$A:$U,MATCH('2) Order Form'!$W91,ATS!$T:$T,0),6) -> ML | H91: =INDEX(Packs!$A:$V,MATCH('2) Order Form'!$W91,Packs!$W:$W,0),22) -> 1 | I91: 0 | J91: =IFERROR(VLOOKUP(W91,ATS!$T:$U,2,FALSE),0) -> 0 | K91: 0 | L91: =IFERROR(VLOOKUP(W91,ATS!$T:$V,3,FALSE),0) -> 0 | M91: 0 | N91: 0% | O91: 0% | P91: =VLOOKUP($C91,Prices!$A$3:$T$1996,MATCH('2) Order Form'!P$8,Prices!$A$2:$T$2,0),FALSE) -> 125.00 | Q91: =VLOOKUP($C91,Prices!$A$3:$T$1996,MATCH('2) Order Form'!Q$8,Prices!$A$2:$T$2,0),FALSE) -> 249.95 | R91: 0 | S91: 0 | T91: 0 | U91: 0% | W91: 7048652822772 | Y91: 0 | Z91: 0 | AA91: 3 | AB91: 0 | AC91: 0 | AD91: 840053Matte Shadow Blue | AE91: 840053 | AF91: =VLOOKUP($C91,Classification!$A:$F,5,FALSE) -> 0.000 | AG91: =VLOOKUP($C91,Classification!$A:$F,6,FALSE) -> 1 | AH91: =INDEX(ATS!$A:$U,MATCH('2) Order Form'!$W91,ATS!$T:$T,0),7) -> Stock
A92: 1 | B92: =VLOOKUP(A92,Classification!$H$2:$I$11,2,FALSE) -> Helmets & Helmet Acc. | C92: =INDEX(ATS!$A:$U,MATCH('2) Order Form'!$W92,ATS!$T:$T,0),1) -> 840053 | D92: =INDEX(ATS!$A:$U,MATCH('2) Order Form'!$W92,ATS!$T:$T,0),2) -> Switcher Mips Helmet | E92: =INDEX(ATS!$A:$U,MATCH('2) Order Form'!$W92,ATS!$T:$T,0),4) -> MSHBL-LXL | F92: =INDEX(ATS!$A:$U,MATCH('2) Order Form'!$W92,ATS!$T:$T,0),5) -> Matte Shadow Blue | G92: =INDEX(ATS!$A:$U,MATCH('2) Order Form'!$W92,ATS!$T:$T,0),6) -> LXL | H92: =INDEX(Packs!$A:$V,MATCH('2) Order Form'!$W92,Packs!$W:$W,0),22) -> 1 | I92: 0 | J92: =IFERROR(VLOOKUP(W92,ATS!$T:$U,2,FALSE),0) -> 87 | K92: 50+ | L92: =IFERROR(VLOOKUP(W92,ATS!$T:$V,3,FALSE),0) -> 87 | M92: 50+ | N92: 0% | O92: =IF(N92<>0,N92,$P$5) -> 0% | P92: =VLOOKUP($C92,Prices!$A$3:$T$1996,MATCH('2) Order Form'!P$8,Prices!$A$2:$T$2,0),FALSE) -> 125.00 | Q92: =VLOOKUP($C92,Prices!$A$3:$T$1996,MATCH('2) Order Form'!Q$8,Prices!$A$2:$T$2,0),FALSE) -> 249.95 | R92: 0 | S92: 0 | T92: 0 | U92: 0% | W92: 7048652822765 | Y92: =I92*Q92 -> 0 | Z92: =IF(A92=OFFSET(A92,-1,0),0,1) -> 0 | AA92: 3 | AB92: =IF(C92=OFFSET(C92,-1,0),0,1) -> 0 | AC92: =IF(F92=OFFSET(F92,-1,0),0,1) -> 0 | AD92: =CONCATENATE(C92,F92) -> 840053Matte Shadow Blue | AE92: =IFERROR(IF(B92="EYEWEAR",CONCATENATE(C92,"-",G92),C92),C92) -> 840053 | AF92: =VLOOKUP($C92,Classification!$A:$F,5,FALSE) -> 0.000 | AG92: =VLOOKUP($C92,Classification!$A:$F,6,FALSE) -> 1 | AH92: =INDEX(ATS!$A:$U,MATCH('2) Order Form'!$W92,ATS!$T:$T,0),7) -> Stock
A93: 1 | B93: =VLOOKUP(A93,Classification!$H$2:$I$11,2,FALSE) -> Helmets & Helmet Acc. | C93: =INDEX(ATS!$A:$U,MATCH('2) Order Form'!$W93,ATS!$T:$T,0),1) -> 840053 | D93: =INDEX(ATS!$A:$U,MATCH('2) Order Form'!$W93,ATS!$T:$T,0),2) -> Switcher Mips Helmet | E93: =INDEX(ATS!$A:$U,MATCH('2) Order Form'!$W93,ATS!$T:$T,0),4) -> MSHBL-XXL | F93: =INDEX(ATS!$A:$U,MATCH('2) Order Form'!$W93,ATS!$T:$T,0),5) -> Matte Shadow Blue | G93: =INDEX(ATS!$A:$U,MATCH('2) Order Form'!$W93,ATS!$T:$T,0),6) -> XXL | H93: =INDEX(Packs!$A:$V,MATCH('2) Order Form'!$W93,Packs!$W:$W,0),22) -> 1 | I93: 0 | J93: =IFERROR(VLOOKUP(W93,ATS!$T:$U,2,FALSE),0) -> 3 | K93: =IF(J93=99999,"OPEN",IF(J93>50,"50+",IF(J93<=0,"0",J93))) -> 3 | L93: =IFERROR(VLOOKUP(W93,ATS!$T:$V,3,FALSE),0) -> 3 | M93: =IF(L93=99999,"OPEN",IF(L93>50,"50+",IF(L93<=0,"0",L93))) -> 3 | N93: 0% | O93: =IF(N93<>0,N93,$P$5) -> 0% | P93: =VLOOKUP($C93,Prices!$A$3:$T$1996,MATCH('2) Order Form'!P$8,Prices!$A$2:$T$2,0),FALSE) -> 125.00 | Q93: =VLOOKUP($C93,Prices!$A$3:$T$1996,MATCH('2) Order Form'!Q$8,Prices!$A$2:$T$2,0),FALSE) -> 249.95 | R93: =I93*P93 -> 0 | S93: =R93*O93 -> 0 | T93: =R93-S93 -> 0 | U93: 0% | W93: 7048652822796 | Y93: =I93*Q93 -> 0 | Z93: =IF(A93=OFFSET(A93,-1,0),0,1) -> 0 | AA93: =IF(C93=OFFSET(C93,-1,0),OFFSET(AA93,-1,0),OFFSET(AA93,-1,0)+1) -> 3 | AB93: =IF(C93=OFFSET(C93,-1,0),0,1) -> 0 | AC93: =IF(F93=OFFSET(F93,-1,0),0,1) -> 0 | AD93: =CONCATENATE(C93,F93) -> 840053Matte Shadow Blue | AE93: =IFERROR(IF(B93="EYEWEAR",CONCATENATE(C93,"-",G93),C93),C93) -> 840053 | AF93: =VLOOKUP($C93,Classification!$A:$F,5,FALSE) -> 0.000 | AG93: =VLOOKUP($C93,Classification!$A:$F,6,FALSE) -> 1 | AH93: =INDEX(ATS!$A:$U,MATCH('2) Order Form'!$W93,ATS!$T:$T,0),7) -> Stock
A94: 1 | B94: =VLOOKUP(A94,Classification!$H$2:$I$11,2,FALSE) -> Helmets & Helmet Acc. | C94: =INDEX(ATS!$A:$U,MATCH('2) Order Form'!$W94,ATS!$T:$T,0),1) -> 840084 | D94: =INDEX(ATS!$A:$U,MATCH('2) Order Form'!$W94,ATS!$T:$T,0),2) -> Ascender Mips Helmet | E94: =INDEX(ATS!$A:$U,MATCH('2) Order Form'!$W94,ATS!$T:$T,0),4) -> DTBLK-SM | F94: =INDEX(ATS!$A:$U,MATCH('2) Order Form'!$W94,ATS!$T:$T,0),5) -> Dirt Black | G94: =INDEX(ATS!$A:$U,MATCH('2) Order Form'!$W94,ATS!$T:$T,0),6) -> SM | H94: =INDEX(Packs!$A:$V,MATCH('2) Order Form'!$W94,Packs!$W:$W,0),22) -> 1 | I94: 0 | J94: =IFERROR(VLOOKUP(W94,ATS!$T:$U,2,FALSE),0) -> 56 | K94: 50+ | L94: =IFERROR(VLOOKUP(W94,ATS!$T:$V,3,FALSE),0) -> 56 | M94: 50+ | N94: 0% | O94: =IF(N94<>0,N94,$P$5) -> 0% | P94: =VLOOKUP($C94,Prices!$A$3:$T$1996,MATCH('2) Order Form'!P$8,Prices!$A$2:$T$2,0),FALSE) -> 100.00 | Q94: =VLOOKUP($C94,Prices!$A$3:$T$1996,MATCH('2) Order Form'!Q$8,Prices!$A$2:$T$2,0),FALSE) -> 199.95 | R94: 0 | S94: 0 | T94: 0 | U94: 0% | W94: 7048652463456 | Y94: 0 | Z94: 0 | AA94: 4 | AB94: 1 | AC94: 1 | AD94: 840084Dirt Black | AE94: 840084 | AF94: =VLOOKUP($C94,Classification!$A:$F,5,FALSE) -> 0.000 | AG94: =VLOOKUP($C94,Classification!$A:$F,6,FALSE) -> 1 | AH94: =INDEX(ATS!$A:$U,MATCH('2) Order Form'!$W94,ATS!$T:$T,0),7) -> Active
A95: 1 | B95: =VLOOKUP(A95,Classification!$H$2:$I$11,2,FALSE) -> Helmets & Helmet Acc. | C95: =INDEX(ATS!$A:$U,MATCH('2) Order Form'!$W95,ATS!$T:$T,0),1) -> 840084 | D95: =INDEX(ATS!$A:$U,MATCH('2) Order Form'!$W95,ATS!$T:$T,0),2) -> Ascender Mips Helmet | E95: =INDEX(ATS!$A:$U,MATCH('2) Order Form'!$W95,ATS!$T:$T,0),4) -> DTBLK-ML | F95: =INDEX(ATS!$A:$U,MATCH('2) Order Form'!$W95,ATS!$T:$T,0),5) -> Dirt Black | G95: =INDEX(ATS!$A:$U,MATCH('2) Order Form'!$W95,ATS!$T:$T,0),6) -> ML | H95: =INDEX(Packs!$A:$V,MATCH('2) Order Form'!$W95,Packs!$W:$W,0),22) -> 1 | I95: 0 | J95: =IFERROR(VLOOKUP(W95,ATS!$T:$U,2,FALSE),0) -> 88 | K95: 50+ | L95: =IFERROR(VLOOKUP(W95,ATS!$T:$V,3,FALSE),0) -> 88 | M95: 50+ | N95: 0% | O95: =IF(N95<>0,N95,$P$5) -> 0% | P95: =VLOOKUP($C95,Prices!$A$3:$T$1996,MATCH('2) Order Form'!P$8,Prices!$A$2:$T$2,0),FALSE) -> 100.00 | Q95: =VLOOKUP($C95,Prices!$A$3:$T$1996,MATCH('2) Order Form'!Q$8,Prices!$A$2:$T$2,0),FALSE) -> 199.95 | R95: 0 | S95: 0 | T95: 0 | U95: 0% | W95: 7048652463449 | Y95: 0 | Z95: 0 | AA95: 4 | AB95: 0 | AC95: 0 | AD95: 840084Dirt Black | AE95: 840084 | AF95: =VLOOKUP($C95,Classification!$A:$F,5,FALSE) -> 0.000 | AG95: =VLOOKUP($C95,Classification!$A:$F,6,FALSE) -> 1 | AH95: =INDEX(ATS!$A:$U,MATCH('2) Order Form'!$W95,ATS!$T:$T,0),7) -> Active
A96: 1 | B96: =VLOOKUP(A96,Classification!$H$2:$I$11,2,FALSE) -> Helmets & Helmet Acc. | C96: =INDEX(ATS!$A:$U,MATCH('2) Order Form'!$W96,ATS!$T:$T,0),1) -> 840084 | D96: =INDEX(ATS!$A:$U,MATCH('2) Order Form'!$W96,ATS!$T:$T,0),2) -> Ascender Mips Helmet | E96: =INDEX(ATS!$A:$U,MATCH('2) Order Form'!$W96,ATS!$T:$T,0),4) -> DTBLK-LXL | F96: =INDEX(ATS!$A:$U,MATCH('2) Order Form'!$W96,ATS!$T:$T,0),5) -> Dirt Black | G96: =INDEX(ATS!$A:$U,MATCH('2) Order Form'!$W96,ATS!$T:$T,0),6) -> LXL | H96: =INDEX(Packs!$A:$V,MATCH('2) Order Form'!$W96,Packs!$W:$W,0),22) -> 1 | I96: 0 | J96: =IFERROR(VLOOKUP(W96,ATS!$T:$U,2,FALSE),0) -> 83 | K96: 50+ | L96: =IFERROR(VLOOKUP(W96,ATS!$T:$V,3,FALSE),0) -> 83 | M96: 50+ | N96: 0% | O96: =IF(N96<>0,N96,$P$5) -> 0% | P96: =VLOOKUP($C96,Prices!$A$3:$T$1996,MATCH('2) Order Form'!P$8,Prices!$A$2:$T$2,0),FALSE) -> 100.00 | Q96: =VLOOKUP($C96,Prices!$A$3:$T$1996,MATCH('2) Order Form'!Q$8,Prices!$A$2:$T$2,0),FALSE) -> 199.95 | R96: 0 | S96: 0 | T96: 0 | U96: 0% | W96: 7048652463432 | Y96: 0 | Z96: 0 | AA96: 4 | AB96: 0 | AC96: 0 | AD96: 840084Dirt Black | AE96: 840084 | AF96: =VLOOKUP($C96,Classification!$A:$F,5,FALSE) -> 0.000 | AG96: =VLOOKUP($C96,Classification!$A:$F,6,FALSE) -> 1 | AH96: =INDEX(ATS!$A:$U,MATCH('2) Order Form'!$W96,ATS!$T:$T,0),7) -> Active
A97: 1 | B97: =VLOOKUP(A97,Classification!$H$2:$I$11,2,FALSE) -> Helmets & Helmet Acc. | C97: =INDEX(ATS!$A:$U,MATCH('2) Order Form'!$W97,ATS!$T:$T,0),1) -> 840084 | D97: =INDEX(ATS!$A:$U,MATCH('2) Order Form'!$W97,ATS!$T:$T,0),2) -> Ascender Mips Helmet | E97: =INDEX(ATS!$A:$U,MATCH('2) Order Form'!$W97,ATS!$T:$T,0),4) -> MBBLU-SM | F97: =INDEX(ATS!$A:$U,MATCH('2) Order Form'!$W97,ATS!$T:$T,0),5) -> Matte Bird Blue | G97: =INDEX(ATS!$A:$U,MATCH('2) Order Form'!$W97,ATS!$T:$T,0),6) -> SM | H97: =INDEX(Packs!$A:$V,MATCH('2) Order Form'!$W97,Packs!$W:$W,0),22) -> 1 | I97: 0 | J97: =IFERROR(VLOOKUP(W97,ATS!$T:$U,2,FALSE),0) -> 62 | K97: 50+ | L97: =IFERROR(VLOOKUP(W97,ATS!$T:$V,3,FALSE),0) -> 62 | M97: 50+ | N97: 0% | O97: =IF(N97<>0,N97,$P$5) -> 0% | P97: =VLOOKUP($C97,Prices!$A$3:$T$1996,MATCH('2) Order Form'!P$8,Prices!$A$2:$T$2,0),FALSE) -> 100.00 | Q97: =VLOOKUP($C97,Prices!$A$3:$T$1996,MATCH('2) Order Form'!Q$8,Prices!$A$2:$T$2,0),FALSE) -> 199.95 | R97: 0 | S97: 0 | T97: 0 | U97: 0% | W97: 7048652714619 | Y97: 0 | Z97: 0 | AA97: 4 | AB97: 0 | AC97: 1 | AD97: 840084Matte Bird Blue | AE97: 840084 | AF97: =VLOOKUP($C97,Classification!$A:$F,5,FALSE) -> 0.000 | AG97: =VLOOKUP($C97,Classification!$A:$F,6,FALSE) -> 1 | AH97: =INDEX(ATS!$A:$U,MATCH('2) Order Form'!$W97,ATS!$T:$T,0),7) -> Active
A98: 1 | B98: =VLOOKUP(A98,Classification!$H$2:$I$11,2,FALSE) -> Helmets & Helmet Acc. | C98: =INDEX(ATS!$A:$U,MATCH('2) Order Form'!$W98,ATS!$T:$T,0),1) -> 840084 | D98: =INDEX(ATS!$A:$U,MATCH('2) Order Form'!$W98,ATS!$T:$T,0),2) -> Ascender Mips Helmet | E98: =INDEX(ATS!$A:$U,MATCH('2) Order Form'!$W98,ATS!$T:$T,0),4) -> MBBLU-ML | F98: =INDEX(ATS!$A:$U,MATCH('2) Order Form'!$W98,ATS!$T:$T,0),5) -> Matte Bird Blue | G98: =INDEX(ATS!$A:$U,MATCH('2) Order Form'!$W98,ATS!$T:$T,0),6) -> ML | H98: =INDEX(Packs!$A:$V,MATCH('2) Order Form'!$W98,Packs!$W:$W,0),22) -> 1 | I98: 0 | J98: =IFERROR(VLOOKUP(W98,ATS!$T:$U,2,FALSE),0) -> 62 | K98: 50+ | L98: =IFERROR(VLOOKUP(W98,ATS!$T:$V,3,FALSE),0) -> 62 | M98: 50+ | N98: 0% | O98: 0% | P98: =VLOOKUP($C98,Prices!$A$3:$T$1996,MATCH('2) Order Form'!P$8,Prices!$A$2:$T$2,0),FALSE) -> 100.00 | Q98: =VLOOKUP($C98,Prices!$A$3:$T$1996,MATCH('2) Order Form'!Q$8,Prices!$A$2:$T$2,0),FALSE) -> 199.95 | R98: 0 | S98: 0 | T98: 0 | U98: 0% | W98: 7048652714602 | Y98: 0 | Z98: 0 | AA98: 4 | AB98: 0 | AC98: 0 | AD98: 840084Matte Bird Blue | AE98: 840084 | AF98: =VLOOKUP($C98,Classification!$A:$F,5,FALSE) -> 0.000 | AG98: =VLOOKUP($C98,Classification!$A:$F,6,FALSE) -> 1 | AH98: =INDEX(ATS!$A:$U,MATCH('2) Order Form'!$W98,ATS!$T:$T,0),7) -> Active
A99: 1 | B99: =VLOOKUP(A99,Classification!$H$2:$I$11,2,FALSE) -> Helmets & Helmet Acc. | C99: =INDEX(ATS!$A:$U,MATCH('2) Order Form'!$W99,ATS!$T:$T,0),1) -> 840084 | D99: =INDEX(ATS!$A:$U,MATCH('2) Order Form'!$W99,ATS!$T:$T,0),2) -> Ascender Mips Helmet | E99: =INDEX(ATS!$A:$U,MATCH('2) Order Form'!$W99,ATS!$T:$T,0),4) -> MBBLU-LXL | F99: =INDEX(ATS!$A:$U,MATCH('2) Order Form'!$W99,ATS!$T:$T,0),5) -> Matte Bird Blue | G99: =INDEX(ATS!$A:$U,MATCH('2) Order Form'!$W99,ATS!$T:$T,0),6) -> LXL | H99: =INDEX(Packs!$A:$V,MATCH('2) Order Form'!$W99,Packs!$W:$W,0),22) -> 1 | I99: 0 | J99: =IFERROR(VLOOKUP(W99,ATS!$T:$U,2,FALSE),0) -> 50 | K99: 50 | L99: =IFERROR(VLOOKUP(W99,ATS!$T:$V,3,FALSE),0) -> 50 | M99: 50 | N99: 0% | O99: 0% | P99: =VLOOKUP($C99,Prices!$A$3:$T$1996,MATCH('2) Order Form'!P$8,Prices!$A$2:$T$2,0),FALSE) -> 100.00 | Q99: =VLOOKUP($C99,Prices!$A$3:$T$1996,MATCH('2) Order Form'!Q$8,Prices!$A$2:$T$2,0),FALSE) -> 199.95 | R99: 0 | S99: 0 | T99: 0 | U99: 0% | W99: 7048652714596 | Y99: 0 | Z99: 0 | AA99: 4 | AB99: 0 | AC99: 0 | AD99: 840084Matte Bird Blue | AE99: 840084 | AF99: =VLOOKUP($C99,Classification!$A:$F,5,FALSE) -> 0.000 | AG99: =VLOOKUP($C99,Classification!$A:$F,6,FALSE) -> 1 | AH99: =INDEX(ATS!$A:$U,MATCH('2) Order Form'!$W99,ATS!$T:$T,0),7) -> Active
A100: 1 | B100: =VLOOKUP(A100,Classification!$H$2:$I$11,2,FALSE) -> Helmets & Helmet Acc. | C100: =INDEX(ATS!$A:$U,MATCH('2) Order Form'!$W100,ATS!$T:$T,0),1) -> 840084 | D100: =INDEX(ATS!$A:$U,MATCH('2) Order Form'!$W100,ATS!$T:$T,0),2) -> Ascender Mips Helmet | E100: =INDEX(ATS!$A:$U,MATCH('2) Order Form'!$W100,ATS!$T:$T,0),4) -> MASEM-SM | F100: =INDEX(ATS!$A:$U,MATCH('2) Order Form'!$W100,ATS!$T:$T,0),5) -> Matte Sea Metallic | G100: =INDEX(ATS!$A:$U,MATCH('2) Order Form'!$W100,ATS!$T:$T,0),6) -> SM | H100: =INDEX(Packs!$A:$V,MATCH('2) Order Form'!$W100,Packs!$W:$W,0),22) -> 1 | I100: 0 | J100: =IFERROR(VLOOKUP(W100,ATS!$T:$U,2,FALSE),0) -> 48 | K100: 48 | L100: =IFERROR(VLOOKUP(W100,ATS!$T:$V,3,FALSE),0) -> 48 | M100: 48 | N100: 0% | O100: 0% | P100: =VLOOKUP($C100,Prices!$A$3:$T$1996,MATCH('2) Order Form'!P$8,Prices!$A$2:$T$2,0),FALSE) -> 100.00 | Q100: =VLOOKUP($C100,Prices!$A$3:$T$1996,MATCH('2) Order Form'!Q$8,Prices!$A$2:$T$2,0),FALSE) -> 199.95 | R100: 0 | S100: 0 | T100: 0 | U100: 0% | W100: 7048652823021 | Y100: =I100*Q100 -> 0 | Z100: =IF(A100=OFFSET(A100,-1,0),0,1) -> 0 | AA100: 4 | AB100: =IF(C100=OFFSET(C100,-1,0),0,1) -> 0 | AC100: =IF(F100=OFFSET(F100,-1,0),0,1) -> 1 | AD100: =CONCATENATE(C100,F100) -> 840084Matte Sea Metallic | AE100: =IFERROR(IF(B100="EYEWEAR",CONCATENATE(C100,"-",G100),C100),C100) -> 840084 | AF100: =VLOOKUP($C100,Classification!$A:$F,5,FALSE) -> 0.000 | AG100: =VLOOKUP($C100,Classification!$A:$F,6,FALSE) -> 1 | AH100: =INDEX(ATS!$A:$U,MATCH('2) Order Form'!$W100,ATS!$T:$T,0),7) -> Active
A101: 1 | B101: =VLOOKUP(A101,Classification!$H$2:$I$11,2,FALSE) -> Helmets & Helmet Acc. | C101: =INDEX(ATS!$A:$U,MATCH('2) Order Form'!$W101,ATS!$T:$T,0),1) -> 840084 | D101: =INDEX(ATS!$A:$U,MATCH('2) Order Form'!$W101,ATS!$T:$T,0),2) -> Ascender Mips Helmet | E101: =INDEX(ATS!$A:$U,MATCH('2) Order Form'!$W101,ATS!$T:$T,0),4) -> MASEM-ML | F101: =INDEX(ATS!$A:$U,MATCH('2) Order Form'!$W101,ATS!$T:$T,0),5) -> Matte Sea Metallic | G101: =INDEX(ATS!$A:$U,MATCH('2) Order Form'!$W101,ATS!$T:$T,0),6) -> ML | H101: =INDEX(Packs!$A:$V,MATCH('2) Order Form'!$W101,Packs!$W:$W,0),22) -> 1 | I101: 0 | J101: =IFERROR(VLOOKUP(W101,ATS!$T:$U,2,FALSE),0) -> 77 | K101: 50+ | L101: =IFERROR(VLOOKUP(W101,ATS!$T:$V,3,FALSE),0) -> 77 | M101: 50+ | N101: 0% | O101: 0% | P101: =VLOOKUP($C101,Prices!$A$3:$T$1996,MATCH('2) Order Form'!P$8,Prices!$A$2:$T$2,0),FALSE) -> 100.00 | Q101: =VLOOKUP($C101,Prices!$A$3:$T$1996,MATCH('2) Order Form'!Q$8,Prices!$A$2:$T$2,0),FALSE) -> 199.95 | R101: 0 | S101: 0 | T101: 0 | U101: 0% | W101: 7048652823014 | Y101: 0 | Z101: 0 | AA101: 4 | AB101: 0 | AC101: 0 | AD101: 840084Matte Sea Metallic | AE101: 840084 | AF101: =VLOOKUP($C101,Classification!$A:$F,5,FALSE) -> 0.000 | AG101: =VLOOKUP($C101,Classification!$A:$F,6,FALSE) -> 1 | AH101: =INDEX(ATS!$A:$U,MATCH('2) Order Form'!$W101,ATS!$T:$T,0),7) -> Active
A102: 1 | B102: =VLOOKUP(A102,Classification!$H$2:$I$11,2,FALSE) -> Helmets & Helmet Acc. | C102: =INDEX(ATS!$A:$U,MATCH('2) Order Form'!$W102,ATS!$T:$T,0),1) -> 840084 | D102: =INDEX(ATS!$A:$U,MATCH('2) Order Form'!$W102,ATS!$T:$T,0),2) -> Ascender Mips Helmet | E102: =INDEX(ATS!$A:$U,MATCH('2) Order Form'!$W102,ATS!$T:$T,0),4) -> MASEM-LXL | F102: =INDEX(ATS!$A:$U,MATCH('2) Order Form'!$W102,ATS!$T:$T,0),5) -> Matte Sea Metallic | G102: =INDEX(ATS!$A:$U,MATCH('2) Order Form'!$W102,ATS!$T:$T,0),6) -> LXL | H102: =INDEX(Packs!$A:$V,MATCH('2) Order Form'!$W102,Packs!$W:$W,0),22) -> 1 | I102: 0 | J102: =IFERROR(VLOOKUP(W102,ATS!$T:$U,2,FALSE),0) -> 54 | K102: 50+ | L102: =IFERROR(VLOOKUP(W102,ATS!$T:$V,3,FALSE),0) -> 54 | M102: 50+ | N102: 0% | O102: 0% | P102: =VLOOKUP($C102,Prices!$A$3:$T$1996,MATCH('2) Order Form'!P$8,Prices!$A$2:$T$2,0),FALSE) -> 100.00 | Q102: =VLOOKUP($C102,Prices!$A$3:$T$1996,MATCH('2) Order Form'!Q$8,Prices!$A$2:$T$2,0),FALSE) -> 199.95 | R102: 0 | S102: 0 | T102: 0 | U102: 0% | W102: 7048652823007 | Y102: 0 | Z102: 0 | AA102: 4 | AB102: 0 | AC102: 0 | AD102: 840084Matte Sea Metallic | AE102: 840084 | AF102: =VLOOKUP($C102,Classification!$A:$F,5,FALSE) -> 0.000 | AG102: =VLOOKUP($C102,Classification!$A:$F,6,FALSE) -> 1 | AH102: =INDEX(ATS!$A:$U,MATCH('2) Order Form'!$W102,ATS!$T:$T,0),7) -> Active
A103: 1 | B103: =VLOOKUP(A103,Classification!$H$2:$I$11,2,FALSE) -> Helmets & Helmet Acc. | C103: =INDEX(ATS!$A:$U,MATCH('2) Order Form'!$W103,ATS!$T:$T,0),1) -> 840084 | D103: =INDEX(ATS!$A:$U,MATCH('2) Order Form'!$W103,ATS!$T:$T,0),2) -> Ascender Mips Helmet | E103: =INDEX(ATS!$A:$U,MATCH('2) Order Form'!$W103,ATS!$T:$T,0),4) -> MBUOE-SM | F103: =INDEX(ATS!$A:$U,MATCH('2) Order Form'!$W103,ATS!$T:$T,0),5) -> Matte Burning Orange | G103: =INDEX(ATS!$A:$U,MATCH('2) Order Form'!$W103,ATS!$T:$T,0),6) -> SM | H103: =INDEX(Packs!$A:$V,MATCH('2) Order Form'!$W103,Packs!$W:$W,0),22) -> 1 | I103: 0 | J103: =IFERROR(VLOOKUP(W103,ATS!$T:$U,2,FALSE),0) -> 34 | K103: 34 | L103: =IFERROR(VLOOKUP(W103,ATS!$T:$V,3,FALSE),0) -> 34 | M103: 34 | N103: 0% | O103: =IF(N103<>0,N103,$P$5) -> 0% | P103: =VLOOKUP($C103,Prices!$A$3:$T$1996,MATCH('2) Order Form'!P$8,Prices!$A$2:$T$2,0),FALSE) -> 100.00 | Q103: =VLOOKUP($C103,Prices!$A$3:$T$1996,MATCH('2) Order Form'!Q$8,Prices!$A$2:$T$2,0),FALSE) -> 199.95 | R103: 0 | S103: 0 | T103: 0 | U103: 0% | W103: 7048652823052 | Y103: 0 | Z103: 0 | AA103: 4 | AB103: 0 | AC103: 1 | AD103: 840084Matte Burning Orange | AE103: 840084 | AF103: =VLOOKUP($C103,Classification!$A:$F,5,FALSE) -> 0.000 | AG103: =VLOOKUP($C103,Classification!$A:$F,6,FALSE) -> 1 | AH103: =INDEX(ATS!$A:$U,MATCH('2) Order Form'!$W103,ATS!$T:$T,0),7) -> Active
A104: 1 | B104: =VLOOKUP(A104,Classification!$H$2:$I$11,2,FALSE) -> Helmets & Helmet Acc. | C104: =INDEX(ATS!$A:$U,MATCH('2) Order Form'!$W104,ATS!$T:$T,0),1) -> 840084 | D104: =INDEX(ATS!$A:$U,MATCH('2) Order Form'!$W104,ATS!$T:$T,0),2) -> Ascender Mips Helmet | E104: =INDEX(ATS!$A:$U,MATCH('2) Order Form'!$W104,ATS!$T:$T,0),4) -> MBUOE-ML | F104: =INDEX(ATS!$A:$U,MATCH('2) Order Form'!$W104,ATS!$T:$T,0),5) -> Matte Burning Orange | G104: =INDEX(ATS!$A:$U,MATCH('2) Order Form'!$W104,ATS!$T:$T,0),6) -> ML | H104: =INDEX(Packs!$A:$V,MATCH('2) Order Form'!$W104,Packs!$W:$W,0),22) -> 1 | I104: 0 | J104: =IFERROR(VLOOKUP(W104,ATS!$T:$U,2,FALSE),0) -> 79 | K104: 50+ | L104: =IFERROR(VLOOKUP(W104,ATS!$T:$V,3,FALSE),0) -> 79 | M104: 50+ | N104: 0% | O104: 0% | P104: =VLOOKUP($C104,Prices!$A$3:$T$1996,MATCH('2) Order Form'!P$8,Prices!$A$2:$T$2,0),FALSE) -> 100.00 | Q104: =VLOOKUP($C104,Prices!$A$3:$T$1996,MATCH('2) Order Form'!Q$8,Prices!$A$2:$T$2,0),FALSE) -> 199.95 | R104: 0 | S104: 0 | T104: 0 | U104: 0% | W104: 7048652823045 | Y104: 0 | Z104: 0 | AA104: 4 | AB104: 0 | AC104: 0 | AD104: 840084Matte Burning Orange | AE104: 840084 | AF104: =VLOOKUP($C104,Classification!$A:$F,5,FALSE) -> 0.000 | AG104: =VLOOKUP($C104,Classification!$A:$F,6,FALSE) -> 1 | AH104: =INDEX(ATS!$A:$U,MATCH('2) Order Form'!$W104,ATS!$T:$T,0),7) -> Active
A105: 1 | B105: =VLOOKUP(A105,Classification!$H$2:$I$11,2,FALSE) -> Helmets & Helmet Acc. | C105: =INDEX(ATS!$A:$U,MATCH('2) Order Form'!$W105,ATS!$T:$T,0),1) -> 840084 | D105: =INDEX(ATS!$A:$U,MATCH('2) Order Form'!$W105,ATS!$T:$T,0),2) -> Ascender Mips Helmet | E105: =INDEX(ATS!$A:$U,MATCH('2) Order Form'!$W105,ATS!$T:$T,0),4) -> MBUOE-LXL | F105: =INDEX(ATS!$A:$U,MATCH('2) Order Form'!$W105,ATS!$T:$T,0),5) -> Matte Burning Orange | G105: =INDEX(ATS!$A:$U,MATCH('2) Order Form'!$W105,ATS!$T:$T,0),6) -> LXL | H105: =INDEX(Packs!$A:$V,MATCH('2) Order Form'!$W105,Packs!$W:$W,0),22) -> 1 | I105: 0 | J105: =IFERROR(VLOOKUP(W105,ATS!$T:$U,2,FALSE),0) -> 39 | K105: 39 | L105: =IFERROR(VLOOKUP(W105,ATS!$T:$V,3,FALSE),0) -> 39 | M105: 39 | N105: 0% | O105: 0% | P105: =VLOOKUP($C105,Prices!$A$3:$T$1996,MATCH('2) Order Form'!P$8,Prices!$A$2:$T$2,0),FALSE) -> 100.00 | Q105: =VLOOKUP($C105,Prices!$A$3:$T$1996,MATCH('2) Order Form'!Q$8,Prices!$A$2:$T$2,0),FALSE) -> 199.95 | R105: 0 | S105: 0 | T105: 0 | U105: 0% | W105: 7048652823038 | Y105: 0 | Z105: 0 | AA105: 4 | AB105: 0 | AC105: 0 | AD105: 840084Matte Burning Orange | AE105: 840084 | AF105: =VLOOKUP($C105,Classification!$A:$F,5,FALSE) -> 0.000 | AG105: =VLOOKUP($C105,Classification!$A:$F,6,FALSE) -> 1 | AH105: =INDEX(ATS!$A:$U,MATCH('2) Order Form'!$W105,ATS!$T:$T,0),7) -> Active
A106: 1 | B106: =VLOOKUP(A106,Classification!$H$2:$I$11,2,FALSE) -> Helmets & Helmet Acc. | C106: =INDEX(ATS!$A:$U,MATCH('2) Order Form'!$W106,ATS!$T:$T,0),1) -> 840080 | D106: =INDEX(ATS!$A:$U,MATCH('2) Order Form'!$W106,ATS!$T:$T,0),2) -> Ascender | E106: =INDEX(ATS!$A:$U,MATCH('2) Order Form'!$W106,ATS!$T:$T,0),4) -> DTBLK-SM | F106: =INDEX(ATS!$A:$U,MATCH('2) Order Form'!$W106,ATS!$T:$T,0),5) -> Dirt Black | G106: =INDEX(ATS!$A:$U,MATCH('2) Order Form'!$W106,ATS!$T:$T,0),6) -> SM | H106: =INDEX(Packs!$A:$V,MATCH('2) Order Form'!$W106,Packs!$W:$W,0),22) -> 1 | I106: 0 | J106: =IFERROR(VLOOKUP(W106,ATS!$T:$U,2,FALSE),0) -> 0 | K106: 0 | L106: =IFERROR(VLOOKUP(W106,ATS!$T:$V,3,FALSE),0) -> 0 | M106: 0 | N106: 0% | O106: 0% | P106: =VLOOKUP($C106,Prices!$A$3:$T$1996,MATCH('2) Order Form'!P$8,Prices!$A$2:$T$2,0),FALSE) -> 85.00 | Q106: =VLOOKUP($C106,Prices!$A$3:$T$1996,MATCH('2) Order Form'!Q$8,Prices!$A$2:$T$2,0),FALSE) -> 169.95 | R106: 0 | S106: 0 | T106: 0 | U106: 0% | W106: 7048652463579 | Y106: =I106*Q106 -> 0 | Z106: =IF(A106=OFFSET(A106,-1,0),0,1) -> 0 | AA106: 5 | AB106: =IF(C106=OFFSET(C106,-1,0),0,1) -> 1 | AC106: =IF(F106=OFFSET(F106,-1,0),0,1) -> 1 | AD106: =CONCATENATE(C106,F106) -> 840080Dirt Black | AE106: =IFERROR(IF(B106="EYEWEAR",CONCATENATE(C106,"-",G106),C106),C106) -> 840080 | AF106: =VLOOKUP($C106,Classification!$A:$F,5,FALSE) -> 0.000 | AG106: =VLOOKUP($C106,Classification!$A:$F,6,FALSE) -> 1 | AH106: =INDEX(ATS!$A:$U,MATCH('2) Order Form'!$W106,ATS!$T:$T,0),7) -> Active
A107: 1 | B107: =VLOOKUP(A107,Classification!$H$2:$I$11,2,FALSE) -> Helmets & Helmet Acc. | C107: =INDEX(ATS!$A:$U,MATCH('2) Order Form'!$W107,ATS!$T:$T,0),1) -> 840080 | D107: =INDEX(ATS!$A:$U,MATCH('2) Order Form'!$W107,ATS!$T:$T,0),2) -> Ascender | E107: =INDEX(ATS!$A:$U,MATCH('2) Order Form'!$W107,ATS!$T:$T,0),4) -> DTBLK-ML | F107: =INDEX(ATS!$A:$U,MATCH('2) Order Form'!$W107,ATS!$T:$T,0),5) -> Dirt Black | G107: =INDEX(ATS!$A:$U,MATCH('2) Order Form'!$W107,ATS!$T:$T,0),6) -> ML | H107: =INDEX(Packs!$A:$V,MATCH('2) Order Form'!$W107,Packs!$W:$W,0),22) -> 1 | I107: 0 | J107: =IFERROR(VLOOKUP(W107,ATS!$T:$U,2,FALSE),0) -> -8 | K107: 0 | L107: =IFERROR(VLOOKUP(W107,ATS!$T:$V,3,FALSE),0) -> -8 | M107: 0 | N107: 0% | O107: 0% | P107: =VLOOKUP($C107,Prices!$A$3:$T$1996,MATCH('2) Order Form'!P$8,Prices!$A$2:$T$2,0),FALSE) -> 85.00 | Q107: =VLOOKUP($C107,Prices!$A$3:$T$1996,MATCH('2) Order Form'!Q$8,Prices!$A$2:$T$2,0),FALSE) -> 169.95 | R107: 0 | S107: 0 | T107: 0 | U107: 0% | W107: 7048652463562 | Y107: 0 | Z107: 0 | AA107: 5 | AB107: 0 | AC107: 0 | AD107: 840080Dirt Black | AE107: 840080 | AF107: =VLOOKUP($C107,Classification!$A:$F,5,FALSE) -> 0.000 | AG107: =VLOOKUP($C107,Classification!$A:$F,6,FALSE) -> 1 | AH107: =INDEX(ATS!$A:$U,MATCH('2) Order Form'!$W107,ATS!$T:$T,0),7) -> Active
A108: 1 | B108: =VLOOKUP(A108,Classification!$H$2:$I$11,2,FALSE) -> Helmets & Helmet Acc. | C108: =INDEX(ATS!$A:$U,MATCH('2) Order Form'!$W108,ATS!$T:$T,0),1) -> 840080 | D108: =INDEX(ATS!$A:$U,MATCH('2) Order Form'!$W108,ATS!$T:$T,0),2) -> Ascender | E108: =INDEX(ATS!$A:$U,MATCH('2) Order Form'!$W108,ATS!$T:$T,0),4) -> DTBLK-LXL | F108: =INDEX(ATS!$A:$U,MATCH('2) Order Form'!$W108,ATS!$T:$T,0),5) -> Dirt Black | G108: =INDEX(ATS!$A:$U,MATCH('2) Order Form'!$W108,ATS!$T:$T,0),6) -> LXL | H108: =INDEX(Packs!$A:$V,MATCH('2) Order Form'!$W108,Packs!$W:$W,0),22) -> 1 | I108: 0 | J108: =IFERROR(VLOOKUP(W108,ATS!$T:$U,2,FALSE),0) -> -20 | K108: 0 | L108: =IFERROR(VLOOKUP(W108,ATS!$T:$V,3,FALSE),0) -> -20 | M108: 0 | N108: 0% | O108: 0% | P108: =VLOOKUP($C108,Prices!$A$3:$T$1996,MATCH('2) Order Form'!P$8,Prices!$A$2:$T$2,0),FALSE) -> 85.00 | Q108: =VLOOKUP($C108,Prices!$A$3:$T$1996,MATCH('2) Order Form'!Q$8,Prices!$A$2:$T$2,0),FALSE) -> 169.95 | R108: 0 | S108: 0 | T108: 0 | U108: 0% | W108: 7048652463555 | Y108: 0 | Z108: 0 | AA108: 5 | AB108: 0 | AC108: 0 | AD108: 840080Dirt Black | AE108: 840080 | AF108: =VLOOKUP($C108,Classification!$A:$F,5,FALSE) -> 0.000 | AG108: =VLOOKUP($C108,Classification!$A:$F,6,FALSE) -> 1 | AH108: =INDEX(ATS!$A:$U,MATCH('2) Order Form'!$W108,ATS!$T:$T,0),7) -> Active
A109: 1 | B109: =VLOOKUP(A109,Classification!$H$2:$I$11,2,FALSE) -> Helmets & Helmet Acc. | C109: =INDEX(ATS!$A:$U,MATCH('2) Order Form'!$W109,ATS!$T:$T,0),1) -> 840080 | D109: =INDEX(ATS!$A:$U,MATCH('2) Order Form'!$W109,ATS!$T:$T,0),2) -> Ascender | E109: =INDEX(ATS!$A:$U,MATCH('2) Order Form'!$W109,ATS!$T:$T,0),4) -> MBBLU-SM | F109: =INDEX(ATS!$A:$U,MATCH('2) Order Form'!$W109,ATS!$T:$T,0),5) -> Matte Bird Blue | G109: =INDEX(ATS!$A:$U,MATCH('2) Order Form'!$W109,ATS!$T:$T,0),6) -> SM | H109: =INDEX(Packs!$A:$V,MATCH('2) Order Form'!$W109,Packs!$W:$W,0),22) -> 1 | I109: 0 | J109: =IFERROR(VLOOKUP(W109,ATS!$T:$U,2,FALSE),0) -> 29 | K109: 29 | L109: =IFERROR(VLOOKUP(W109,ATS!$T:$V,3,FALSE),0) -> 29 | M109: 29 | N109: 0% | O109: 0% | P109: =VLOOKUP($C109,Prices!$A$3:$T$1996,MATCH('2) Order Form'!P$8,Prices!$A$2:$T$2,0),FALSE) -> 85.00 | Q109: =VLOOKUP($C109,Prices!$A$3:$T$1996,MATCH('2) Order Form'!Q$8,Prices!$A$2:$T$2,0),FALSE) -> 169.95 | R109: 0 | S109: 0 | T109: 0 | U109: 0% | W109: 7048652713193 | Y109: 0 | Z109: 0 | AA109: 5 | AB109: 0 | AC109: 1 | AD109: 840080Matte Bird Blue | AE109: 840080 | AF109: =VLOOKUP($C109,Classification!$A:$F,5,FALSE) -> 0.000 | AG109: =VLOOKUP($C109,Classification!$A:$F,6,FALSE) -> 1 | AH109: =INDEX(ATS!$A:$U,MATCH('2) Order Form'!$W109,ATS!$T:$T,0),7) -> Active
A110: 1 | B110: =VLOOKUP(A110,Classification!$H$2:$I$11,2,FALSE) -> Helmets & Helmet Acc. | C110: =INDEX(ATS!$A:$U,MATCH('2) Order Form'!$W110,ATS!$T:$T,0),1) -> 840080 | D110: =INDEX(ATS!$A:$U,MATCH('2) Order Form'!$W110,ATS!$T:$T,0),2) -> Ascender | E110: =INDEX(ATS!$A:$U,MATCH('2) Order Form'!$W110,ATS!$T:$T,0),4) -> MBBLU-ML | F110: =INDEX(ATS!$A:$U,MATCH('2) Order Form'!$W110,ATS!$T:$T,0),5) -> Matte Bird Blue | G110: =INDEX(ATS!$A:$U,MATCH('2) Order Form'!$W110,ATS!$T:$T,0),6) -> ML | H110: =INDEX(Packs!$A:$V,MATCH('2) Order Form'!$W110,Packs!$W:$W,0),22) -> 1 | I110: 0 | J110: =IFERROR(VLOOKUP(W110,ATS!$T:$U,2,FALSE),0) -> 28 | K110: 28 | L110: =IFERROR(VLOOKUP(W110,ATS!$T:$V,3,FALSE),0) -> 28 | M110: 28 | N110: 0% | O110: 0% | P110: =VLOOKUP($C110,Prices!$A$3:$T$1996,MATCH('2) Order Form'!P$8,Prices!$A$2:$T$2,0),FALSE) -> 85.00 | Q110: =VLOOKUP($C110,Prices!$A$3:$T$1996,MATCH('2) Order Form'!Q$8,Prices!$A$2:$T$2,0),FALSE) -> 169.95 | R110: 0 | S110: 0 | T110: 0 | U110: 0% | W110: 7048652713186 | Y110: 0 | Z110: 0 | AA110: 5 | AB110: 0 | AC110: 0 | AD110: 840080Matte Bird Blue | AE110: 840080 | AF110: =VLOOKUP($C110,Classification!$A:$F,5,FALSE) -> 0.000 | AG110: =VLOOKUP($C110,Classification!$A:$F,6,FALSE) -> 1 | AH110: =INDEX(ATS!$A:$U,MATCH('2) Order Form'!$W110,ATS!$T:$T,0),7) -> Active
A111: 1 | B111: =VLOOKUP(A111,Classification!$H$2:$I$11,2,FALSE) -> Helmets & Helmet Acc. | C111: =INDEX(ATS!$A:$U,MATCH('2) Order Form'!$W111,ATS!$T:$T,0),1) -> 840080 | D111: =INDEX(ATS!$A:$U,MATCH('2) Order Form'!$W111,ATS!$T:$T,0),2) -> Ascender | E111: =INDEX(ATS!$A:$U,MATCH('2) Order Form'!$W111,ATS!$T:$T,0),4) -> MBBLU-LXL | F111: =INDEX(ATS!$A:$U,MATCH('2) Order Form'!$W111,ATS!$T:$T,0),5) -> Matte Bird Blue | G111: =INDEX(ATS!$A:$U,MATCH('2) Order Form'!$W111,ATS!$T:$T,0),6) -> LXL | H111: =INDEX(Packs!$A:$V,MATCH('2) Order Form'!$W111,Packs!$W:$W,0),22) -> 1 | I111: 0 | J111: =IFERROR(VLOOKUP(W111,ATS!$T:$U,2,FALSE),0) -> 47 | K111: 47 | L111: =IFERROR(VLOOKUP(W111,ATS!$T:$V,3,FALSE),0) -> 47 | M111: 47 | N111: 0% | O111: 0% | P111: =VLOOKUP($C111,Prices!$A$3:$T$1996,MATCH('2) Order Form'!P$8,Prices!$A$2:$T$2,0),FALSE) -> 85.00 | Q111: =VLOOKUP($C111,Prices!$A$3:$T$1996,MATCH('2) Order Form'!Q$8,Prices!$A$2:$T$2,0),FALSE) -> 169.95 | R111: 0 | S111: 0 | T111: 0 | U111: 0% | W111: 7048652713179 | Y111: 0 | Z111: 0 | AA111: 5 | AB111: 0 | AC111: 0 | AD111: 840080Matte Bird Blue | AE111: 840080 | AF111: =VLOOKUP($C111,Classification!$A:$F,5,FALSE) -> 0.000 | AG111: =VLOOKUP($C111,Classification!$A:$F,6,FALSE) -> 1 | AH111: =INDEX(ATS!$A:$U,MATCH('2) Order Form'!$W111,ATS!$T:$T,0),7) -> Active
A112: 1 | B112: =VLOOKUP(A112,Classification!$H$2:$I$11,2,FALSE) -> Helmets & Helmet Acc. | C112: =INDEX(ATS!$A:$U,MATCH('2) Order Form'!$W112,ATS!$T:$T,0),1) -> 840080 | D112: =INDEX(ATS!$A:$U,MATCH('2) Order Form'!$W112,ATS!$T:$T,0),2) -> Ascender | E112: =INDEX(ATS!$A:$U,MATCH('2) Order Form'!$W112,ATS!$T:$T,0),4) -> MASEM-SM | F112: =INDEX(ATS!$A:$U,MATCH('2) Order Form'!$W112,ATS!$T:$T,0),5) -> Matte Sea Metallic | G112: =INDEX(ATS!$A:$U,MATCH('2) Order Form'!$W112,ATS!$T:$T,0),6) -> SM | H112: =INDEX(Packs!$A:$V,MATCH('2) Order Form'!$W112,Packs!$W:$W,0),22) -> 1 | I112: 0 | J112: =IFERROR(VLOOKUP(W112,ATS!$T:$U,2,FALSE),0) -> 39 | K112: 39 | L112: =IFERROR(VLOOKUP(W112,ATS!$T:$V,3,FALSE),0) -> 39 | M112: 39 | N112: 0% | O112: 0% | P112: =VLOOKUP($C112,Prices!$A$3:$T$1996,MATCH('2) Order Form'!P$8,Prices!$A$2:$T$2,0),FALSE) -> 85.00 | Q112: =VLOOKUP($C112,Prices!$A$3:$T$1996,MATCH('2) Order Form'!Q$8,Prices!$A$2:$T$2,0),FALSE) -> 169.95 | R112: 0 | S112: 0 | T112: 0 | U112: 0% | W112: 7048652822963 | Y112: =I112*Q112 -> 0 | Z112: =IF(A112=OFFSET(A112,-1,0),0,1) -> 0 | AA112: 5 | AB112: =IF(C112=OFFSET(C112,-1,0),0,1) -> 0 | AC112: =IF(F112=OFFSET(F112,-1,0),0,1) -> 1 | AD112: =CONCATENATE(C112,F112) -> 840080Matte Sea Metallic | AE112: =IFERROR(IF(B112="EYEWEAR",CONCATENATE(C112,"-",G112),C112),C112) -> 840080 | AF112: =VLOOKUP($C112,Classification!$A:$F,5,FALSE) -> 0.000 | AG112: =VLOOKUP($C112,Classification!$A:$F,6,FALSE) -> 1 | AH112: =INDEX(ATS!$A:$U,MATCH('2) Order Form'!$W112,ATS!$T:$T,0),7) -> Active
A113: 1 | B113: =VLOOKUP(A113,Classification!$H$2:$I$11,2,FALSE) -> Helmets & Helmet Acc. | C113: =INDEX(ATS!$A:$U,MATCH('2) Order Form'!$W113,ATS!$T:$T,0),1) -> 840080 | D113: =INDEX(ATS!$A:$U,MATCH('2) Order Form'!$W113,ATS!$T:$T,0),2) -> Ascender | E113: =INDEX(ATS!$A:$U,MATCH('2) Order Form'!$W113,ATS!$T:$T,0),4) -> MASEM-ML | F113: =INDEX(ATS!$A:$U,MATCH('2) Order Form'!$W113,ATS!$T:$T,0),5) -> Matte Sea Metallic | G113: =INDEX(ATS!$A:$U,MATCH('2) Order Form'!$W113,ATS!$T:$T,0),6) -> ML | H113: =INDEX(Packs!$A:$V,MATCH('2) Order Form'!$W113,Packs!$W:$W,0),22) -> 1 | I113: 0 | J113: =IFERROR(VLOOKUP(W113,ATS!$T:$U,2,FALSE),0) -> 8 | K113: 8 | L113: =IFERROR(VLOOKUP(W113,ATS!$T:$V,3,FALSE),0) -> 8 | M113: 8 | N113: 0% | O113: 0% | P113: =VLOOKUP($C113,Prices!$A$3:$T$1996,MATCH('2) Order Form'!P$8,Prices!$A$2:$T$2,0),FALSE) -> 85.00 | Q113: =VLOOKUP($C113,Prices!$A$3:$T$1996,MATCH('2) Order Form'!Q$8,Prices!$A$2:$T$2,0),FALSE) -> 169.95 | R113: 0 | S113: 0 | T113: 0 | U113: 0% | W113: 7048652822956 | Y113: 0 | Z113: 0 | AA113: 5 | AB113: 0 | AC113: 0 | AD113: 840080Matte Sea Metallic | AE113: 840080 | AF113: =VLOOKUP($C113,Classification!$A:$F,5,FALSE) -> 0.000 | AG113: =VLOOKUP($C113,Classification!$A:$F,6,FALSE) -> 1 | AH113: =INDEX(ATS!$A:$U,MATCH('2) Order Form'!$W113,ATS!$T:$T,0),7) -> Active
A114: 1 | B114: =VLOOKUP(A114,Classification!$H$2:$I$11,2,FALSE) -> Helmets & Helmet Acc. | C114: =INDEX(ATS!$A:$U,MATCH('2) Order Form'!$W114,ATS!$T:$T,0),1) -> 840080 | D114: =INDEX(ATS!$A:$U,MATCH('2) Order Form'!$W114,ATS!$T:$T,0),2) -> Ascender | E114: =INDEX(ATS!$A:$U,MATCH('2) Order Form'!$W114,ATS!$T:$T,0),4) -> MASEM-LXL | F114: =INDEX(ATS!$A:$U,MATCH('2) Order Form'!$W114,ATS!$T:$T,0),5) -> Matte Sea Metallic | G114: =INDEX(ATS!$A:$U,MATCH('2) Order Form'!$W114,ATS!$T:$T,0),6) -> LXL | H114: =INDEX(Packs!$A:$V,MATCH('2) Order Form'!$W114,Packs!$W:$W,0),22) -> 1 | I114: 0 | J114: =IFERROR(VLOOKUP(W114,ATS!$T:$U,2,FALSE),0) -> 21 | K114: 21 | L114: =IFERROR(VLOOKUP(W114,ATS!$T:$V,3,FALSE),0) -> 21 | M114: 21 | N114: 0% | O114: 0% | P114: =VLOOKUP($C114,Prices!$A$3:$T$1996,MATCH('2) Order Form'!P$8,Prices!$A$2:$T$2,0),FALSE) -> 85.00 | Q114: =VLOOKUP($C114,Prices!$A$3:$T$1996,MATCH('2) Order Form'!Q$8,Prices!$A$2:$T$2,0),FALSE) -> 169.95 | R114: 0 | S114: 0 | T114: 0 | U114: 0% | W114: 7048652822949 | Y114: 0 | Z114: 0 | AA114: 5 | AB114: 0 | AC114: 0 | AD114: 840080Matte Sea Metallic | AE114: 840080 | AF114: =VLOOKUP($C114,Classification!$A:$F,5,FALSE) -> 0.000 | AG114: =VLOOKUP($C114,Classification!$A:$F,6,FALSE) -> 1 | AH114: =INDEX(ATS!$A:$U,MATCH('2) Order Form'!$W114,ATS!$T:$T,0),7) -> Active
A115: 1 | B115: =VLOOKUP(A115,Classification!$H$2:$I$11,2,FALSE) -> Helmets & Helmet Acc. | C115: =INDEX(ATS!$A:$U,MATCH('2) Order Form'!$W115,ATS!$T:$T,0),1) -> 840080 | D115: =INDEX(ATS!$A:$U,MATCH('2) Order Form'!$W115,ATS!$T:$T,0),2) -> Ascender | E115: =INDEX(ATS!$A:$U,MATCH('2) Order Form'!$W115,ATS!$T:$T,0),4) -> MBUOE-SM | F115: =INDEX(ATS!$A:$U,MATCH('2) Order Form'!$W115,ATS!$T:$T,0),5) -> Matte Burning Orange | G115: =INDEX(ATS!$A:$U,MATCH('2) Order Form'!$W115,ATS!$T:$T,0),6) -> SM | H115: =INDEX(Packs!$A:$V,MATCH('2) Order Form'!$W115,Packs!$W:$W,0),22) -> 1 | I115: 0 | J115: =IFERROR(VLOOKUP(W115,ATS!$T:$U,2,FALSE),0) -> 32 | K115: 32 | L115: =IFERROR(VLOOKUP(W115,ATS!$T:$V,3,FALSE),0) -> 32 | M115: 32 | N115: 0% | O115: =IF(N115<>0,N115,$P$5) -> 0% | P115: =VLOOKUP($C115,Prices!$A$3:$T$1996,MATCH('2) Order Form'!P$8,Prices!$A$2:$T$2,0),FALSE) -> 85.00 | Q115: =VLOOKUP($C115,Prices!$A$3:$T$1996,MATCH('2) Order Form'!Q$8,Prices!$A$2:$T$2,0),FALSE) -> 169.95 | R115: 0 | S115: 0 | T115: 0 | U115: 0% | W115: 7048652822994 | Y115: 0 | Z115: 0 | AA115: 5 | AB115: 0 | AC115: 1 | AD115: 840080Matte Burning Orange | AE115: 840080 | AF115: =VLOOKUP($C115,Classification!$A:$F,5,FALSE) -> 0.000 | AG115: =VLOOKUP($C115,Classification!$A:$F,6,FALSE) -> 1 | AH115: =INDEX(ATS!$A:$U,MATCH('2) Order Form'!$W115,ATS!$T:$T,0),7) -> Active
A116: 1 | B116: =VLOOKUP(A116,Classification!$H$2:$I$11,2,FALSE) -> Helmets & Helmet Acc. | C116: =INDEX(ATS!$A:$U,MATCH('2) Order Form'!$W116,ATS!$T:$T,0),1) -> 840080 | D116: =INDEX(ATS!$A:$U,MATCH('2) Order Form'!$W116,ATS!$T:$T,0),2) -> Ascender | E116: =INDEX(ATS!$A:$U,MATCH('2) Order Form'!$W116,ATS!$T:$T,0),4) -> MBUOE-ML | F116: =INDEX(ATS!$A:$U,MATCH('2) Order Form'!$W116,ATS!$T:$T,0),5) -> Matte Burning Orange | G116: =INDEX(ATS!$A:$U,MATCH('2) Order Form'!$W116,ATS!$T:$T,0),6) -> ML | H116: =INDEX(Packs!$A:$V,MATCH('2) Order Form'!$W116,Packs!$W:$W,0),22) -> 1 | I116: 0 | J116: =IFERROR(VLOOKUP(W116,ATS!$T:$U,2,FALSE),0) -> -7 | K116: 0 | L116: =IFERROR(VLOOKUP(W116,ATS!$T:$V,3,FALSE),0) -> -7 | M116: 0 | N116: 0% | O116: 0% | P116: =VLOOKUP($C116,Prices!$A$3:$T$1996,MATCH('2) Order Form'!P$8,Prices!$A$2:$T$2,0),FALSE) -> 85.00 | Q116: =VLOOKUP($C116,Prices!$A$3:$T$1996,MATCH('2) Order Form'!Q$8,Prices!$A$2:$T$2,0),FALSE) -> 169.95 | R116: 0 | S116: 0 | T116: 0 | U116: 0% | W116: 7048652822987 | Y116: 0 | Z116: 0 | AA116: 5 | AB116: 0 | AC116: 0 | AD116: 840080Matte Burning Orange | AE116: 840080 | AF116: =VLOOKUP($C116,Classification!$A:$F,5,FALSE) -> 0.000 | AG116: =VLOOKUP($C116,Classification!$A:$F,6,FALSE) -> 1 | AH116: =INDEX(ATS!$A:$U,MATCH('2) Order Form'!$W116,ATS!$T:$T,0),7) -> Active
A117: 1 | B117: =VLOOKUP(A117,Classification!$H$2:$I$11,2,FALSE) -> Helmets & Helmet Acc. | C117: =INDEX(ATS!$A:$U,MATCH('2) Order Form'!$W117,ATS!$T:$T,0),1) -> 840080 | D117: =INDEX(ATS!$A:$U,MATCH('2) Order Form'!$W117,ATS!$T:$T,0),2) -> Ascender | E117: =INDEX(ATS!$A:$U,MATCH('2) Order Form'!$W117,ATS!$T:$T,0),4) -> MBUOE-LXL | F117: =INDEX(ATS!$A:$U,MATCH('2) Order Form'!$W117,ATS!$T:$T,0),5) -> Matte Burning Orange | G117: =INDEX(ATS!$A:$U,MATCH('2) Order Form'!$W117,ATS!$T:$T,0),6) -> LXL | H117: =INDEX(Packs!$A:$V,MATCH('2) Order Form'!$W117,Packs!$W:$W,0),22) -> 1 | I117: 0 | J117: =IFERROR(VLOOKUP(W117,ATS!$T:$U,2,FALSE),0) -> 8 | K117: 8 | L117: =IFERROR(VLOOKUP(W117,ATS!$T:$V,3,FALSE),0) -> 8 | M117: 8 | N117: 0% | O117: 0% | P117: =VLOOKUP($C117,Prices!$A$3:$T$1996,MATCH('2) Order Form'!P$8,Prices!$A$2:$T$2,0),FALSE) -> 85.00 | Q117: =VLOOKUP($C117,Prices!$A$3:$T$1996,MATCH('2) Order Form'!Q$8,Prices!$A$2:$T$2,0),FALSE) -> 169.95 | R117: 0 | S117: 0 | T117: 0 | U117: 0% | W117: 7048652822970 | Y117: 0 | Z117: 0 | AA117: 5 | AB117: 0 | AC117: 0 | AD117: 840080Matte Burning Orange | AE117: 840080 | AF117: =VLOOKUP($C117,Classification!$A:$F,5,FALSE) -> 0.000 | AG117: =VLOOKUP($C117,Classification!$A:$F,6,FALSE) -> 1 | AH117: =INDEX(ATS!$A:$U,MATCH('2) Order Form'!$W117,ATS!$T:$T,0),7) -> Active
A118: 1 | B118: =VLOOKUP(A118,Classification!$H$2:$I$11,2,FALSE) -> Helmets & Helmet Acc. | C118: =INDEX(ATS!$A:$U,MATCH('2) Order Form'!$W118,ATS!$T:$T,0),1) -> 840055 | D118: =INDEX(ATS!$A:$U,MATCH('2) Order Form'!$W118,ATS!$T:$T,0),2) -> Rooster II Mips Helmet | E118: =INDEX(ATS!$A:$U,MATCH('2) Order Form'!$W118,ATS!$T:$T,0),4) -> DTBLK-SM | F118: =INDEX(ATS!$A:$U,MATCH('2) Order Form'!$W118,ATS!$T:$T,0),5) -> Dirt Black | G118: =INDEX(ATS!$A:$U,MATCH('2) Order Form'!$W118,ATS!$T:$T,0),6) -> SM | H118: =INDEX(Packs!$A:$V,MATCH('2) Order Form'!$W118,Packs!$W:$W,0),22) -> 1 | I118: 0 | J118: =IFERROR(VLOOKUP(W118,ATS!$T:$U,2,FALSE),0) -> 80 | K118: 50+ | L118: =IFERROR(VLOOKUP(W118,ATS!$T:$V,3,FALSE),0) -> 80 | M118: 50+ | N118: 0% | O118: =IF(N118<>0,N118,$P$5) -> 0% | P118: =VLOOKUP($C118,Prices!$A$3:$T$1996,MATCH('2) Order Form'!P$8,Prices!$A$2:$T$2,0),FALSE) -> 250.00 | Q118: =VLOOKUP($C118,Prices!$A$3:$T$1996,MATCH('2) Order Form'!Q$8,Prices!$A$2:$T$2,0),FALSE) -> 499.95 | R118: 0 | S118: 0 | T118: 0 | U118: 0% | W118: 7048652186355 | Y118: =I118*Q118 -> 0 | Z118: =IF(A118=OFFSET(A118,-1,0),0,1) -> 0 | AA118: 6 | AB118: =IF(C118=OFFSET(C118,-1,0),0,1) -> 1 | AC118: =IF(F118=OFFSET(F118,-1,0),0,1) -> 1 | AD118: =CONCATENATE(C118,F118) -> 840055Dirt Black | AE118: =IFERROR(IF(B118="EYEWEAR",CONCATENATE(C118,"-",G118),C118),C118) -> 840055 | AF118: =VLOOKUP($C118,Classification!$A:$F,5,FALSE) -> 0.000 | AG118: =VLOOKUP($C118,Classification!$A:$F,6,FALSE) -> 1 | AH118: =INDEX(ATS!$A:$U,MATCH('2) Order Form'!$W118,ATS!$T:$T,0),7) -> Active
A119: 1 | B119: =VLOOKUP(A119,Classification!$H$2:$I$11,2,FALSE) -> Helmets & Helmet Acc. | C119: =INDEX(ATS!$A:$U,MATCH('2) Order Form'!$W119,ATS!$T:$T,0),1) -> 840055 | D119: =INDEX(ATS!$A:$U,MATCH('2) Order Form'!$W119,ATS!$T:$T,0),2) -> Rooster II Mips Helmet | E119: =INDEX(ATS!$A:$U,MATCH('2) Order Form'!$W119,ATS!$T:$T,0),4) -> DTBLK-ML | F119: =INDEX(ATS!$A:$U,MATCH('2) Order Form'!$W119,ATS!$T:$T,0),5) -> Dirt Black | G119: =INDEX(ATS!$A:$U,MATCH('2) Order Form'!$W119,ATS!$T:$T,0),6) -> ML | H119: =INDEX(Packs!$A:$V,MATCH('2) Order Form'!$W119,Packs!$W:$W,0),22) -> 1 | I119: 0 | J119: =IFERROR(VLOOKUP(W119,ATS!$T:$U,2,FALSE),0) -> 56 | K119: 50+ | L119: =IFERROR(VLOOKUP(W119,ATS!$T:$V,3,FALSE),0) -> 56 | M119: 50+ | N119: 0% | O119: 0% | P119: =VLOOKUP($C119,Prices!$A$3:$T$1996,MATCH('2) Order Form'!P$8,Prices!$A$2:$T$2,0),FALSE) -> 250.00 | Q119: =VLOOKUP($C119,Prices!$A$3:$T$1996,MATCH('2) Order Form'!Q$8,Prices!$A$2:$T$2,0),FALSE) -> 499.95 | R119: 0 | S119: 0 | T119: 0 | U119: 0% | W119: 7048652186348 | Y119: 0 | Z119: 0 | AA119: 6 | AB119: 0 | AC119: 0 | AD119: 840055Dirt Black | AE119: 840055 | AF119: =VLOOKUP($C119,Classification!$A:$F,5,FALSE) -> 0.000 | AG119: =VLOOKUP($C119,Classification!$A:$F,6,FALSE) -> 1 | AH119: =INDEX(ATS!$A:$U,MATCH('2) Order Form'!$W119,ATS!$T:$T,0),7) -> Active
A120: 1 | B120: =VLOOKUP(A120,Classification!$H$2:$I$11,2,FALSE) -> Helmets & Helmet Acc. | C120: =INDEX(ATS!$A:$U,MATCH('2) Order Form'!$W120,ATS!$T:$T,0),1) -> 840055 | D120: =INDEX(ATS!$A:$U,MATCH('2) Order Form'!$W120,ATS!$T:$T,0),2) -> Rooster II Mips Helmet | E120: =INDEX(ATS!$A:$U,MATCH('2) Order Form'!$W120,ATS!$T:$T,0),4) -> DTBLK-LXL | F120: =INDEX(ATS!$A:$U,MATCH('2) Order Form'!$W120,ATS!$T:$T,0),5) -> Dirt Black | G120: =INDEX(ATS!$A:$U,MATCH('2) Order Form'!$W120,ATS!$T:$T,0),6) -> LXL | H120: =INDEX(Packs!$A:$V,MATCH('2) Order Form'!$W120,Packs!$W:$W,0),22) -> 1 | I120: 0 | J120: =IFERROR(VLOOKUP(W120,ATS!$T:$U,2,FALSE),0) -> 35 | K120: 35 | L120: =IFERROR(VLOOKUP(W120,ATS!$T:$V,3,FALSE),0) -> 35 | M120: 35 | N120: 0% | O120: 0% | P120: =VLOOKUP($C120,Prices!$A$3:$T$1996,MATCH('2) Order Form'!P$8,Prices!$A$2:$T$2,0),FALSE) -> 250.00 | Q120: =VLOOKUP($C120,Prices!$A$3:$T$1996,MATCH('2) Order Form'!Q$8,Prices!$A$2:$T$2,0),FALSE) -> 499.95 | R120: 0 | S120: 0 | T120: 0 | U120: 0% | W120: 7048652186331 | Y120: 0 | Z120: 0 | AA120: 6 | AB120: 0 | AC120: 0 | AD120: 840055Dirt Black | AE120: 840055 | AF120: =VLOOKUP($C120,Classification!$A:$F,5,FALSE) -> 0.000 | AG120: =VLOOKUP($C120,Classification!$A:$F,6,FALSE) -> 1 | AH120: =INDEX(ATS!$A:$U,MATCH('2) Order Form'!$W120,ATS!$T:$T,0),7) -> Active
A121: 1 | B121: =VLOOKUP(A121,Classification!$H$2:$I$11,2,FALSE) -> Helmets & Helmet Acc. | C121: =INDEX(ATS!$A:$U,MATCH('2) Order Form'!$W121,ATS!$T:$T,0),1) -> 840055 | D121: =INDEX(ATS!$A:$U,MATCH('2) Order Form'!$W121,ATS!$T:$T,0),2) -> Rooster II Mips Helmet | E121: =INDEX(ATS!$A:$U,MATCH('2) Order Form'!$W121,ATS!$T:$T,0),4) -> GSWHT-SM | F121: =INDEX(ATS!$A:$U,MATCH('2) Order Form'!$W121,ATS!$T:$T,0),5) -> Gloss White | G121: =INDEX(ATS!$A:$U,MATCH('2) Order Form'!$W121,ATS!$T:$T,0),6) -> SM | H121: =INDEX(Packs!$A:$V,MATCH('2) Order Form'!$W121,Packs!$W:$W,0),22) -> 1 | I121: 0 | J121: =IFERROR(VLOOKUP(W121,ATS!$T:$U,2,FALSE),0) -> 55 | K121: 50+ | L121: =IFERROR(VLOOKUP(W121,ATS!$T:$V,3,FALSE),0) -> 55 | M121: 50+ | N121: 0% | O121: 0% | P121: =VLOOKUP($C121,Prices!$A$3:$T$1996,MATCH('2) Order Form'!P$8,Prices!$A$2:$T$2,0),FALSE) -> 250.00 | Q121: =VLOOKUP($C121,Prices!$A$3:$T$1996,MATCH('2) Order Form'!Q$8,Prices!$A$2:$T$2,0),FALSE) -> 499.95 | R121: 0 | S121: 0 | T121: 0 | U121: 0% | W121: 7048652186386 | Y121: 0 | Z121: 0 | AA121: 6 | AB121: 0 | AC121: 1 | AD121: 840055Gloss White | AE121: 840055 | AF121: =VLOOKUP($C121,Classification!$A:$F,5,FALSE) -> 0.000 | AG121: =VLOOKUP($C121,Classification!$A:$F,6,FALSE) -> 1 | AH121: =INDEX(ATS!$A:$U,MATCH('2) Order Form'!$W121,ATS!$T:$T,0),7) -> Active
A122: 1 | B122: =VLOOKUP(A122,Classification!$H$2:$I$11,2,FALSE) -> Helmets & Helmet Acc. | C122: =INDEX(ATS!$A:$U,MATCH('2) Order Form'!$W122,ATS!$T:$T,0),1) -> 840055 | D122: =INDEX(ATS!$A:$U,MATCH('2) Order Form'!$W122,ATS!$T:$T,0),2) -> Rooster II Mips Helmet | E122: =INDEX(ATS!$A:$U,MATCH('2) Order Form'!$W122,ATS!$T:$T,0),4) -> GSWHT-ML | F122: =INDEX(ATS!$A:$U,MATCH('2) Order Form'!$W122,ATS!$T:$T,0),5) -> Gloss White | G122: =INDEX(ATS!$A:$U,MATCH('2) Order Form'!$W122,ATS!$T:$T,0),6) -> ML | H122: =INDEX(Packs!$A:$V,MATCH('2) Order Form'!$W122,Packs!$W:$W,0),22) -> 1 | I122: 0 | J122: =IFERROR(VLOOKUP(W122,ATS!$T:$U,2,FALSE),0) -> 51 | K122: 50+ | L122: =IFERROR(VLOOKUP(W122,ATS!$T:$V,3,FALSE),0) -> 51 | M122: 50+ | N122: 0% | O122: 0% | P122: =VLOOKUP($C122,Prices!$A$3:$T$1996,MATCH('2) Order Form'!P$8,Prices!$A$2:$T$2,0),FALSE) -> 250.00 | Q122: =VLOOKUP($C122,Prices!$A$3:$T$1996,MATCH('2) Order Form'!Q$8,Prices!$A$2:$T$2,0),FALSE) -> 499.95 | R122: 0 | S122: 0 | T122: 0 | U122: 0% | W122: 7048652186379 | Y122: 0 | Z122: 0 | AA122: 6 | AB122: 0 | AC122: 0 | AD122: 840055Gloss White | AE122: 840055 | AF122: =VLOOKUP($C122,Classification!$A:$F,5,FALSE) -> 0.000 | AG122: =VLOOKUP($C122,Classification!$A:$F,6,FALSE) -> 1 | AH122: =INDEX(ATS!$A:$U,MATCH('2) Order Form'!$W122,ATS!$T:$T,0),7) -> Active
A123: 1 | B123: =VLOOKUP(A123,Classification!$H$2:$I$11,2,FALSE) -> Helmets & Helmet Acc. | C123: =INDEX(ATS!$A:$U,MATCH('2) Order Form'!$W123,ATS!$T:$T,0),1) -> 840055 | D123: =INDEX(ATS!$A:$U,MATCH('2) Order Form'!$W123,ATS!$T:$T,0),2) -> Rooster II Mips Helmet | E123: =INDEX(ATS!$A:$U,MATCH('2) Order Form'!$W123,ATS!$T:$T,0),4) -> GSWHT-LXL | F123: =INDEX(ATS!$A:$U,MATCH('2) Order Form'!$W123,ATS!$T:$T,0),5) -> Gloss White | G123: =INDEX(ATS!$A:$U,MATCH('2) Order Form'!$W123,ATS!$T:$T,0),6) -> LXL | H123: =INDEX(Packs!$A:$V,MATCH('2) Order Form'!$W123,Packs!$W:$W,0),22) -> 1 | I123: 0 | J123: =IFERROR(VLOOKUP(W123,ATS!$T:$U,2,FALSE),0) -> 55 | K123: 50+ | L123: =IFERROR(VLOOKUP(W123,ATS!$T:$V,3,FALSE),0) -> 55 | M123: 50+ | N123: 0% | O123: 0% | P123: =VLOOKUP($C123,Prices!$A$3:$T$1996,MATCH('2) Order Form'!P$8,Prices!$A$2:$T$2,0),FALSE) -> 250.00 | Q123: =VLOOKUP($C123,Prices!$A$3:$T$1996,MATCH('2) Order Form'!Q$8,Prices!$A$2:$T$2,0),FALSE) -> 499.95 | R123: 0 | S123: 0 | T123: 0 | U123: 0% | W123: 7048652186362 | Y123: 0 | Z123: 0 | AA123: 6 | AB123: 0 | AC123: 0 | AD123: 840055Gloss White | AE123: 840055 | AF123: =VLOOKUP($C123,Classification!$A:$F,5,FALSE) -> 0.000 | AG123: =VLOOKUP($C123,Classification!$A:$F,6,FALSE) -> 1 | AH123: =INDEX(ATS!$A:$U,MATCH('2) Order Form'!$W123,ATS!$T:$T,0),7) -> Active
A124: 1 | B124: =VLOOKUP(A124,Classification!$H$2:$I$11,2,FALSE) -> Helmets & Helmet Acc. | C124: =INDEX(ATS!$A:$U,MATCH('2) Order Form'!$W124,ATS!$T:$T,0),1) -> 840056 | D124: =INDEX(ATS!$A:$U,MATCH('2) Order Form'!$W124,ATS!$T:$T,0),2) -> Rooster II Mips LE Helmet | E124: =INDEX(ATS!$A:$U,MATCH('2) Order Form'!$W124,ATS!$T:$T,0),4) -> NACAR-SM | F124: =INDEX(ATS!$A:$U,MATCH('2) Order Form'!$W124,ATS!$T:$T,0),5) -> Natural Carbon | G124: =INDEX(ATS!$A:$U,MATCH('2) Order Form'!$W124,ATS!$T:$T,0),6) -> SM | H124: =INDEX(Packs!$A:$V,MATCH('2) Order Form'!$W124,Packs!$W:$W,0),22) -> 1 | I124: 0 | J124: =IFERROR(VLOOKUP(W124,ATS!$T:$U,2,FALSE),0) -> 103 | K124: 50+ | L124: =IFERROR(VLOOKUP(W124,ATS!$T:$V,3,FALSE),0) -> 103 | M124: 50+ | N124: 0% | O124: 0% | P124: =VLOOKUP($C124,Prices!$A$3:$T$1996,MATCH('2) Order Form'!P$8,Prices!$A$2:$T$2,0),FALSE) -> 275.00 | Q124: =VLOOKUP($C124,Prices!$A$3:$T$1996,MATCH('2) Order Form'!Q$8,Prices!$A$2:$T$2,0),FALSE) -> 549.95 | R124: 0 | S124: 0 | T124: 0 | U124: 0% | W124: 7048652186416 | Y124: 0 | Z124: 0 | AA124: 7 | AB124: 1 | AC124: 1 | AD124: 840056Natural Carbon | AE124: 840056 | AF124: =VLOOKUP($C124,Classification!$A:$F,5,FALSE) -> 0.000 | AG124: =VLOOKUP($C124,Classification!$A:$F,6,FALSE) -> 1 | AH124: =INDEX(ATS!$A:$U,MATCH('2) Order Form'!$W124,ATS!$T:$T,0),7) -> Active
A125: 1 | B125: =VLOOKUP(A125,Classification!$H$2:$I$11,2,FALSE) -> Helmets & Helmet Acc. | C125: =INDEX(ATS!$A:$U,MATCH('2) Order Form'!$W125,ATS!$T:$T,0),1) -> 840056 | D125: =INDEX(ATS!$A:$U,MATCH('2) Order Form'!$W125,ATS!$T:$T,0),2) -> Rooster II Mips LE Helmet | E125: =INDEX(ATS!$A:$U,MATCH('2) Order Form'!$W125,ATS!$T:$T,0),4) -> NACAR-ML | F125: =INDEX(ATS!$A:$U,MATCH('2) Order Form'!$W125,ATS!$T:$T,0),5) -> Natural Carbon | G125: =INDEX(ATS!$A:$U,MATCH('2) Order Form'!$W125,ATS!$T:$T,0),6) -> ML | H125: =INDEX(Packs!$A:$V,MATCH('2) Order Form'!$W125,Packs!$W:$W,0),22) -> 1 | I125: 0 | J125: =IFERROR(VLOOKUP(W125,ATS!$T:$U,2,FALSE),0) -> 61 | K125: 50+ | L125: =IFERROR(VLOOKUP(W125,ATS!$T:$V,3,FALSE),0) -> 61 | M125: 50+ | N125: 0% | O125: 0% | P125: =VLOOKUP($C125,Prices!$A$3:$T$1996,MATCH('2) Order Form'!P$8,Prices!$A$2:$T$2,0),FALSE) -> 275.00 | Q125: =VLOOKUP($C125,Prices!$A$3:$T$1996,MATCH('2) Order Form'!Q$8,Prices!$A$2:$T$2,0),FALSE) -> 549.95 | R125: 0 | S125: 0 | T125: 0 | U125: 0% | W125: 7048652186409 | Y125: 0 | Z125: 0 | AA125: 7 | AB125: 0 | AC125: 0 | AD125: 840056Natural Carbon | AE125: 840056 | AF125: =VLOOKUP($C125,Classification!$A:$F,5,FALSE) -> 0.000 | AG125: =VLOOKUP($C125,Classification!$A:$F,6,FALSE) -> 1 | AH125: =INDEX(ATS!$A:$U,MATCH('2) Order Form'!$W125,ATS!$T:$T,0),7) -> Active
A126: 1 | B126: =VLOOKUP(A126,Classification!$H$2:$I$11,2,FALSE) -> Helmets & Helmet Acc. | C126: =INDEX(ATS!$A:$U,MATCH('2) Order Form'!$W126,ATS!$T:$T,0),1) -> 840056 | D126: =INDEX(ATS!$A:$U,MATCH('2) Order Form'!$W126,ATS!$T:$T,0),2) -> Rooster II Mips LE Helmet | E126: =INDEX(ATS!$A:$U,MATCH('2) Order Form'!$W126,ATS!$T:$T,0),4) -> NACAR-LXL | F126: =INDEX(ATS!$A:$U,MATCH('2) Order Form'!$W126,ATS!$T:$T,0),5) -> Natural Carbon | G126: =INDEX(ATS!$A:$U,MATCH('2) Order Form'!$W126,ATS!$T:$T,0),6) -> LXL | H126: =INDEX(Packs!$A:$V,MATCH('2) Order Form'!$W126,Packs!$W:$W,0),22) -> 1 | I126: 0 | J126: =IFERROR(VLOOKUP(W126,ATS!$T:$U,2,FALSE),0) -> 63 | K126: 50+ | L126: =IFERROR(VLOOKUP(W126,ATS!$T:$V,3,FALSE),0) -> 63 | M126: 50+ | N126: 0% | O126: 0% | P126: =VLOOKUP($C126,Prices!$A$3:$T$1996,MATCH('2) Order Form'!P$8,Prices!$A$2:$T$2,0),FALSE) -> 275.00 | Q126: =VLOOKUP($C126,Prices!$A$3:$T$1996,MATCH('2) Order Form'!Q$8,Prices!$A$2:$T$2,0),FALSE) -> 549.95 | R126: 0 | S126: 0 | T126: 0 | U126: 0% | W126: 7048652186393 | Y126: 0 | Z126: 0 | AA126: 7 | AB126: 0 | AC126: 0 | AD126: 840056Natural Carbon | AE126: 840056 | AF126: =VLOOKUP($C126,Classification!$A:$F,5,FALSE) -> 0.000 | AG126: =VLOOKUP($C126,Classification!$A:$F,6,FALSE) -> 1 | AH126: =INDEX(ATS!$A:$U,MATCH('2) Order Form'!$W126,ATS!$T:$T,0),7) -> Active
A127: 1 | B127: =VLOOKUP(A127,Classification!$H$2:$I$11,2,FALSE) -> Helmets & Helmet Acc. | C127: =INDEX(ATS!$A:$U,MATCH('2) Order Form'!$W127,ATS!$T:$T,0),1) -> 840092 | D127: =INDEX(ATS!$A:$U,MATCH('2) Order Form'!$W127,ATS!$T:$T,0),2) -> Looper Mips Helmet | E127: =INDEX(ATS!$A:$U,MATCH('2) Order Form'!$W127,ATS!$T:$T,0),4) -> MASEM-SM | F127: =INDEX(ATS!$A:$U,MATCH('2) Order Form'!$W127,ATS!$T:$T,0),5) -> Matte Sea Metallic | G127: =INDEX(ATS!$A:$U,MATCH('2) Order Form'!$W127,ATS!$T:$T,0),6) -> SM | H127: =INDEX(Packs!$A:$V,MATCH('2) Order Form'!$W127,Packs!$W:$W,0),22) -> 1 | I127: 0 | J127: =IFERROR(VLOOKUP(W127,ATS!$T:$U,2,FALSE),0) -> 37 | K127: 37 | L127: =IFERROR(VLOOKUP(W127,ATS!$T:$V,3,FALSE),0) -> 37 | M127: 37 | N127: 0% | O127: 0% | P127: =VLOOKUP($C127,Prices!$A$3:$T$1996,MATCH('2) Order Form'!P$8,Prices!$A$2:$T$2,0),FALSE) -> 90.00 | Q127: =VLOOKUP($C127,Prices!$A$3:$T$1996,MATCH('2) Order Form'!Q$8,Prices!$A$2:$T$2,0),FALSE) -> 179.95 | R127: 0 | S127: 0 | T127: 0 | U127: 0% | W127: 7048652823236 | Y127: 0 | Z127: 0 | AA127: 8 | AB127: 1 | AC127: 1 | AD127: 840092Matte Sea Metallic | AE127: 840092 | AF127: =VLOOKUP($C127,Classification!$A:$F,5,FALSE) -> 0.000 | AG127: =VLOOKUP($C127,Classification!$A:$F,6,FALSE) -> 1 | AH127: =INDEX(ATS!$A:$U,MATCH('2) Order Form'!$W127,ATS!$T:$T,0),7) -> Stock
A128: 1 | B128: =VLOOKUP(A128,Classification!$H$2:$I$11,2,FALSE) -> Helmets & Helmet Acc. | C128: =INDEX(ATS!$A:$U,MATCH('2) Order Form'!$W128,ATS!$T:$T,0),1) -> 840092 | D128: =INDEX(ATS!$A:$U,MATCH('2) Order Form'!$W128,ATS!$T:$T,0),2) -> Looper Mips Helmet | E128: =INDEX(ATS!$A:$U,MATCH('2) Order Form'!$W128,ATS!$T:$T,0),4) -> MASEM-ML | F128: =INDEX(ATS!$A:$U,MATCH('2) Order Form'!$W128,ATS!$T:$T,0),5) -> Matte Sea Metallic | G128: =INDEX(ATS!$A:$U,MATCH('2) Order Form'!$W128,ATS!$T:$T,0),6) -> ML | H128: =INDEX(Packs!$A:$V,MATCH('2) Order Form'!$W128,Packs!$W:$W,0),22) -> 1 | I128: 0 | J128: =IFERROR(VLOOKUP(W128,ATS!$T:$U,2,FALSE),0) -> 41 | K128: 41 | L128: =IFERROR(VLOOKUP(W128,ATS!$T:$V,3,FALSE),0) -> 41 | M128: 41 | N128: 0% | O128: 0% | P128: =VLOOKUP($C128,Prices!$A$3:$T$1996,MATCH('2) Order Form'!P$8,Prices!$A$2:$T$2,0),FALSE) -> 90.00 | Q128: =VLOOKUP($C128,Prices!$A$3:$T$1996,MATCH('2) Order Form'!Q$8,Prices!$A$2:$T$2,0),FALSE) -> 179.95 | R128: 0 | S128: 0 | T128: 0 | U128: 0% | W128: 7048652823229 | Y128: 0 | Z128: 0 | AA128: 8 | AB128: 0 | AC128: 0 | AD128: 840092Matte Sea Metallic | AE128: 840092 | AF128: =VLOOKUP($C128,Classification!$A:$F,5,FALSE) -> 0.000 | AG128: =VLOOKUP($C128,Classification!$A:$F,6,FALSE) -> 1 | AH128: =INDEX(ATS!$A:$U,MATCH('2) Order Form'!$W128,ATS!$T:$T,0),7) -> Stock
A129: 1 | B129: =VLOOKUP(A129,Classification!$H$2:$I$11,2,FALSE) -> Helmets & Helmet Acc. | C129: =INDEX(ATS!$A:$U,MATCH('2) Order Form'!$W129,ATS!$T:$T,0),1) -> 840092 | D129: =INDEX(ATS!$A:$U,MATCH('2) Order Form'!$W129,ATS!$T:$T,0),2) -> Looper Mips Helmet | E129: =INDEX(ATS!$A:$U,MATCH('2) Order Form'!$W129,ATS!$T:$T,0),4) -> MASEM-LXL | F129: =INDEX(ATS!$A:$U,MATCH('2) Order Form'!$W129,ATS!$T:$T,0),5) -> Matte Sea Metallic | G129: =INDEX(ATS!$A:$U,MATCH('2) Order Form'!$W129,ATS!$T:$T,0),6) -> LXL | H129: =INDEX(Packs!$A:$V,MATCH('2) Order Form'!$W129,Packs!$W:$W,0),22) -> 1 | I129: 0 | J129: =IFERROR(VLOOKUP(W129,ATS!$T:$U,2,FALSE),0) -> 13 | K129: 13 | L129: =IFERROR(VLOOKUP(W129,ATS!$T:$V,3,FALSE),0) -> 13 | M129: 13 | N129: 0% | O129: 0% | P129: =VLOOKUP($C129,Prices!$A$3:$T$1996,MATCH('2) Order Form'!P$8,Prices!$A$2:$T$2,0),FALSE) -> 90.00 | Q129: =VLOOKUP($C129,Prices!$A$3:$T$1996,MATCH('2) Order Form'!Q$8,Prices!$A$2:$T$2,0),FALSE) -> 179.95 | R129: 0 | S129: 0 | T129: 0 | U129: 0% | W129: 7048652823212 | Y129: 0 | Z129: 0 | AA129: 8 | AB129: 0 | AC129: 0 | AD129: 840092Matte Sea Metallic | AE129: 840092 | AF129: =VLOOKUP($C129,Classification!$A:$F,5,FALSE) -> 0.000 | AG129: =VLOOKUP($C129,Classification!$A:$F,6,FALSE) -> 1 | AH129: =INDEX(ATS!$A:$U,MATCH('2) Order Form'!$W129,ATS!$T:$T,0),7) -> Stock
A130: 1 | B130: =VLOOKUP(A130,Classification!$H$2:$I$11,2,FALSE) -> Helmets & Helmet Acc. | C130: =INDEX(ATS!$A:$U,MATCH('2) Order Form'!$W130,ATS!$T:$T,0),1) -> 840092 | D130: =INDEX(ATS!$A:$U,MATCH('2) Order Form'!$W130,ATS!$T:$T,0),2) -> Looper Mips Helmet | E130: =INDEX(ATS!$A:$U,MATCH('2) Order Form'!$W130,ATS!$T:$T,0),4) -> MBRWH-SM | F130: =INDEX(ATS!$A:$U,MATCH('2) Order Form'!$W130,ATS!$T:$T,0),5) -> Matte Bronco White | G130: =INDEX(ATS!$A:$U,MATCH('2) Order Form'!$W130,ATS!$T:$T,0),6) -> SM | H130: =INDEX(Packs!$A:$V,MATCH('2) Order Form'!$W130,Packs!$W:$W,0),22) -> 1 | I130: 0 | J130: =IFERROR(VLOOKUP(W130,ATS!$T:$U,2,FALSE),0) -> 134 | K130: 50+ | L130: =IFERROR(VLOOKUP(W130,ATS!$T:$V,3,FALSE),0) -> 134 | M130: 50+ | N130: 0% | O130: =IF(N130<>0,N130,$P$5) -> 0% | P130: =VLOOKUP($C130,Prices!$A$3:$T$1996,MATCH('2) Order Form'!P$8,Prices!$A$2:$T$2,0),FALSE) -> 90.00 | Q130: =VLOOKUP($C130,Prices!$A$3:$T$1996,MATCH('2) Order Form'!Q$8,Prices!$A$2:$T$2,0),FALSE) -> 179.95 | R130: 0 | S130: 0 | T130: 0 | U130: 0% | W130: 7048652823267 | Y130: =I130*Q130 -> 0 | Z130: =IF(A130=OFFSET(A130,-1,0),0,1) -> 0 | AA130: 8 | AB130: =IF(C130=OFFSET(C130,-1,0),0,1) -> 0 | AC130: =IF(F130=OFFSET(F130,-1,0),0,1) -> 1 | AD130: =CONCATENATE(C130,F130) -> 840092Matte Bronco White | AE130: =IFERROR(IF(B130="EYEWEAR",CONCATENATE(C130,"-",G130),C130),C130) -> 840092 | AF130: =VLOOKUP($C130,Classification!$A:$F,5,FALSE) -> 0.000 | AG130: =VLOOKUP($C130,Classification!$A:$F,6,FALSE) -> 1 | AH130: =INDEX(ATS!$A:$U,MATCH('2) Order Form'!$W130,ATS!$T:$T,0),7) -> Active
A131: 1 | B131: =VLOOKUP(A131,Classification!$H$2:$I$11,2,FALSE) -> Helmets & Helmet Acc. | C131: =INDEX(ATS!$A:$U,MATCH('2) Order Form'!$W131,ATS!$T:$T,0),1) -> 840092 | D131: =INDEX(ATS!$A:$U,MATCH('2) Order Form'!$W131,ATS!$T:$T,0),2) -> Looper Mips Helmet | E131: =INDEX(ATS!$A:$U,MATCH('2) Order Form'!$W131,ATS!$T:$T,0),4) -> MBRWH-ML | F131: =INDEX(ATS!$A:$U,MATCH('2) Order Form'!$W131,ATS!$T:$T,0),5) -> Matte Bronco White | G131: =INDEX(ATS!$A:$U,MATCH('2) Order Form'!$W131,ATS!$T:$T,0),6) -> ML | H131: =INDEX(Packs!$A:$V,MATCH('2) Order Form'!$W131,Packs!$W:$W,0),22) -> 1 | I131: 0 | J131: =IFERROR(VLOOKUP(W131,ATS!$T:$U,2,FALSE),0) -> 225 | K131: 50+ | L131: =IFERROR(VLOOKUP(W131,ATS!$T:$V,3,FALSE),0) -> 225 | M131: 50+ | N131: 0% | O131: 0% | P131: =VLOOKUP($C131,Prices!$A$3:$T$1996,MATCH('2) Order Form'!P$8,Prices!$A$2:$T$2,0),FALSE) -> 90.00 | Q131: =VLOOKUP($C131,Prices!$A$3:$T$1996,MATCH('2) Order Form'!Q$8,Prices!$A$2:$T$2,0),FALSE) -> 179.95 | R131: 0 | S131: 0 | T131: 0 | U131: 0% | W131: 7048652823250 | Y131: 0 | Z131: 0 | AA131: 8 | AB131: 0 | AC131: 0 | AD131: 840092Matte Bronco White | AE131: 840092 | AF131: =VLOOKUP($C131,Classification!$A:$F,5,FALSE) -> 0.000 | AG131: =VLOOKUP($C131,Classification!$A:$F,6,FALSE) -> 1 | AH131: =INDEX(ATS!$A:$U,MATCH('2) Order Form'!$W131,ATS!$T:$T,0),7) -> Active
A132: 1 | B132: =VLOOKUP(A132,Classification!$H$2:$I$11,2,FALSE) -> Helmets & Helmet Acc. | C132: =INDEX(ATS!$A:$U,MATCH('2) Order Form'!$W132,ATS!$T:$T,0),1) -> 840092 | D132: =INDEX(ATS!$A:$U,MATCH('2) Order Form'!$W132,ATS!$T:$T,0),2) -> Looper Mips Helmet | E132: =INDEX(ATS!$A:$U,MATCH('2) Order Form'!$W132,ATS!$T:$T,0),4) -> MBRWH-LXL | F132: =INDEX(ATS!$A:$U,MATCH('2) Order Form'!$W132,ATS!$T:$T,0),5) -> Matte Bronco White | G132: =INDEX(ATS!$A:$U,MATCH('2) Order Form'!$W132,ATS!$T:$T,0),6) -> LXL | H132: =INDEX(Packs!$A:$V,MATCH('2) Order Form'!$W132,Packs!$W:$W,0),22) -> 1 | I132: 0 | J132: =IFERROR(VLOOKUP(W132,ATS!$T:$U,2,FALSE),0) -> 279 | K132: 50+ | L132: =IFERROR(VLOOKUP(W132,ATS!$T:$V,3,FALSE),0) -> 279 | M132: 50+ | N132: 0% | O132: 0% | P132: =VLOOKUP($C132,Prices!$A$3:$T$1996,MATCH('2) Order Form'!P$8,Prices!$A$2:$T$2,0),FALSE) -> 90.00 | Q132: =VLOOKUP($C132,Prices!$A$3:$T$1996,MATCH('2) Order Form'!Q$8,Prices!$A$2:$T$2,0),FALSE) -> 179.95 | R132: 0 | S132: 0 | T132: 0 | U132: 0% | W132: 7048652823243 | Y132: 0 | Z132: 0 | AA132: 8 | AB132: 0 | AC132: 0 | AD132: 840092Matte Bronco White | AE132: 840092 | AF132: =VLOOKUP($C132,Classification!$A:$F,5,FALSE) -> 0.000 | AG132: =VLOOKUP($C132,Classification!$A:$F,6,FALSE) -> 1 | AH132: =INDEX(ATS!$A:$U,MATCH('2) Order Form'!$W132,ATS!$T:$T,0),7) -> Active
A133: 1 | B133: =VLOOKUP(A133,Classification!$H$2:$I$11,2,FALSE) -> Helmets & Helmet Acc. | C133: =INDEX(ATS!$A:$U,MATCH('2) Order Form'!$W133,ATS!$T:$T,0),1) -> 840092 | D133: =INDEX(ATS!$A:$U,MATCH('2) Order Form'!$W133,ATS!$T:$T,0),2) -> Looper Mips Helmet | E133: =INDEX(ATS!$A:$U,MATCH('2) Order Form'!$W133,ATS!$T:$T,0),4) -> MROGD-SM | F133: =INDEX(ATS!$A:$U,MATCH('2) Order Form'!$W133,ATS!$T:$T,0),5) -> Matte Rose Gold | G133: =INDEX(ATS!$A:$U,MATCH('2) Order Form'!$W133,ATS!$T:$T,0),6) -> SM | H133: =INDEX(Packs!$A:$V,MATCH('2) Order Form'!$W133,Packs!$W:$W,0),22) -> 1 | I133: 0 | J133: =IFERROR(VLOOKUP(W133,ATS!$T:$U,2,FALSE),0) -> 67 | K133: 50+ | L133: =IFERROR(VLOOKUP(W133,ATS!$T:$V,3,FALSE),0) -> 67 | M133: 50+ | N133: 0% | O133: 0% | P133: =VLOOKUP($C133,Prices!$A$3:$T$1996,MATCH('2) Order Form'!P$8,Prices!$A$2:$T$2,0),FALSE) -> 90.00 | Q133: =VLOOKUP($C133,Prices!$A$3:$T$1996,MATCH('2) Order Form'!Q$8,Prices!$A$2:$T$2,0),FALSE) -> 179.95 | R133: 0 | S133: 0 | T133: 0 | U133: 0% | W133: 7048652823298 | Y133: 0 | Z133: 0 | AA133: 8 | AB133: 0 | AC133: 1 | AD133: 840092Matte Rose Gold | AE133: 840092 | AF133: =VLOOKUP($C133,Classification!$A:$F,5,FALSE) -> 0.000 | AG133: =VLOOKUP($C133,Classification!$A:$F,6,FALSE) -> 1 | AH133: =INDEX(ATS!$A:$U,MATCH('2) Order Form'!$W133,ATS!$T:$T,0),7) -> Stock
A134: 1 | B134: =VLOOKUP(A134,Classification!$H$2:$I$11,2,FALSE) -> Helmets & Helmet Acc. | C134: =INDEX(ATS!$A:$U,MATCH('2) Order Form'!$W134,ATS!$T:$T,0),1) -> 840092 | D134: =INDEX(ATS!$A:$U,MATCH('2) Order Form'!$W134,ATS!$T:$T,0),2) -> Looper Mips Helmet | E134: =INDEX(ATS!$A:$U,MATCH('2) Order Form'!$W134,ATS!$T:$T,0),4) -> MROGD-ML | F134: =INDEX(ATS!$A:$U,MATCH('2) Order Form'!$W134,ATS!$T:$T,0),5) -> Matte Rose Gold | G134: =INDEX(ATS!$A:$U,MATCH('2) Order Form'!$W134,ATS!$T:$T,0),6) -> ML | H134: =INDEX(Packs!$A:$V,MATCH('2) Order Form'!$W134,Packs!$W:$W,0),22) -> 1 | I134: 0 | J134: =IFERROR(VLOOKUP(W134,ATS!$T:$U,2,FALSE),0) -> 75 | K134: 50+ | L134: =IFERROR(VLOOKUP(W134,ATS!$T:$V,3,FALSE),0) -> 75 | M134: 50+ | N134: 0% | O134: =IF(N134<>0,N134,$P$5) -> 0% | P134: =VLOOKUP($C134,Prices!$A$3:$T$1996,MATCH('2) Order Form'!P$8,Prices!$A$2:$T$2,0),FALSE) -> 90.00 | Q134: =VLOOKUP($C134,Prices!$A$3:$T$1996,MATCH('2) Order Form'!Q$8,Prices!$A$2:$T$2,0),FALSE) -> 179.95 | R134: 0 | S134: 0 | T134: 0 | U134: 0% | W134: 7048652823281 | Y134: =I134*Q134 -> 0 | Z134: =IF(A134=OFFSET(A134,-1,0),0,1) -> 0 | AA134: 8 | AB134: =IF(C134=OFFSET(C134,-1,0),0,1) -> 0 | AC134: =IF(F134=OFFSET(F134,-1,0),0,1) -> 0 | AD134: =CONCATENATE(C134,F134) -> 840092Matte Rose Gold | AE134: =IFERROR(IF(B134="EYEWEAR",CONCATENATE(C134,"-",G134),C134),C134) -> 840092 | AF134: =VLOOKUP($C134,Classification!$A:$F,5,FALSE) -> 0.000 | AG134: =VLOOKUP($C134,Classification!$A:$F,6,FALSE) -> 1 | AH134: =INDEX(ATS!$A:$U,MATCH('2) Order Form'!$W134,ATS!$T:$T,0),7) -> Stock
A135: 1 | B135: =VLOOKUP(A135,Classification!$H$2:$I$11,2,FALSE) -> Helmets & Helmet Acc. | C135: =INDEX(ATS!$A:$U,MATCH('2) Order Form'!$W135,ATS!$T:$T,0),1) -> 840092 | D135: =INDEX(ATS!$A:$U,MATCH('2) Order Form'!$W135,ATS!$T:$T,0),2) -> Looper Mips Helmet | E135: =INDEX(ATS!$A:$U,MATCH('2) Order Form'!$W135,ATS!$T:$T,0),4) -> MROGD-LXL | F135: =INDEX(ATS!$A:$U,MATCH('2) Order Form'!$W135,ATS!$T:$T,0),5) -> Matte Rose Gold | G135: =INDEX(ATS!$A:$U,MATCH('2) Order Form'!$W135,ATS!$T:$T,0),6) -> LXL | H135: =INDEX(Packs!$A:$V,MATCH('2) Order Form'!$W135,Packs!$W:$W,0),22) -> 1 | I135: 0 | J135: =IFERROR(VLOOKUP(W135,ATS!$T:$U,2,FALSE),0) -> 38 | K135: 38 | L135: =IFERROR(VLOOKUP(W135,ATS!$T:$V,3,FALSE),0) -> 38 | M135: 38 | N135: 0% | O135: 0% | P135: =VLOOKUP($C135,Prices!$A$3:$T$1996,MATCH('2) Order Form'!P$8,Prices!$A$2:$T$2,0),FALSE) -> 90.00 | Q135: =VLOOKUP($C135,Prices!$A$3:$T$1996,MATCH('2) Order Form'!Q$8,Prices!$A$2:$T$2,0),FALSE) -> 179.95 | R135: 0 | S135: 0 | T135: 0 | U135: 0% | W135: 7048652823274 | Y135: 0 | Z135: 0 | AA135: 8 | AB135: 0 | AC135: 0 | AD135: 840092Matte Rose Gold | AE135: 840092 | AF135: =VLOOKUP($C135,Classification!$A:$F,5,FALSE) -> 0.000 | AG135: =VLOOKUP($C135,Classification!$A:$F,6,FALSE) -> 1 | AH135: =INDEX(ATS!$A:$U,MATCH('2) Order Form'!$W135,ATS!$T:$T,0),7) -> Stock
A136: 1 | B136: =VLOOKUP(A136,Classification!$H$2:$I$11,2,FALSE) -> Helmets & Helmet Acc. | C136: =INDEX(ATS!$A:$U,MATCH('2) Order Form'!$W136,ATS!$T:$T,0),1) -> 840092 | D136: =INDEX(ATS!$A:$U,MATCH('2) Order Form'!$W136,ATS!$T:$T,0),2) -> Looper Mips Helmet | E136: =INDEX(ATS!$A:$U,MATCH('2) Order Form'!$W136,ATS!$T:$T,0),4) -> DTBLK-SM | F136: =INDEX(ATS!$A:$U,MATCH('2) Order Form'!$W136,ATS!$T:$T,0),5) -> Dirt Black | G136: =INDEX(ATS!$A:$U,MATCH('2) Order Form'!$W136,ATS!$T:$T,0),6) -> SM | H136: =INDEX(Packs!$A:$V,MATCH('2) Order Form'!$W136,Packs!$W:$W,0),22) -> 1 | I136: 0 | J136: =IFERROR(VLOOKUP(W136,ATS!$T:$U,2,FALSE),0) -> 249 | K136: 50+ | L136: =IFERROR(VLOOKUP(W136,ATS!$T:$V,3,FALSE),0) -> 249 | M136: 50+ | N136: 0% | O136: 0% | P136: =VLOOKUP($C136,Prices!$A$3:$T$1996,MATCH('2) Order Form'!P$8,Prices!$A$2:$T$2,0),FALSE) -> 90.00 | Q136: =VLOOKUP($C136,Prices!$A$3:$T$1996,MATCH('2) Order Form'!Q$8,Prices!$A$2:$T$2,0),FALSE) -> 179.95 | R136: 0 | S136: 0 | T136: 0 | U136: 0% | W136: 7048652604897 | Y136: 0 | Z136: 0 | AA136: 8 | AB136: 0 | AC136: 1 | AD136: 840092Dirt Black | AE136: 840092 | AF136: =VLOOKUP($C136,Classification!$A:$F,5,FALSE) -> 0.000 | AG136: =VLOOKUP($C136,Classification!$A:$F,6,FALSE) -> 1 | AH136: =INDEX(ATS!$A:$U,MATCH('2) Order Form'!$W136,ATS!$T:$T,0),7) -> Active
A137: 1 | B137: =VLOOKUP(A137,Classification!$H$2:$I$11,2,FALSE) -> Helmets & Helmet Acc. | C137: =INDEX(ATS!$A:$U,MATCH('2) Order Form'!$W137,ATS!$T:$T,0),1) -> 840092 | D137: =INDEX(ATS!$A:$U,MATCH('2) Order Form'!$W137,ATS!$T:$T,0),2) -> Looper Mips Helmet | E137: =INDEX(ATS!$A:$U,MATCH('2) Order Form'!$W137,ATS!$T:$T,0),4) -> DTBLK-ML | F137: =INDEX(ATS!$A:$U,MATCH('2) Order Form'!$W137,ATS!$T:$T,0),5) -> Dirt Black | G137: =INDEX(ATS!$A:$U,MATCH('2) Order Form'!$W137,ATS!$T:$T,0),6) -> ML | H137: =INDEX(Packs!$A:$V,MATCH('2) Order Form'!$W137,Packs!$W:$W,0),22) -> 1 | I137: 0 | J137: =IFERROR(VLOOKUP(W137,ATS!$T:$U,2,FALSE),0) -> 382 | K137: 50+ | L137: =IFERROR(VLOOKUP(W137,ATS!$T:$V,3,FALSE),0) -> 382 | M137: 50+ | N137: 0% | O137: 0% | P137: =VLOOKUP($C137,Prices!$A$3:$T$1996,MATCH('2) Order Form'!P$8,Prices!$A$2:$T$2,0),FALSE) -> 90.00 | Q137: =VLOOKUP($C137,Prices!$A$3:$T$1996,MATCH('2) Order Form'!Q$8,Prices!$A$2:$T$2,0),FALSE) -> 179.95 | R137: 0 | S137: 0 | T137: 0 | U137: =IFERROR(I137/SUMIF($AD$9:$AD$888,AD137,$I$9:$I$888),0) -> 0% | W137: 7048652604880 | Y137: 0 | Z137: 0 | AA137: 8 | AB137: 0 | AC137: 0 | AD137: 840092Dirt Black | AE137: 840092 | AF137: =VLOOKUP($C137,Classification!$A:$F,5,FALSE) -> 0.000 | AG137: =VLOOKUP($C137,Classification!$A:$F,6,FALSE) -> 1 | AH137: =INDEX(ATS!$A:$U,MATCH('2) Order Form'!$W137,ATS!$T:$T,0),7) -> Active
A138: 1 | B138: =VLOOKUP(A138,Classification!$H$2:$I$11,2,FALSE) -> Helmets & Helmet Acc. | C138: =INDEX(ATS!$A:$U,MATCH('2) Order Form'!$W138,ATS!$T:$T,0),1) -> 840092 | D138: =INDEX(ATS!$A:$U,MATCH('2) Order Form'!$W138,ATS!$T:$T,0),2) -> Looper Mips Helmet | E138: =INDEX(ATS!$A:$U,MATCH('2) Order Form'!$W138,ATS!$T:$T,0),4) -> DTBLK-LXL | F138: =INDEX(ATS!$A:$U,MATCH('2) Order Form'!$W138,ATS!$T:$T,0),5) -> Dirt Black | G138: =INDEX(ATS!$A:$U,MATCH('2) Order Form'!$W138,ATS!$T:$T,0),6) -> LXL | H138: =INDEX(Packs!$A:$V,MATCH('2) Order Form'!$W138,Packs!$W:$W,0),22) -> 1 | I138: 0 | J138: =IFERROR(VLOOKUP(W138,ATS!$T:$U,2,FALSE),0) -> 328 | K138: =IF(J138=99999,"OPEN",IF(J138>50,"50+",IF(J138<=0,"0",J138))) -> 50+ | L138: =IFERROR(VLOOKUP(W138,ATS!$T:$V,3,FALSE),0) -> 328 | M138: =IF(L138=99999,"OPEN",IF(L138>50,"50+",IF(L138<=0,"0",L138))) -> 50+ | N138: 0% | O138: =IF(N138<>0,N138,$P$5) -> 0% | P138: =VLOOKUP($C138,Prices!$A$3:$T$1996,MATCH('2) Order Form'!P$8,Prices!$A$2:$T$2,0),FALSE) -> 90.00 | Q138: =VLOOKUP($C138,Prices!$A$3:$T$1996,MATCH('2) Order Form'!Q$8,Prices!$A$2:$T$2,0),FALSE) -> 179.95 | R138: =I138*P138 -> 0 | S138: =R138*O138 -> 0 | T138: =R138-S138 -> 0 | U138: 0% | W138: 7048652604873 | Y138: 0 | Z138: 0 | AA138: 8 | AB138: 0 | AC138: 0 | AD138: 840092Dirt Black | AE138: 840092 | AF138: =VLOOKUP($C138,Classification!$A:$F,5,FALSE) -> 0.000 | AG138: =VLOOKUP($C138,Classification!$A:$F,6,FALSE) -> 1 | AH138: =INDEX(ATS!$A:$U,MATCH('2) Order Form'!$W138,ATS!$T:$T,0),7) -> Active
A139: 1 | B139: =VLOOKUP(A139,Classification!$H$2:$I$11,2,FALSE) -> Helmets & Helmet Acc. | C139: =INDEX(ATS!$A:$U,MATCH('2) Order Form'!$W139,ATS!$T:$T,0),1) -> 840092 | D139: =INDEX(ATS!$A:$U,MATCH('2) Order Form'!$W139,ATS!$T:$T,0),2) -> Looper Mips Helmet | E139: =INDEX(ATS!$A:$U,MATCH('2) Order Form'!$W139,ATS!$T:$T,0),4) -> MHGRN-SM | F139: =INDEX(ATS!$A:$U,MATCH('2) Order Form'!$W139,ATS!$T:$T,0),5) -> Matte Highland Green | G139: =INDEX(ATS!$A:$U,MATCH('2) Order Form'!$W139,ATS!$T:$T,0),6) -> SM | H139: =INDEX(Packs!$A:$V,MATCH('2) Order Form'!$W139,Packs!$W:$W,0),22) -> 1 | I139: 0 | J139: =IFERROR(VLOOKUP(W139,ATS!$T:$U,2,FALSE),0) -> 0 | K139: 0 | L139: =IFERROR(VLOOKUP(W139,ATS!$T:$V,3,FALSE),0) -> 0 | M139: 0 | N139: 0% | O139: 0% | P139: =VLOOKUP($C139,Prices!$A$3:$T$1996,MATCH('2) Order Form'!P$8,Prices!$A$2:$T$2,0),FALSE) -> 90.00 | Q139: =VLOOKUP($C139,Prices!$A$3:$T$1996,MATCH('2) Order Form'!Q$8,Prices!$A$2:$T$2,0),FALSE) -> 179.95 | R139: 0 | S139: 0 | T139: 0 | U139: 0% | W139: 7048652604989 | Y139: 0 | Z139: 0 | AA139: 8 | AB139: 0 | AC139: 1 | AD139: 840092Matte Highland Green | AE139: 840092 | AF139: =VLOOKUP($C139,Classification!$A:$F,5,FALSE) -> 0.000 | AG139: =VLOOKUP($C139,Classification!$A:$F,6,FALSE) -> 1 | AH139: =INDEX(ATS!$A:$U,MATCH('2) Order Form'!$W139,ATS!$T:$T,0),7) -> Stock
A140: 1 | B140: =VLOOKUP(A140,Classification!$H$2:$I$11,2,FALSE) -> Helmets & Helmet Acc. | C140: =INDEX(ATS!$A:$U,MATCH('2) Order Form'!$W140,ATS!$T:$T,0),1) -> 840092 | D140: =INDEX(ATS!$A:$U,MATCH('2) Order Form'!$W140,ATS!$T:$T,0),2) -> Looper Mips Helmet | E140: =INDEX(ATS!$A:$U,MATCH('2) Order Form'!$W140,ATS!$T:$T,0),4) -> MHGRN-ML | F140: =INDEX(ATS!$A:$U,MATCH('2) Order Form'!$W140,ATS!$T:$T,0),5) -> Matte Highland Green | G140: =INDEX(ATS!$A:$U,MATCH('2) Order Form'!$W140,ATS!$T:$T,0),6) -> ML | H140: =INDEX(Packs!$A:$V,MATCH('2) Order Form'!$W140,Packs!$W:$W,0),22) -> 1 | I140: 0 | J140: =IFERROR(VLOOKUP(W140,ATS!$T:$U,2,FALSE),0) -> 4 | K140: 4 | L140: =IFERROR(VLOOKUP(W140,ATS!$T:$V,3,FALSE),0) -> 4 | M140: 4 | N140: 0% | O140: 0% | P140: =VLOOKUP($C140,Prices!$A$3:$T$1996,MATCH('2) Order Form'!P$8,Prices!$A$2:$T$2,0),FALSE) -> 90.00 | Q140: =VLOOKUP($C140,Prices!$A$3:$T$1996,MATCH('2) Order Form'!Q$8,Prices!$A$2:$T$2,0),FALSE) -> 179.95 | R140: 0 | S140: 0 | T140: 0 | U140: 0% | W140: 7048652604972 | Y140: 0 | Z140: 0 | AA140: =IF(C140=OFFSET(C140,-1,0),OFFSET(AA140,-1,0),OFFSET(AA140,-1,0)+1) -> 8 | AB140: 0 | AC140: 0 | AD140: 840092Matte Highland Green | AE140: 840092 | AF140: =VLOOKUP($C140,Classification!$A:$F,5,FALSE) -> 0.000 | AG140: =VLOOKUP($C140,Classification!$A:$F,6,FALSE) -> 1 | AH140: =INDEX(ATS!$A:$U,MATCH('2) Order Form'!$W140,ATS!$T:$T,0),7) -> Stock
A141: 1 | B141: =VLOOKUP(A141,Classification!$H$2:$I$11,2,FALSE) -> Helmets & Helmet Acc. | C141: =INDEX(ATS!$A:$U,MATCH('2) Order Form'!$W141,ATS!$T:$T,0),1) -> 840092 | D141: =INDEX(ATS!$A:$U,MATCH('2) Order Form'!$W141,ATS!$T:$T,0),2) -> Looper Mips Helmet | E141: =INDEX(ATS!$A:$U,MATCH('2) Order Form'!$W141,ATS!$T:$T,0),4) -> MHGRN-LXL | F141: =INDEX(ATS!$A:$U,MATCH('2) Order Form'!$W141,ATS!$T:$T,0),5) -> Matte Highland Green | G141: =INDEX(ATS!$A:$U,MATCH('2) Order Form'!$W141,ATS!$T:$T,0),6) -> LXL | H141: =INDEX(Packs!$A:$V,MATCH('2) Order Form'!$W141,Packs!$W:$W,0),22) -> 1 | I141: 0 | J141: =IFERROR(VLOOKUP(W141,ATS!$T:$U,2,FALSE),0) -> 33 | K141: 33 | L141: =IFERROR(VLOOKUP(W141,ATS!$T:$V,3,FALSE),0) -> 33 | M141: 33 | N141: 0% | O141: 0% | P141: =VLOOKUP($C141,Prices!$A$3:$T$1996,MATCH('2) Order Form'!P$8,Prices!$A$2:$T$2,0),FALSE) -> 90.00 | Q141: =VLOOKUP($C141,Prices!$A$3:$T$1996,MATCH('2) Order Form'!Q$8,Prices!$A$2:$T$2,0),FALSE) -> 179.95 | R141: 0 | S141: 0 | T141: 0 | U141: 0% | W141: 7048652604965 | Y141: 0 | Z141: 0 | AA141: 8 | AB141: 0 | AC141: 0 | AD141: 840092Matte Highland Green | AE141: 840092 | AF141: =VLOOKUP($C141,Classification!$A:$F,5,FALSE) -> 0.000 | AG141: =VLOOKUP($C141,Classification!$A:$F,6,FALSE) -> 1 | AH141: =INDEX(ATS!$A:$U,MATCH('2) Order Form'!$W141,ATS!$T:$T,0),7) -> Stock
A142: 1 | B142: =VLOOKUP(A142,Classification!$H$2:$I$11,2,FALSE) -> Helmets & Helmet Acc. | C142: =INDEX(ATS!$A:$U,MATCH('2) Order Form'!$W142,ATS!$T:$T,0),1) -> 840092 | D142: =INDEX(ATS!$A:$U,MATCH('2) Order Form'!$W142,ATS!$T:$T,0),2) -> Looper Mips Helmet | E142: =INDEX(ATS!$A:$U,MATCH('2) Order Form'!$W142,ATS!$T:$T,0),4) -> MNGRY-SM | F142: =INDEX(ATS!$A:$U,MATCH('2) Order Form'!$W142,ATS!$T:$T,0),5) -> Matte Nardo Gray | G142: =INDEX(ATS!$A:$U,MATCH('2) Order Form'!$W142,ATS!$T:$T,0),6) -> SM | H142: =INDEX(Packs!$A:$V,MATCH('2) Order Form'!$W142,Packs!$W:$W,0),22) -> 1 | I142: 0 | J142: =IFERROR(VLOOKUP(W142,ATS!$T:$U,2,FALSE),0) -> 81 | K142: 50+ | L142: =IFERROR(VLOOKUP(W142,ATS!$T:$V,3,FALSE),0) -> 81 | M142: 50+ | N142: 0% | O142: 0% | P142: =VLOOKUP($C142,Prices!$A$3:$T$1996,MATCH('2) Order Form'!P$8,Prices!$A$2:$T$2,0),FALSE) -> 90.00 | Q142: =VLOOKUP($C142,Prices!$A$3:$T$1996,MATCH('2) Order Form'!Q$8,Prices!$A$2:$T$2,0),FALSE) -> 179.95 | R142: 0 | S142: 0 | T142: 0 | U142: 0% | W142: 7048652605016 | Y142: 0 | Z142: 0 | AA142: 8 | AB142: 0 | AC142: 1 | AD142: 840092Matte Nardo Gray | AE142: 840092 | AF142: =VLOOKUP($C142,Classification!$A:$F,5,FALSE) -> 0.000 | AG142: =VLOOKUP($C142,Classification!$A:$F,6,FALSE) -> 1 | AH142: =INDEX(ATS!$A:$U,MATCH('2) Order Form'!$W142,ATS!$T:$T,0),7) -> Active
A143: 1 | B143: =VLOOKUP(A143,Classification!$H$2:$I$11,2,FALSE) -> Helmets & Helmet Acc. | C143: =INDEX(ATS!$A:$U,MATCH('2) Order Form'!$W143,ATS!$T:$T,0),1) -> 840092 | D143: =INDEX(ATS!$A:$U,MATCH('2) Order Form'!$W143,ATS!$T:$T,0),2) -> Looper Mips Helmet | E143: =INDEX(ATS!$A:$U,MATCH('2) Order Form'!$W143,ATS!$T:$T,0),4) -> MNGRY-ML | F143: =INDEX(ATS!$A:$U,MATCH('2) Order Form'!$W143,ATS!$T:$T,0),5) -> Matte Nardo Gray | G143: =INDEX(ATS!$A:$U,MATCH('2) Order Form'!$W143,ATS!$T:$T,0),6) -> ML | H143: =INDEX(Packs!$A:$V,MATCH('2) Order Form'!$W143,Packs!$W:$W,0),22) -> 1 | I143: 0 | J143: =IFERROR(VLOOKUP(W143,ATS!$T:$U,2,FALSE),0) -> 181 | K143: 50+ | L143: =IFERROR(VLOOKUP(W143,ATS!$T:$V,3,FALSE),0) -> 181 | M143: 50+ | N143: 0% | O143: 0% | P143: =VLOOKUP($C143,Prices!$A$3:$T$1996,MATCH('2) Order Form'!P$8,Prices!$A$2:$T$2,0),FALSE) -> 90.00 | Q143: =VLOOKUP($C143,Prices!$A$3:$T$1996,MATCH('2) Order Form'!Q$8,Prices!$A$2:$T$2,0),FALSE) -> 179.95 | R143: 0 | S143: 0 | T143: 0 | U143: 0% | W143: 7048652605009 | Y143: 0 | Z143: 0 | AA143: 8 | AB143: 0 | AC143: 0 | AD143: 840092Matte Nardo Gray | AE143: 840092 | AF143: =VLOOKUP($C143,Classification!$A:$F,5,FALSE) -> 0.000 | AG143: =VLOOKUP($C143,Classification!$A:$F,6,FALSE) -> 1 | AH143: =INDEX(ATS!$A:$U,MATCH('2) Order Form'!$W143,ATS!$T:$T,0),7) -> Active
A144: 1 | B144: =VLOOKUP(A144,Classification!$H$2:$I$11,2,FALSE) -> Helmets & Helmet Acc. | C144: =INDEX(ATS!$A:$U,MATCH('2) Order Form'!$W144,ATS!$T:$T,0),1) -> 840092 | D144: =INDEX(ATS!$A:$U,MATCH('2) Order Form'!$W144,ATS!$T:$T,0),2) -> Looper Mips Helmet | E144: =INDEX(ATS!$A:$U,MATCH('2) Order Form'!$W144,ATS!$T:$T,0),4) -> MNGRY-LXL | F144: =INDEX(ATS!$A:$U,MATCH('2) Order Form'!$W144,ATS!$T:$T,0),5) -> Matte Nardo Gray | G144: =INDEX(ATS!$A:$U,MATCH('2) Order Form'!$W144,ATS!$T:$T,0),6) -> LXL | H144: =INDEX(Packs!$A:$V,MATCH('2) Order Form'!$W144,Packs!$W:$W,0),22) -> 1 | I144: 0 | J144: =IFERROR(VLOOKUP(W144,ATS!$T:$U,2,FALSE),0) -> 178 | K144: 50+ | L144: =IFERROR(VLOOKUP(W144,ATS!$T:$V,3,FALSE),0) -> 178 | M144: 50+ | N144: 0% | O144: 0% | P144: =VLOOKUP($C144,Prices!$A$3:$T$1996,MATCH('2) Order Form'!P$8,Prices!$A$2:$T$2,0),FALSE) -> 90.00 | Q144: =VLOOKUP($C144,Prices!$A$3:$T$1996,MATCH('2) Order Form'!Q$8,Prices!$A$2:$T$2,0),FALSE) -> 179.95 | R144: 0 | S144: 0 | T144: 0 | U144: 0% | W144: 7048652604996 | Y144: 0 | Z144: 0 | AA144: 8 | AB144: 0 | AC144: 0 | AD144: 840092Matte Nardo Gray | AE144: 840092 | AF144: =VLOOKUP($C144,Classification!$A:$F,5,FALSE) -> 0.000 | AG144: =VLOOKUP($C144,Classification!$A:$F,6,FALSE) -> 1 | AH144: =INDEX(ATS!$A:$U,MATCH('2) Order Form'!$W144,ATS!$T:$T,0),7) -> Active
A145: 1 | B145: =VLOOKUP(A145,Classification!$H$2:$I$11,2,FALSE) -> Helmets & Helmet Acc. | C145: =INDEX(ATS!$A:$U,MATCH('2) Order Form'!$W145,ATS!$T:$T,0),1) -> 840100 | D145: =INDEX(ATS!$A:$U,MATCH('2) Order Form'!$W145,ATS!$T:$T,0),2) -> Looper Mips TE Helmet | E145: =INDEX(ATS!$A:$U,MATCH('2) Order Form'!$W145,ATS!$T:$T,0),4) -> JT001-SM | F145: =INDEX(ATS!$A:$U,MATCH('2) Order Form'!$W145,ATS!$T:$T,0),5) -> Jesper Tjäder 001 | G145: =INDEX(ATS!$A:$U,MATCH('2) Order Form'!$W145,ATS!$T:$T,0),6) -> SM | H145: =INDEX(Packs!$A:$V,MATCH('2) Order Form'!$W145,Packs!$W:$W,0),22) -> 1 | I145: 0 | J145: =IFERROR(VLOOKUP(W145,ATS!$T:$U,2,FALSE),0) -> 48 | K145: 48 | L145: =IFERROR(VLOOKUP(W145,ATS!$T:$V,3,FALSE),0) -> 48 | M145: 48 | N145: 0% | O145: =IF(N145<>0,N145,$P$5) -> 0% | P145: =VLOOKUP($C145,Prices!$A$3:$T$1996,MATCH('2) Order Form'!P$8,Prices!$A$2:$T$2,0),FALSE) -> 95.00 | Q145: =VLOOKUP($C145,Prices!$A$3:$T$1996,MATCH('2) Order Form'!Q$8,Prices!$A$2:$T$2,0),FALSE) -> 189.95 | R145: 0 | S145: 0 | T145: 0 | U145: 0% | W145: 7048652771292 | Y145: =I145*Q145 -> 0 | Z145: =IF(A145=OFFSET(A145,-1,0),0,1) -> 0 | AA145: 9 | AB145: =IF(C145=OFFSET(C145,-1,0),0,1) -> 1 | AC145: =IF(F145=OFFSET(F145,-1,0),0,1) -> 1 | AD145: =CONCATENATE(C145,F145) -> 840100Jesper Tjäder 001 | AE145: =IFERROR(IF(B145="EYEWEAR",CONCATENATE(C145,"-",G145),C145),C145) -> 840100 | AF145: =VLOOKUP($C145,Classification!$A:$F,5,FALSE) ->  | AG145: =VLOOKUP($C145,Classification!$A:$F,6,FALSE) ->  | AH145: =INDEX(ATS!$A:$U,MATCH('2) Order Form'!$W145,ATS!$T:$T,0),7) -> Active
A146: 1 | B146: =VLOOKUP(A146,Classification!$H$2:$I$11,2,FALSE) -> Helmets & Helmet Acc. | C146: =INDEX(ATS!$A:$U,MATCH('2) Order Form'!$W146,ATS!$T:$T,0),1) -> 840100 | D146: =INDEX(ATS!$A:$U,MATCH('2) Order Form'!$W146,ATS!$T:$T,0),2) -> Looper Mips TE Helmet | E146: =INDEX(ATS!$A:$U,MATCH('2) Order Form'!$W146,ATS!$T:$T,0),4) -> JT001-ML | F146: =INDEX(ATS!$A:$U,MATCH('2) Order Form'!$W146,ATS!$T:$T,0),5) -> Jesper Tjäder 001 | G146: =INDEX(ATS!$A:$U,MATCH('2) Order Form'!$W146,ATS!$T:$T,0),6) -> ML | H146: =INDEX(Packs!$A:$V,MATCH('2) Order Form'!$W146,Packs!$W:$W,0),22) -> 1 | I146: 0 | J146: =IFERROR(VLOOKUP(W146,ATS!$T:$U,2,FALSE),0) -> 95 | K146: 50+ | L146: =IFERROR(VLOOKUP(W146,ATS!$T:$V,3,FALSE),0) -> 95 | M146: 50+ | N146: 0% | O146: 0% | P146: =VLOOKUP($C146,Prices!$A$3:$T$1996,MATCH('2) Order Form'!P$8,Prices!$A$2:$T$2,0),FALSE) -> 95.00 | Q146: =VLOOKUP($C146,Prices!$A$3:$T$1996,MATCH('2) Order Form'!Q$8,Prices!$A$2:$T$2,0),FALSE) -> 189.95 | R146: 0 | S146: 0 | T146: 0 | U146: 0% | W146: 7048652771285 | Y146: 0 | Z146: 0 | AA146: 9 | AB146: 0 | AC146: 0 | AD146: 840100Jesper Tjäder 001 | AE146: 840100 | AF146: =VLOOKUP($C146,Classification!$A:$F,5,FALSE) ->  | AG146: =VLOOKUP($C146,Classification!$A:$F,6,FALSE) ->  | AH146: =INDEX(ATS!$A:$U,MATCH('2) Order Form'!$W146,ATS!$T:$T,0),7) -> Active
A147: 1 | B147: =VLOOKUP(A147,Classification!$H$2:$I$11,2,FALSE) -> Helmets & Helmet Acc. | C147: =INDEX(ATS!$A:$U,MATCH('2) Order Form'!$W147,ATS!$T:$T,0),1) -> 840100 | D147: =INDEX(ATS!$A:$U,MATCH('2) Order Form'!$W147,ATS!$T:$T,0),2) -> Looper Mips TE Helmet | E147: =INDEX(ATS!$A:$U,MATCH('2) Order Form'!$W147,ATS!$T:$T,0),4) -> JT001-LXL | F147: =INDEX(ATS!$A:$U,MATCH('2) Order Form'!$W147,ATS!$T:$T,0),5) -> Jesper Tjäder 001 | G147: =INDEX(ATS!$A:$U,MATCH('2) Order Form'!$W147,ATS!$T:$T,0),6) -> LXL | H147: =INDEX(Packs!$A:$V,MATCH('2) Order Form'!$W147,Packs!$W:$W,0),22) -> 1 | I147: 0 | J147: =IFERROR(VLOOKUP(W147,ATS!$T:$U,2,FALSE),0) -> 88 | K147: 50+ | L147: =IFERROR(VLOOKUP(W147,ATS!$T:$V,3,FALSE),0) -> 88 | M147: 50+ | N147: 0% | O147: 0% | P147: =VLOOKUP($C147,Prices!$A$3:$T$1996,MATCH('2) Order Form'!P$8,Prices!$A$2:$T$2,0),FALSE) -> 95.00 | Q147: =VLOOKUP($C147,Prices!$A$3:$T$1996,MATCH('2) Order Form'!Q$8,Prices!$A$2:$T$2,0),FALSE) -> 189.95 | R147: 0 | S147: 0 | T147: 0 | U147: 0% | W147: 7048652771278 | Y147: 0 | Z147: 0 | AA147: 9 | AB147: 0 | AC147: 0 | AD147: 840100Jesper Tjäder 001 | AE147: 840100 | AF147: =VLOOKUP($C147,Classification!$A:$F,5,FALSE) ->  | AG147: =VLOOKUP($C147,Classification!$A:$F,6,FALSE) ->  | AH147: =INDEX(ATS!$A:$U,MATCH('2) Order Form'!$W147,ATS!$T:$T,0),7) -> Active
A148: 1 | B148: =VLOOKUP(A148,Classification!$H$2:$I$11,2,FALSE) -> Helmets & Helmet Acc. | C148: =INDEX(ATS!$A:$U,MATCH('2) Order Form'!$W148,ATS!$T:$T,0),1) -> 840091 | D148: =INDEX(ATS!$A:$U,MATCH('2) Order Form'!$W148,ATS!$T:$T,0),2) -> Looper Helmet | E148: =INDEX(ATS!$A:$U,MATCH('2) Order Form'!$W148,ATS!$T:$T,0),4) -> DTBLK-SM | F148: =INDEX(ATS!$A:$U,MATCH('2) Order Form'!$W148,ATS!$T:$T,0),5) -> Dirt Black | G148: =INDEX(ATS!$A:$U,MATCH('2) Order Form'!$W148,ATS!$T:$T,0),6) -> SM | H148: =INDEX(Packs!$A:$V,MATCH('2) Order Form'!$W148,Packs!$W:$W,0),22) -> 1 | I148: 0 | J148: =IFERROR(VLOOKUP(W148,ATS!$T:$U,2,FALSE),0) -> 15 | K148: 15 | L148: =IFERROR(VLOOKUP(W148,ATS!$T:$V,3,FALSE),0) -> 15 | M148: 15 | N148: 0% | O148: 0% | P148: =VLOOKUP($C148,Prices!$A$3:$T$1996,MATCH('2) Order Form'!P$8,Prices!$A$2:$T$2,0),FALSE) -> 75.00 | Q148: =VLOOKUP($C148,Prices!$A$3:$T$1996,MATCH('2) Order Form'!Q$8,Prices!$A$2:$T$2,0),FALSE) -> 149.95 | R148: 0 | S148: 0 | T148: 0 | U148: 0% | W148: 7048652605108 | Y148: 0 | Z148: 0 | AA148: 10 | AB148: 1 | AC148: 1 | AD148: 840091Dirt Black | AE148: 840091 | AF148: =VLOOKUP($C148,Classification!$A:$F,5,FALSE) -> 0.000 | AG148: =VLOOKUP($C148,Classification!$A:$F,6,FALSE) -> 1 | AH148: =INDEX(ATS!$A:$U,MATCH('2) Order Form'!$W148,ATS!$T:$T,0),7) -> Active
A149: 1 | B149: =VLOOKUP(A149,Classification!$H$2:$I$11,2,FALSE) -> Helmets & Helmet Acc. | C149: =INDEX(ATS!$A:$U,MATCH('2) Order Form'!$W149,ATS!$T:$T,0),1) -> 840091 | D149: =INDEX(ATS!$A:$U,MATCH('2) Order Form'!$W149,ATS!$T:$T,0),2) -> Looper Helmet | E149: =INDEX(ATS!$A:$U,MATCH('2) Order Form'!$W149,ATS!$T:$T,0),4) -> DTBLK-ML | F149: =INDEX(ATS!$A:$U,MATCH('2) Order Form'!$W149,ATS!$T:$T,0),5) -> Dirt Black | G149: =INDEX(ATS!$A:$U,MATCH('2) Order Form'!$W149,ATS!$T:$T,0),6) -> ML | H149: =INDEX(Packs!$A:$V,MATCH('2) Order Form'!$W149,Packs!$W:$W,0),22) -> 1 | I149: 0 | J149: =IFERROR(VLOOKUP(W149,ATS!$T:$U,2,FALSE),0) -> 7 | K149: 7 | L149: =IFERROR(VLOOKUP(W149,ATS!$T:$V,3,FALSE),0) -> 7 | M149: 7 | N149: 0% | O149: 0% | P149: =VLOOKUP($C149,Prices!$A$3:$T$1996,MATCH('2) Order Form'!P$8,Prices!$A$2:$T$2,0),FALSE) -> 75.00 | Q149: =VLOOKUP($C149,Prices!$A$3:$T$1996,MATCH('2) Order Form'!Q$8,Prices!$A$2:$T$2,0),FALSE) -> 149.95 | R149: 0 | S149: 0 | T149: 0 | U149: 0% | W149: 7048652605092 | Y149: 0 | Z149: 0 | AA149: 10 | AB149: 0 | AC149: 0 | AD149: 840091Dirt Black | AE149: 840091 | AF149: =VLOOKUP($C149,Classification!$A:$F,5,FALSE) -> 0.000 | AG149: =VLOOKUP($C149,Classification!$A:$F,6,FALSE) -> 1 | AH149: =INDEX(ATS!$A:$U,MATCH('2) Order Form'!$W149,ATS!$T:$T,0),7) -> Active
A150: 1 | B150: =VLOOKUP(A150,Classification!$H$2:$I$11,2,FALSE) -> Helmets & Helmet Acc. | C150: =INDEX(ATS!$A:$U,MATCH('2) Order Form'!$W150,ATS!$T:$T,0),1) -> 840091 | D150: =INDEX(ATS!$A:$U,MATCH('2) Order Form'!$W150,ATS!$T:$T,0),2) -> Looper Helmet | E150: =INDEX(ATS!$A:$U,MATCH('2) Order Form'!$W150,ATS!$T:$T,0),4) -> DTBLK-LXL | F150: =INDEX(ATS!$A:$U,MATCH('2) Order Form'!$W150,ATS!$T:$T,0),5) -> Dirt Black | G150: =INDEX(ATS!$A:$U,MATCH('2) Order Form'!$W150,ATS!$T:$T,0),6) -> LXL | H150: =INDEX(Packs!$A:$V,MATCH('2) Order Form'!$W150,Packs!$W:$W,0),22) -> 1 | I150: 0 | J150: =IFERROR(VLOOKUP(W150,ATS!$T:$U,2,FALSE),0) -> 7 | K150: 7 | L150: =IFERROR(VLOOKUP(W150,ATS!$T:$V,3,FALSE),0) -> 7 | M150: 7 | N150: 0% | O150: 0% | P150: =VLOOKUP($C150,Prices!$A$3:$T$1996,MATCH('2) Order Form'!P$8,Prices!$A$2:$T$2,0),FALSE) -> 75.00 | Q150: =VLOOKUP($C150,Prices!$A$3:$T$1996,MATCH('2) Order Form'!Q$8,Prices!$A$2:$T$2,0),FALSE) -> 149.95 | R150: 0 | S150: 0 | T150: 0 | U150: 0% | W150: 7048652605085 | Y150: 0 | Z150: 0 | AA150: 10 | AB150: 0 | AC150: 0 | AD150: 840091Dirt Black | AE150: 840091 | AF150: =VLOOKUP($C150,Classification!$A:$F,5,FALSE) -> 0.000 | AG150: =VLOOKUP($C150,Classification!$A:$F,6,FALSE) -> 1 | AH150: =INDEX(ATS!$A:$U,MATCH('2) Order Form'!$W150,ATS!$T:$T,0),7) -> Active
A151: 1 | B151: =VLOOKUP(A151,Classification!$H$2:$I$11,2,FALSE) -> Helmets & Helmet Acc. | C151: =INDEX(ATS!$A:$U,MATCH('2) Order Form'!$W151,ATS!$T:$T,0),1) -> 840091 | D151: =INDEX(ATS!$A:$U,MATCH('2) Order Form'!$W151,ATS!$T:$T,0),2) -> Looper Helmet | E151: =INDEX(ATS!$A:$U,MATCH('2) Order Form'!$W151,ATS!$T:$T,0),4) -> MHGRN-SM | F151: =INDEX(ATS!$A:$U,MATCH('2) Order Form'!$W151,ATS!$T:$T,0),5) -> Matte Highland Green | G151: =INDEX(ATS!$A:$U,MATCH('2) Order Form'!$W151,ATS!$T:$T,0),6) -> SM | H151: =INDEX(Packs!$A:$V,MATCH('2) Order Form'!$W151,Packs!$W:$W,0),22) -> 1 | I151: 0 | J151: =IFERROR(VLOOKUP(W151,ATS!$T:$U,2,FALSE),0) -> 46 | K151: 46 | L151: =IFERROR(VLOOKUP(W151,ATS!$T:$V,3,FALSE),0) -> 46 | M151: 46 | N151: 0% | O151: =IF(N151<>0,N151,$P$5) -> 0% | P151: =VLOOKUP($C151,Prices!$A$3:$T$1996,MATCH('2) Order Form'!P$8,Prices!$A$2:$T$2,0),FALSE) -> 75.00 | Q151: =VLOOKUP($C151,Prices!$A$3:$T$1996,MATCH('2) Order Form'!Q$8,Prices!$A$2:$T$2,0),FALSE) -> 149.95 | R151: 0 | S151: 0 | T151: 0 | U151: 0% | W151: 7048652605191 | Y151: 0 | Z151: 0 | AA151: 10 | AB151: 0 | AC151: 1 | AD151: 840091Matte Highland Green | AE151: 840091 | AF151: =VLOOKUP($C151,Classification!$A:$F,5,FALSE) -> 0.000 | AG151: =VLOOKUP($C151,Classification!$A:$F,6,FALSE) -> 1 | AH151: =INDEX(ATS!$A:$U,MATCH('2) Order Form'!$W151,ATS!$T:$T,0),7) -> Stock
A152: 1 | B152: =VLOOKUP(A152,Classification!$H$2:$I$11,2,FALSE) -> Helmets & Helmet Acc. | C152: =INDEX(ATS!$A:$U,MATCH('2) Order Form'!$W152,ATS!$T:$T,0),1) -> 840091 | D152: =INDEX(ATS!$A:$U,MATCH('2) Order Form'!$W152,ATS!$T:$T,0),2) -> Looper Helmet | E152: =INDEX(ATS!$A:$U,MATCH('2) Order Form'!$W152,ATS!$T:$T,0),4) -> MHGRN-ML | F152: =INDEX(ATS!$A:$U,MATCH('2) Order Form'!$W152,ATS!$T:$T,0),5) -> Matte Highland Green | G152: =INDEX(ATS!$A:$U,MATCH('2) Order Form'!$W152,ATS!$T:$T,0),6) -> ML | H152: =INDEX(Packs!$A:$V,MATCH('2) Order Form'!$W152,Packs!$W:$W,0),22) -> 1 | I152: 0 | J152: =IFERROR(VLOOKUP(W152,ATS!$T:$U,2,FALSE),0) -> 9 | K152: 9 | L152: =IFERROR(VLOOKUP(W152,ATS!$T:$V,3,FALSE),0) -> 9 | M152: 9 | N152: 0% | O152: 0% | P152: =VLOOKUP($C152,Prices!$A$3:$T$1996,MATCH('2) Order Form'!P$8,Prices!$A$2:$T$2,0),FALSE) -> 75.00 | Q152: =VLOOKUP($C152,Prices!$A$3:$T$1996,MATCH('2) Order Form'!Q$8,Prices!$A$2:$T$2,0),FALSE) -> 149.95 | R152: 0 | S152: 0 | T152: 0 | U152: 0% | W152: 7048652605184 | Y152: 0 | Z152: 0 | AA152: 10 | AB152: 0 | AC152: 0 | AD152: 840091Matte Highland Green | AE152: 840091 | AF152: =VLOOKUP($C152,Classification!$A:$F,5,FALSE) -> 0.000 | AG152: =VLOOKUP($C152,Classification!$A:$F,6,FALSE) -> 1 | AH152: =INDEX(ATS!$A:$U,MATCH('2) Order Form'!$W152,ATS!$T:$T,0),7) -> Stock
A153: 1 | B153: =VLOOKUP(A153,Classification!$H$2:$I$11,2,FALSE) -> Helmets & Helmet Acc. | C153: =INDEX(ATS!$A:$U,MATCH('2) Order Form'!$W153,ATS!$T:$T,0),1) -> 840091 | D153: =INDEX(ATS!$A:$U,MATCH('2) Order Form'!$W153,ATS!$T:$T,0),2) -> Looper Helmet | E153: =INDEX(ATS!$A:$U,MATCH('2) Order Form'!$W153,ATS!$T:$T,0),4) -> MHGRN-LXL | F153: =INDEX(ATS!$A:$U,MATCH('2) Order Form'!$W153,ATS!$T:$T,0),5) -> Matte Highland Green | G153: =INDEX(ATS!$A:$U,MATCH('2) Order Form'!$W153,ATS!$T:$T,0),6) -> LXL | H153: =INDEX(Packs!$A:$V,MATCH('2) Order Form'!$W153,Packs!$W:$W,0),22) -> 1 | I153: 0 | J153: =IFERROR(VLOOKUP(W153,ATS!$T:$U,2,FALSE),0) -> 6 | K153: 6 | L153: =IFERROR(VLOOKUP(W153,ATS!$T:$V,3,FALSE),0) -> 6 | M153: 6 | N153: 0% | O153: 0% | P153: =VLOOKUP($C153,Prices!$A$3:$T$1996,MATCH('2) Order Form'!P$8,Prices!$A$2:$T$2,0),FALSE) -> 75.00 | Q153: =VLOOKUP($C153,Prices!$A$3:$T$1996,MATCH('2) Order Form'!Q$8,Prices!$A$2:$T$2,0),FALSE) -> 149.95 | R153: 0 | S153: 0 | T153: 0 | U153: 0% | W153: 7048652605177 | Y153: 0 | Z153: 0 | AA153: 10 | AB153: 0 | AC153: 0 | AD153: 840091Matte Highland Green | AE153: 840091 | AF153: =VLOOKUP($C153,Classification!$A:$F,5,FALSE) -> 0.000 | AG153: =VLOOKUP($C153,Classification!$A:$F,6,FALSE) -> 1 | AH153: =INDEX(ATS!$A:$U,MATCH('2) Order Form'!$W153,ATS!$T:$T,0),7) -> Stock
A154: 1 | B154: =VLOOKUP(A154,Classification!$H$2:$I$11,2,FALSE) -> Helmets & Helmet Acc. | C154: =INDEX(ATS!$A:$U,MATCH('2) Order Form'!$W154,ATS!$T:$T,0),1) -> 840091 | D154: =INDEX(ATS!$A:$U,MATCH('2) Order Form'!$W154,ATS!$T:$T,0),2) -> Looper Helmet | E154: =INDEX(ATS!$A:$U,MATCH('2) Order Form'!$W154,ATS!$T:$T,0),4) -> MNGRY-SM | F154: =INDEX(ATS!$A:$U,MATCH('2) Order Form'!$W154,ATS!$T:$T,0),5) -> Matte Nardo Gray | G154: =INDEX(ATS!$A:$U,MATCH('2) Order Form'!$W154,ATS!$T:$T,0),6) -> SM | H154: =INDEX(Packs!$A:$V,MATCH('2) Order Form'!$W154,Packs!$W:$W,0),22) -> 1 | I154: 0 | J154: =IFERROR(VLOOKUP(W154,ATS!$T:$U,2,FALSE),0) -> 29 | K154: 29 | L154: =IFERROR(VLOOKUP(W154,ATS!$T:$V,3,FALSE),0) -> 29 | M154: 29 | N154: 0% | O154: 0% | P154: =VLOOKUP($C154,Prices!$A$3:$T$1996,MATCH('2) Order Form'!P$8,Prices!$A$2:$T$2,0),FALSE) -> 75.00 | Q154: =VLOOKUP($C154,Prices!$A$3:$T$1996,MATCH('2) Order Form'!Q$8,Prices!$A$2:$T$2,0),FALSE) -> 149.95 | R154: 0 | S154: 0 | T154: 0 | U154: 0% | W154: 7048652605221 | Y154: =I154*Q154 -> 0 | Z154: =IF(A154=OFFSET(A154,-1,0),0,1) -> 0 | AA154: 10 | AB154: =IF(C154=OFFSET(C154,-1,0),0,1) -> 0 | AC154: =IF(F154=OFFSET(F154,-1,0),0,1) -> 1 | AD154: =CONCATENATE(C154,F154) -> 840091Matte Nardo Gray | AE154: =IFERROR(IF(B154="EYEWEAR",CONCATENATE(C154,"-",G154),C154),C154) -> 840091 | AF154: =VLOOKUP($C154,Classification!$A:$F,5,FALSE) -> 0.000 | AG154: =VLOOKUP($C154,Classification!$A:$F,6,FALSE) -> 1 | AH154: =INDEX(ATS!$A:$U,MATCH('2) Order Form'!$W154,ATS!$T:$T,0),7) -> Active
A155: 1 | B155: =VLOOKUP(A155,Classification!$H$2:$I$11,2,FALSE) -> Helmets & Helmet Acc. | C155: =INDEX(ATS!$A:$U,MATCH('2) Order Form'!$W155,ATS!$T:$T,0),1) -> 840091 | D155: =INDEX(ATS!$A:$U,MATCH('2) Order Form'!$W155,ATS!$T:$T,0),2) -> Looper Helmet | E155: =INDEX(ATS!$A:$U,MATCH('2) Order Form'!$W155,ATS!$T:$T,0),4) -> MNGRY-ML | F155: =INDEX(ATS!$A:$U,MATCH('2) Order Form'!$W155,ATS!$T:$T,0),5) -> Matte Nardo Gray | G155: =INDEX(ATS!$A:$U,MATCH('2) Order Form'!$W155,ATS!$T:$T,0),6) -> ML | H155: =INDEX(Packs!$A:$V,MATCH('2) Order Form'!$W155,Packs!$W:$W,0),22) -> 1 | I155: 0 | J155: =IFERROR(VLOOKUP(W155,ATS!$T:$U,2,FALSE),0) -> 1 | K155: 1 | L155: =IFERROR(VLOOKUP(W155,ATS!$T:$V,3,FALSE),0) -> 1 | M155: 1 | N155: 0% | O155: 0% | P155: =VLOOKUP($C155,Prices!$A$3:$T$1996,MATCH('2) Order Form'!P$8,Prices!$A$2:$T$2,0),FALSE) -> 75.00 | Q155: =VLOOKUP($C155,Prices!$A$3:$T$1996,MATCH('2) Order Form'!Q$8,Prices!$A$2:$T$2,0),FALSE) -> 149.95 | R155: 0 | S155: 0 | T155: 0 | U155: 0% | W155: 7048652605214 | Y155: 0 | Z155: 0 | AA155: 10 | AB155: 0 | AC155: 0 | AD155: 840091Matte Nardo Gray | AE155: 840091 | AF155: =VLOOKUP($C155,Classification!$A:$F,5,FALSE) -> 0.000 | AG155: =VLOOKUP($C155,Classification!$A:$F,6,FALSE) -> 1 | AH155: =INDEX(ATS!$A:$U,MATCH('2) Order Form'!$W155,ATS!$T:$T,0),7) -> Active
A156: 1 | B156: =VLOOKUP(A156,Classification!$H$2:$I$11,2,FALSE) -> Helmets & Helmet Acc. | C156: =INDEX(ATS!$A:$U,MATCH('2) Order Form'!$W156,ATS!$T:$T,0),1) -> 840091 | D156: =INDEX(ATS!$A:$U,MATCH('2) Order Form'!$W156,ATS!$T:$T,0),2) -> Looper Helmet | E156: =INDEX(ATS!$A:$U,MATCH('2) Order Form'!$W156,ATS!$T:$T,0),4) -> MNGRY-LXL | F156: =INDEX(ATS!$A:$U,MATCH('2) Order Form'!$W156,ATS!$T:$T,0),5) -> Matte Nardo Gray | G156: =INDEX(ATS!$A:$U,MATCH('2) Order Form'!$W156,ATS!$T:$T,0),6) -> LXL | H156: =INDEX(Packs!$A:$V,MATCH('2) Order Form'!$W156,Packs!$W:$W,0),22) -> 1 | I156: 0 | J156: =IFERROR(VLOOKUP(W156,ATS!$T:$U,2,FALSE),0) -> 22 | K156: 22 | L156: =IFERROR(VLOOKUP(W156,ATS!$T:$V,3,FALSE),0) -> 22 | M156: 22 | N156: 0% | O156: 0% | P156: =VLOOKUP($C156,Prices!$A$3:$T$1996,MATCH('2) Order Form'!P$8,Prices!$A$2:$T$2,0),FALSE) -> 75.00 | Q156: =VLOOKUP($C156,Prices!$A$3:$T$1996,MATCH('2) Order Form'!Q$8,Prices!$A$2:$T$2,0),FALSE) -> 149.95 | R156: 0 | S156: 0 | T156: 0 | U156: 0% | W156: 7048652605207 | Y156: 0 | Z156: 0 | AA156: 10 | AB156: 0 | AC156: 0 | AD156: 840091Matte Nardo Gray | AE156: 840091 | AF156: =VLOOKUP($C156,Classification!$A:$F,5,FALSE) -> 0.000 | AG156: =VLOOKUP($C156,Classification!$A:$F,6,FALSE) -> 1 | AH156: =INDEX(ATS!$A:$U,MATCH('2) Order Form'!$W156,ATS!$T:$T,0),7) -> Active
A157: 1 | B157: =VLOOKUP(A157,Classification!$H$2:$I$11,2,FALSE) -> Helmets & Helmet Acc. | C157: =INDEX(ATS!$A:$U,MATCH('2) Order Form'!$W157,ATS!$T:$T,0),1) -> 840091 | D157: =INDEX(ATS!$A:$U,MATCH('2) Order Form'!$W157,ATS!$T:$T,0),2) -> Looper Helmet | E157: =INDEX(ATS!$A:$U,MATCH('2) Order Form'!$W157,ATS!$T:$T,0),4) -> MASEM-SM | F157: =INDEX(ATS!$A:$U,MATCH('2) Order Form'!$W157,ATS!$T:$T,0),5) -> Matte Sea Metallic | G157: =INDEX(ATS!$A:$U,MATCH('2) Order Form'!$W157,ATS!$T:$T,0),6) -> SM | H157: =INDEX(Packs!$A:$V,MATCH('2) Order Form'!$W157,Packs!$W:$W,0),22) -> 1 | I157: 0 | J157: =IFERROR(VLOOKUP(W157,ATS!$T:$U,2,FALSE),0) -> 0 | K157: 0 | L157: =IFERROR(VLOOKUP(W157,ATS!$T:$V,3,FALSE),0) -> 0 | M157: 0 | N157: 0% | O157: =IF(N157<>0,N157,$P$5) -> 0% | P157: =VLOOKUP($C157,Prices!$A$3:$T$1996,MATCH('2) Order Form'!P$8,Prices!$A$2:$T$2,0),FALSE) -> 75.00 | Q157: =VLOOKUP($C157,Prices!$A$3:$T$1996,MATCH('2) Order Form'!Q$8,Prices!$A$2:$T$2,0),FALSE) -> 149.95 | R157: 0 | S157: 0 | T157: 0 | U157: 0% | W157: 7048652823205 | Y157: 0 | Z157: 0 | AA157: 10 | AB157: 0 | AC157: 1 | AD157: 840091Matte Sea Metallic | AE157: 840091 | AF157: =VLOOKUP($C157,Classification!$A:$F,5,FALSE) -> 0.000 | AG157: =VLOOKUP($C157,Classification!$A:$F,6,FALSE) -> 1 | AH157: =INDEX(ATS!$A:$U,MATCH('2) Order Form'!$W157,ATS!$T:$T,0),7) -> Stock
A158: 1 | B158: =VLOOKUP(A158,Classification!$H$2:$I$11,2,FALSE) -> Helmets & Helmet Acc. | C158: =INDEX(ATS!$A:$U,MATCH('2) Order Form'!$W158,ATS!$T:$T,0),1) -> 840091 | D158: =INDEX(ATS!$A:$U,MATCH('2) Order Form'!$W158,ATS!$T:$T,0),2) -> Looper Helmet | E158: =INDEX(ATS!$A:$U,MATCH('2) Order Form'!$W158,ATS!$T:$T,0),4) -> MASEM-ML | F158: =INDEX(ATS!$A:$U,MATCH('2) Order Form'!$W158,ATS!$T:$T,0),5) -> Matte Sea Metallic | G158: =INDEX(ATS!$A:$U,MATCH('2) Order Form'!$W158,ATS!$T:$T,0),6) -> ML | H158: =INDEX(Packs!$A:$V,MATCH('2) Order Form'!$W158,Packs!$W:$W,0),22) -> 1 | I158: 0 | J158: =IFERROR(VLOOKUP(W158,ATS!$T:$U,2,FALSE),0) -> 4 | K158: 4 | L158: =IFERROR(VLOOKUP(W158,ATS!$T:$V,3,FALSE),0) -> 4 | M158: 4 | N158: 0% | O158: 0% | P158: =VLOOKUP($C158,Prices!$A$3:$T$1996,MATCH('2) Order Form'!P$8,Prices!$A$2:$T$2,0),FALSE) -> 75.00 | Q158: =VLOOKUP($C158,Prices!$A$3:$T$1996,MATCH('2) Order Form'!Q$8,Prices!$A$2:$T$2,0),FALSE) -> 149.95 | R158: 0 | S158: 0 | T158: 0 | U158: 0% | W158: 7048652823199 | Y158: 0 | Z158: 0 | AA158: 10 | AB158: 0 | AC158: 0 | AD158: 840091Matte Sea Metallic | AE158: 840091 | AF158: =VLOOKUP($C158,Classification!$A:$F,5,FALSE) -> 0.000 | AG158: =VLOOKUP($C158,Classification!$A:$F,6,FALSE) -> 1 | AH158: =INDEX(ATS!$A:$U,MATCH('2) Order Form'!$W158,ATS!$T:$T,0),7) -> Stock
A159: 1 | B159: =VLOOKUP(A159,Classification!$H$2:$I$11,2,FALSE) -> Helmets & Helmet Acc. | C159: =INDEX(ATS!$A:$U,MATCH('2) Order Form'!$W159,ATS!$T:$T,0),1) -> 840091 | D159: =INDEX(ATS!$A:$U,MATCH('2) Order Form'!$W159,ATS!$T:$T,0),2) -> Looper Helmet | E159: =INDEX(ATS!$A:$U,MATCH('2) Order Form'!$W159,ATS!$T:$T,0),4) -> MASEM-LXL | F159: =INDEX(ATS!$A:$U,MATCH('2) Order Form'!$W159,ATS!$T:$T,0),5) -> Matte Sea Metallic | G159: =INDEX(ATS!$A:$U,MATCH('2) Order Form'!$W159,ATS!$T:$T,0),6) -> LXL | H159: =INDEX(Packs!$A:$V,MATCH('2) Order Form'!$W159,Packs!$W:$W,0),22) -> 1 | I159: 0 | J159: =IFERROR(VLOOKUP(W159,ATS!$T:$U,2,FALSE),0) -> 3 | K159: 3 | L159: =IFERROR(VLOOKUP(W159,ATS!$T:$V,3,FALSE),0) -> 3 | M159: 3 | N159: 0% | O159: 0% | P159: =VLOOKUP($C159,Prices!$A$3:$T$1996,MATCH('2) Order Form'!P$8,Prices!$A$2:$T$2,0),FALSE) -> 75.00 | Q159: =VLOOKUP($C159,Prices!$A$3:$T$1996,MATCH('2) Order Form'!Q$8,Prices!$A$2:$T$2,0),FALSE) -> 149.95 | R159: 0 | S159: 0 | T159: 0 | U159: 0% | W159: 7048652823182 | Y159: 0 | Z159: 0 | AA159: 10 | AB159: 0 | AC159: 0 | AD159: 840091Matte Sea Metallic | AE159: 840091 | AF159: =VLOOKUP($C159,Classification!$A:$F,5,FALSE) -> 0.000 | AG159: =VLOOKUP($C159,Classification!$A:$F,6,FALSE) -> 1 | AH159: =INDEX(ATS!$A:$U,MATCH('2) Order Form'!$W159,ATS!$T:$T,0),7) -> Stock
A160: 1 | B160: =VLOOKUP(A160,Classification!$H$2:$I$11,2,FALSE) -> Helmets & Helmet Acc. | C160: =INDEX(ATS!$A:$U,MATCH('2) Order Form'!$W160,ATS!$T:$T,0),1) -> 840091 | D160: =INDEX(ATS!$A:$U,MATCH('2) Order Form'!$W160,ATS!$T:$T,0),2) -> Looper Helmet | E160: =INDEX(ATS!$A:$U,MATCH('2) Order Form'!$W160,ATS!$T:$T,0),4) -> MBRWH-SM | F160: =INDEX(ATS!$A:$U,MATCH('2) Order Form'!$W160,ATS!$T:$T,0),5) -> Matte Bronco White | G160: =INDEX(ATS!$A:$U,MATCH('2) Order Form'!$W160,ATS!$T:$T,0),6) -> SM | H160: =INDEX(Packs!$A:$V,MATCH('2) Order Form'!$W160,Packs!$W:$W,0),22) -> 1 | I160: 0 | J160: =IFERROR(VLOOKUP(W160,ATS!$T:$U,2,FALSE),0) -> 1 | K160: 1 | L160: =IFERROR(VLOOKUP(W160,ATS!$T:$V,3,FALSE),0) -> 1 | M160: 1 | N160: 0% | O160: 0% | P160: =VLOOKUP($C160,Prices!$A$3:$T$1996,MATCH('2) Order Form'!P$8,Prices!$A$2:$T$2,0),FALSE) -> 75.00 | Q160: =VLOOKUP($C160,Prices!$A$3:$T$1996,MATCH('2) Order Form'!Q$8,Prices!$A$2:$T$2,0),FALSE) -> 149.95 | R160: 0 | S160: 0 | T160: 0 | U160: 0% | W160: 7048652823113 | Y160: 0 | Z160: 0 | AA160: 10 | AB160: 0 | AC160: 1 | AD160: 840091Matte Bronco White | AE160: 840091 | AF160: =VLOOKUP($C160,Classification!$A:$F,5,FALSE) -> 0.000 | AG160: =VLOOKUP($C160,Classification!$A:$F,6,FALSE) -> 1 | AH160: =INDEX(ATS!$A:$U,MATCH('2) Order Form'!$W160,ATS!$T:$T,0),7) -> Active
A161: 1 | B161: =VLOOKUP(A161,Classification!$H$2:$I$11,2,FALSE) -> Helmets & Helmet Acc. | C161: =INDEX(ATS!$A:$U,MATCH('2) Order Form'!$W161,ATS!$T:$T,0),1) -> 840091 | D161: =INDEX(ATS!$A:$U,MATCH('2) Order Form'!$W161,ATS!$T:$T,0),2) -> Looper Helmet | E161: =INDEX(ATS!$A:$U,MATCH('2) Order Form'!$W161,ATS!$T:$T,0),4) -> MBRWH-ML | F161: =INDEX(ATS!$A:$U,MATCH('2) Order Form'!$W161,ATS!$T:$T,0),5) -> Matte Bronco White | G161: =INDEX(ATS!$A:$U,MATCH('2) Order Form'!$W161,ATS!$T:$T,0),6) -> ML | H161: =INDEX(Packs!$A:$V,MATCH('2) Order Form'!$W161,Packs!$W:$W,0),22) -> 1 | I161: 0 | J161: =IFERROR(VLOOKUP(W161,ATS!$T:$U,2,FALSE),0) -> 54 | K161: 50+ | L161: =IFERROR(VLOOKUP(W161,ATS!$T:$V,3,FALSE),0) -> 54 | M161: 50+ | N161: 0% | O161: 0% | P161: =VLOOKUP($C161,Prices!$A$3:$T$1996,MATCH('2) Order Form'!P$8,Prices!$A$2:$T$2,0),FALSE) -> 75.00 | Q161: =VLOOKUP($C161,Prices!$A$3:$T$1996,MATCH('2) Order Form'!Q$8,Prices!$A$2:$T$2,0),FALSE) -> 149.95 | R161: 0 | S161: 0 | T161: 0 | U161: 0% | W161: 7048652823106 | Y161: 0 | Z161: 0 | AA161: 10 | AB161: 0 | AC161: 0 | AD161: 840091Matte Bronco White | AE161: 840091 | AF161: =VLOOKUP($C161,Classification!$A:$F,5,FALSE) -> 0.000 | AG161: =VLOOKUP($C161,Classification!$A:$F,6,FALSE) -> 1 | AH161: =INDEX(ATS!$A:$U,MATCH('2) Order Form'!$W161,ATS!$T:$T,0),7) -> Active
A162: 1 | B162: =VLOOKUP(A162,Classification!$H$2:$I$11,2,FALSE) -> Helmets & Helmet Acc. | C162: =INDEX(ATS!$A:$U,MATCH('2) Order Form'!$W162,ATS!$T:$T,0),1) -> 840091 | D162: =INDEX(ATS!$A:$U,MATCH('2) Order Form'!$W162,ATS!$T:$T,0),2) -> Looper Helmet | E162: =INDEX(ATS!$A:$U,MATCH('2) Order Form'!$W162,ATS!$T:$T,0),4) -> MBRWH-LXL | F162: =INDEX(ATS!$A:$U,MATCH('2) Order Form'!$W162,ATS!$T:$T,0),5) -> Matte Bronco White | G162: =INDEX(ATS!$A:$U,MATCH('2) Order Form'!$W162,ATS!$T:$T,0),6) -> LXL | H162: =INDEX(Packs!$A:$V,MATCH('2) Order Form'!$W162,Packs!$W:$W,0),22) -> 1 | I162: 0 | J162: =IFERROR(VLOOKUP(W162,ATS!$T:$U,2,FALSE),0) -> 37 | K162: 37 | L162: =IFERROR(VLOOKUP(W162,ATS!$T:$V,3,FALSE),0) -> 37 | M162: 37 | N162: 0% | O162: 0% | P162: =VLOOKUP($C162,Prices!$A$3:$T$1996,MATCH('2) Order Form'!P$8,Prices!$A$2:$T$2,0),FALSE) -> 75.00 | Q162: =VLOOKUP($C162,Prices!$A$3:$T$1996,MATCH('2) Order Form'!Q$8,Prices!$A$2:$T$2,0),FALSE) -> 149.95 | R162: 0 | S162: 0 | T162: 0 | U162: 0% | W162: 7048652823090 | Y162: 0 | Z162: 0 | AA162: 10 | AB162: 0 | AC162: 0 | AD162: 840091Matte Bronco White | AE162: 840091 | AF162: =VLOOKUP($C162,Classification!$A:$F,5,FALSE) -> 0.000 | AG162: =VLOOKUP($C162,Classification!$A:$F,6,FALSE) -> 1 | AH162: =INDEX(ATS!$A:$U,MATCH('2) Order Form'!$W162,ATS!$T:$T,0),7) -> Active
A163: 1 | B163: =VLOOKUP(A163,Classification!$H$2:$I$11,2,FALSE) -> Helmets & Helmet Acc. | C163: =INDEX(ATS!$A:$U,MATCH('2) Order Form'!$W163,ATS!$T:$T,0),1) -> 840091 | D163: =INDEX(ATS!$A:$U,MATCH('2) Order Form'!$W163,ATS!$T:$T,0),2) -> Looper Helmet | E163: =INDEX(ATS!$A:$U,MATCH('2) Order Form'!$W163,ATS!$T:$T,0),4) -> MROGD-SM | F163: =INDEX(ATS!$A:$U,MATCH('2) Order Form'!$W163,ATS!$T:$T,0),5) -> Matte Rose Gold | G163: =INDEX(ATS!$A:$U,MATCH('2) Order Form'!$W163,ATS!$T:$T,0),6) -> SM | H163: =INDEX(Packs!$A:$V,MATCH('2) Order Form'!$W163,Packs!$W:$W,0),22) -> 1 | I163: 0 | J163: =IFERROR(VLOOKUP(W163,ATS!$T:$U,2,FALSE),0) -> 10 | K163: 10 | L163: =IFERROR(VLOOKUP(W163,ATS!$T:$V,3,FALSE),0) -> 10 | M163: 10 | N163: 0% | O163: 0% | P163: =VLOOKUP($C163,Prices!$A$3:$T$1996,MATCH('2) Order Form'!P$8,Prices!$A$2:$T$2,0),FALSE) -> 75.00 | Q163: =VLOOKUP($C163,Prices!$A$3:$T$1996,MATCH('2) Order Form'!Q$8,Prices!$A$2:$T$2,0),FALSE) -> 149.95 | R163: 0 | S163: 0 | T163: 0 | U163: 0% | W163: 7048652823144 | Y163: 0 | Z163: 0 | AA163: 10 | AB163: 0 | AC163: 1 | AD163: 840091Matte Rose Gold | AE163: 840091 | AF163: =VLOOKUP($C163,Classification!$A:$F,5,FALSE) -> 0.000 | AG163: =VLOOKUP($C163,Classification!$A:$F,6,FALSE) -> 1 | AH163: =INDEX(ATS!$A:$U,MATCH('2) Order Form'!$W163,ATS!$T:$T,0),7) -> Stock
A164: 1 | B164: =VLOOKUP(A164,Classification!$H$2:$I$11,2,FALSE) -> Helmets & Helmet Acc. | C164: =INDEX(ATS!$A:$U,MATCH('2) Order Form'!$W164,ATS!$T:$T,0),1) -> 840091 | D164: =INDEX(ATS!$A:$U,MATCH('2) Order Form'!$W164,ATS!$T:$T,0),2) -> Looper Helmet | E164: =INDEX(ATS!$A:$U,MATCH('2) Order Form'!$W164,ATS!$T:$T,0),4) -> MROGD-ML | F164: =INDEX(ATS!$A:$U,MATCH('2) Order Form'!$W164,ATS!$T:$T,0),5) -> Matte Rose Gold | G164: =INDEX(ATS!$A:$U,MATCH('2) Order Form'!$W164,ATS!$T:$T,0),6) -> ML | H164: =INDEX(Packs!$A:$V,MATCH('2) Order Form'!$W164,Packs!$W:$W,0),22) -> 1 | I164: 0 | J164: =IFERROR(VLOOKUP(W164,ATS!$T:$U,2,FALSE),0) -> 33 | K164: 33 | L164: =IFERROR(VLOOKUP(W164,ATS!$T:$V,3,FALSE),0) -> 33 | M164: 33 | N164: 0% | O164: =IF(N164<>0,N164,$P$5) -> 0% | P164: =VLOOKUP($C164,Prices!$A$3:$T$1996,MATCH('2) Order Form'!P$8,Prices!$A$2:$T$2,0),FALSE) -> 75.00 | Q164: =VLOOKUP($C164,Prices!$A$3:$T$1996,MATCH('2) Order Form'!Q$8,Prices!$A$2:$T$2,0),FALSE) -> 149.95 | R164: 0 | S164: 0 | T164: 0 | U164: 0% | W164: 7048652823137 | Y164: =I164*Q164 -> 0 | Z164: =IF(A164=OFFSET(A164,-1,0),0,1) -> 0 | AA164: 10 | AB164: =IF(C164=OFFSET(C164,-1,0),0,1) -> 0 | AC164: =IF(F164=OFFSET(F164,-1,0),0,1) -> 0 | AD164: =CONCATENATE(C164,F164) -> 840091Matte Rose Gold | AE164: =IFERROR(IF(B164="EYEWEAR",CONCATENATE(C164,"-",G164),C164),C164) -> 840091 | AF164: =VLOOKUP($C164,Classification!$A:$F,5,FALSE) -> 0.000 | AG164: =VLOOKUP($C164,Classification!$A:$F,6,FALSE) -> 1 | AH164: =INDEX(ATS!$A:$U,MATCH('2) Order Form'!$W164,ATS!$T:$T,0),7) -> Stock
A165: 1 | B165: =VLOOKUP(A165,Classification!$H$2:$I$11,2,FALSE) -> Helmets & Helmet Acc. | C165: =INDEX(ATS!$A:$U,MATCH('2) Order Form'!$W165,ATS!$T:$T,0),1) -> 840091 | D165: =INDEX(ATS!$A:$U,MATCH('2) Order Form'!$W165,ATS!$T:$T,0),2) -> Looper Helmet | E165: =INDEX(ATS!$A:$U,MATCH('2) Order Form'!$W165,ATS!$T:$T,0),4) -> MROGD-LXL | F165: =INDEX(ATS!$A:$U,MATCH('2) Order Form'!$W165,ATS!$T:$T,0),5) -> Matte Rose Gold | G165: =INDEX(ATS!$A:$U,MATCH('2) Order Form'!$W165,ATS!$T:$T,0),6) -> LXL | H165: =INDEX(Packs!$A:$V,MATCH('2) Order Form'!$W165,Packs!$W:$W,0),22) -> 1 | I165: 0 | J165: =IFERROR(VLOOKUP(W165,ATS!$T:$U,2,FALSE),0) -> 56 | K165: 50+ | L165: =IFERROR(VLOOKUP(W165,ATS!$T:$V,3,FALSE),0) -> 56 | M165: 50+ | N165: 0% | O165: 0% | P165: =VLOOKUP($C165,Prices!$A$3:$T$1996,MATCH('2) Order Form'!P$8,Prices!$A$2:$T$2,0),FALSE) -> 75.00 | Q165: =VLOOKUP($C165,Prices!$A$3:$T$1996,MATCH('2) Order Form'!Q$8,Prices!$A$2:$T$2,0),FALSE) -> 149.95 | R165: 0 | S165: 0 | T165: 0 | U165: 0% | W165: 7048652823120 | Y165: 0 | Z165: 0 | AA165: 10 | AB165: 0 | AC165: 0 | AD165: 840091Matte Rose Gold | AE165: 840091 | AF165: =VLOOKUP($C165,Classification!$A:$F,5,FALSE) -> 0.000 | AG165: =VLOOKUP($C165,Classification!$A:$F,6,FALSE) -> 1 | AH165: =INDEX(ATS!$A:$U,MATCH('2) Order Form'!$W165,ATS!$T:$T,0),7) -> Stock
A166: 1 | B166: =VLOOKUP(A166,Classification!$H$2:$I$11,2,FALSE) -> Helmets & Helmet Acc. | C166: =INDEX(ATS!$A:$U,MATCH('2) Order Form'!$W166,ATS!$T:$T,0),1) -> 840104 | D166: =INDEX(ATS!$A:$U,MATCH('2) Order Form'!$W166,ATS!$T:$T,0),2) -> Winder Mips Helmet | E166: =INDEX(ATS!$A:$U,MATCH('2) Order Form'!$W166,ATS!$T:$T,0),4) -> DTBLK-SM | F166: =INDEX(ATS!$A:$U,MATCH('2) Order Form'!$W166,ATS!$T:$T,0),5) -> Dirt Black | G166: =INDEX(ATS!$A:$U,MATCH('2) Order Form'!$W166,ATS!$T:$T,0),6) -> SM | H166: =INDEX(Packs!$A:$V,MATCH('2) Order Form'!$W166,Packs!$W:$W,0),22) -> 1 | I166: 0 | J166: =IFERROR(VLOOKUP(W166,ATS!$T:$U,2,FALSE),0) -> 579 | K166: 50+ | L166: =IFERROR(VLOOKUP(W166,ATS!$T:$V,3,FALSE),0) -> 579 | M166: 50+ | N166: 0% | O166: 0% | P166: =VLOOKUP($C166,Prices!$A$3:$T$1996,MATCH('2) Order Form'!P$8,Prices!$A$2:$T$2,0),FALSE) -> 75.00 | Q166: =VLOOKUP($C166,Prices!$A$3:$T$1996,MATCH('2) Order Form'!Q$8,Prices!$A$2:$T$2,0),FALSE) -> 149.95 | R166: 0 | S166: 0 | T166: 0 | U166: 0% | W166: 7048652832825 | Y166: 0 | Z166: 0 | AA166: 11 | AB166: 1 | AC166: 1 | AD166: 840104Dirt Black | AE166: 840104 | AF166: =VLOOKUP($C166,Classification!$A:$F,5,FALSE) ->  | AG166: =VLOOKUP($C166,Classification!$A:$F,6,FALSE) ->  | AH166: =INDEX(ATS!$A:$U,MATCH('2) Order Form'!$W166,ATS!$T:$T,0),7) -> Active
A167: 1 | B167: =VLOOKUP(A167,Classification!$H$2:$I$11,2,FALSE) -> Helmets & Helmet Acc. | C167: =INDEX(ATS!$A:$U,MATCH('2) Order Form'!$W167,ATS!$T:$T,0),1) -> 840104 | D167: =INDEX(ATS!$A:$U,MATCH('2) Order Form'!$W167,ATS!$T:$T,0),2) -> Winder Mips Helmet | E167: =INDEX(ATS!$A:$U,MATCH('2) Order Form'!$W167,ATS!$T:$T,0),4) -> DTBLK-ML | F167: =INDEX(ATS!$A:$U,MATCH('2) Order Form'!$W167,ATS!$T:$T,0),5) -> Dirt Black | G167: =INDEX(ATS!$A:$U,MATCH('2) Order Form'!$W167,ATS!$T:$T,0),6) -> ML | H167: =INDEX(Packs!$A:$V,MATCH('2) Order Form'!$W167,Packs!$W:$W,0),22) -> 1 | I167: 0 | J167: =IFERROR(VLOOKUP(W167,ATS!$T:$U,2,FALSE),0) -> 937 | K167: 50+ | L167: =IFERROR(VLOOKUP(W167,ATS!$T:$V,3,FALSE),0) -> 937 | M167: 50+ | N167: 0% | O167: 0% | P167: =VLOOKUP($C167,Prices!$A$3:$T$1996,MATCH('2) Order Form'!P$8,Prices!$A$2:$T$2,0),FALSE) -> 75.00 | Q167: =VLOOKUP($C167,Prices!$A$3:$T$1996,MATCH('2) Order Form'!Q$8,Prices!$A$2:$T$2,0),FALSE) -> 149.95 | R167: 0 | S167: 0 | T167: 0 | U167: 0% | W167: 7048652832818 | Y167: 0 | Z167: 0 | AA167: 11 | AB167: 0 | AC167: 0 | AD167: 840104Dirt Black | AE167: 840104 | AF167: =VLOOKUP($C167,Classification!$A:$F,5,FALSE) ->  | AG167: =VLOOKUP($C167,Classification!$A:$F,6,FALSE) ->  | AH167: =INDEX(ATS!$A:$U,MATCH('2) Order Form'!$W167,ATS!$T:$T,0),7) -> Active
A168: 1 | B168: =VLOOKUP(A168,Classification!$H$2:$I$11,2,FALSE) -> Helmets & Helmet Acc. | C168: =INDEX(ATS!$A:$U,MATCH('2) Order Form'!$W168,ATS!$T:$T,0),1) -> 840104 | D168: =INDEX(ATS!$A:$U,MATCH('2) Order Form'!$W168,ATS!$T:$T,0),2) -> Winder Mips Helmet | E168: =INDEX(ATS!$A:$U,MATCH('2) Order Form'!$W168,ATS!$T:$T,0),4) -> DTBLK-LXL | F168: =INDEX(ATS!$A:$U,MATCH('2) Order Form'!$W168,ATS!$T:$T,0),5) -> Dirt Black | G168: =INDEX(ATS!$A:$U,MATCH('2) Order Form'!$W168,ATS!$T:$T,0),6) -> LXL | H168: =INDEX(Packs!$A:$V,MATCH('2) Order Form'!$W168,Packs!$W:$W,0),22) -> 1 | I168: 0 | J168: =IFERROR(VLOOKUP(W168,ATS!$T:$U,2,FALSE),0) -> 777 | K168: 50+ | L168: =IFERROR(VLOOKUP(W168,ATS!$T:$V,3,FALSE),0) -> 777 | M168: 50+ | N168: 0% | O168: 0% | P168: =VLOOKUP($C168,Prices!$A$3:$T$1996,MATCH('2) Order Form'!P$8,Prices!$A$2:$T$2,0),FALSE) -> 75.00 | Q168: =VLOOKUP($C168,Prices!$A$3:$T$1996,MATCH('2) Order Form'!Q$8,Prices!$A$2:$T$2,0),FALSE) -> 149.95 | R168: 0 | S168: 0 | T168: 0 | U168: 0% | W168: 7048652832801 | Y168: 0 | Z168: 0 | AA168: 11 | AB168: 0 | AC168: 0 | AD168: 840104Dirt Black | AE168: 840104 | AF168: =VLOOKUP($C168,Classification!$A:$F,5,FALSE) ->  | AG168: =VLOOKUP($C168,Classification!$A:$F,6,FALSE) ->  | AH168: =INDEX(ATS!$A:$U,MATCH('2) Order Form'!$W168,ATS!$T:$T,0),7) -> Active
A169: 1 | B169: =VLOOKUP(A169,Classification!$H$2:$I$11,2,FALSE) -> Helmets & Helmet Acc. | C169: =INDEX(ATS!$A:$U,MATCH('2) Order Form'!$W169,ATS!$T:$T,0),1) -> 840104 | D169: =INDEX(ATS!$A:$U,MATCH('2) Order Form'!$W169,ATS!$T:$T,0),2) -> Winder Mips Helmet | E169: =INDEX(ATS!$A:$U,MATCH('2) Order Form'!$W169,ATS!$T:$T,0),4) -> MASEM-SM | F169: =INDEX(ATS!$A:$U,MATCH('2) Order Form'!$W169,ATS!$T:$T,0),5) -> Matte Sea Metallic | G169: =INDEX(ATS!$A:$U,MATCH('2) Order Form'!$W169,ATS!$T:$T,0),6) -> SM | H169: =INDEX(Packs!$A:$V,MATCH('2) Order Form'!$W169,Packs!$W:$W,0),22) -> 1 | I169: 0 | J169: =IFERROR(VLOOKUP(W169,ATS!$T:$U,2,FALSE),0) -> 82 | K169: 50+ | L169: =IFERROR(VLOOKUP(W169,ATS!$T:$V,3,FALSE),0) -> 82 | M169: 50+ | N169: 0% | O169: 0% | P169: =VLOOKUP($C169,Prices!$A$3:$T$1996,MATCH('2) Order Form'!P$8,Prices!$A$2:$T$2,0),FALSE) -> 75.00 | Q169: =VLOOKUP($C169,Prices!$A$3:$T$1996,MATCH('2) Order Form'!Q$8,Prices!$A$2:$T$2,0),FALSE) -> 149.95 | R169: 0 | S169: 0 | T169: 0 | U169: 0% | W169: 7048652832887 | Y169: 0 | Z169: 0 | AA169: 11 | AB169: 0 | AC169: 1 | AD169: 840104Matte Sea Metallic | AE169: 840104 | AF169: =VLOOKUP($C169,Classification!$A:$F,5,FALSE) ->  | AG169: =VLOOKUP($C169,Classification!$A:$F,6,FALSE) ->  | AH169: =INDEX(ATS!$A:$U,MATCH('2) Order Form'!$W169,ATS!$T:$T,0),7) -> Active
A170: 1 | B170: =VLOOKUP(A170,Classification!$H$2:$I$11,2,FALSE) -> Helmets & Helmet Acc. | C170: =INDEX(ATS!$A:$U,MATCH('2) Order Form'!$W170,ATS!$T:$T,0),1) -> 840104 | D170: =INDEX(ATS!$A:$U,MATCH('2) Order Form'!$W170,ATS!$T:$T,0),2) -> Winder Mips Helmet | E170: =INDEX(ATS!$A:$U,MATCH('2) Order Form'!$W170,ATS!$T:$T,0),4) -> MASEM-ML | F170: =INDEX(ATS!$A:$U,MATCH('2) Order Form'!$W170,ATS!$T:$T,0),5) -> Matte Sea Metallic | G170: =INDEX(ATS!$A:$U,MATCH('2) Order Form'!$W170,ATS!$T:$T,0),6) -> ML | H170: =INDEX(Packs!$A:$V,MATCH('2) Order Form'!$W170,Packs!$W:$W,0),22) -> 1 | I170: 0 | J170: =IFERROR(VLOOKUP(W170,ATS!$T:$U,2,FALSE),0) -> 183 | K170: 50+ | L170: =IFERROR(VLOOKUP(W170,ATS!$T:$V,3,FALSE),0) -> 183 | M170: 50+ | N170: 0% | O170: 0% | P170: =VLOOKUP($C170,Prices!$A$3:$T$1996,MATCH('2) Order Form'!P$8,Prices!$A$2:$T$2,0),FALSE) -> 75.00 | Q170: =VLOOKUP($C170,Prices!$A$3:$T$1996,MATCH('2) Order Form'!Q$8,Prices!$A$2:$T$2,0),FALSE) -> 149.95 | R170: 0 | S170: 0 | T170: 0 | U170: 0% | W170: 7048652832870 | Y170: 0 | Z170: 0 | AA170: 11 | AB170: 0 | AC170: 0 | AD170: 840104Matte Sea Metallic | AE170: 840104 | AF170: =VLOOKUP($C170,Classification!$A:$F,5,FALSE) ->  | AG170: =VLOOKUP($C170,Classification!$A:$F,6,FALSE) ->  | AH170: =INDEX(ATS!$A:$U,MATCH('2) Order Form'!$W170,ATS!$T:$T,0),7) -> Active
A171: 1 | B171: =VLOOKUP(A171,Classification!$H$2:$I$11,2,FALSE) -> Helmets & Helmet Acc. | C171: =INDEX(ATS!$A:$U,MATCH('2) Order Form'!$W171,ATS!$T:$T,0),1) -> 840104 | D171: =INDEX(ATS!$A:$U,MATCH('2) Order Form'!$W171,ATS!$T:$T,0),2) -> Winder Mips Helmet | E171: =INDEX(ATS!$A:$U,MATCH('2) Order Form'!$W171,ATS!$T:$T,0),4) -> MASEM-LXL | F171: =INDEX(ATS!$A:$U,MATCH('2) Order Form'!$W171,ATS!$T:$T,0),5) -> Matte Sea Metallic | G171: =INDEX(ATS!$A:$U,MATCH('2) Order Form'!$W171,ATS!$T:$T,0),6) -> LXL | H171: =INDEX(Packs!$A:$V,MATCH('2) Order Form'!$W171,Packs!$W:$W,0),22) -> 1 | I171: 0 | J171: =IFERROR(VLOOKUP(W171,ATS!$T:$U,2,FALSE),0) -> 74 | K171: 50+ | L171: =IFERROR(VLOOKUP(W171,ATS!$T:$V,3,FALSE),0) -> 74 | M171: 50+ | N171: 0% | O171: 0% | P171: =VLOOKUP($C171,Prices!$A$3:$T$1996,MATCH('2) Order Form'!P$8,Prices!$A$2:$T$2,0),FALSE) -> 75.00 | Q171: =VLOOKUP($C171,Prices!$A$3:$T$1996,MATCH('2) Order Form'!Q$8,Prices!$A$2:$T$2,0),FALSE) -> 149.95 | R171: 0 | S171: 0 | T171: 0 | U171: 0% | W171: 7048652832863 | Y171: 0 | Z171: 0 | AA171: 11 | AB171: 0 | AC171: 0 | AD171: 840104Matte Sea Metallic | AE171: 840104 | AF171: =VLOOKUP($C171,Classification!$A:$F,5,FALSE) ->  | AG171: =VLOOKUP($C171,Classification!$A:$F,6,FALSE) ->  | AH171: =INDEX(ATS!$A:$U,MATCH('2) Order Form'!$W171,ATS!$T:$T,0),7) -> Active
A172: 1 | B172: =VLOOKUP(A172,Classification!$H$2:$I$11,2,FALSE) -> Helmets & Helmet Acc. | C172: =INDEX(ATS!$A:$U,MATCH('2) Order Form'!$W172,ATS!$T:$T,0),1) -> 840104 | D172: =INDEX(ATS!$A:$U,MATCH('2) Order Form'!$W172,ATS!$T:$T,0),2) -> Winder Mips Helmet | E172: =INDEX(ATS!$A:$U,MATCH('2) Order Form'!$W172,ATS!$T:$T,0),4) -> MBRWH-SM | F172: =INDEX(ATS!$A:$U,MATCH('2) Order Form'!$W172,ATS!$T:$T,0),5) -> Matte Bronco White | G172: =INDEX(ATS!$A:$U,MATCH('2) Order Form'!$W172,ATS!$T:$T,0),6) -> SM | H172: =INDEX(Packs!$A:$V,MATCH('2) Order Form'!$W172,Packs!$W:$W,0),22) -> 1 | I172: 0 | J172: =IFERROR(VLOOKUP(W172,ATS!$T:$U,2,FALSE),0) -> 305 | K172: 50+ | L172: =IFERROR(VLOOKUP(W172,ATS!$T:$V,3,FALSE),0) -> 305 | M172: 50+ | N172: 0% | O172: 0% | P172: =VLOOKUP($C172,Prices!$A$3:$T$1996,MATCH('2) Order Form'!P$8,Prices!$A$2:$T$2,0),FALSE) -> 75.00 | Q172: =VLOOKUP($C172,Prices!$A$3:$T$1996,MATCH('2) Order Form'!Q$8,Prices!$A$2:$T$2,0),FALSE) -> 149.95 | R172: 0 | S172: 0 | T172: 0 | U172: 0% | W172: 7048652832917 | Y172: 0 | Z172: 0 | AA172: 11 | AB172: 0 | AC172: 1 | AD172: 840104Matte Bronco White | AE172: 840104 | AF172: =VLOOKUP($C172,Classification!$A:$F,5,FALSE) ->  | AG172: =VLOOKUP($C172,Classification!$A:$F,6,FALSE) ->  | AH172: =INDEX(ATS!$A:$U,MATCH('2) Order Form'!$W172,ATS!$T:$T,0),7) -> Active
A173: 1 | B173: =VLOOKUP(A173,Classification!$H$2:$I$11,2,FALSE) -> Helmets & Helmet Acc. | C173: =INDEX(ATS!$A:$U,MATCH('2) Order Form'!$W173,ATS!$T:$T,0),1) -> 840104 | D173: =INDEX(ATS!$A:$U,MATCH('2) Order Form'!$W173,ATS!$T:$T,0),2) -> Winder Mips Helmet | E173: =INDEX(ATS!$A:$U,MATCH('2) Order Form'!$W173,ATS!$T:$T,0),4) -> MBRWH-ML | F173: =INDEX(ATS!$A:$U,MATCH('2) Order Form'!$W173,ATS!$T:$T,0),5) -> Matte Bronco White | G173: =INDEX(ATS!$A:$U,MATCH('2) Order Form'!$W173,ATS!$T:$T,0),6) -> ML | H173: =INDEX(Packs!$A:$V,MATCH('2) Order Form'!$W173,Packs!$W:$W,0),22) -> 1 | I173: 0 | J173: =IFERROR(VLOOKUP(W173,ATS!$T:$U,2,FALSE),0) -> 524 | K173: 50+ | L173: =IFERROR(VLOOKUP(W173,ATS!$T:$V,3,FALSE),0) -> 524 | M173: 50+ | N173: 0% | O173: 0% | P173: =VLOOKUP($C173,Prices!$A$3:$T$1996,MATCH('2) Order Form'!P$8,Prices!$A$2:$T$2,0),FALSE) -> 75.00 | Q173: =VLOOKUP($C173,Prices!$A$3:$T$1996,MATCH('2) Order Form'!Q$8,Prices!$A$2:$T$2,0),FALSE) -> 149.95 | R173: 0 | S173: 0 | T173: 0 | U173: 0% | W173: 7048652832900 | Y173: 0 | Z173: 0 | AA173: 11 | AB173: 0 | AC173: 0 | AD173: 840104Matte Bronco White | AE173: 840104 | AF173: =VLOOKUP($C173,Classification!$A:$F,5,FALSE) ->  | AG173: =VLOOKUP($C173,Classification!$A:$F,6,FALSE) ->  | AH173: =INDEX(ATS!$A:$U,MATCH('2) Order Form'!$W173,ATS!$T:$T,0),7) -> Active
A174: 1 | B174: =VLOOKUP(A174,Classification!$H$2:$I$11,2,FALSE) -> Helmets & Helmet Acc. | C174: =INDEX(ATS!$A:$U,MATCH('2) Order Form'!$W174,ATS!$T:$T,0),1) -> 840104 | D174: =INDEX(ATS!$A:$U,MATCH('2) Order Form'!$W174,ATS!$T:$T,0),2) -> Winder Mips Helmet | E174: =INDEX(ATS!$A:$U,MATCH('2) Order Form'!$W174,ATS!$T:$T,0),4) -> MBRWH-LXL | F174: =INDEX(ATS!$A:$U,MATCH('2) Order Form'!$W174,ATS!$T:$T,0),5) -> Matte Bronco White | G174: =INDEX(ATS!$A:$U,MATCH('2) Order Form'!$W174,ATS!$T:$T,0),6) -> LXL | H174: =INDEX(Packs!$A:$V,MATCH('2) Order Form'!$W174,Packs!$W:$W,0),22) -> 1 | I174: 0 | J174: =IFERROR(VLOOKUP(W174,ATS!$T:$U,2,FALSE),0) -> 266 | K174: 50+ | L174: =IFERROR(VLOOKUP(W174,ATS!$T:$V,3,FALSE),0) -> 266 | M174: 50+ | N174: 0% | O174: 0% | P174: =VLOOKUP($C174,Prices!$A$3:$T$1996,MATCH('2) Order Form'!P$8,Prices!$A$2:$T$2,0),FALSE) -> 75.00 | Q174: =VLOOKUP($C174,Prices!$A$3:$T$1996,MATCH('2) Order Form'!Q$8,Prices!$A$2:$T$2,0),FALSE) -> 149.95 | R174: 0 | S174: 0 | T174: 0 | U174: 0% | W174: 7048652832894 | Y174: 0 | Z174: 0 | AA174: 11 | AB174: 0 | AC174: 0 | AD174: 840104Matte Bronco White | AE174: 840104 | AF174: =VLOOKUP($C174,Classification!$A:$F,5,FALSE) ->  | AG174: =VLOOKUP($C174,Classification!$A:$F,6,FALSE) ->  | AH174: =INDEX(ATS!$A:$U,MATCH('2) Order Form'!$W174,ATS!$T:$T,0),7) -> Active
A175: 1 | B175: =VLOOKUP(A175,Classification!$H$2:$I$11,2,FALSE) -> Helmets & Helmet Acc. | C175: =INDEX(ATS!$A:$U,MATCH('2) Order Form'!$W175,ATS!$T:$T,0),1) -> 840104 | D175: =INDEX(ATS!$A:$U,MATCH('2) Order Form'!$W175,ATS!$T:$T,0),2) -> Winder Mips Helmet | E175: =INDEX(ATS!$A:$U,MATCH('2) Order Form'!$W175,ATS!$T:$T,0),4) -> MBUOE-SM | F175: =INDEX(ATS!$A:$U,MATCH('2) Order Form'!$W175,ATS!$T:$T,0),5) -> Matte Burning Orange | G175: =INDEX(ATS!$A:$U,MATCH('2) Order Form'!$W175,ATS!$T:$T,0),6) -> SM | H175: =INDEX(Packs!$A:$V,MATCH('2) Order Form'!$W175,Packs!$W:$W,0),22) -> 1 | I175: 0 | J175: =IFERROR(VLOOKUP(W175,ATS!$T:$U,2,FALSE),0) -> 107 | K175: 50+ | L175: =IFERROR(VLOOKUP(W175,ATS!$T:$V,3,FALSE),0) -> 107 | M175: 50+ | N175: 0% | O175: 0% | P175: =VLOOKUP($C175,Prices!$A$3:$T$1996,MATCH('2) Order Form'!P$8,Prices!$A$2:$T$2,0),FALSE) -> 75.00 | Q175: =VLOOKUP($C175,Prices!$A$3:$T$1996,MATCH('2) Order Form'!Q$8,Prices!$A$2:$T$2,0),FALSE) -> 149.95 | R175: 0 | S175: 0 | T175: 0 | U175: 0% | W175: 7048652832948 | Y175: 0 | Z175: 0 | AA175: 11 | AB175: 0 | AC175: 1 | AD175: 840104Matte Burning Orange | AE175: 840104 | AF175: =VLOOKUP($C175,Classification!$A:$F,5,FALSE) ->  | AG175: =VLOOKUP($C175,Classification!$A:$F,6,FALSE) ->  | AH175: =INDEX(ATS!$A:$U,MATCH('2) Order Form'!$W175,ATS!$T:$T,0),7) -> Active
A176: 1 | B176: =VLOOKUP(A176,Classification!$H$2:$I$11,2,FALSE) -> Helmets & Helmet Acc. | C176: =INDEX(ATS!$A:$U,MATCH('2) Order Form'!$W176,ATS!$T:$T,0),1) -> 840104 | D176: =INDEX(ATS!$A:$U,MATCH('2) Order Form'!$W176,ATS!$T:$T,0),2) -> Winder Mips Helmet | E176: =INDEX(ATS!$A:$U,MATCH('2) Order Form'!$W176,ATS!$T:$T,0),4) -> MBUOE-ML | F176: =INDEX(ATS!$A:$U,MATCH('2) Order Form'!$W176,ATS!$T:$T,0),5) -> Matte Burning Orange | G176: =INDEX(ATS!$A:$U,MATCH('2) Order Form'!$W176,ATS!$T:$T,0),6) -> ML | H176: =INDEX(Packs!$A:$V,MATCH('2) Order Form'!$W176,Packs!$W:$W,0),22) -> 1 | I176: 0 | J176: =IFERROR(VLOOKUP(W176,ATS!$T:$U,2,FALSE),0) -> 136 | K176: 50+ | L176: =IFERROR(VLOOKUP(W176,ATS!$T:$V,3,FALSE),0) -> 136 | M176: 50+ | N176: 0% | O176: 0% | P176: =VLOOKUP($C176,Prices!$A$3:$T$1996,MATCH('2) Order Form'!P$8,Prices!$A$2:$T$2,0),FALSE) -> 75.00 | Q176: =VLOOKUP($C176,Prices!$A$3:$T$1996,MATCH('2) Order Form'!Q$8,Prices!$A$2:$T$2,0),FALSE) -> 149.95 | R176: 0 | S176: 0 | T176: 0 | U176: 0% | W176: 7048652832931 | Y176: 0 | Z176: 0 | AA176: 11 | AB176: 0 | AC176: 0 | AD176: 840104Matte Burning Orange | AE176: 840104 | AF176: =VLOOKUP($C176,Classification!$A:$F,5,FALSE) ->  | AG176: =VLOOKUP($C176,Classification!$A:$F,6,FALSE) ->  | AH176: =INDEX(ATS!$A:$U,MATCH('2) Order Form'!$W176,ATS!$T:$T,0),7) -> Active
A177: 1 | B177: =VLOOKUP(A177,Classification!$H$2:$I$11,2,FALSE) -> Helmets & Helmet Acc. | C177: =INDEX(ATS!$A:$U,MATCH('2) Order Form'!$W177,ATS!$T:$T,0),1) -> 840104 | D177: =INDEX(ATS!$A:$U,MATCH('2) Order Form'!$W177,ATS!$T:$T,0),2) -> Winder Mips Helmet | E177: =INDEX(ATS!$A:$U,MATCH('2) Order Form'!$W177,ATS!$T:$T,0),4) -> MBUOE-LXL | F177: =INDEX(ATS!$A:$U,MATCH('2) Order Form'!$W177,ATS!$T:$T,0),5) -> Matte Burning Orange | G177: =INDEX(ATS!$A:$U,MATCH('2) Order Form'!$W177,ATS!$T:$T,0),6) -> LXL | H177: =INDEX(Packs!$A:$V,MATCH('2) Order Form'!$W177,Packs!$W:$W,0),22) -> 1 | I177: 0 | J177: =IFERROR(VLOOKUP(W177,ATS!$T:$U,2,FALSE),0) -> 83 | K177: 50+ | L177: =IFERROR(VLOOKUP(W177,ATS!$T:$V,3,FALSE),0) -> 83 | M177: 50+ | N177: 0% | O177: 0% | P177: =VLOOKUP($C177,Prices!$A$3:$T$1996,MATCH('2) Order Form'!P$8,Prices!$A$2:$T$2,0),FALSE) -> 75.00 | Q177: =VLOOKUP($C177,Prices!$A$3:$T$1996,MATCH('2) Order Form'!Q$8,Prices!$A$2:$T$2,0),FALSE) -> 149.95 | R177: 0 | S177: 0 | T177: 0 | U177: 0% | W177: 7048652832924 | Y177: 0 | Z177: 0 | AA177: 11 | AB177: 0 | AC177: 0 | AD177: 840104Matte Burning Orange | AE177: 840104 | AF177: =VLOOKUP($C177,Classification!$A:$F,5,FALSE) ->  | AG177: =VLOOKUP($C177,Classification!$A:$F,6,FALSE) ->  | AH177: =INDEX(ATS!$A:$U,MATCH('2) Order Form'!$W177,ATS!$T:$T,0),7) -> Active
A178: 1 | B178: =VLOOKUP(A178,Classification!$H$2:$I$11,2,FALSE) -> Helmets & Helmet Acc. | C178: =INDEX(ATS!$A:$U,MATCH('2) Order Form'!$W178,ATS!$T:$T,0),1) -> 840104 | D178: =INDEX(ATS!$A:$U,MATCH('2) Order Form'!$W178,ATS!$T:$T,0),2) -> Winder Mips Helmet | E178: =INDEX(ATS!$A:$U,MATCH('2) Order Form'!$W178,ATS!$T:$T,0),4) -> MSHBL-SM | F178: =INDEX(ATS!$A:$U,MATCH('2) Order Form'!$W178,ATS!$T:$T,0),5) -> Matte Shadow Blue | G178: =INDEX(ATS!$A:$U,MATCH('2) Order Form'!$W178,ATS!$T:$T,0),6) -> SM | H178: =INDEX(Packs!$A:$V,MATCH('2) Order Form'!$W178,Packs!$W:$W,0),22) -> 1 | I178: 0 | J178: =IFERROR(VLOOKUP(W178,ATS!$T:$U,2,FALSE),0) -> 58 | K178: 50+ | L178: =IFERROR(VLOOKUP(W178,ATS!$T:$V,3,FALSE),0) -> 58 | M178: 50+ | N178: 0% | O178: =IF(N178<>0,N178,$P$5) -> 0% | P178: =VLOOKUP($C178,Prices!$A$3:$T$1996,MATCH('2) Order Form'!P$8,Prices!$A$2:$T$2,0),FALSE) -> 75.00 | Q178: =VLOOKUP($C178,Prices!$A$3:$T$1996,MATCH('2) Order Form'!Q$8,Prices!$A$2:$T$2,0),FALSE) -> 149.95 | R178: 0 | S178: 0 | T178: 0 | U178: 0% | W178: 7048652832979 | Y178: =I178*Q178 -> 0 | Z178: =IF(A178=OFFSET(A178,-1,0),0,1) -> 0 | AA178: 11 | AB178: =IF(C178=OFFSET(C178,-1,0),0,1) -> 0 | AC178: =IF(F178=OFFSET(F178,-1,0),0,1) -> 1 | AD178: =CONCATENATE(C178,F178) -> 840104Matte Shadow Blue | AE178: =IFERROR(IF(B178="EYEWEAR",CONCATENATE(C178,"-",G178),C178),C178) -> 840104 | AF178: =VLOOKUP($C178,Classification!$A:$F,5,FALSE) ->  | AG178: =VLOOKUP($C178,Classification!$A:$F,6,FALSE) ->  | AH178: =INDEX(ATS!$A:$U,MATCH('2) Order Form'!$W178,ATS!$T:$T,0),7) -> Stock
A179: 1 | B179: =VLOOKUP(A179,Classification!$H$2:$I$11,2,FALSE) -> Helmets & Helmet Acc. | C179: =INDEX(ATS!$A:$U,MATCH('2) Order Form'!$W179,ATS!$T:$T,0),1) -> 840104 | D179: =INDEX(ATS!$A:$U,MATCH('2) Order Form'!$W179,ATS!$T:$T,0),2) -> Winder Mips Helmet | E179: =INDEX(ATS!$A:$U,MATCH('2) Order Form'!$W179,ATS!$T:$T,0),4) -> MSHBL-ML | F179: =INDEX(ATS!$A:$U,MATCH('2) Order Form'!$W179,ATS!$T:$T,0),5) -> Matte Shadow Blue | G179: =INDEX(ATS!$A:$U,MATCH('2) Order Form'!$W179,ATS!$T:$T,0),6) -> ML | H179: =INDEX(Packs!$A:$V,MATCH('2) Order Form'!$W179,Packs!$W:$W,0),22) -> 1 | I179: 0 | J179: =IFERROR(VLOOKUP(W179,ATS!$T:$U,2,FALSE),0) -> 20 | K179: 20 | L179: =IFERROR(VLOOKUP(W179,ATS!$T:$V,3,FALSE),0) -> 20 | M179: 20 | N179: 0% | O179: =IF(N179<>0,N179,$P$5) -> 0% | P179: =VLOOKUP($C179,Prices!$A$3:$T$1996,MATCH('2) Order Form'!P$8,Prices!$A$2:$T$2,0),FALSE) -> 75.00 | Q179: =VLOOKUP($C179,Prices!$A$3:$T$1996,MATCH('2) Order Form'!Q$8,Prices!$A$2:$T$2,0),FALSE) -> 149.95 | R179: 0 | S179: 0 | T179: 0 | U179: 0% | W179: 7048652832962 | Y179: =I179*Q179 -> 0 | Z179: =IF(A179=OFFSET(A179,-1,0),0,1) -> 0 | AA179: 11 | AB179: =IF(C179=OFFSET(C179,-1,0),0,1) -> 0 | AC179: =IF(F179=OFFSET(F179,-1,0),0,1) -> 0 | AD179: =CONCATENATE(C179,F179) -> 840104Matte Shadow Blue | AE179: =IFERROR(IF(B179="EYEWEAR",CONCATENATE(C179,"-",G179),C179),C179) -> 840104 | AF179: =VLOOKUP($C179,Classification!$A:$F,5,FALSE) ->  | AG179: =VLOOKUP($C179,Classification!$A:$F,6,FALSE) ->  | AH179: =INDEX(ATS!$A:$U,MATCH('2) Order Form'!$W179,ATS!$T:$T,0),7) -> Stock
A180: 1 | B180: =VLOOKUP(A180,Classification!$H$2:$I$11,2,FALSE) -> Helmets & Helmet Acc. | C180: =INDEX(ATS!$A:$U,MATCH('2) Order Form'!$W180,ATS!$T:$T,0),1) -> 840104 | D180: =INDEX(ATS!$A:$U,MATCH('2) Order Form'!$W180,ATS!$T:$T,0),2) -> Winder Mips Helmet | E180: =INDEX(ATS!$A:$U,MATCH('2) Order Form'!$W180,ATS!$T:$T,0),4) -> MSHBL-LXL | F180: =INDEX(ATS!$A:$U,MATCH('2) Order Form'!$W180,ATS!$T:$T,0),5) -> Matte Shadow Blue | G180: =INDEX(ATS!$A:$U,MATCH('2) Order Form'!$W180,ATS!$T:$T,0),6) -> LXL | H180: =INDEX(Packs!$A:$V,MATCH('2) Order Form'!$W180,Packs!$W:$W,0),22) -> 1 | I180: 0 | J180: =IFERROR(VLOOKUP(W180,ATS!$T:$U,2,FALSE),0) -> 34 | K180: 34 | L180: =IFERROR(VLOOKUP(W180,ATS!$T:$V,3,FALSE),0) -> 34 | M180: 34 | N180: 0% | O180: 0% | P180: =VLOOKUP($C180,Prices!$A$3:$T$1996,MATCH('2) Order Form'!P$8,Prices!$A$2:$T$2,0),FALSE) -> 75.00 | Q180: =VLOOKUP($C180,Prices!$A$3:$T$1996,MATCH('2) Order Form'!Q$8,Prices!$A$2:$T$2,0),FALSE) -> 149.95 | R180: 0 | S180: 0 | T180: 0 | U180: 0% | W180: 7048652832955 | Y180: 0 | Z180: 0 | AA180: 11 | AB180: 0 | AC180: 0 | AD180: 840104Matte Shadow Blue | AE180: 840104 | AF180: =VLOOKUP($C180,Classification!$A:$F,5,FALSE) ->  | AG180: =VLOOKUP($C180,Classification!$A:$F,6,FALSE) ->  | AH180: =INDEX(ATS!$A:$U,MATCH('2) Order Form'!$W180,ATS!$T:$T,0),7) -> Stock
A181: 1 | B181: =VLOOKUP(A181,Classification!$H$2:$I$11,2,FALSE) -> Helmets & Helmet Acc. | C181: =INDEX(ATS!$A:$U,MATCH('2) Order Form'!$W181,ATS!$T:$T,0),1) -> 840104 | D181: =INDEX(ATS!$A:$U,MATCH('2) Order Form'!$W181,ATS!$T:$T,0),2) -> Winder Mips Helmet | E181: =INDEX(ATS!$A:$U,MATCH('2) Order Form'!$W181,ATS!$T:$T,0),4) -> RGLDM-SM | F181: =INDEX(ATS!$A:$U,MATCH('2) Order Form'!$W181,ATS!$T:$T,0),5) -> Rose Gold Metallic | G181: =INDEX(ATS!$A:$U,MATCH('2) Order Form'!$W181,ATS!$T:$T,0),6) -> SM | H181: =INDEX(Packs!$A:$V,MATCH('2) Order Form'!$W181,Packs!$W:$W,0),22) -> 1 | I181: 0 | J181: =IFERROR(VLOOKUP(W181,ATS!$T:$U,2,FALSE),0) -> 205 | K181: 50+ | L181: =IFERROR(VLOOKUP(W181,ATS!$T:$V,3,FALSE),0) -> 205 | M181: 50+ | N181: 0% | O181: 0% | P181: =VLOOKUP($C181,Prices!$A$3:$T$1996,MATCH('2) Order Form'!P$8,Prices!$A$2:$T$2,0),FALSE) -> 75.00 | Q181: =VLOOKUP($C181,Prices!$A$3:$T$1996,MATCH('2) Order Form'!Q$8,Prices!$A$2:$T$2,0),FALSE) -> 149.95 | R181: 0 | S181: 0 | T181: 0 | U181: 0% | W181: 7048652833006 | Y181: 0 | Z181: 0 | AA181: 11 | AB181: 0 | AC181: 1 | AD181: 840104Rose Gold Metallic | AE181: 840104 | AF181: =VLOOKUP($C181,Classification!$A:$F,5,FALSE) ->  | AG181: =VLOOKUP($C181,Classification!$A:$F,6,FALSE) ->  | AH181: =INDEX(ATS!$A:$U,MATCH('2) Order Form'!$W181,ATS!$T:$T,0),7) -> Active
A182: 1 | B182: =VLOOKUP(A182,Classification!$H$2:$I$11,2,FALSE) -> Helmets & Helmet Acc. | C182: =INDEX(ATS!$A:$U,MATCH('2) Order Form'!$W182,ATS!$T:$T,0),1) -> 840104 | D182: =INDEX(ATS!$A:$U,MATCH('2) Order Form'!$W182,ATS!$T:$T,0),2) -> Winder Mips Helmet | E182: =INDEX(ATS!$A:$U,MATCH('2) Order Form'!$W182,ATS!$T:$T,0),4) -> RGLDM-ML | F182: =INDEX(ATS!$A:$U,MATCH('2) Order Form'!$W182,ATS!$T:$T,0),5) -> Rose Gold Metallic | G182: =INDEX(ATS!$A:$U,MATCH('2) Order Form'!$W182,ATS!$T:$T,0),6) -> ML | H182: =INDEX(Packs!$A:$V,MATCH('2) Order Form'!$W182,Packs!$W:$W,0),22) -> 1 | I182: 0 | J182: =IFERROR(VLOOKUP(W182,ATS!$T:$U,2,FALSE),0) -> 217 | K182: 50+ | L182: =IFERROR(VLOOKUP(W182,ATS!$T:$V,3,FALSE),0) -> 217 | M182: 50+ | N182: 0% | O182: =IF(N182<>0,N182,$P$5) -> 0% | P182: =VLOOKUP($C182,Prices!$A$3:$T$1996,MATCH('2) Order Form'!P$8,Prices!$A$2:$T$2,0),FALSE) -> 75.00 | Q182: =VLOOKUP($C182,Prices!$A$3:$T$1996,MATCH('2) Order Form'!Q$8,Prices!$A$2:$T$2,0),FALSE) -> 149.95 | R182: 0 | S182: 0 | T182: 0 | U182: 0% | W182: 7048652832993 | Y182: =I182*Q182 -> 0 | Z182: =IF(A182=OFFSET(A182,-1,0),0,1) -> 0 | AA182: 11 | AB182: =IF(C182=OFFSET(C182,-1,0),0,1) -> 0 | AC182: =IF(F182=OFFSET(F182,-1,0),0,1) -> 0 | AD182: =CONCATENATE(C182,F182) -> 840104Rose Gold Metallic | AE182: =IFERROR(IF(B182="EYEWEAR",CONCATENATE(C182,"-",G182),C182),C182) -> 840104 | AF182: =VLOOKUP($C182,Classification!$A:$F,5,FALSE) ->  | AG182: =VLOOKUP($C182,Classification!$A:$F,6,FALSE) ->  | AH182: =INDEX(ATS!$A:$U,MATCH('2) Order Form'!$W182,ATS!$T:$T,0),7) -> Active
A183: 1 | B183: =VLOOKUP(A183,Classification!$H$2:$I$11,2,FALSE) -> Helmets & Helmet Acc. | C183: =INDEX(ATS!$A:$U,MATCH('2) Order Form'!$W183,ATS!$T:$T,0),1) -> 840104 | D183: =INDEX(ATS!$A:$U,MATCH('2) Order Form'!$W183,ATS!$T:$T,0),2) -> Winder Mips Helmet | E183: =INDEX(ATS!$A:$U,MATCH('2) Order Form'!$W183,ATS!$T:$T,0),4) -> RGLDM-LXL | F183: =INDEX(ATS!$A:$U,MATCH('2) Order Form'!$W183,ATS!$T:$T,0),5) -> Rose Gold Metallic | G183: =INDEX(ATS!$A:$U,MATCH('2) Order Form'!$W183,ATS!$T:$T,0),6) -> LXL | H183: =INDEX(Packs!$A:$V,MATCH('2) Order Form'!$W183,Packs!$W:$W,0),22) -> 1 | I183: 0 | J183: =IFERROR(VLOOKUP(W183,ATS!$T:$U,2,FALSE),0) -> 162 | K183: 50+ | L183: =IFERROR(VLOOKUP(W183,ATS!$T:$V,3,FALSE),0) -> 162 | M183: 50+ | N183: 0% | O183: =IF(N183<>0,N183,$P$5) -> 0% | P183: =VLOOKUP($C183,Prices!$A$3:$T$1996,MATCH('2) Order Form'!P$8,Prices!$A$2:$T$2,0),FALSE) -> 75.00 | Q183: =VLOOKUP($C183,Prices!$A$3:$T$1996,MATCH('2) Order Form'!Q$8,Prices!$A$2:$T$2,0),FALSE) -> 149.95 | R183: 0 | S183: 0 | T183: 0 | U183: 0% | W183: 7048652832986 | Y183: =I183*Q183 -> 0 | Z183: =IF(A183=OFFSET(A183,-1,0),0,1) -> 0 | AA183: 11 | AB183: =IF(C183=OFFSET(C183,-1,0),0,1) -> 0 | AC183: =IF(F183=OFFSET(F183,-1,0),0,1) -> 0 | AD183: =CONCATENATE(C183,F183) -> 840104Rose Gold Metallic | AE183: =IFERROR(IF(B183="EYEWEAR",CONCATENATE(C183,"-",G183),C183),C183) -> 840104 | AF183: =VLOOKUP($C183,Classification!$A:$F,5,FALSE) ->  | AG183: =VLOOKUP($C183,Classification!$A:$F,6,FALSE) ->  | AH183: =INDEX(ATS!$A:$U,MATCH('2) Order Form'!$W183,ATS!$T:$T,0),7) -> Active
A184: 1 | B184: =VLOOKUP(A184,Classification!$H$2:$I$11,2,FALSE) -> Helmets & Helmet Acc. | C184: =INDEX(ATS!$A:$U,MATCH('2) Order Form'!$W184,ATS!$T:$T,0),1) -> 840103 | D184: =INDEX(ATS!$A:$U,MATCH('2) Order Form'!$W184,ATS!$T:$T,0),2) -> Winder Helmet | E184: =INDEX(ATS!$A:$U,MATCH('2) Order Form'!$W184,ATS!$T:$T,0),4) -> DTBLK-SM | F184: =INDEX(ATS!$A:$U,MATCH('2) Order Form'!$W184,ATS!$T:$T,0),5) -> Dirt Black | G184: =INDEX(ATS!$A:$U,MATCH('2) Order Form'!$W184,ATS!$T:$T,0),6) -> SM | H184: =INDEX(Packs!$A:$V,MATCH('2) Order Form'!$W184,Packs!$W:$W,0),22) -> 1 | I184: 0 | J184: =IFERROR(VLOOKUP(W184,ATS!$T:$U,2,FALSE),0) -> 91 | K184: 50+ | L184: =IFERROR(VLOOKUP(W184,ATS!$T:$V,3,FALSE),0) -> 91 | M184: 50+ | N184: 0% | O184: 0% | P184: =VLOOKUP($C184,Prices!$A$3:$T$1996,MATCH('2) Order Form'!P$8,Prices!$A$2:$T$2,0),FALSE) -> 60.00 | Q184: =VLOOKUP($C184,Prices!$A$3:$T$1996,MATCH('2) Order Form'!Q$8,Prices!$A$2:$T$2,0),FALSE) -> 119.95 | R184: 0 | S184: 0 | T184: 0 | U184: 0% | W184: 7048652832610 | Y184: 0 | Z184: 0 | AA184: 12 | AB184: 1 | AC184: 1 | AD184: 840103Dirt Black | AE184: 840103 | AF184: =VLOOKUP($C184,Classification!$A:$F,5,FALSE) ->  | AG184: =VLOOKUP($C184,Classification!$A:$F,6,FALSE) ->  | AH184: =INDEX(ATS!$A:$U,MATCH('2) Order Form'!$W184,ATS!$T:$T,0),7) -> Active
A185: 1 | B185: =VLOOKUP(A185,Classification!$H$2:$I$11,2,FALSE) -> Helmets & Helmet Acc. | C185: =INDEX(ATS!$A:$U,MATCH('2) Order Form'!$W185,ATS!$T:$T,0),1) -> 840103 | D185: =INDEX(ATS!$A:$U,MATCH('2) Order Form'!$W185,ATS!$T:$T,0),2) -> Winder Helmet | E185: =INDEX(ATS!$A:$U,MATCH('2) Order Form'!$W185,ATS!$T:$T,0),4) -> DTBLK-ML | F185: =INDEX(ATS!$A:$U,MATCH('2) Order Form'!$W185,ATS!$T:$T,0),5) -> Dirt Black | G185: =INDEX(ATS!$A:$U,MATCH('2) Order Form'!$W185,ATS!$T:$T,0),6) -> ML | H185: =INDEX(Packs!$A:$V,MATCH('2) Order Form'!$W185,Packs!$W:$W,0),22) -> 1 | I185: 0 | J185: =IFERROR(VLOOKUP(W185,ATS!$T:$U,2,FALSE),0) -> 62 | K185: 50+ | L185: =IFERROR(VLOOKUP(W185,ATS!$T:$V,3,FALSE),0) -> 62 | M185: 50+ | N185: 0% | O185: 0% | P185: =VLOOKUP($C185,Prices!$A$3:$T$1996,MATCH('2) Order Form'!P$8,Prices!$A$2:$T$2,0),FALSE) -> 60.00 | Q185: =VLOOKUP($C185,Prices!$A$3:$T$1996,MATCH('2) Order Form'!Q$8,Prices!$A$2:$T$2,0),FALSE) -> 119.95 | R185: 0 | S185: 0 | T185: 0 | U185: 0% | W185: 7048652832603 | Y185: 0 | Z185: 0 | AA185: 12 | AB185: 0 | AC185: 0 | AD185: 840103Dirt Black | AE185: 840103 | AF185: =VLOOKUP($C185,Classification!$A:$F,5,FALSE) ->  | AG185: =VLOOKUP($C185,Classification!$A:$F,6,FALSE) ->  | AH185: =INDEX(ATS!$A:$U,MATCH('2) Order Form'!$W185,ATS!$T:$T,0),7) -> Active
A186: 1 | B186: =VLOOKUP(A186,Classification!$H$2:$I$11,2,FALSE) -> Helmets & Helmet Acc. | C186: =INDEX(ATS!$A:$U,MATCH('2) Order Form'!$W186,ATS!$T:$T,0),1) -> 840103 | D186: =INDEX(ATS!$A:$U,MATCH('2) Order Form'!$W186,ATS!$T:$T,0),2) -> Winder Helmet | E186: =INDEX(ATS!$A:$U,MATCH('2) Order Form'!$W186,ATS!$T:$T,0),4) -> DTBLK-LXL | F186: =INDEX(ATS!$A:$U,MATCH('2) Order Form'!$W186,ATS!$T:$T,0),5) -> Dirt Black | G186: =INDEX(ATS!$A:$U,MATCH('2) Order Form'!$W186,ATS!$T:$T,0),6) -> LXL | H186: =INDEX(Packs!$A:$V,MATCH('2) Order Form'!$W186,Packs!$W:$W,0),22) -> 1 | I186: 0 | J186: =IFERROR(VLOOKUP(W186,ATS!$T:$U,2,FALSE),0) -> 100 | K186: 50+ | L186: =IFERROR(VLOOKUP(W186,ATS!$T:$V,3,FALSE),0) -> 100 | M186: 50+ | N186: 0% | O186: =IF(N186<>0,N186,$P$5) -> 0% | P186: =VLOOKUP($C186,Prices!$A$3:$T$1996,MATCH('2) Order Form'!P$8,Prices!$A$2:$T$2,0),FALSE) -> 60.00 | Q186: =VLOOKUP($C186,Prices!$A$3:$T$1996,MATCH('2) Order Form'!Q$8,Prices!$A$2:$T$2,0),FALSE) -> 119.95 | R186: 0 | S186: 0 | T186: 0 | U186: 0% | W186: 7048652832597 | Y186: =I186*Q186 -> 0 | Z186: =IF(A186=OFFSET(A186,-1,0),0,1) -> 0 | AA186: 12 | AB186: =IF(C186=OFFSET(C186,-1,0),0,1) -> 0 | AC186: =IF(F186=OFFSET(F186,-1,0),0,1) -> 0 | AD186: =CONCATENATE(C186,F186) -> 840103Dirt Black | AE186: =IFERROR(IF(B186="EYEWEAR",CONCATENATE(C186,"-",G186),C186),C186) -> 840103 | AF186: =VLOOKUP($C186,Classification!$A:$F,5,FALSE) ->  | AG186: =VLOOKUP($C186,Classification!$A:$F,6,FALSE) ->  | AH186: =INDEX(ATS!$A:$U,MATCH('2) Order Form'!$W186,ATS!$T:$T,0),7) -> Active
A187: 1 | B187: =VLOOKUP(A187,Classification!$H$2:$I$11,2,FALSE) -> Helmets & Helmet Acc. | C187: =INDEX(ATS!$A:$U,MATCH('2) Order Form'!$W187,ATS!$T:$T,0),1) -> 840103 | D187: =INDEX(ATS!$A:$U,MATCH('2) Order Form'!$W187,ATS!$T:$T,0),2) -> Winder Helmet | E187: =INDEX(ATS!$A:$U,MATCH('2) Order Form'!$W187,ATS!$T:$T,0),4) -> MASEM-SM | F187: =INDEX(ATS!$A:$U,MATCH('2) Order Form'!$W187,ATS!$T:$T,0),5) -> Matte Sea Metallic | G187: =INDEX(ATS!$A:$U,MATCH('2) Order Form'!$W187,ATS!$T:$T,0),6) -> SM | H187: =INDEX(Packs!$A:$V,MATCH('2) Order Form'!$W187,Packs!$W:$W,0),22) -> 1 | I187: 0 | J187: =IFERROR(VLOOKUP(W187,ATS!$T:$U,2,FALSE),0) -> 31 | K187: 31 | L187: =IFERROR(VLOOKUP(W187,ATS!$T:$V,3,FALSE),0) -> 31 | M187: 31 | N187: 0% | O187: =IF(N187<>0,N187,$P$5) -> 0% | P187: =VLOOKUP($C187,Prices!$A$3:$T$1996,MATCH('2) Order Form'!P$8,Prices!$A$2:$T$2,0),FALSE) -> 60.00 | Q187: =VLOOKUP($C187,Prices!$A$3:$T$1996,MATCH('2) Order Form'!Q$8,Prices!$A$2:$T$2,0),FALSE) -> 119.95 | R187: 0 | S187: 0 | T187: 0 | U187: 0% | W187: 7048652832672 | Y187: =I187*Q187 -> 0 | Z187: =IF(A187=OFFSET(A187,-1,0),0,1) -> 0 | AA187: 12 | AB187: =IF(C187=OFFSET(C187,-1,0),0,1) -> 0 | AC187: =IF(F187=OFFSET(F187,-1,0),0,1) -> 1 | AD187: =CONCATENATE(C187,F187) -> 840103Matte Sea Metallic | AE187: =IFERROR(IF(B187="EYEWEAR",CONCATENATE(C187,"-",G187),C187),C187) -> 840103 | AF187: =VLOOKUP($C187,Classification!$A:$F,5,FALSE) ->  | AG187: =VLOOKUP($C187,Classification!$A:$F,6,FALSE) ->  | AH187: =INDEX(ATS!$A:$U,MATCH('2) Order Form'!$W187,ATS!$T:$T,0),7) -> Active
A188: 1 | B188: =VLOOKUP(A188,Classification!$H$2:$I$11,2,FALSE) -> Helmets & Helmet Acc. | C188: =INDEX(ATS!$A:$U,MATCH('2) Order Form'!$W188,ATS!$T:$T,0),1) -> 840103 | D188: =INDEX(ATS!$A:$U,MATCH('2) Order Form'!$W188,ATS!$T:$T,0),2) -> Winder Helmet | E188: =INDEX(ATS!$A:$U,MATCH('2) Order Form'!$W188,ATS!$T:$T,0),4) -> MASEM-ML | F188: =INDEX(ATS!$A:$U,MATCH('2) Order Form'!$W188,ATS!$T:$T,0),5) -> Matte Sea Metallic | G188: =INDEX(ATS!$A:$U,MATCH('2) Order Form'!$W188,ATS!$T:$T,0),6) -> ML | H188: =INDEX(Packs!$A:$V,MATCH('2) Order Form'!$W188,Packs!$W:$W,0),22) -> 1 | I188: 0 | J188: =IFERROR(VLOOKUP(W188,ATS!$T:$U,2,FALSE),0) -> 206 | K188: 50+ | L188: =IFERROR(VLOOKUP(W188,ATS!$T:$V,3,FALSE),0) -> 206 | M188: 50+ | N188: 0% | O188: =IF(N188<>0,N188,$P$5) -> 0% | P188: =VLOOKUP($C188,Prices!$A$3:$T$1996,MATCH('2) Order Form'!P$8,Prices!$A$2:$T$2,0),FALSE) -> 60.00 | Q188: =VLOOKUP($C188,Prices!$A$3:$T$1996,MATCH('2) Order Form'!Q$8,Prices!$A$2:$T$2,0),FALSE) -> 119.95 | R188: 0 | S188: 0 | T188: 0 | U188: 0% | W188: 7048652832665 | Y188: =I188*Q188 -> 0 | Z188: =IF(A188=OFFSET(A188,-1,0),0,1) -> 0 | AA188: 12 | AB188: =IF(C188=OFFSET(C188,-1,0),0,1) -> 0 | AC188: =IF(F188=OFFSET(F188,-1,0),0,1) -> 0 | AD188: =CONCATENATE(C188,F188) -> 840103Matte Sea Metallic | AE188: =IFERROR(IF(B188="EYEWEAR",CONCATENATE(C188,"-",G188),C188),C188) -> 840103 | AF188: =VLOOKUP($C188,Classification!$A:$F,5,FALSE) ->  | AG188: =VLOOKUP($C188,Classification!$A:$F,6,FALSE) ->  | AH188: =INDEX(ATS!$A:$U,MATCH('2) Order Form'!$W188,ATS!$T:$T,0),7) -> Active
A189: 1 | B189: =VLOOKUP(A189,Classification!$H$2:$I$11,2,FALSE) -> Helmets & Helmet Acc. | C189: =INDEX(ATS!$A:$U,MATCH('2) Order Form'!$W189,ATS!$T:$T,0),1) -> 840103 | D189: =INDEX(ATS!$A:$U,MATCH('2) Order Form'!$W189,ATS!$T:$T,0),2) -> Winder Helmet | E189: =INDEX(ATS!$A:$U,MATCH('2) Order Form'!$W189,ATS!$T:$T,0),4) -> MASEM-LXL | F189: =INDEX(ATS!$A:$U,MATCH('2) Order Form'!$W189,ATS!$T:$T,0),5) -> Matte Sea Metallic | G189: =INDEX(ATS!$A:$U,MATCH('2) Order Form'!$W189,ATS!$T:$T,0),6) -> LXL | H189: =INDEX(Packs!$A:$V,MATCH('2) Order Form'!$W189,Packs!$W:$W,0),22) -> 1 | I189: 0 | J189: =IFERROR(VLOOKUP(W189,ATS!$T:$U,2,FALSE),0) -> 152 | K189: 50+ | L189: =IFERROR(VLOOKUP(W189,ATS!$T:$V,3,FALSE),0) -> 152 | M189: 50+ | N189: 0% | O189: 0% | P189: =VLOOKUP($C189,Prices!$A$3:$T$1996,MATCH('2) Order Form'!P$8,Prices!$A$2:$T$2,0),FALSE) -> 60.00 | Q189: =VLOOKUP($C189,Prices!$A$3:$T$1996,MATCH('2) Order Form'!Q$8,Prices!$A$2:$T$2,0),FALSE) -> 119.95 | R189: 0 | S189: 0 | T189: 0 | U189: 0% | W189: 7048652832658 | Y189: 0 | Z189: 0 | AA189: 12 | AB189: 0 | AC189: 0 | AD189: 840103Matte Sea Metallic | AE189: 840103 | AF189: =VLOOKUP($C189,Classification!$A:$F,5,FALSE) ->  | AG189: =VLOOKUP($C189,Classification!$A:$F,6,FALSE) ->  | AH189: =INDEX(ATS!$A:$U,MATCH('2) Order Form'!$W189,ATS!$T:$T,0),7) -> Active
A190: 1 | B190: =VLOOKUP(A190,Classification!$H$2:$I$11,2,FALSE) -> Helmets & Helmet Acc. | C190: =INDEX(ATS!$A:$U,MATCH('2) Order Form'!$W190,ATS!$T:$T,0),1) -> 840103 | D190: =INDEX(ATS!$A:$U,MATCH('2) Order Form'!$W190,ATS!$T:$T,0),2) -> Winder Helmet | E190: =INDEX(ATS!$A:$U,MATCH('2) Order Form'!$W190,ATS!$T:$T,0),4) -> MBRWH-SM | F190: =INDEX(ATS!$A:$U,MATCH('2) Order Form'!$W190,ATS!$T:$T,0),5) -> Matte Bronco White | G190: =INDEX(ATS!$A:$U,MATCH('2) Order Form'!$W190,ATS!$T:$T,0),6) -> SM | H190: =INDEX(Packs!$A:$V,MATCH('2) Order Form'!$W190,Packs!$W:$W,0),22) -> 1 | I190: 0 | J190: =IFERROR(VLOOKUP(W190,ATS!$T:$U,2,FALSE),0) -> 22 | K190: 22 | L190: =IFERROR(VLOOKUP(W190,ATS!$T:$V,3,FALSE),0) -> 22 | M190: 22 | N190: 0% | O190: 0% | P190: =VLOOKUP($C190,Prices!$A$3:$T$1996,MATCH('2) Order Form'!P$8,Prices!$A$2:$T$2,0),FALSE) -> 60.00 | Q190: =VLOOKUP($C190,Prices!$A$3:$T$1996,MATCH('2) Order Form'!Q$8,Prices!$A$2:$T$2,0),FALSE) -> 119.95 | R190: 0 | S190: 0 | T190: 0 | U190: 0% | W190: 7048652832702 | Y190: 0 | Z190: 0 | AA190: 12 | AB190: 0 | AC190: 1 | AD190: 840103Matte Bronco White | AE190: 840103 | AF190: =VLOOKUP($C190,Classification!$A:$F,5,FALSE) ->  | AG190: =VLOOKUP($C190,Classification!$A:$F,6,FALSE) ->  | AH190: =INDEX(ATS!$A:$U,MATCH('2) Order Form'!$W190,ATS!$T:$T,0),7) -> Active
A191: 1 | B191: =VLOOKUP(A191,Classification!$H$2:$I$11,2,FALSE) -> Helmets & Helmet Acc. | C191: =INDEX(ATS!$A:$U,MATCH('2) Order Form'!$W191,ATS!$T:$T,0),1) -> 840103 | D191: =INDEX(ATS!$A:$U,MATCH('2) Order Form'!$W191,ATS!$T:$T,0),2) -> Winder Helmet | E191: =INDEX(ATS!$A:$U,MATCH('2) Order Form'!$W191,ATS!$T:$T,0),4) -> MBRWH-ML | F191: =INDEX(ATS!$A:$U,MATCH('2) Order Form'!$W191,ATS!$T:$T,0),5) -> Matte Bronco White | G191: =INDEX(ATS!$A:$U,MATCH('2) Order Form'!$W191,ATS!$T:$T,0),6) -> ML | H191: =INDEX(Packs!$A:$V,MATCH('2) Order Form'!$W191,Packs!$W:$W,0),22) -> 1 | I191: 0 | J191: =IFERROR(VLOOKUP(W191,ATS!$T:$U,2,FALSE),0) -> 45 | K191: 45 | L191: =IFERROR(VLOOKUP(W191,ATS!$T:$V,3,FALSE),0) -> 45 | M191: 45 | N191: 0% | O191: =IF(N191<>0,N191,$P$5) -> 0% | P191: =VLOOKUP($C191,Prices!$A$3:$T$1996,MATCH('2) Order Form'!P$8,Prices!$A$2:$T$2,0),FALSE) -> 60.00 | Q191: =VLOOKUP($C191,Prices!$A$3:$T$1996,MATCH('2) Order Form'!Q$8,Prices!$A$2:$T$2,0),FALSE) -> 119.95 | R191: 0 | S191: 0 | T191: 0 | U191: 0% | W191: 7048652832696 | Y191: =I191*Q191 -> 0 | Z191: =IF(A191=OFFSET(A191,-1,0),0,1) -> 0 | AA191: 12 | AB191: =IF(C191=OFFSET(C191,-1,0),0,1) -> 0 | AC191: =IF(F191=OFFSET(F191,-1,0),0,1) -> 0 | AD191: =CONCATENATE(C191,F191) -> 840103Matte Bronco White | AE191: =IFERROR(IF(B191="EYEWEAR",CONCATENATE(C191,"-",G191),C191),C191) -> 840103 | AF191: =VLOOKUP($C191,Classification!$A:$F,5,FALSE) ->  | AG191: =VLOOKUP($C191,Classification!$A:$F,6,FALSE) ->  | AH191: =INDEX(ATS!$A:$U,MATCH('2) Order Form'!$W191,ATS!$T:$T,0),7) -> Active
A192: 1 | B192: =VLOOKUP(A192,Classification!$H$2:$I$11,2,FALSE) -> Helmets & Helmet Acc. | C192: =INDEX(ATS!$A:$U,MATCH('2) Order Form'!$W192,ATS!$T:$T,0),1) -> 840103 | D192: =INDEX(ATS!$A:$U,MATCH('2) Order Form'!$W192,ATS!$T:$T,0),2) -> Winder Helmet | E192: =INDEX(ATS!$A:$U,MATCH('2) Order Form'!$W192,ATS!$T:$T,0),4) -> MBRWH-LXL | F192: =INDEX(ATS!$A:$U,MATCH('2) Order Form'!$W192,ATS!$T:$T,0),5) -> Matte Bronco White | G192: =INDEX(ATS!$A:$U,MATCH('2) Order Form'!$W192,ATS!$T:$T,0),6) -> LXL | H192: =INDEX(Packs!$A:$V,MATCH('2) Order Form'!$W192,Packs!$W:$W,0),22) -> 1 | I192: 0 | J192: =IFERROR(VLOOKUP(W192,ATS!$T:$U,2,FALSE),0) -> 57 | K192: 50+ | L192: =IFERROR(VLOOKUP(W192,ATS!$T:$V,3,FALSE),0) -> 57 | M192: 50+ | N192: 0% | O192: =IF(N192<>0,N192,$P$5) -> 0% | P192: =VLOOKUP($C192,Prices!$A$3:$T$1996,MATCH('2) Order Form'!P$8,Prices!$A$2:$T$2,0),FALSE) -> 60.00 | Q192: =VLOOKUP($C192,Prices!$A$3:$T$1996,MATCH('2) Order Form'!Q$8,Prices!$A$2:$T$2,0),FALSE) -> 119.95 | R192: 0 | S192: 0 | T192: 0 | U192: 0% | W192: 7048652832689 | Y192: =I192*Q192 -> 0 | Z192: =IF(A192=OFFSET(A192,-1,0),0,1) -> 0 | AA192: 12 | AB192: =IF(C192=OFFSET(C192,-1,0),0,1) -> 0 | AC192: =IF(F192=OFFSET(F192,-1,0),0,1) -> 0 | AD192: =CONCATENATE(C192,F192) -> 840103Matte Bronco White | AE192: =IFERROR(IF(B192="EYEWEAR",CONCATENATE(C192,"-",G192),C192),C192) -> 840103 | AF192: =VLOOKUP($C192,Classification!$A:$F,5,FALSE) ->  | AG192: =VLOOKUP($C192,Classification!$A:$F,6,FALSE) ->  | AH192: =INDEX(ATS!$A:$U,MATCH('2) Order Form'!$W192,ATS!$T:$T,0),7) -> Active
A193: 1 | B193: =VLOOKUP(A193,Classification!$H$2:$I$11,2,FALSE) -> Helmets & Helmet Acc. | C193: =INDEX(ATS!$A:$U,MATCH('2) Order Form'!$W193,ATS!$T:$T,0),1) -> 840103 | D193: =INDEX(ATS!$A:$U,MATCH('2) Order Form'!$W193,ATS!$T:$T,0),2) -> Winder Helmet | E193: =INDEX(ATS!$A:$U,MATCH('2) Order Form'!$W193,ATS!$T:$T,0),4) -> MBUOE-SM | F193: =INDEX(ATS!$A:$U,MATCH('2) Order Form'!$W193,ATS!$T:$T,0),5) -> Matte Burning Orange | G193: =INDEX(ATS!$A:$U,MATCH('2) Order Form'!$W193,ATS!$T:$T,0),6) -> SM | H193: =INDEX(Packs!$A:$V,MATCH('2) Order Form'!$W193,Packs!$W:$W,0),22) -> 1 | I193: 0 | J193: =IFERROR(VLOOKUP(W193,ATS!$T:$U,2,FALSE),0) -> 29 | K193: 29 | L193: =IFERROR(VLOOKUP(W193,ATS!$T:$V,3,FALSE),0) -> 29 | M193: 29 | N193: 0% | O193: 0% | P193: =VLOOKUP($C193,Prices!$A$3:$T$1996,MATCH('2) Order Form'!P$8,Prices!$A$2:$T$2,0),FALSE) -> 60.00 | Q193: =VLOOKUP($C193,Prices!$A$3:$T$1996,MATCH('2) Order Form'!Q$8,Prices!$A$2:$T$2,0),FALSE) -> 119.95 | R193: 0 | S193: 0 | T193: 0 | U193: 0% | W193: 7048652832733 | Y193: 0 | Z193: 0 | AA193: 12 | AB193: 0 | AC193: 1 | AD193: 840103Matte Burning Orange | AE193: 840103 | AF193: =VLOOKUP($C193,Classification!$A:$F,5,FALSE) ->  | AG193: =VLOOKUP($C193,Classification!$A:$F,6,FALSE) ->  | AH193: =INDEX(ATS!$A:$U,MATCH('2) Order Form'!$W193,ATS!$T:$T,0),7) -> Active
A194: 1 | B194: =VLOOKUP(A194,Classification!$H$2:$I$11,2,FALSE) -> Helmets & Helmet Acc. | C194: =INDEX(ATS!$A:$U,MATCH('2) Order Form'!$W194,ATS!$T:$T,0),1) -> 840103 | D194: =INDEX(ATS!$A:$U,MATCH('2) Order Form'!$W194,ATS!$T:$T,0),2) -> Winder Helmet | E194: =INDEX(ATS!$A:$U,MATCH('2) Order Form'!$W194,ATS!$T:$T,0),4) -> MBUOE-ML | F194: =INDEX(ATS!$A:$U,MATCH('2) Order Form'!$W194,ATS!$T:$T,0),5) -> Matte Burning Orange | G194: =INDEX(ATS!$A:$U,MATCH('2) Order Form'!$W194,ATS!$T:$T,0),6) -> ML | H194: =INDEX(Packs!$A:$V,MATCH('2) Order Form'!$W194,Packs!$W:$W,0),22) -> 1 | I194: 0 | J194: =IFERROR(VLOOKUP(W194,ATS!$T:$U,2,FALSE),0) -> 36 | K194: 36 | L194: =IFERROR(VLOOKUP(W194,ATS!$T:$V,3,FALSE),0) -> 36 | M194: 36 | N194: 0% | O194: 0% | P194: =VLOOKUP($C194,Prices!$A$3:$T$1996,MATCH('2) Order Form'!P$8,Prices!$A$2:$T$2,0),FALSE) -> 60.00 | Q194: =VLOOKUP($C194,Prices!$A$3:$T$1996,MATCH('2) Order Form'!Q$8,Prices!$A$2:$T$2,0),FALSE) -> 119.95 | R194: 0 | S194: 0 | T194: 0 | U194: 0% | W194: 7048652832726 | Y194: 0 | Z194: 0 | AA194: 12 | AB194: 0 | AC194: 0 | AD194: 840103Matte Burning Orange | AE194: 840103 | AF194: =VLOOKUP($C194,Classification!$A:$F,5,FALSE) ->  | AG194: =VLOOKUP($C194,Classification!$A:$F,6,FALSE) ->  | AH194: =INDEX(ATS!$A:$U,MATCH('2) Order Form'!$W194,ATS!$T:$T,0),7) -> Active
A195: 1 | B195: =VLOOKUP(A195,Classification!$H$2:$I$11,2,FALSE) -> Helmets & Helmet Acc. | C195: =INDEX(ATS!$A:$U,MATCH('2) Order Form'!$W195,ATS!$T:$T,0),1) -> 840103 | D195: =INDEX(ATS!$A:$U,MATCH('2) Order Form'!$W195,ATS!$T:$T,0),2) -> Winder Helmet | E195: =INDEX(ATS!$A:$U,MATCH('2) Order Form'!$W195,ATS!$T:$T,0),4) -> MBUOE-LXL | F195: =INDEX(ATS!$A:$U,MATCH('2) Order Form'!$W195,ATS!$T:$T,0),5) -> Matte Burning Orange | G195: =INDEX(ATS!$A:$U,MATCH('2) Order Form'!$W195,ATS!$T:$T,0),6) -> LXL | H195: =INDEX(Packs!$A:$V,MATCH('2) Order Form'!$W195,Packs!$W:$W,0),22) -> 1 | I195: 0 | J195: =IFERROR(VLOOKUP(W195,ATS!$T:$U,2,FALSE),0) -> 19 | K195: 19 | L195: =IFERROR(VLOOKUP(W195,ATS!$T:$V,3,FALSE),0) -> 19 | M195: 19 | N195: 0% | O195: 0% | P195: =VLOOKUP($C195,Prices!$A$3:$T$1996,MATCH('2) Order Form'!P$8,Prices!$A$2:$T$2,0),FALSE) -> 60.00 | Q195: =VLOOKUP($C195,Prices!$A$3:$T$1996,MATCH('2) Order Form'!Q$8,Prices!$A$2:$T$2,0),FALSE) -> 119.95 | R195: 0 | S195: 0 | T195: 0 | U195: 0% | W195: 7048652832719 | Y195: 0 | Z195: 0 | AA195: 12 | AB195: 0 | AC195: 0 | AD195: 840103Matte Burning Orange | AE195: 840103 | AF195: =VLOOKUP($C195,Classification!$A:$F,5,FALSE) ->  | AG195: =VLOOKUP($C195,Classification!$A:$F,6,FALSE) ->  | AH195: =INDEX(ATS!$A:$U,MATCH('2) Order Form'!$W195,ATS!$T:$T,0),7) -> Active
A196: 1 | B196: =VLOOKUP(A196,Classification!$H$2:$I$11,2,FALSE) -> Helmets & Helmet Acc. | C196: =INDEX(ATS!$A:$U,MATCH('2) Order Form'!$W196,ATS!$T:$T,0),1) -> 840103 | D196: =INDEX(ATS!$A:$U,MATCH('2) Order Form'!$W196,ATS!$T:$T,0),2) -> Winder Helmet | E196: =INDEX(ATS!$A:$U,MATCH('2) Order Form'!$W196,ATS!$T:$T,0),4) -> MSHBL-SM | F196: =INDEX(ATS!$A:$U,MATCH('2) Order Form'!$W196,ATS!$T:$T,0),5) -> Matte Shadow Blue | G196: =INDEX(ATS!$A:$U,MATCH('2) Order Form'!$W196,ATS!$T:$T,0),6) -> SM | H196: =INDEX(Packs!$A:$V,MATCH('2) Order Form'!$W196,Packs!$W:$W,0),22) -> 1 | I196: 0 | J196: =IFERROR(VLOOKUP(W196,ATS!$T:$U,2,FALSE),0) -> 11 | K196: 11 | L196: =IFERROR(VLOOKUP(W196,ATS!$T:$V,3,FALSE),0) -> 11 | M196: 11 | N196: 0% | O196: 0% | P196: =VLOOKUP($C196,Prices!$A$3:$T$1996,MATCH('2) Order Form'!P$8,Prices!$A$2:$T$2,0),FALSE) -> 60.00 | Q196: =VLOOKUP($C196,Prices!$A$3:$T$1996,MATCH('2) Order Form'!Q$8,Prices!$A$2:$T$2,0),FALSE) -> 119.95 | R196: 0 | S196: 0 | T196: 0 | U196: 0% | W196: 7048652832764 | Y196: 0 | Z196: 0 | AA196: 12 | AB196: 0 | AC196: 1 | AD196: 840103Matte Shadow Blue | AE196: 840103 | AF196: =VLOOKUP($C196,Classification!$A:$F,5,FALSE) ->  | AG196: =VLOOKUP($C196,Classification!$A:$F,6,FALSE) ->  | AH196: =INDEX(ATS!$A:$U,MATCH('2) Order Form'!$W196,ATS!$T:$T,0),7) -> Stock
A197: 1 | B197: =VLOOKUP(A197,Classification!$H$2:$I$11,2,FALSE) -> Helmets & Helmet Acc. | C197: =INDEX(ATS!$A:$U,MATCH('2) Order Form'!$W197,ATS!$T:$T,0),1) -> 840103 | D197: =INDEX(ATS!$A:$U,MATCH('2) Order Form'!$W197,ATS!$T:$T,0),2) -> Winder Helmet | E197: =INDEX(ATS!$A:$U,MATCH('2) Order Form'!$W197,ATS!$T:$T,0),4) -> MSHBL-ML | F197: =INDEX(ATS!$A:$U,MATCH('2) Order Form'!$W197,ATS!$T:$T,0),5) -> Matte Shadow Blue | G197: =INDEX(ATS!$A:$U,MATCH('2) Order Form'!$W197,ATS!$T:$T,0),6) -> ML | H197: =INDEX(Packs!$A:$V,MATCH('2) Order Form'!$W197,Packs!$W:$W,0),22) -> 1 | I197: 0 | J197: =IFERROR(VLOOKUP(W197,ATS!$T:$U,2,FALSE),0) -> 0 | K197: 0 | L197: =IFERROR(VLOOKUP(W197,ATS!$T:$V,3,FALSE),0) -> 0 | M197: 0 | N197: 0% | O197: 0% | P197: =VLOOKUP($C197,Prices!$A$3:$T$1996,MATCH('2) Order Form'!P$8,Prices!$A$2:$T$2,0),FALSE) -> 60.00 | Q197: =VLOOKUP($C197,Prices!$A$3:$T$1996,MATCH('2) Order Form'!Q$8,Prices!$A$2:$T$2,0),FALSE) -> 119.95 | R197: 0 | S197: 0 | T197: 0 | U197: 0% | W197: 7048652832757 | Y197: 0 | Z197: 0 | AA197: 12 | AB197: 0 | AC197: 0 | AD197: 840103Matte Shadow Blue | AE197: 840103 | AF197: =VLOOKUP($C197,Classification!$A:$F,5,FALSE) ->  | AG197: =VLOOKUP($C197,Classification!$A:$F,6,FALSE) ->  | AH197: =INDEX(ATS!$A:$U,MATCH('2) Order Form'!$W197,ATS!$T:$T,0),7) -> Stock
A198: 1 | B198: =VLOOKUP(A198,Classification!$H$2:$I$11,2,FALSE) -> Helmets & Helmet Acc. | C198: =INDEX(ATS!$A:$U,MATCH('2) Order Form'!$W198,ATS!$T:$T,0),1) -> 840103 | D198: =INDEX(ATS!$A:$U,MATCH('2) Order Form'!$W198,ATS!$T:$T,0),2) -> Winder Helmet | E198: =INDEX(ATS!$A:$U,MATCH('2) Order Form'!$W198,ATS!$T:$T,0),4) -> MSHBL-LXL | F198: =INDEX(ATS!$A:$U,MATCH('2) Order Form'!$W198,ATS!$T:$T,0),5) -> Matte Shadow Blue | G198: =INDEX(ATS!$A:$U,MATCH('2) Order Form'!$W198,ATS!$T:$T,0),6) -> LXL | H198: =INDEX(Packs!$A:$V,MATCH('2) Order Form'!$W198,Packs!$W:$W,0),22) -> 1 | I198: 0 | J198: =IFERROR(VLOOKUP(W198,ATS!$T:$U,2,FALSE),0) -> 13 | K198: 13 | L198: =IFERROR(VLOOKUP(W198,ATS!$T:$V,3,FALSE),0) -> 13 | M198: 13 | N198: 0% | O198: 0% | P198: =VLOOKUP($C198,Prices!$A$3:$T$1996,MATCH('2) Order Form'!P$8,Prices!$A$2:$T$2,0),FALSE) -> 60.00 | Q198: =VLOOKUP($C198,Prices!$A$3:$T$1996,MATCH('2) Order Form'!Q$8,Prices!$A$2:$T$2,0),FALSE) -> 119.95 | R198: 0 | S198: 0 | T198: 0 | U198: 0% | W198: 7048652832740 | Y198: 0 | Z198: 0 | AA198: =IF(C198=OFFSET(C198,-1,0),OFFSET(AA198,-1,0),OFFSET(AA198,-1,0)+1) -> 12 | AB198: 0 | AC198: 0 | AD198: 840103Matte Shadow Blue | AE198: 840103 | AF198: =VLOOKUP($C198,Classification!$A:$F,5,FALSE) ->  | AG198: =VLOOKUP($C198,Classification!$A:$F,6,FALSE) ->  | AH198: =INDEX(ATS!$A:$U,MATCH('2) Order Form'!$W198,ATS!$T:$T,0),7) -> Stock
A199: 1 | B199: =VLOOKUP(A199,Classification!$H$2:$I$11,2,FALSE) -> Helmets & Helmet Acc. | C199: =INDEX(ATS!$A:$U,MATCH('2) Order Form'!$W199,ATS!$T:$T,0),1) -> 840103 | D199: =INDEX(ATS!$A:$U,MATCH('2) Order Form'!$W199,ATS!$T:$T,0),2) -> Winder Helmet | E199: =INDEX(ATS!$A:$U,MATCH('2) Order Form'!$W199,ATS!$T:$T,0),4) -> RGLDM-SM | F199: =INDEX(ATS!$A:$U,MATCH('2) Order Form'!$W199,ATS!$T:$T,0),5) -> Rose Gold Metallic | G199: =INDEX(ATS!$A:$U,MATCH('2) Order Form'!$W199,ATS!$T:$T,0),6) -> SM | H199: =INDEX(Packs!$A:$V,MATCH('2) Order Form'!$W199,Packs!$W:$W,0),22) -> 1 | I199: 0 | J199: =IFERROR(VLOOKUP(W199,ATS!$T:$U,2,FALSE),0) -> 15 | K199: 15 | L199: =IFERROR(VLOOKUP(W199,ATS!$T:$V,3,FALSE),0) -> 15 | M199: 15 | N199: 0% | O199: 0% | P199: =VLOOKUP($C199,Prices!$A$3:$T$1996,MATCH('2) Order Form'!P$8,Prices!$A$2:$T$2,0),FALSE) -> 60.00 | Q199: =VLOOKUP($C199,Prices!$A$3:$T$1996,MATCH('2) Order Form'!Q$8,Prices!$A$2:$T$2,0),FALSE) -> 119.95 | R199: 0 | S199: 0 | T199: 0 | U199: 0% | W199: 7048652832795 | Y199: 0 | Z199: 0 | AA199: 12 | AB199: 0 | AC199: 1 | AD199: 840103Rose Gold Metallic | AE199: 840103 | AF199: =VLOOKUP($C199,Classification!$A:$F,5,FALSE) ->  | AG199: =VLOOKUP($C199,Classification!$A:$F,6,FALSE) ->  | AH199: =INDEX(ATS!$A:$U,MATCH('2) Order Form'!$W199,ATS!$T:$T,0),7) -> Active
A200: 1 | B200: =VLOOKUP(A200,Classification!$H$2:$I$11,2,FALSE) -> Helmets & Helmet Acc. | C200: =INDEX(ATS!$A:$U,MATCH('2) Order Form'!$W200,ATS!$T:$T,0),1) -> 840103 | D200: =INDEX(ATS!$A:$U,MATCH('2) Order Form'!$W200,ATS!$T:$T,0),2) -> Winder Helmet | E200: =INDEX(ATS!$A:$U,MATCH('2) Order Form'!$W200,ATS!$T:$T,0),4) -> RGLDM-ML | F200: =INDEX(ATS!$A:$U,MATCH('2) Order Form'!$W200,ATS!$T:$T,0),5) -> Rose Gold Metallic | G200: =INDEX(ATS!$A:$U,MATCH('2) Order Form'!$W200,ATS!$T:$T,0),6) -> ML | H200: =INDEX(Packs!$A:$V,MATCH('2) Order Form'!$W200,Packs!$W:$W,0),22) -> 1 | I200: 0 | J200: =IFERROR(VLOOKUP(W200,ATS!$T:$U,2,FALSE),0) -> 51 | K200: 50+ | L200: =IFERROR(VLOOKUP(W200,ATS!$T:$V,3,FALSE),0) -> 51 | M200: 50+ | N200: 0% | O200: 0% | P200: =VLOOKUP($C200,Prices!$A$3:$T$1996,MATCH('2) Order Form'!P$8,Prices!$A$2:$T$2,0),FALSE) -> 60.00 | Q200: =VLOOKUP($C200,Prices!$A$3:$T$1996,MATCH('2) Order Form'!Q$8,Prices!$A$2:$T$2,0),FALSE) -> 119.95 | R200: 0 | S200: 0 | T200: 0 | U200: 0% | W200: 7048652832788 | Y200: 0 | Z200: 0 | AA200: 12 | AB200: 0 | AC200: 0 | AD200: 840103Rose Gold Metallic | AE200: 840103 | AF200: =VLOOKUP($C200,Classification!$A:$F,5,FALSE) ->  | AG200: =VLOOKUP($C200,Classification!$A:$F,6,FALSE) ->  | AH200: =INDEX(ATS!$A:$U,MATCH('2) Order Form'!$W200,ATS!$T:$T,0),7) -> Active
A201: 1 | B201: =VLOOKUP(A201,Classification!$H$2:$I$11,2,FALSE) -> Helmets & Helmet Acc. | C201: =INDEX(ATS!$A:$U,MATCH('2) Order Form'!$W201,ATS!$T:$T,0),1) -> 840103 | D201: =INDEX(ATS!$A:$U,MATCH('2) Order Form'!$W201,ATS!$T:$T,0),2) -> Winder Helmet | E201: =INDEX(ATS!$A:$U,MATCH('2) Order Form'!$W201,ATS!$T:$T,0),4) -> RGLDM-LXL | F201: =INDEX(ATS!$A:$U,MATCH('2) Order Form'!$W201,ATS!$T:$T,0),5) -> Rose Gold Metallic | G201: =INDEX(ATS!$A:$U,MATCH('2) Order Form'!$W201,ATS!$T:$T,0),6) -> LXL | H201: =INDEX(Packs!$A:$V,MATCH('2) Order Form'!$W201,Packs!$W:$W,0),22) -> 1 | I201: 0 | J201: =IFERROR(VLOOKUP(W201,ATS!$T:$U,2,FALSE),0) -> 51 | K201: 50+ | L201: =IFERROR(VLOOKUP(W201,ATS!$T:$V,3,FALSE),0) -> 51 | M201: 50+ | N201: 0% | O201: 0% | P201: =VLOOKUP($C201,Prices!$A$3:$T$1996,MATCH('2) Order Form'!P$8,Prices!$A$2:$T$2,0),FALSE) -> 60.00 | Q201: =VLOOKUP($C201,Prices!$A$3:$T$1996,MATCH('2) Order Form'!Q$8,Prices!$A$2:$T$2,0),FALSE) -> 119.95 | R201: 0 | S201: 0 | T201: 0 | U201: =IFERROR(I201/SUMIF($AD$9:$AD$888,AD201,$I$9:$I$888),0) -> 0% | W201: 7048652832771 | Y201: 0 | Z201: 0 | AA201: 12 | AB201: 0 | AC201: 0 | AD201: 840103Rose Gold Metallic | AE201: 840103 | AF201: =VLOOKUP($C201,Classification!$A:$F,5,FALSE) ->  | AG201: =VLOOKUP($C201,Classification!$A:$F,6,FALSE) ->  | AH201: =INDEX(ATS!$A:$U,MATCH('2) Order Form'!$W201,ATS!$T:$T,0),7) -> Active
A202: 1 | B202: =VLOOKUP(A202,Classification!$H$2:$I$11,2,FALSE) -> Helmets & Helmet Acc. | C202: =INDEX(ATS!$A:$U,MATCH('2) Order Form'!$W202,ATS!$T:$T,0),1) -> 840037 | D202: =INDEX(ATS!$A:$U,MATCH('2) Order Form'!$W202,ATS!$T:$T,0),2) -> Blaster II Mips Helmet | E202: =INDEX(ATS!$A:$U,MATCH('2) Order Form'!$W202,ATS!$T:$T,0),4) -> DTBLK-SM | F202: =INDEX(ATS!$A:$U,MATCH('2) Order Form'!$W202,ATS!$T:$T,0),5) -> Dirt Black | G202: =INDEX(ATS!$A:$U,MATCH('2) Order Form'!$W202,ATS!$T:$T,0),6) -> SM | H202: =INDEX(Packs!$A:$V,MATCH('2) Order Form'!$W202,Packs!$W:$W,0),22) -> 1 | I202: 0 | J202: =IFERROR(VLOOKUP(W202,ATS!$T:$U,2,FALSE),0) -> 57 | K202: =IF(J202=99999,"OPEN",IF(J202>50,"50+",IF(J202<=0,"0",J202))) -> 50+ | L202: =IFERROR(VLOOKUP(W202,ATS!$T:$V,3,FALSE),0) -> 57 | M202: =IF(L202=99999,"OPEN",IF(L202>50,"50+",IF(L202<=0,"0",L202))) -> 50+ | N202: 0% | O202: =IF(N202<>0,N202,$P$5) -> 0% | P202: =VLOOKUP($C202,Prices!$A$3:$T$1996,MATCH('2) Order Form'!P$8,Prices!$A$2:$T$2,0),FALSE) -> 75.00 | Q202: =VLOOKUP($C202,Prices!$A$3:$T$1996,MATCH('2) Order Form'!Q$8,Prices!$A$2:$T$2,0),FALSE) -> 149.95 | R202: =I202*P202 -> 0 | S202: =R202*O202 -> 0 | T202: =R202-S202 -> 0 | U202: 0% | W202: 7048652184603 | Y202: 0 | Z202: 0 | AA202: 13 | AB202: 1 | AC202: 1 | AD202: 840037Dirt Black | AE202: 840037 | AF202: =VLOOKUP($C202,Classification!$A:$F,5,FALSE) -> 0.000 | AG202: =VLOOKUP($C202,Classification!$A:$F,6,FALSE) -> 1 | AH202: =INDEX(ATS!$A:$U,MATCH('2) Order Form'!$W202,ATS!$T:$T,0),7) -> Active
... 629 more rows

Sheet ELASTIC
A1: EAN-code | B1: ORDER QTY | F1: Control
A2: ='2) Order Form'!W9 -> 7048652832375 | B2: ='2) Order Form'!I9 -> 0 | E2: Sum qty | F2: =SUM(B2:B2331) -> 0
A3: ='2) Order Form'!W10 -> 7048652832368 | B3: ='2) Order Form'!I10 -> 0 | E3: Sum from order form | F3: ='2) Order Form'!S2:S2 -> 0
A4: ='2) Order Form'!W11 -> 7048652832351 | B4: ='2) Order Form'!I11 -> 0 | E4: Deviation | F4: =F2-F3 -> 0
A5: ='2) Order Form'!W12 -> 7048652832405 | B5: ='2) Order Form'!I12 -> 0
A6: ='2) Order Form'!W13 -> 7048652832399 | B6: ='2) Order Form'!I13 -> 0
A7: ='2) Order Form'!W14 -> 7048652832382 | B7: ='2) Order Form'!I14 -> 0
A8: ='2) Order Form'!W15 -> 7048652832436 | B8: ='2) Order Form'!I15 -> 0
A9: ='2) Order Form'!W16 -> 7048652832429 | B9: ='2) Order Form'!I16 -> 0
A10: ='2) Order Form'!W17 -> 7048652832412 | B10: ='2) Order Form'!I17 -> 0
A11: ='2) Order Form'!W18 -> 7048652832467 | B11: ='2) Order Form'!I18 -> 0
A12: ='2) Order Form'!W19 -> 7048652832450 | B12: ='2) Order Form'!I19 -> 0
A13: ='2) Order Form'!W20 -> 7048652832443 | B13: ='2) Order Form'!I20 -> 0
A14: ='2) Order Form'!W21 -> 7048652832498 | B14: ='2) Order Form'!I21 -> 0
A15: ='2) Order Form'!W22 -> 7048652832481 | B15: ='2) Order Form'!I22 -> 0
A16: ='2) Order Form'!W23 -> 7048652832474 | B16: ='2) Order Form'!I23 -> 0
A17: ='2) Order Form'!W24 -> 7048652832528 | B17: ='2) Order Form'!I24 -> 0
A18: ='2) Order Form'!W25 -> 7048652832511 | B18: ='2) Order Form'!I25 -> 0
A19: ='2) Order Form'!W26 -> 7048652832504 | B19: ='2) Order Form'!I26 -> 0
A20: ='2) Order Form'!W27 -> 7048652832559 | B20: ='2) Order Form'!I27 -> 0
A21: ='2) Order Form'!W28 -> 7048652832542 | B21: ='2) Order Form'!I28 -> 0
A22: ='2) Order Form'!W29 -> 7048652832535 | B22: ='2) Order Form'!I29 -> 0
A23: ='2) Order Form'!W30 -> 7048652832580 | B23: ='2) Order Form'!I30 -> 0
A24: ='2) Order Form'!W31 -> 7048652832573 | B24: ='2) Order Form'!I31 -> 0
A25: ='2) Order Form'!W32 -> 7048652832566 | B25: ='2) Order Form'!I32 -> 0
A26: ='2) Order Form'!W33 -> 7048652714077 | B26: ='2) Order Form'!I33 -> 0
A27: ='2) Order Form'!W34 -> 7048652714060 | B27: ='2) Order Form'!I34 -> 0
A28: ='2) Order Form'!W35 -> 7048652714053 | B28: ='2) Order Form'!I35 -> 0
A29: ='2) Order Form'!W36 -> 7048652714107 | B29: ='2) Order Form'!I36 -> 0
A30: ='2) Order Form'!W37 -> 7048652714091 | B30: ='2) Order Form'!I37 -> 0
A31: ='2) Order Form'!W38 -> 7048652714084 | B31: ='2) Order Form'!I38 -> 0
A32: ='2) Order Form'!W39 -> 7048652823359 | B32: ='2) Order Form'!I39 -> 0
A33: ='2) Order Form'!W40 -> 7048652823342 | B33: ='2) Order Form'!I40 -> 0
A34: ='2) Order Form'!W41 -> 7048652823335 | B34: ='2) Order Form'!I41 -> 0
A35: ='2) Order Form'!W42 -> 7048652823380 | B35: ='2) Order Form'!I42 -> 0
A36: ='2) Order Form'!W43 -> 7048652823373 | B36: ='2) Order Form'!I43 -> 0
A37: ='2) Order Form'!W44 -> 7048652823366 | B37: ='2) Order Form'!I44 -> 0
A38: ='2) Order Form'!W45 -> 7048652823410 | B38: ='2) Order Form'!I45 -> 0
A39: ='2) Order Form'!W46 -> 7048652823403 | B39: ='2) Order Form'!I46 -> 0
A40: ='2) Order Form'!W47 -> 7048652823397 | B40: ='2) Order Form'!I47 -> 0
A41: ='2) Order Form'!W48 -> 7048652823441 | B41: ='2) Order Form'!I48 -> 0
A42: ='2) Order Form'!W49 -> 7048652823434 | B42: ='2) Order Form'!I49 -> 0
A43: ='2) Order Form'!W50 -> 7048652823427 | B43: ='2) Order Form'!I50 -> 0
A44: ='2) Order Form'!W51 -> 7048652823472 | B44: ='2) Order Form'!I51 -> 0
A45: ='2) Order Form'!W52 -> 7048652823465 | B45: ='2) Order Form'!I52 -> 0
A46: ='2) Order Form'!W53 -> 7048652823458 | B46: ='2) Order Form'!I53 -> 0
A47: ='2) Order Form'!W54 -> 7048652715272 | B47: ='2) Order Form'!I54 -> 0
A48: ='2) Order Form'!W55 -> 7048652715265 | B48: ='2) Order Form'!I55 -> 0
A49: ='2) Order Form'!W56 -> 7048652715258 | B49: ='2) Order Form'!I56 -> 0
A50: ='2) Order Form'!W57 -> 7048652712592 | B50: ='2) Order Form'!I57 -> 0
A51: ='2) Order Form'!W58 -> 7048652712585 | B51: ='2) Order Form'!I58 -> 0
A52: ='2) Order Form'!W59 -> 7048652712578 | B52: ='2) Order Form'!I59 -> 0
A53: ='2) Order Form'!W60 -> 7048652712639 | B53: ='2) Order Form'!I60 -> 0
A54: ='2) Order Form'!W61 -> 7048652712622 | B54: ='2) Order Form'!I61 -> 0
A55: ='2) Order Form'!W62 -> 7048652712615 | B55: ='2) Order Form'!I62 -> 0
A56: ='2) Order Form'!W63 -> 7048652823625 | B56: ='2) Order Form'!I63 -> 0
A57: ='2) Order Form'!W64 -> 7048652823618 | B57: ='2) Order Form'!I64 -> 0
A58: ='2) Order Form'!W65 -> 7048652823601 | B58: ='2) Order Form'!I65 -> 0
A59: ='2) Order Form'!W66 -> 7048652463135 | B59: ='2) Order Form'!I66 -> 0
A60: ='2) Order Form'!W67 -> 7048652463128 | B60: ='2) Order Form'!I67 -> 0
A61: ='2) Order Form'!W68 -> 7048652463111 | B61: ='2) Order Form'!I68 -> 0
A62: ='2) Order Form'!W69 -> 7048652607683 | B62: ='2) Order Form'!I69 -> 0
A63: ='2) Order Form'!W70 -> 7048652186300 | B63: ='2) Order Form'!I70 -> 0
A64: ='2) Order Form'!W71 -> 7048652186294 | B64: ='2) Order Form'!I71 -> 0
A65: ='2) Order Form'!W72 -> 7048652186287 | B65: ='2) Order Form'!I72 -> 0
A66: ='2) Order Form'!W73 -> 7048652607690 | B66: ='2) Order Form'!I73 -> 0
A67: ='2) Order Form'!W74 -> 7048652822628 | B67: ='2) Order Form'!I74 -> 0
A68: ='2) Order Form'!W75 -> 7048652822611 | B68: ='2) Order Form'!I75 -> 0
A69: ='2) Order Form'!W76 -> 7048652822604 | B69: ='2) Order Form'!I76 -> 0
A70: ='2) Order Form'!W77 -> 7048652822635 | B70: ='2) Order Form'!I77 -> 0
A71: ='2) Order Form'!W78 -> 7048652822666 | B71: ='2) Order Form'!I78 -> 0
A72: ='2) Order Form'!W79 -> 7048652822659 | B72: ='2) Order Form'!I79 -> 0
A73: ='2) Order Form'!W80 -> 7048652822642 | B73: ='2) Order Form'!I80 -> 0
A74: ='2) Order Form'!W81 -> 7048652822673 | B74: ='2) Order Form'!I81 -> 0
A75: ='2) Order Form'!W82 -> 7048652822703 | B75: ='2) Order Form'!I82 -> 0
A76: ='2) Order Form'!W83 -> 7048652822697 | B76: ='2) Order Form'!I83 -> 0
A77: ='2) Order Form'!W84 -> 7048652822680 | B77: ='2) Order Form'!I84 -> 0
A78: ='2) Order Form'!W85 -> 7048652822710 | B78: ='2) Order Form'!I85 -> 0
A79: ='2) Order Form'!W86 -> 7048652822741 | B79: ='2) Order Form'!I86 -> 0
A80: ='2) Order Form'!W87 -> 7048652822734 | B80: ='2) Order Form'!I87 -> 0
A81: ='2) Order Form'!W88 -> 7048652822727 | B81: ='2) Order Form'!I88 -> 0
A82: ='2) Order Form'!W89 -> 7048652822758 | B82: ='2) Order Form'!I89 -> 0
A83: ='2) Order Form'!W90 -> 7048652822789 | B83: ='2) Order Form'!I90 -> 0
A84: ='2) Order Form'!W91 -> 7048652822772 | B84: ='2) Order Form'!I91 -> 0
A85: ='2) Order Form'!W92 -> 7048652822765 | B85: ='2) Order Form'!I92 -> 0
A86: ='2) Order Form'!W93 -> 7048652822796 | B86: ='2) Order Form'!I93 -> 0
A87: ='2) Order Form'!W94 -> 7048652463456 | B87: ='2) Order Form'!I94 -> 0
A88: ='2) Order Form'!W95 -> 7048652463449 | B88: ='2) Order Form'!I95 -> 0
A89: ='2) Order Form'!W96 -> 7048652463432 | B89: ='2) Order Form'!I96 -> 0
A90: ='2) Order Form'!W97 -> 7048652714619 | B90: ='2) Order Form'!I97 -> 0
A91: ='2) Order Form'!W98 -> 7048652714602 | B91: ='2) Order Form'!I98 -> 0
A92: ='2) Order Form'!W99 -> 7048652714596 | B92: ='2) Order Form'!I99 -> 0
A93: ='2) Order Form'!W100 -> 7048652823021 | B93: ='2) Order Form'!I100 -> 0
A94: ='2) Order Form'!W101 -> 7048652823014 | B94: ='2) Order Form'!I101 -> 0
A95: ='2) Order Form'!W102 -> 7048652823007 | B95: ='2) Order Form'!I102 -> 0
A96: ='2) Order Form'!W103 -> 7048652823052 | B96: ='2) Order Form'!I103 -> 0
A97: ='2) Order Form'!W104 -> 7048652823045 | B97: ='2) Order Form'!I104 -> 0
A98: ='2) Order Form'!W105 -> 7048652823038 | B98: ='2) Order Form'!I105 -> 0
A99: ='2) Order Form'!W106 -> 7048652463579 | B99: ='2) Order Form'!I106 -> 0
A100: ='2) Order Form'!W107 -> 7048652463562 | B100: ='2) Order Form'!I107 -> 0
A101: ='2) Order Form'!W108 -> 7048652463555 | B101: ='2) Order Form'!I108 -> 0
A102: ='2) Order Form'!W109 -> 7048652713193 | B102: ='2) Order Form'!I109 -> 0
A103: ='2) Order Form'!W110 -> 7048652713186 | B103: ='2) Order Form'!I110 -> 0
A104: ='2) Order Form'!W111 -> 7048652713179 | B104: ='2) Order Form'!I111 -> 0
A105: ='2) Order Form'!W112 -> 7048652822963 | B105: ='2) Order Form'!I112 -> 0
A106: ='2) Order Form'!W113 -> 7048652822956 | B106: ='2) Order Form'!I113 -> 0
A107: ='2) Order Form'!W114 -> 7048652822949 | B107: ='2) Order Form'!I114 -> 0
A108: ='2) Order Form'!W115 -> 7048652822994 | B108: ='2) Order Form'!I115 -> 0
A109: ='2) Order Form'!W116 -> 7048652822987 | B109: ='2) Order Form'!I116 -> 0
A110: ='2) Order Form'!W117 -> 7048652822970 | B110: ='2) Order Form'!I117 -> 0
A111: ='2) Order Form'!W118 -> 7048652186355 | B111: ='2) Order Form'!I118 -> 0
A112: ='2) Order Form'!W119 -> 7048652186348 | B112: ='2) Order Form'!I119 -> 0
A113: ='2) Order Form'!W120 -> 7048652186331 | B113: ='2) Order Form'!I120 -> 0
A114: ='2) Order Form'!W121 -> 7048652186386 | B114: ='2) Order Form'!I121 -> 0
A115: ='2) Order Form'!W122 -> 7048652186379 | B115: ='2) Order Form'!I122 -> 0
A116: ='2) Order Form'!W123 -> 7048652186362 | B116: ='2) Order Form'!I123 -> 0
A117: ='2) Order Form'!W124 -> 7048652186416 | B117: ='2) Order Form'!I124 -> 0
A118: ='2) Order Form'!W125 -> 7048652186409 | B118: ='2) Order Form'!I125 -> 0
A119: ='2) Order Form'!W126 -> 7048652186393 | B119: ='2) Order Form'!I126 -> 0
A120: ='2) Order Form'!W127 -> 7048652823236 | B120: ='2) Order Form'!I127 -> 0
A121: ='2) Order Form'!W128 -> 7048652823229 | B121: ='2) Order Form'!I128 -> 0
A122: ='2) Order Form'!W129 -> 7048652823212 | B122: ='2) Order Form'!I129 -> 0
A123: ='2) Order Form'!W130 -> 7048652823267 | B123: ='2) Order Form'!I130 -> 0
A124: ='2) Order Form'!W131 -> 7048652823250 | B124: ='2) Order Form'!I131 -> 0
A125: ='2) Order Form'!W132 -> 7048652823243 | B125: ='2) Order Form'!I132 -> 0
A126: ='2) Order Form'!W133 -> 7048652823298 | B126: ='2) Order Form'!I133 -> 0
A127: ='2) Order Form'!W134 -> 7048652823281 | B127: ='2) Order Form'!I134 -> 0
A128: ='2) Order Form'!W135 -> 7048652823274 | B128: ='2) Order Form'!I135 -> 0
A129: ='2) Order Form'!W136 -> 7048652604897 | B129: ='2) Order Form'!I136 -> 0
A130: ='2) Order Form'!W137 -> 7048652604880 | B130: ='2) Order Form'!I137 -> 0
A131: ='2) Order Form'!W138 -> 7048652604873 | B131: ='2) Order Form'!I138 -> 0
A132: ='2) Order Form'!W139 -> 7048652604989 | B132: ='2) Order Form'!I139 -> 0
A133: ='2) Order Form'!W140 -> 7048652604972 | B133: ='2) Order Form'!I140 -> 0
A134: ='2) Order Form'!W141 -> 7048652604965 | B134: ='2) Order Form'!I141 -> 0
A135: ='2) Order Form'!W142 -> 7048652605016 | B135: ='2) Order Form'!I142 -> 0
A136: ='2) Order Form'!W143 -> 7048652605009 | B136: ='2) Order Form'!I143 -> 0
A137: ='2) Order Form'!W144 -> 7048652604996 | B137: ='2) Order Form'!I144 -> 0
A138: ='2) Order Form'!W145 -> 7048652771292 | B138: ='2) Order Form'!I145 -> 0
A139: ='2) Order Form'!W146 -> 7048652771285 | B139: ='2) Order Form'!I146 -> 0
A140: ='2) Order Form'!W147 -> 7048652771278 | B140: ='2) Order Form'!I147 -> 0
A141: ='2) Order Form'!W148 -> 7048652605108 | B141: ='2) Order Form'!I148 -> 0
A142: ='2) Order Form'!W149 -> 7048652605092 | B142: ='2) Order Form'!I149 -> 0
A143: ='2) Order Form'!W150 -> 7048652605085 | B143: ='2) Order Form'!I150 -> 0
A144: ='2) Order Form'!W151 -> 7048652605191 | B144: ='2) Order Form'!I151 -> 0
A145: ='2) Order Form'!W152 -> 7048652605184 | B145: ='2) Order Form'!I152 -> 0
A146: ='2) Order Form'!W153 -> 7048652605177 | B146: ='2) Order Form'!I153 -> 0
A147: ='2) Order Form'!W154 -> 7048652605221 | B147: ='2) Order Form'!I154 -> 0
A148: ='2) Order Form'!W155 -> 7048652605214 | B148: ='2) Order Form'!I155 -> 0
A149: ='2) Order Form'!W156 -> 7048652605207 | B149: ='2) Order Form'!I156 -> 0
A150: ='2) Order Form'!W157 -> 7048652823205 | B150: ='2) Order Form'!I157 -> 0
A151: ='2) Order Form'!W158 -> 7048652823199 | B151: ='2) Order Form'!I158 -> 0
A152: ='2) Order Form'!W159 -> 7048652823182 | B152: ='2) Order Form'!I159 -> 0
A153: ='2) Order Form'!W160 -> 7048652823113 | B153: ='2) Order Form'!I160 -> 0
A154: ='2) Order Form'!W161 -> 7048652823106 | B154: ='2) Order Form'!I161 -> 0
A155: ='2) Order Form'!W162 -> 7048652823090 | B155: ='2) Order Form'!I162 -> 0
A156: ='2) Order Form'!W163 -> 7048652823144 | B156: ='2) Order Form'!I163 -> 0
A157: ='2) Order Form'!W164 -> 7048652823137 | B157: ='2) Order Form'!I164 -> 0
A158: ='2) Order Form'!W165 -> 7048652823120 | B158: ='2) Order Form'!I165 -> 0
A159: ='2) Order Form'!W166 -> 7048652832825 | B159: ='2) Order Form'!I166 -> 0
A160: ='2) Order Form'!W167 -> 7048652832818 | B160: ='2) Order Form'!I167 -> 0
A161: ='2) Order Form'!W168 -> 7048652832801 | B161: ='2) Order Form'!I168 -> 0
A162: ='2) Order Form'!W169 -> 7048652832887 | B162: ='2) Order Form'!I169 -> 0
A163: ='2) Order Form'!W170 -> 7048652832870 | B163: ='2) Order Form'!I170 -> 0
A164: ='2) Order Form'!W171 -> 7048652832863 | B164: ='2) Order Form'!I171 -> 0
A165: ='2) Order Form'!W172 -> 7048652832917 | B165: ='2) Order Form'!I172 -> 0
A166: ='2) Order Form'!W173 -> 7048652832900 | B166: ='2) Order Form'!I173 -> 0
A167: ='2) Order Form'!W174 -> 7048652832894 | B167: ='2) Order Form'!I174 -> 0
A168: ='2) Order Form'!W175 -> 7048652832948 | B168: ='2) Order Form'!I175 -> 0
A169: ='2) Order Form'!W176 -> 7048652832931 | B169: ='2) Order Form'!I176 -> 0
A170: ='2) Order Form'!W177 -> 7048652832924 | B170: ='2) Order Form'!I177 -> 0
A171: ='2) Order Form'!W178 -> 7048652832979 | B171: ='2) Order Form'!I178 -> 0
A172: ='2) Order Form'!W179 -> 7048652832962 | B172: ='2) Order Form'!I179 -> 0
A173: ='2) Order Form'!W180 -> 7048652832955 | B173: ='2) Order Form'!I180 -> 0
A174: ='2) Order Form'!W181 -> 7048652833006 | B174: ='2) Order Form'!I181 -> 0
A175: ='2) Order Form'!W182 -> 7048652832993 | B175: ='2) Order Form'!I182 -> 0
A176: ='2) Order Form'!W183 -> 7048652832986 | B176: ='2) Order Form'!I183 -> 0
A177: ='2) Order Form'!W184 -> 7048652832610 | B177: ='2) Order Form'!I184 -> 0
A178: ='2) Order Form'!W185 -> 7048652832603 | B178: ='2) Order Form'!I185 -> 0
A179: ='2) Order Form'!W186 -> 7048652832597 | B179: ='2) Order Form'!I186 -> 0
A180: ='2) Order Form'!W187 -> 7048652832672 | B180: ='2) Order Form'!I187 -> 0
A181: ='2) Order Form'!W188 -> 7048652832665 | B181: ='2) Order Form'!I188 -> 0
A182: ='2) Order Form'!W189 -> 7048652832658 | B182: ='2) Order Form'!I189 -> 0
A183: ='2) Order Form'!W190 -> 7048652832702 | B183: ='2) Order Form'!I190 -> 0
A184: ='2) Order Form'!W191 -> 7048652832696 | B184: ='2) Order Form'!I191 -> 0
A185: ='2) Order Form'!W192 -> 7048652832689 | B185: ='2) Order Form'!I192 -> 0
A186: ='2) Order Form'!W193 -> 7048652832733 | B186: ='2) Order Form'!I193 -> 0
A187: ='2) Order Form'!W194 -> 7048652832726 | B187: ='2) Order Form'!I194 -> 0
A188: ='2) Order Form'!W195 -> 7048652832719 | B188: ='2) Order Form'!I195 -> 0
A189: ='2) Order Form'!W196 -> 7048652832764 | B189: ='2) Order Form'!I196 -> 0
A190: ='2) Order Form'!W197 -> 7048652832757 | B190: ='2) Order Form'!I197 -> 0
A191: ='2) Order Form'!W198 -> 7048652832740 | B191: ='2) Order Form'!I198 -> 0
A192: ='2) Order Form'!W199 -> 7048652832795 | B192: ='2) Order Form'!I199 -> 0
A193: ='2) Order Form'!W200 -> 7048652832788 | B193: ='2) Order Form'!I200 -> 0
A194: ='2) Order Form'!W201 -> 7048652832771 | B194: ='2) Order Form'!I201 -> 0
A195: ='2) Order Form'!W202 -> 7048652184603 | B195: ='2) Order Form'!I202 -> 0
A196: ='2) Order Form'!W203 -> 7048652184597 | B196: ='2) Order Form'!I203 -> 0
A197: ='2) Order Form'!W204 -> 7048652184580 | B197: ='2) Order Form'!I204 -> 0
A198: ='2) Order Form'!W205 -> 7048652714589 | B198: ='2) Order Form'!I205 -> 0
A199: ='2) Order Form'!W206 -> 7048652714572 | B199: ='2) Order Form'!I206 -> 0
A200: ='2) Order Form'!W207 -> 7048652714565 | B200: ='2) Order Form'!I207 -> 0
... 624 more rows

Sheet ATS (hidden)
A1: Item Availability weeks Excel | S1: IKKE GJØR NOEN ENDRINGER I DISSE KOLONNENE | X1: MANGLER - MÅ OPPDATERE EAN-FANEN | AF1: =IFERROR(VLOOKUP(Z4,'2) Order Form'!$W$33:$W$876,1,FALSE),"Ikke med I order form") -> Ikke med I order form
A2: SKIGUTANE\PETULR : 21.03.23 | B2: Item Variant Status "Active&Stock"
A3: No. | B3: Description | C3: Location Filter | D3: Variant Color | E3: Color Description | F3: Variant Size | G3: Variant Status | H3: Week 1 | I3: Week 2 | J3: Week 3 | K3: Week 4 | L3: Week 5 | M3: Week 6 | N3: Week 7 | O3: Week 8 | P3: Week 9 | Q3: Week 10 | S3: SKU | T3: Cross-Reference No. | U3: W1 | V3: W2 | X3: Med I order form? | Z3: EAN fra Elastic | AA3: Sjekk mot Order Form | AF3: Sjekk mot Elastic
A4: 18100 | B4: Net | H4: 202312 | I4: 202313 | J4: 202314 | K4: 202315 | L4: 202316 | M4: 202317 | N4: 202318 | O4: 202319 | P4: 202320 | Q4: 202321 | S4: =CONCATENATE(A4,"-",D4) -> 18100- | T4: =IF(B4="NET","",IF(B4="","",IFERROR(VLOOKUP(S4,EAN!$A:$B,2,FALSE),"MANGLER - MÅ OPPDATERE EAN-FANEN"))) ->  | U4: =H4 -> 202312 | V4: =Q4 -> 202321 | X4: =IF(B4="NET","",IFERROR(VLOOKUP(T4,'2) Order Form'!$W$9:$W$887,1,FALSE),"Ikke med I order form")) ->  | Z4: 7048652832375 | AA4: =IFERROR(VLOOKUP(Z4,'2) Order Form'!$W$9:$W$832,1,FALSE),"Ikke med I order form") -> 7048652832375 | AB4: =VLOOKUP(Z4,'AB Item Details'!$A$4:$F$6000,2,FALSE) -> 840102 | AC4: =VLOOKUP(Z4,'AB Item Details'!$A$4:$F$6000,6,FALSE) -> Igniter 2Vi MIPS Helmet | AD4: =VLOOKUP(Z4,'AB Item Details'!$A$4:$F$6000,3,FALSE) -> DPUMC-SM | AF4: =IFERROR(VLOOKUP('2) Order Form'!$W9,$Z$4:$Z$1000,1,FALSE),"Ikke med i Elastic") -> 7048652832375 | AG4: =SUM('2) Order Form'!W9) -> 7048652832375 | AH4: =INDEX(ATS!$A:$U,MATCH(ATS!$AG4,ATS!$T:$T,0),1) -> 840102 | AI4: =INDEX(ATS!$A:$U,MATCH(ATS!$AG4,ATS!$T:$T,0),2) -> Igniter 2Vi MIPS Helmet | AJ4: =INDEX(ATS!$A:$U,MATCH(ATS!$AG4,ATS!$T:$T,0),4) -> DPUMC-SM
A5: 18100 | B5: Tower Kit 1 of 2 | C5: DHLOUT|DBS | D5: BLACK-OS | E5: Black | F5: OS | G5: Active | H5: 0 | I5: 0 | J5: 0 | K5: 0 | L5: 0 | M5: 0 | N5: 0 | O5: 0 | P5: 0 | Q5: 0 | S5: =CONCATENATE(A5,"-",D5) -> 18100-BLACK-OS | T5: =IF(B5="NET","",IF(B5="","",IFERROR(VLOOKUP(S5,EAN!$A:$B,2,FALSE),"MANGLER - MÅ OPPDATERE EAN-FANEN"))) -> MANGLER - MÅ OPPDATERE EAN-FANEN | U5: =H5 -> 0 | V5: =Q5 -> 0 | X5: =IF(B5="NET","",IFERROR(VLOOKUP(T5,'2) Order Form'!$W$9:$W$887,1,FALSE),"Ikke med I order form")) -> Ikke med I order form | Z5: 7048652832368 | AA5: =IFERROR(VLOOKUP(Z5,'2) Order Form'!$W$9:$W$832,1,FALSE),"Ikke med I order form") -> 7048652832368 | AB5: =VLOOKUP(Z5,'AB Item Details'!$A$4:$F$6000,2,FALSE) -> 840102 | AC5: =VLOOKUP(Z5,'AB Item Details'!$A$4:$F$6000,6,FALSE) -> Igniter 2Vi MIPS Helmet | AD5: =VLOOKUP(Z5,'AB Item Details'!$A$4:$F$6000,3,FALSE) -> DPUMC-ML | AF5: =IFERROR(VLOOKUP('2) Order Form'!$W10,$Z$4:$Z$1000,1,FALSE),"Ikke med i Elastic") -> 7048652832368 | AG5: =SUM('2) Order Form'!W10) -> 7048652832368 | AH5: =INDEX(ATS!$A:$U,MATCH(ATS!$AG5,ATS!$T:$T,0),1) -> 840102 | AI5: =INDEX(ATS!$A:$U,MATCH(ATS!$AG5,ATS!$T:$T,0),2) -> Igniter 2Vi MIPS Helmet | AJ5: =INDEX(ATS!$A:$U,MATCH(ATS!$AG5,ATS!$T:$T,0),4) -> DPUMC-ML
A6: 18101 | B6: Net | H6: 202312 | I6: 202313 | J6: 202314 | K6: 202315 | L6: 202316 | M6: 202317 | N6: 202318 | O6: 202319 | P6: 202320 | Q6: 202321 | S6: =CONCATENATE(A6,"-",D6) -> 18101- | T6: =IF(B6="NET","",IF(B6="","",IFERROR(VLOOKUP(S6,EAN!$A:$B,2,FALSE),"MANGLER - MÅ OPPDATERE EAN-FANEN"))) ->  | U6: 202312 | V6: 202321 | X6: =IF(B6="NET","",IFERROR(VLOOKUP(T6,'2) Order Form'!$W$9:$W$887,1,FALSE),"Ikke med I order form")) ->  | Z6: 7048652832351 | AA6: =IFERROR(VLOOKUP(Z6,'2) Order Form'!$W$9:$W$832,1,FALSE),"Ikke med I order form") -> 7048652832351 | AB6: =VLOOKUP(Z6,'AB Item Details'!$A$4:$F$6000,2,FALSE) -> 840102 | AC6: =VLOOKUP(Z6,'AB Item Details'!$A$4:$F$6000,6,FALSE) -> Igniter 2Vi MIPS Helmet | AD6: =VLOOKUP(Z6,'AB Item Details'!$A$4:$F$6000,3,FALSE) -> DPUMC-LXL | AF6: =IFERROR(VLOOKUP('2) Order Form'!$W11,$Z$4:$Z$1000,1,FALSE),"Ikke med i Elastic") -> 7048652832351 | AG6: =SUM('2) Order Form'!W11) -> 7048652832351 | AH6: =INDEX(ATS!$A:$U,MATCH(ATS!$AG6,ATS!$T:$T,0),1) -> 840102 | AI6: =INDEX(ATS!$A:$U,MATCH(ATS!$AG6,ATS!$T:$T,0),2) -> Igniter 2Vi MIPS Helmet | AJ6: =INDEX(ATS!$A:$U,MATCH(ATS!$AG6,ATS!$T:$T,0),4) -> DPUMC-LXL
A7: 18101 | B7: Slatwall Helmet holder | C7: DHLOUT|DBS | D7: BLACK-OS | E7: Black | F7: OS | G7: Active | H7: 0 | I7: 0 | J7: 0 | K7: 0 | L7: 0 | M7: 0 | N7: 0 | O7: 0 | P7: 0 | Q7: 0 | S7: =CONCATENATE(A7,"-",D7) -> 18101-BLACK-OS | T7: =IF(B7="NET","",IF(B7="","",IFERROR(VLOOKUP(S7,EAN!$A:$B,2,FALSE),"MANGLER - MÅ OPPDATERE EAN-FANEN"))) -> MANGLER - MÅ OPPDATERE EAN-FANEN | U7: 0 | V7: 0 | X7: =IF(B7="NET","",IFERROR(VLOOKUP(T7,'2) Order Form'!$W$9:$W$887,1,FALSE),"Ikke med I order form")) -> Ikke med I order form | Z7: 7048652832405 | AA7: =IFERROR(VLOOKUP(Z7,'2) Order Form'!$W$9:$W$832,1,FALSE),"Ikke med I order form") -> 7048652832405 | AB7: =VLOOKUP(Z7,'AB Item Details'!$A$4:$F$6000,2,FALSE) -> 840102 | AC7: =VLOOKUP(Z7,'AB Item Details'!$A$4:$F$6000,6,FALSE) -> Igniter 2Vi MIPS Helmet | AD7: =VLOOKUP(Z7,'AB Item Details'!$A$4:$F$6000,3,FALSE) -> DTBLK-SM | AF7: =IFERROR(VLOOKUP('2) Order Form'!$W12,$Z$4:$Z$1000,1,FALSE),"Ikke med i Elastic") -> 7048652832405 | AG7: =SUM('2) Order Form'!W12) -> 7048652832405 | AH7: =INDEX(ATS!$A:$U,MATCH(ATS!$AG7,ATS!$T:$T,0),1) -> 840102 | AI7: =INDEX(ATS!$A:$U,MATCH(ATS!$AG7,ATS!$T:$T,0),2) -> Igniter 2Vi MIPS Helmet | AJ7: =INDEX(ATS!$A:$U,MATCH(ATS!$AG7,ATS!$T:$T,0),4) -> DTBLK-SM
A8: 18102 | B8: Net | H8: 202312 | I8: 202313 | J8: 202314 | K8: 202315 | L8: 202316 | M8: 202317 | N8: 202318 | O8: 202319 | P8: 202320 | Q8: 202321 | S8: =CONCATENATE(A8,"-",D8) -> 18102- | T8: =IF(B8="NET","",IF(B8="","",IFERROR(VLOOKUP(S8,EAN!$A:$B,2,FALSE),"MANGLER - MÅ OPPDATERE EAN-FANEN"))) ->  | U8: 202312 | V8: 202321 | X8: =IF(B8="NET","",IFERROR(VLOOKUP(T8,'2) Order Form'!$W$9:$W$887,1,FALSE),"Ikke med I order form")) ->  | Z8: 7048652832399 | AA8: =IFERROR(VLOOKUP(Z8,'2) Order Form'!$W$9:$W$832,1,FALSE),"Ikke med I order form") -> 7048652832399 | AB8: =VLOOKUP(Z8,'AB Item Details'!$A$4:$F$6000,2,FALSE) -> 840102 | AC8: =VLOOKUP(Z8,'AB Item Details'!$A$4:$F$6000,6,FALSE) -> Igniter 2Vi MIPS Helmet | AD8: =VLOOKUP(Z8,'AB Item Details'!$A$4:$F$6000,3,FALSE) -> DTBLK-ML | AF8: =IFERROR(VLOOKUP('2) Order Form'!$W13,$Z$4:$Z$1000,1,FALSE),"Ikke med i Elastic") -> 7048652832399 | AG8: =SUM('2) Order Form'!W13) -> 7048652832399 | AH8: =INDEX(ATS!$A:$U,MATCH(ATS!$AG8,ATS!$T:$T,0),1) -> 840102 | AI8: =INDEX(ATS!$A:$U,MATCH(ATS!$AG8,ATS!$T:$T,0),2) -> Igniter 2Vi MIPS Helmet | AJ8: =INDEX(ATS!$A:$U,MATCH(ATS!$AG8,ATS!$T:$T,0),4) -> DTBLK-ML
A9: 18102 | B9: Slatwall goggle Holder | C9: DHLOUT|DBS | D9: BLACK-OS | E9: Black | F9: OS | G9: Active | H9: 0 | I9: 0 | J9: 0 | K9: 0 | L9: 0 | M9: 0 | N9: 0 | O9: 0 | P9: 0 | Q9: 0 | S9: 18102-BLACK-OS | T9: =IF(B9="NET","",IF(B9="","",IFERROR(VLOOKUP(S9,EAN!$A:$B,2,FALSE),"MANGLER - MÅ OPPDATERE EAN-FANEN"))) -> MANGLER - MÅ OPPDATERE EAN-FANEN | U9: 0 | V9: 0 | X9: =IF(B9="NET","",IFERROR(VLOOKUP(T9,'2) Order Form'!$W$9:$W$887,1,FALSE),"Ikke med I order form")) -> Ikke med I order form | Z9: 7048652832382 | AA9: =IFERROR(VLOOKUP(Z9,'2) Order Form'!$W$9:$W$832,1,FALSE),"Ikke med I order form") -> 7048652832382 | AB9: =VLOOKUP(Z9,'AB Item Details'!$A$4:$F$6000,2,FALSE) -> 840102 | AC9: =VLOOKUP(Z9,'AB Item Details'!$A$4:$F$6000,6,FALSE) -> Igniter 2Vi MIPS Helmet | AD9: =VLOOKUP(Z9,'AB Item Details'!$A$4:$F$6000,3,FALSE) -> DTBLK-LXL | AF9: =IFERROR(VLOOKUP('2) Order Form'!$W14,$Z$4:$Z$1000,1,FALSE),"Ikke med i Elastic") -> 7048652832382 | AG9: =SUM('2) Order Form'!W14) -> 7048652832382 | AH9: =INDEX(ATS!$A:$U,MATCH(ATS!$AG9,ATS!$T:$T,0),1) -> 840102 | AI9: =INDEX(ATS!$A:$U,MATCH(ATS!$AG9,ATS!$T:$T,0),2) -> Igniter 2Vi MIPS Helmet | AJ9: =INDEX(ATS!$A:$U,MATCH(ATS!$AG9,ATS!$T:$T,0),4) -> DTBLK-LXL
A10: 18103 | B10: Net | H10: 202312 | I10: 202313 | J10: 202314 | K10: 202315 | L10: 202316 | M10: 202317 | N10: 202318 | O10: 202319 | P10: 202320 | Q10: 202321 | S10: 18103- | T10: =IF(B10="NET","",IF(B10="","",IFERROR(VLOOKUP(S10,EAN!$A:$B,2,FALSE),"MANGLER - MÅ OPPDATERE EAN-FANEN"))) ->  | U10: 202312 | V10: 202321 | X10: =IF(B10="NET","",IFERROR(VLOOKUP(T10,'2) Order Form'!$W$9:$W$887,1,FALSE),"Ikke med I order form")) ->  | Z10: 7048652832436 | AA10: =IFERROR(VLOOKUP(Z10,'2) Order Form'!$W$9:$W$832,1,FALSE),"Ikke med I order form") -> 7048652832436 | AB10: =VLOOKUP(Z10,'AB Item Details'!$A$4:$F$6000,2,FALSE) -> 840102 | AC10: =VLOOKUP(Z10,'AB Item Details'!$A$4:$F$6000,6,FALSE) -> Igniter 2Vi MIPS Helmet | AD10: =VLOOKUP(Z10,'AB Item Details'!$A$4:$F$6000,3,FALSE) -> GSWHT-SM | AF10: =IFERROR(VLOOKUP('2) Order Form'!$W15,$Z$4:$Z$1000,1,FALSE),"Ikke med i Elastic") -> 7048652832436 | AG10: =SUM('2) Order Form'!W15) -> 7048652832436 | AH10: =INDEX(ATS!$A:$U,MATCH(ATS!$AG10,ATS!$T:$T,0),1) -> 840102 | AI10: =INDEX(ATS!$A:$U,MATCH(ATS!$AG10,ATS!$T:$T,0),2) -> Igniter 2Vi MIPS Helmet | AJ10: =INDEX(ATS!$A:$U,MATCH(ATS!$AG10,ATS!$T:$T,0),4) -> GSWHT-SM
A11: 18103 | B11: A-Frame Graphic Holder | C11: DHLOUT|DBS | D11: BLACK-OS | E11: Black | F11: OS | G11: Active | H11: 0 | I11: 0 | J11: 0 | K11: 0 | L11: 0 | M11: 0 | N11: 0 | O11: 0 | P11: 0 | Q11: 0 | S11: 18103-BLACK-OS | T11: =IF(B11="NET","",IF(B11="","",IFERROR(VLOOKUP(S11,EAN!$A:$B,2,FALSE),"MANGLER - MÅ OPPDATERE EAN-FANEN"))) -> MANGLER - MÅ OPPDATERE EAN-FANEN | U11: 0 | V11: 0 | X11: =IF(B11="NET","",IFERROR(VLOOKUP(T11,'2) Order Form'!$W$9:$W$887,1,FALSE),"Ikke med I order form")) -> Ikke med I order form | Z11: 7048652832429 | AA11: =IFERROR(VLOOKUP(Z11,'2) Order Form'!$W$9:$W$832,1,FALSE),"Ikke med I order form") -> 7048652832429 | AB11: =VLOOKUP(Z11,'AB Item Details'!$A$4:$F$6000,2,FALSE) -> 840102 | AC11: =VLOOKUP(Z11,'AB Item Details'!$A$4:$F$6000,6,FALSE) -> Igniter 2Vi MIPS Helmet | AD11: =VLOOKUP(Z11,'AB Item Details'!$A$4:$F$6000,3,FALSE) -> GSWHT-ML | AF11: =IFERROR(VLOOKUP('2) Order Form'!$W16,$Z$4:$Z$1000,1,FALSE),"Ikke med i Elastic") -> 7048652832429 | AG11: =SUM('2) Order Form'!W16) -> 7048652832429 | AH11: =INDEX(ATS!$A:$U,MATCH(ATS!$AG11,ATS!$T:$T,0),1) -> 840102 | AI11: =INDEX(ATS!$A:$U,MATCH(ATS!$AG11,ATS!$T:$T,0),2) -> Igniter 2Vi MIPS Helmet | AJ11: =INDEX(ATS!$A:$U,MATCH(ATS!$AG11,ATS!$T:$T,0),4) -> GSWHT-ML
A12: 18104 | B12: Net | H12: 202312 | I12: 202313 | J12: 202314 | K12: 202315 | L12: 202316 | M12: 202317 | N12: 202318 | O12: 202319 | P12: 202320 | Q12: 202321 | S12: 18104- | T12: =IF(B12="NET","",IF(B12="","",IFERROR(VLOOKUP(S12,EAN!$A:$B,2,FALSE),"MANGLER - MÅ OPPDATERE EAN-FANEN"))) ->  | U12: 202312 | V12: 202321 | X12: =IF(B12="NET","",IFERROR(VLOOKUP(T12,'2) Order Form'!$W$9:$W$887,1,FALSE),"Ikke med I order form")) ->  | Z12: 7048652832412 | AA12: =IFERROR(VLOOKUP(Z12,'2) Order Form'!$W$9:$W$832,1,FALSE),"Ikke med I order form") -> 7048652832412 | AB12: =VLOOKUP(Z12,'AB Item Details'!$A$4:$F$6000,2,FALSE) -> 840102 | AC12: =VLOOKUP(Z12,'AB Item Details'!$A$4:$F$6000,6,FALSE) -> Igniter 2Vi MIPS Helmet | AD12: =VLOOKUP(Z12,'AB Item Details'!$A$4:$F$6000,3,FALSE) -> GSWHT-LXL | AF12: =IFERROR(VLOOKUP('2) Order Form'!$W17,$Z$4:$Z$1000,1,FALSE),"Ikke med i Elastic") -> 7048652832412 | AG12: =SUM('2) Order Form'!W17) -> 7048652832412 | AH12: =INDEX(ATS!$A:$U,MATCH(ATS!$AG12,ATS!$T:$T,0),1) -> 840102 | AI12: =INDEX(ATS!$A:$U,MATCH(ATS!$AG12,ATS!$T:$T,0),2) -> Igniter 2Vi MIPS Helmet | AJ12: =INDEX(ATS!$A:$U,MATCH(ATS!$AG12,ATS!$T:$T,0),4) -> GSWHT-LXL
A13: 18104 | B13: Tower Kit 2 of 2 | C13: DHLOUT|DBS | D13: BLACK-OS | E13: Black | F13: OS | G13: Active | H13: 0 | I13: 0 | J13: 0 | K13: 0 | L13: 0 | M13: 0 | N13: 0 | O13: 0 | P13: 0 | Q13: 0 | S13: 18104-BLACK-OS | T13: =IF(B13="NET","",IF(B13="","",IFERROR(VLOOKUP(S13,EAN!$A:$B,2,FALSE),"MANGLER - MÅ OPPDATERE EAN-FANEN"))) -> MANGLER - MÅ OPPDATERE EAN-FANEN | U13: 0 | V13: 0 | X13: =IF(B13="NET","",IFERROR(VLOOKUP(T13,'2) Order Form'!$W$9:$W$887,1,FALSE),"Ikke med I order form")) -> Ikke med I order form | Z13: 7048652832467 | AA13: =IFERROR(VLOOKUP(Z13,'2) Order Form'!$W$9:$W$832,1,FALSE),"Ikke med I order form") -> 7048652832467 | AB13: =VLOOKUP(Z13,'AB Item Details'!$A$4:$F$6000,2,FALSE) -> 840102 | AC13: =VLOOKUP(Z13,'AB Item Details'!$A$4:$F$6000,6,FALSE) -> Igniter 2Vi MIPS Helmet | AD13: =VLOOKUP(Z13,'AB Item Details'!$A$4:$F$6000,3,FALSE) -> MASEM-SM | AF13: =IFERROR(VLOOKUP('2) Order Form'!$W18,$Z$4:$Z$1000,1,FALSE),"Ikke med i Elastic") -> 7048652832467 | AG13: =SUM('2) Order Form'!W18) -> 7048652832467 | AH13: =INDEX(ATS!$A:$U,MATCH(ATS!$AG13,ATS!$T:$T,0),1) -> 840102 | AI13: =INDEX(ATS!$A:$U,MATCH(ATS!$AG13,ATS!$T:$T,0),2) -> Igniter 2Vi MIPS Helmet | AJ13: =INDEX(ATS!$A:$U,MATCH(ATS!$AG13,ATS!$T:$T,0),4) -> MASEM-SM
A14: 810050 | B14: Net | H14: 202312 | I14: 202313 | J14: 202314 | K14: 202315 | L14: 202316 | M14: 202317 | N14: 202318 | O14: 202319 | P14: 202320 | Q14: 202321 | S14: 810050- | T14: =IF(B14="NET","",IF(B14="","",IFERROR(VLOOKUP(S14,EAN!$A:$B,2,FALSE),"MANGLER - MÅ OPPDATERE EAN-FANEN"))) ->  | U14: 202312 | V14: 202321 | X14: =IF(B14="NET","",IFERROR(VLOOKUP(T14,'2) Order Form'!$W$9:$W$887,1,FALSE),"Ikke med I order form")) ->  | Z14: 7048652832450 | AA14: =IFERROR(VLOOKUP(Z14,'2) Order Form'!$W$9:$W$832,1,FALSE),"Ikke med I order form") -> 7048652832450 | AB14: =VLOOKUP(Z14,'AB Item Details'!$A$4:$F$6000,2,FALSE) -> 840102 | AC14: =VLOOKUP(Z14,'AB Item Details'!$A$4:$F$6000,6,FALSE) -> Igniter 2Vi MIPS Helmet | AD14: =VLOOKUP(Z14,'AB Item Details'!$A$4:$F$6000,3,FALSE) -> MASEM-ML | AF14: =IFERROR(VLOOKUP('2) Order Form'!$W19,$Z$4:$Z$1000,1,FALSE),"Ikke med i Elastic") -> 7048652832450 | AG14: =SUM('2) Order Form'!W19) -> 7048652832450 | AH14: =INDEX(ATS!$A:$U,MATCH(ATS!$AG14,ATS!$T:$T,0),1) -> 840102 | AI14: =INDEX(ATS!$A:$U,MATCH(ATS!$AG14,ATS!$T:$T,0),2) -> Igniter 2Vi MIPS Helmet | AJ14: =INDEX(ATS!$A:$U,MATCH(ATS!$AG14,ATS!$T:$T,0),4) -> MASEM-ML
